Workbook

Sheet READ ME
D1: T-REX Version 1.5
D2: 2012-03-22
B4: This spreadsheet was developed by the Terrestrial Biology and Exposure Technical Teams.
B5: For information or questions concerning this spreadsheet, please contact the Terrestrial Exposure
B6: Technical Team Co-Chairs.
B8: **NOTE**: Please save this file to your own computer first.
B9: Select ‘File’, then ‘Save As’ and 'Excel Macro-enabled Workbook' on the menu bar.
B10: Select the destination on your own hard drive (usually set to C:).
B11: Do not modify this file on the F: drive.
B14: New Version Notes
A15: 7/18/2005, v. 1.2.2. | B15: Mineau scaling factors for birds MUST be manually entered in the Inputs worksheet. While the EFED default value
C16: is 1.15, it MUST also be entered if that default is desired. If no value is provided, the model will exhibit warning statements in all outputs.
C17: If the user desires to have no scaling performed, 0 may be entered in the Inputs worksheet.
B18: Body weights for Mallard duck and Bobwhite quail were adjusted (Dunning, 1984).
B19: User can opt for test species for acute and chronic endpoints other than mallard and bobwhite (test animal body weight data must be provided)
B20: User can opt for alternative body weights from defaults for endpoints established with bobwhite and mallard
B21: The LD50 ft-2 data input section in the Inputs worksheet was reorganized to be more user-friendly.
B22: LD50 ft-2 can now be calculated for a liquid broadcast application.
B23: All references are available in the seed treatment worksheet. These references are also hyperlinked.
B24: Maximum seeding rate information is now in blue and can be adjusted by the user.
A25: 8/1/2005, v. 1.2.3. | B25: A comment sheet has been added so that EFED users can provide feedback or pose questions to the Terrestrial Biology and Exposure Technical Teams
C26: This feature is available to EFED users only.
A27: 12/7/2006, v. 1.3.1. | B27: A new sheet "Print Results" was added to facilitate cutting and pasting into MS Word documents. For transparency, the results summary tables include toxicity and exposure values used in the RQ calculations.
B28: Use of FDA's assumption that a lab rat consumes 5% of its diet daily was made optional for mammalian chronic studies. If a study reports both a NOAEC in ppm and a NOAEL in mg/kg-bw, both may be entered.
B29: The % a.i. cell was formatted to percent. The calculations of application rate (lbs a.i./Acre) in the upper bound Kenaga and the mean Kenaga sheets no longer reference a hidden cell that calculates
C30: the application rate in terms of % a.i., but is calculated in the "application rate" cell.
B31: Additional calculations were included to allow for additional characterization of the LD50-ft2. A new sheet "Granular Characterization Calcs" estimates the number of granules needed to be consumed by a bird to achieve a dose that would trigger a level of concern. The associated minimum foraging area with sufficient number of granules to achieve a dose that exceeds the AdjLD50 or 1/10th the AdjLD50 is also estimated for various assumptions of feeding efficiency (10%, 50%, or 100% of granules in an area are consumed).
A32: 7/7/2007 v. 1.3.1. | B32: For clarification, percent a.i. was made a user input in the Granular Characterization Calcs sheet instead of importing the value from the Inputs sheet. No other changes were made to the spreadsheet.
A33: 10/09/2008, v. 1.4.1. | B33: T-REX was altered to allow the user to define the body weight of animal assessed. Dark maroon cells were changed to white because of issues with preparing legible printouts and scanned documents. The LD50 / square foot equation for liquids was altered to allow for the calculation to be based on application rate in mass/area - previously, the calculations were only done on the basis of volume/area. The calculation for the number of days LOCs are exceeded was corrected and simplified. The number of granules needed to be consumed to result in LOC exceedance was added for mammals; previous versions only included the calculation for birds. Dose-based EECs and RQs were added for granivorous birds. Body weight of animals used in the toxicity study may be changed if species other than laboratory rat is used
B36: Supporting Documentation
B37: For further model information consult the 'User's Guide' document containing T-REX operating
B38: instructions and background information. User's Guide T-REX v1.5, March 2012, USEPA Office of Pesticide Programs, Washington DC
A40: 3/22/2012, v. 1.5 | B40: Empirical insect residue data from open literature and registrant-submitted studies was incorporated for arthropod dietary items (reference).
B41: Expanded information in the T-REX user’s guide regarding the foliar dissipation half-life input (Appendix A).
B42: Incorporation of an expanded list of seeding rates provided by the Biological and Economic Analysis Division (Becker and Ratnayake, 2011).
B43: Risk quotients calculated for small, medium and large body weight classes for birds and mammals in seed treatment tab.
B44: User can now designate variable application rates and interval spacing in inputs tab.
B46: References
B47: Becker, Jonathan and Ratnayake, Sunil. Acres Planted per Day and Seeding Rates of Crops Grown in the United States.
C48: 2011. Biological and Economic Analysis Division (BEAD), Office of Pesticides Programs, United States
C49: Environmental Protection Agency
B50: Dunning, J.B. 1984. Body weights of 686 species of North American birds. Western Bird Banding Assoc.
C51: Monograph No. 1.
B52: Fletcher, J.S., J.E. Nellesson and T. G. Pfleeger. 1994. Literature review and evaluation of the EPA food-chain
C53: (Kenaga) nomogram, an instrument for estimating pesticide residues on plants. Environ. Tox. And
C54: Chem. 13(9):1383-1391
B55: Hoerger, F. and E.E. Kenaga. 1972. Pesticide residues on plants: correlation of representative data as a
C56: basis for estimation of their magnitude in the environment. IN: F. Coulston and F. Corte, eds.,
C57: Environmental Quality and Safety: Chemistry, Toxicology and Technology. Vol 1. Georg Theime
C58: Publishers, Stuttgart, Germany. pp. 9-28
B59: Mineau, P., B.T. Collins, A. Baril. 1996. On the use of scaling factors to improve interspecies extrapolation to
C60: acute toxicity in birds. Reg. Toxicol. Pharmacol. 24:24-29
B61: Urban, D. J. 2000. Guidance for Conducting Screening Level Avian Risk Assessments for Spray Applications
C62: of Pesticides. OPP/EFED, USEPA.
B63: USEPA. 1993. Wildlife Exposure Factors Handbook. Volume I of II. EPA/600/R-93/187a. Office of Research
C64: and Development, Washington, D. C. 20460.
B65: USEPA. 1995. Great Lakes Water Quality Technical Support Document for Wildlife Criteria.
C66: Office of Water, Washington D.C. Document Number EPA-820-B095-009
B67: Willis and McDowell. 1987. Pesticide persistence on foliage. Environ. Contam. Toxicol. 100:23-73

Sheet Points to Consider
A1: Points to Consider in Development of Risk Description for Birds and Mammals
A4: Acute and Reproduction Dietary Discussions
A5: The risk assessment includes numerous calculations of dietary exposure for multiple weight classes of animals. However, there are energetic
A6: considerations that suggest that some weight class/food item combinations are not likely to naturally occur. For example, there are not likely to be many
A7: 15 g mammals or 20 g birds that exclusively feed on vegetation. The risk assessor is urged to consult such texts as the Wildlife Exposure Factors
A8: Handbook (USEPA 1993), for more comprehensive approaches to consider energy requirements and energy availability to estimate
A9: dietary exposure. In addition, age of individuals may also play an important role in the types and relative amounts of food items selected. This should
A10: also be taken into account when describing dietary risks.
A12: Acute Toxicity RQ Approaches
A13: Dose-based and dietary-based acute RQs should be provided to risk managers whenever effects data allow. There are limitations to each approach.
A14: The dose-based approach assumes that the uptake and absorption kinetics of a gavage toxicity study approximate the absorption associated with uptake from
A15: a dietary matrix. Toxic response is a function of duration and intensity of exposure and the importance of absorption kinetics across the gut and the importance
A16: of enzymatic activation/deactivation of a toxicant may be important and are likely variable across chemicals and species. For many compounds a gavage dose
A17: represents a very short-term high intensity exposure, where dietary exposure may be of a more prolonged nature. The dietary-based approach assumes that animals
A18: in the field areconsuming food at a rate similar to that of confined laboratory animals. Energy content in food items differs between the field and the laboratory
A19: as does the energy requirements of wild and captive animals. The Wildlife Exposure Factors Handbook can provide insights into energy requirements of
A20: animals in the wild as well as energy content of their diets
A22: Reproduction RQ Approach
A23: The typical 21-week avian reproduction study does not define the true exposure duration needed to elicit the observed responses. The study protocol was designed
A24: to establish a steady-state tissue concentration for bioaccumulative compounds. For other pesticides, it is entirely possible that steady-state tissue concentrations
A25: are achieved earlier than the 21-week exposure period. Moreover, pesticides may exert effects at critical periods of the reproduction cycle and so long term
A26: exposure may not be necessary to elicit the effect observed in the 21-week protocol. The EFED screening risk assessment uses the single-day
A27: maximum estimated EEC as a conservative approach. The degree to which this exposure is conservative cannot be determined by the existing reproduction study.
A28: However, risk assessment discussions should be accompanied by the graphics from the T-REX model regarding the number of days dietary exposure is above the NOAEC.
A29: The greater number of days EECs exceed the NOAEC, the greater the confidence in predictions of reproductive risk concerns.
A31: USEPA. 1993. Wildlife Exposure Factors Handbook. Volume I of II. EPA/600/R-93/187a. Office of Research and Development, Washington, DC 20460.

Sheet INPUTS
A1: TREX MODEL INPUTS | B1: You must enable macros for this spreadsheet to work correctly
A2: These values will be used in the calculation of exposure estimates for foliar, granular, liquid and/or
A3: seed applications of pesticides.
A5: Chemical Identity and Application Information | E5: Application No. | F5: Rate | G5: Day of Application
A6: Chemical Name: | D6: Application Rate (lb ai/acre) | E6: 1 | G6: 0 | H6: The value in G6 must be zero
A7: Seed Treatment? | C7: FALSE | E7: 2
A8: Use: | D8: =IF(ISNUMBER(B8),VLOOKUP(B8,'Rates for Seeds'!A4:C144,3),"") ->  | E8: 3 | O8: Avian acute LC50 | T8: =IF(ISNUMBER(B8),INDEX('Seed Treatments'!$B$55:$B$195,B8),"") -> 
A9: Product name and form: | E9: 4 | O9: Avian chronic LOAEC
A10: % A.I. (leading zero must be entered for formulations <1% a.i.): | E10: 5 | O10: Avian chronic NOAEC
A11: =IF(C7,"Application rate (fl oz/cwt)",D6) -> Application Rate (lb ai/acre) | E11: 6 | O11: Mammal acute LC50
A12: Half-life (days): | E12: 7 | O12: Mammal chronic LOAEC
A13: Application Interval (days): | E13: 8 | O13: Mammal chronic NOAEC
A14: Number of Applications: | E14: 9
A15: Are you assessing applications with variable rates or intervals? | B15: no | E15: 10
A16: You MUST specify application day in Columns F and G - you may enter up to 30 applications | E16: 11
A17: Assessed Species Inputs (optional, use defaults for RQs for national level assessments) | E17: 12
A18: What body weight range is assessed (grams)? | B18: Birds | C18: Mammals | E18: 13
A19: Small | B19: 20 | C19: 15 | E19: 14
A20: Medium | B20: 100 | C20: 35 | E20: 15
A21: Large | B21: 1000 | C21: 1000 | E21: 16
E22: 17
E23: 18
E24: 19
E25: 20 | O25: Bobwhite quail
E26: 21 | O26: Mallard duck
E27: 22 | O27: Other
E28: 23
E29: 24
E30: 25
E31: 26
E32: 27
E33: 28 | O33: FALSE
E34: 29 | O34: 1
E35: 30
A36: Note: Sources of wildlife diet are assumed to be available for less than one year for this model.
A37: Endpoints | B37: =IF($G$41="","",IF($F$41>0,"","ERROR: You have specified an Alternative Species for avian LD50 but have not provided a body weight!")) ->  | E37: =IF($G$43="","",IF($F$43>0,"","ERROR:You have specified an Alternative Species for avian NOAEL but have not provided a body weight!")) -> 
B38: =IF($G$42="","",IF($F$42>0,"","ERROR: You have specified an Alternative Species for avian LC50 but have not provided a body weight!")) ->  | E38: =IF($G$44="","",IF($F$44>0,"","ERROR:You have specified an Alternative Species for avian NOAEC but have not provided a body weight!")) -> 
B39: Avian | O39: mg/kg-bw
B40: Endpoint | C40: Toxicity value | D40: Indicate test species below | F40: Optional Test Organism Body weight (g) | G40: Optional Test Species Name | H40: Toxicity Value Reference (MRID) | O40: mg/kg-diet
B41: LD50 (mg/kg-bw) | D41: 1 | E41: =IF(D41=3, "Must Enter >>","") -> 
B42: LC50 (mg/kg-diet) | D42: 1 | E42: =IF(D42=3, "Must Enter >>","") -> 
B43: NOAEL (mg/kg-bw) | D43: 2 | E43: =IF(D43=3, "Must Enter >>","") -> 
B44: NOAEC (mg/kg-diet) | D44: 1 | E44: =IF(D44=3, "Must Enter >>","") -> 
B45: Enter the Mineau et al. Scaling Factor | D45: 1.15 | E45: =IF(D45="", "<<Warning: Need Scaling Factor to continue","") -> 
B46: Mammalian | I46: 1 | O46: yes
D47: Acute Study | E47: Chronic Study | O47: no
B48: Size (g) of mammal used in toxicity study Default rat body weight is 350 grams | D48: 350 | E48: 350 | O48: Broadcast
B49: Endpoint | C49: Toxicity value | E49: Reference (MRID) | O49: Rows/Band/In-furrow
B50: LD50 (mg/kg-bw)
B51: LC50 (mg/kg-diet) | O51: Granular
B52: Reported Chronic Endpoint | D52: 1 | O52: Liquid
B53: =IF(D52=2,"Is estimated daily dose (mg/kg-bw) reported from the available chronic mammal study? (yes or no)","Is dietary concentration (mg/kg-diet) reported from the available chronic mammal study? (yes or no)") -> Is dietary concentration (mg/kg-diet) reported from the available chronic mammal study? (yes or no) | C53: no | I53: yes | J53: no
B54: =IF(D52=2,"Enter daily dose (mg/kg-bw)","Enter dietary concentration (mg/kg-diet)") -> Enter dietary concentration (mg/kg-diet)
B55: =IF(D52=2,"Estimated Chronic Daily Dose Equivalent to reported Chronic Dietary Endpoint","Estimated Chronic Diet Concentration Equivalent to Reported Chronic Daily Dose") -> Estimated Chronic Diet Concentration Equivalent to Reported Chronic Daily Dose | C55: =IF(C$53="yes",$C$54,IF($D$52=2,$C$52/20,$C$52*20)) -> 0 | D55: =IF(D52=2,"mg/kg-bw based on standard FDA lab rat conversion","mg/kg-diet based on standard FDA lab rat conversion") -> mg/kg-diet based on standard FDA lab rat conversion
A58: LD50 ft-2 | B58: Application Type: | C58: 1 | D58: =IF(AND(C58=1,C59=1),"Make sure to enter an"," ") -> 
C59: 2 | D59: =IF(AND(C58=1,C59=1),"application rate above","Enter data below:") -> Enter data below:
C60: =IF(C59=2,"Is application rate given in lbs a.i./Acre?","Do not use this input") -> Is application rate given in lbs a.i./Acre? | D60: yes
C61: =IF(C60="do not use this input","Do not use this input", IF(D60="no","Do not use this input","Application rate, lbs a.i./Acre, from B10")) -> Application rate, lbs a.i./Acre, from B10
C62: =IF(AND(C59=2,D60="no"),"fl oz per acre", "Do not use this input") -> Do not use this input
C63: =IF(C58=1,"Do not use this input","Row spacing (in):") -> Do not use this input
C64: =IF(C58=1,"Do not use this input","Bandwidth (in):") -> Do not use this input
C65: % incorporated
D66: .
A68: TREX MODEL INPUTS | C68: Page 2 | D68: =B6 -> 0

Sheet upper bound Kenaga
A1: Upper Bound Kenaga Residues For RQ Calculation | E1: Acute and Chronic RQs are based on the Upper Bound
E2: Kenaga Residues.
A3: Chemical Name: | B3: =INPUTS!B6 -> 0 | E3: The maximum single day residue estimation is used for
A4: Use | B4: =INPUTS!B8 -> 0 | E4: both the acute and reproduction RQs.
A5: Formulation | B5: =INPUTS!B9 -> 0 | P5: Calculations
A6: Application Rate | B6: =INPUTS!B11*INPUTS!B10 -> 0 | C6: lbs a.i./acre | E6: RQs reported as "0.00" in the RQ tables below should be noted as
A7: Half-life | B7: =INPUTS!B12 -> 0 | C7: days | E7: <0.01 in your assessment. This is due to rounding and significant
A8: Application Interval | B8: =INPUTS!B13 -> 0 | C8: days | E8: figure issues in Excel. | P8: Food Item (Kenaga #) | Q8: Upper Bound Multiplier | R8: Initial Concentration
A9: Maximum # Apps./Year | B9: =INPUTS!B14 -> 0
A10: Length of Simulation | B10: 1 | C10: year
A11: Variable application rates? | B11: =INPUTS!B15 -> no | P11: Short Grass | Q11: 240 | R11: =(B6*Q11) -> 0
P12: Tall Grass | Q12: 110 | R12: =(B6*Q12) -> 0
A13: Endpoints | P13: Broadleaf plants | Q13: 135 | R13: =(B6*Q13) -> 0
P14: Seeds | Q14: 15 | R14: =(B6*Q14) -> 0
A15: Avian | B15: =IF(INPUTS!D41=3,INPUTS!G41,IF(INPUTS!D41=1,"Bobwhite quail ","Mallard duck ")) -> Bobwhite quail | C15: LD50 (mg/kg-bw) | D15: =INPUTS!C41 -> 0 | E15: =IF(INPUTS!$F$41=0,"",IF(INPUTS!$D$41<3,"Toxicity adjustments not based on standard assumed test animal body weight","")) ->  | P15: Arthropods | Q15: 94 | R15: =(B6*Q15) -> 0 | AG15: Number of days LOCs are exceeded
B16: =IF(INPUTS!D42=3,INPUTS!G42,IF(INPUTS!D42=1,"Bobwhite quail ","Mallard duck)")) -> Bobwhite quail | C16: LC50 (mg/kg-diet) | D16: =INPUTS!C42 -> 0 | P16: 1st order decay constant | R16: =(LN(2)/B7) ->  | AG16: Short grass EEC / NOAEC | AI16: Dose based short grass EEC / (Adj-LD50 * LOC of 0.1) | AK16: Dose based short grass EEC / Adj-NOAEL | AL16: Short grass dose based EEC/Adj-LD50
B17: =IF(INPUTS!D43=3,INPUTS!G43,IF(INPUTS!D43=1,"Bobwhite quail ","Mallard duck ")) -> Mallard duck | C17: NOAEL(mg/kg-bw) | D17: =INPUTS!C43 -> 0 | AF17: Avian | AH17: Avian | AJ17: Mammalian | AK17: Mammalian
B18: =IF(INPUTS!D44=3,INPUTS!G44,IF(INPUTS!D44=1,"Bobwhite quail ","Mallard duck ")) -> Bobwhite quail | C18: NOAEC (mg/kg-diet) | D18: =INPUTS!C44 -> 0 | K18: Variable Rate Calculations | AE18: Graph | AF18: Chronic Exceedance | AH18: Acute Exceedance | AJ18: Chronic Exceedance | AK18: Acute Exceedance
J19: # apps - Variable | K19: Application? | L19: Rate | M19: Day | N19: # Apps | O19: App | P19: Short Grass | S19: Tall Grass | V19: Broadleaf plants | Y19: Fruits/pods | AB19: Arthropods | AE19: Line | AF19: (days in first 56) | AH19: (days in first 56) | AJ19: (days in first 56) | AK19: (days in first 56)
A20: Mammals | B20: LD50 (mg/kg-bw) | D20: =INPUTS!C50 -> 0 | O20: Period | P20: Fixed Rates/Intervals | Q20: Variable Rates/Intervals | R20: Column used for assessment | S20: Fixed Rates/Intervals | T20: Variable Rates/Intervals | U20: Column used for assessment | V20: Fixed Rates/Intervals | W20: Variable Rates/Intervals | X20: Column used for assessment | Y20: Fixed Rates/Intervals | Z20: Variable Rates/Intervals | AA20: Column used for assessment | AB20: Fixed Rates/Intervals | AC20: Variable Rates/Intervals | AD20: Column used for assessment | AF20: Short Grass | AG20: Avian Dose | AH20: Short Grass | AJ20: Short Grass | AK20: Short Grass
B21: LC50 (mg/kg-diet) | D21: =INPUTS!C51 -> 0 | J21: =COUNTIF(K$21,"=yes") -> 1 | K21: =IF(LOOKUP(VALUE(M21),INPUTS!$G$6:$G$35)=M21,"yes","no") -> yes | L21: =IF(K21="yes",(LOOKUP(J21,INPUTS!$E$6:$E$35,INPUTS!$F$6:$F$35)),0) -> 0 | M21: 0 | N21: 1 | O21: 0 | P21: =(R11) -> 0 | Q21: =240*L21 -> 0 | R21: =IF(INPUTS!$B$15="yes",Q21,P21) -> 0 | S21: =(R12) -> 0 | T21: =110*L21 -> 0 | U21: =IF(INPUTS!$B$15="yes",T21,S21) -> 0 | V21: =(R13) -> 0 | W21: =135*L21 -> 0 | X21: =IF(INPUTS!$B$15="yes",W21,V21) -> 0 | Y21: =(R14) -> 0 | Z21: =15*$L21 -> 0 | AA21: =IF(INPUTS!$B$15="yes",Z21,Y21) -> 0 | AB21: =(R15) -> 0 | AC21: =94*$L21 -> 0 | AD21: =IF(INPUTS!$B$15="yes",AC21,AB21) -> 0 | AE21: =$B$11 -> no | AF21: =COUNTIF(P21:P76,">"&INPUTS!C44) -> 0 | AG21: =P21*('upper bound Kenaga'!$F$36/100) -> 0 | AH21: =COUNTIF(AG21:AG76,">="&(C46*0.1)) -> 1 | AI21: =P21*('upper bound Kenaga'!$F$96/100) -> 0 | AJ21: =COUNTIF(AI21:AI76,">="&(E105)) -> 1 | AK21: =COUNTIF(AI21:AI76,">="&(D105*0.1)) -> 1
B22: NOAEL (mg/kg-bw) | D22: =IF(INPUTS!D52=2,INPUTS!C55,INPUTS!C52) -> 0 | J22: =COUNTIF(K$21:K22,"=yes") -> 1 | K22: =IF(LOOKUP(VALUE(M22),INPUTS!$G$6:$G$35)=M22,"yes","no") -> no | L22: =IF(K22="yes",(LOOKUP(J22,INPUTS!$E$6:$E$35,INPUTS!$F$6:$F$35)),0) -> 0 | M22: =(M21+1) -> 1 | N22: =IF($B$9>N21,IF(O21=($B$8-1),(N21+1),(N21)),(N21)) -> 1 | O22: =IF(O21<($B$8-1),(1+O21),0) -> 0 | P22: =IF(($N22>$N21),(EXP(-$R$16)*(P21)+$R$11),((EXP(-$R$16)*(P21)))) ->  | Q22: =IF($K22="yes",(EXP(-$R$16)*(Q21)+(240*$L22)),((EXP(-$R$16)*(Q21)))) ->  | R22: =IF(INPUTS!$B$15="yes",Q22,P22) ->  | S22: =IF(($N22>$N21),(EXP(-$R$16)*(S21)+$R$12),((EXP(-$R$16)*(S21)))) ->  | T22: =IF($K22="yes",(EXP(-$R$16)*(T21)+(110*$L22)),((EXP(-$R$16)*(T21)))) ->  | U22: =IF(INPUTS!$B$15="yes",T22,S22) ->  | V22: =IF(($N22>$N21),(EXP(-$R$16)*(V21)+$R$13),((EXP(-$R$16)*(V21)))) ->  | W22: =IF($K22="yes",(EXP(-$R$16)*(W21)+(135*$L22)),((EXP(-$R$16)*(W21)))) ->  | X22: =IF(INPUTS!$B$15="yes",W22,V22) ->  | Y22: =IF(($N22>$N21),(EXP(-$R$16)*(Y21)+$R$14),((EXP(-$R$16)*(Y21)))) ->  | Z22: =IF($K22="yes",(EXP(-$R$16)*(Z21)+(15*$L22)),((EXP(-$R$16)*(Z21)))) ->  | AA22: =IF(INPUTS!$B$15="yes",Z22,Y22) ->  | AB22: =IF(($N22>$N21),(EXP(-$R$16)*(AB21)+$R$15),((EXP(-$R$16)*(AB21)))) ->  | AC22: =IF($K22="yes",(EXP(-$R$16)*(AC21)+(94*$L22)),((EXP(-$R$16)*(AC21)))) ->  | AD22: =IF(INPUTS!$B$15="yes",AC22,AB22) ->  | AE22: no | AG22: =P22*('upper bound Kenaga'!$F$36/100) ->  | AI22: =P22*('upper bound Kenaga'!$F$96/100) -> 
B23: NOAEC (mg/kg-diet) | D23: =IF(INPUTS!D52=1,INPUTS!C55,INPUTS!C52) -> 0 | J23: =COUNTIF(K$21:K23,"=yes") -> 1 | K23: =IF(LOOKUP(VALUE(M23),INPUTS!$G$6:$G$35)=M23,"yes","no") -> no | L23: =IF(K23="yes",(LOOKUP(J23,INPUTS!$E$6:$E$35,INPUTS!$F$6:$F$35)),0) -> 0 | M23: 2 | N23: 1 | O23: 0 | P23: =IF((N23>N22),(EXP(-$R$16)*(P22)+$R$11),((EXP(-$R$16)*(P22)))) ->  | R23: =IF(INPUTS!$B$15="yes",Q23,P23) ->  | U23: =IF(INPUTS!$B$15="yes",T23,S23) ->  | X23: =IF(INPUTS!$B$15="yes",W23,V23) ->  | AA23: =IF(INPUTS!$B$15="yes",Z23,Y23) ->  | AD23: =IF(INPUTS!$B$15="yes",AC23,AB23) ->  | AE23: no | AG23: =P23*('upper bound Kenaga'!$F$36/100) ->  | AI23: =P23*('upper bound Kenaga'!$F$96/100) -> 
J24: =COUNTIF(K$21:K24,"=yes") -> 1 | K24: =IF(LOOKUP(VALUE(M24),INPUTS!$G$6:$G$35)=M24,"yes","no") -> no | L24: =IF(K24="yes",(LOOKUP(J24,INPUTS!$E$6:$E$35,INPUTS!$F$6:$F$35)),0) -> 0 | M24: 3 | N24: 1 | O24: 0 | R24: =IF(INPUTS!$B$15="yes",Q24,P24) ->  | U24: =IF(INPUTS!$B$15="yes",T24,S24) ->  | X24: =IF(INPUTS!$B$15="yes",W24,V24) ->  | AA24: =IF(INPUTS!$B$15="yes",Z24,Y24) ->  | AD24: =IF(INPUTS!$B$15="yes",AC24,AB24) ->  | AE24: no | AG24: =P24*('upper bound Kenaga'!$F$36/100) ->  | AI24: =P24*('upper bound Kenaga'!$F$96/100) -> 
A25: Dietary-based EECs (ppm) | B25: Kenaga | J25: =COUNTIF(K$21:K25,"=yes") -> 1 | K25: =IF(LOOKUP(VALUE(M25),INPUTS!$G$6:$G$35)=M25,"yes","no") -> no | L25: =IF(K25="yes",(LOOKUP(J25,INPUTS!$E$6:$E$35,INPUTS!$F$6:$F$35)),0) -> 0 | M25: 4 | N25: 1 | O25: 0 | R25: =IF(INPUTS!$B$15="yes",Q25,P25) ->  | U25: =IF(INPUTS!$B$15="yes",T25,S25) ->  | X25: =IF(INPUTS!$B$15="yes",W25,V25) ->  | AA25: =IF(INPUTS!$B$15="yes",Z25,Y25) ->  | AD25: =IF(INPUTS!$B$15="yes",AC25,AB25) ->  | AE25: no | AG25: =P25*('upper bound Kenaga'!$F$36/100) ->  | AI25: =P25*('upper bound Kenaga'!$F$96/100) -> 
B26: Values | J26: =COUNTIF(K$21:K26,"=yes") -> 1 | K26: =IF(LOOKUP(VALUE(M26),INPUTS!$G$6:$G$35)=M26,"yes","no") -> no | L26: =IF(K26="yes",(LOOKUP(J26,INPUTS!$E$6:$E$35,INPUTS!$F$6:$F$35)),0) -> 0 | M26: 5 | N26: 1 | O26: 0 | R26: =IF(INPUTS!$B$15="yes",Q26,P26) ->  | U26: =IF(INPUTS!$B$15="yes",T26,S26) ->  | X26: =IF(INPUTS!$B$15="yes",W26,V26) ->  | AA26: =IF(INPUTS!$B$15="yes",Z26,Y26) ->  | AD26: =IF(INPUTS!$B$15="yes",AC26,AB26) ->  | AE26: no | AG26: =P26*('upper bound Kenaga'!$F$36/100) ->  | AI26: =P26*('upper bound Kenaga'!$F$96/100) -> 
A27: Short Grass | B27: =MAX(R21:R391) ->  | J27: =COUNTIF(K$21:K27,"=yes") -> 1 | K27: =IF(LOOKUP(VALUE(M27),INPUTS!$G$6:$G$35)=M27,"yes","no") -> no | L27: =IF(K27="yes",(LOOKUP(J27,INPUTS!$E$6:$E$35,INPUTS!$F$6:$F$35)),0) -> 0 | M27: 6 | N27: 1 | O27: 0 | R27: =IF(INPUTS!$B$15="yes",Q27,P27) ->  | U27: =IF(INPUTS!$B$15="yes",T27,S27) ->  | X27: =IF(INPUTS!$B$15="yes",W27,V27) ->  | AA27: =IF(INPUTS!$B$15="yes",Z27,Y27) ->  | AD27: =IF(INPUTS!$B$15="yes",AC27,AB27) ->  | AE27: no | AG27: =P27*('upper bound Kenaga'!$F$36/100) ->  | AI27: =P27*('upper bound Kenaga'!$F$96/100) -> 
A28: Tall Grass | B28: =MAX(U21:U391) ->  | J28: =COUNTIF(K$21:K28,"=yes") -> 1 | K28: =IF(LOOKUP(VALUE(M28),INPUTS!$G$6:$G$35)=M28,"yes","no") -> no | L28: =IF(K28="yes",(LOOKUP(J28,INPUTS!$E$6:$E$35,INPUTS!$F$6:$F$35)),0) -> 0 | M28: 7 | N28: 1 | O28: 0 | R28: =IF(INPUTS!$B$15="yes",Q28,P28) ->  | U28: =IF(INPUTS!$B$15="yes",T28,S28) ->  | X28: =IF(INPUTS!$B$15="yes",W28,V28) ->  | AA28: =IF(INPUTS!$B$15="yes",Z28,Y28) ->  | AD28: =IF(INPUTS!$B$15="yes",AC28,AB28) ->  | AE28: no | AG28: =P28*('upper bound Kenaga'!$F$36/100) ->  | AI28: =P28*('upper bound Kenaga'!$F$96/100) -> 
A29: Broadleaf plants | B29: =MAX(X21:X391) ->  | J29: =COUNTIF(K$21:K29,"=yes") -> 1 | K29: =IF(LOOKUP(VALUE(M29),INPUTS!$G$6:$G$35)=M29,"yes","no") -> no | L29: =IF(K29="yes",(LOOKUP(J29,INPUTS!$E$6:$E$35,INPUTS!$F$6:$F$35)),0) -> 0 | M29: 8 | N29: 1 | O29: 0 | R29: =IF(INPUTS!$B$15="yes",Q29,P29) ->  | U29: =IF(INPUTS!$B$15="yes",T29,S29) ->  | X29: =IF(INPUTS!$B$15="yes",W29,V29) ->  | AA29: =IF(INPUTS!$B$15="yes",Z29,Y29) ->  | AD29: =IF(INPUTS!$B$15="yes",AC29,AB29) ->  | AE29: no | AG29: =P29*('upper bound Kenaga'!$F$36/100) ->  | AI29: =P29*('upper bound Kenaga'!$F$96/100) -> 
A30: Fruits/pods/seeds | B30: =MAX(AA21:AA391) ->  | J30: =COUNTIF(K$21:K30,"=yes") -> 1 | K30: =IF(LOOKUP(VALUE(M30),INPUTS!$G$6:$G$35)=M30,"yes","no") -> no | L30: =IF(K30="yes",(LOOKUP(J30,INPUTS!$E$6:$E$35,INPUTS!$F$6:$F$35)),0) -> 0 | M30: 9 | N30: 1 | O30: 0 | P30: =IF((N30>N29),(EXP(-$R$16)*(P29)+$R$11),((EXP(-$R$16)*(P29)))) ->  | R30: =IF(INPUTS!$B$15="yes",Q30,P30) ->  | U30: =IF(INPUTS!$B$15="yes",T30,S30) ->  | X30: =IF(INPUTS!$B$15="yes",W30,V30) ->  | AA30: =IF(INPUTS!$B$15="yes",Z30,Y30) ->  | AD30: =IF(INPUTS!$B$15="yes",AC30,AB30) ->  | AE30: no | AG30: =P30*('upper bound Kenaga'!$F$36/100) ->  | AI30: =P30*('upper bound Kenaga'!$F$96/100) -> 
A31: Arthropods | B31: =MAX(AD21:AD391) ->  | J31: =COUNTIF(K$21:K31,"=yes") -> 1 | K31: =IF(LOOKUP(VALUE(M31),INPUTS!$G$6:$G$35)=M31,"yes","no") -> no | L31: =IF(K31="yes",(LOOKUP(J31,INPUTS!$E$6:$E$35,INPUTS!$F$6:$F$35)),0) -> 0 | M31: 10 | N31: 1 | O31: 0 | P31: =IF((N31>N30),(EXP(-$R$16)*(P30)+$R$11),((EXP(-$R$16)*(P30)))) ->  | R31: =IF(INPUTS!$B$15="yes",Q31,P31) ->  | U31: =IF(INPUTS!$B$15="yes",T31,S31) ->  | X31: =IF(INPUTS!$B$15="yes",W31,V31) ->  | AA31: =IF(INPUTS!$B$15="yes",Z31,Y31) ->  | AD31: =IF(INPUTS!$B$15="yes",AC31,AB31) ->  | AE31: no | AG31: =P31*('upper bound Kenaga'!$F$36/100) ->  | AI31: =P31*('upper bound Kenaga'!$F$96/100) -> 
J32: =COUNTIF(K$21:K32,"=yes") -> 1 | K32: =IF(LOOKUP(VALUE(M32),INPUTS!$G$6:$G$35)=M32,"yes","no") -> no | L32: =IF(K32="yes",(LOOKUP(J32,INPUTS!$E$6:$E$35,INPUTS!$F$6:$F$35)),0) -> 0 | M32: 11 | N32: 1 | O32: 0 | R32: =IF(INPUTS!$B$15="yes",Q32,P32) ->  | U32: =IF(INPUTS!$B$15="yes",T32,S32) ->  | X32: =IF(INPUTS!$B$15="yes",W32,V32) ->  | AA32: =IF(INPUTS!$B$15="yes",Z32,Y32) ->  | AD32: =IF(INPUTS!$B$15="yes",AC32,AB32) ->  | AE32: no | AG32: =P32*('upper bound Kenaga'!$F$36/100) ->  | AI32: =P32*('upper bound Kenaga'!$F$96/100) -> 
A33: Avian Results | J33: =COUNTIF(K$21:K33,"=yes") -> 1 | K33: =IF(LOOKUP(VALUE(M33),INPUTS!$G$6:$G$35)=M33,"yes","no") -> no | L33: =IF(K33="yes",(LOOKUP(J33,INPUTS!$E$6:$E$35,INPUTS!$F$6:$F$35)),0) -> 0 | M33: 12 | N33: 1 | O33: 0 | R33: =IF(INPUTS!$B$15="yes",Q33,P33) ->  | U33: =IF(INPUTS!$B$15="yes",T33,S33) ->  | X33: =IF(INPUTS!$B$15="yes",W33,V33) ->  | AA33: =IF(INPUTS!$B$15="yes",Z33,Y33) ->  | AD33: =IF(INPUTS!$B$15="yes",AC33,AB33) ->  | AE33: no | AG33: =P33*('upper bound Kenaga'!$F$36/100) ->  | AI33: =P33*('upper bound Kenaga'!$F$96/100) -> 
B34: Avian | C34: Body | D34: Ingestion (Fdry) | E34: Ingestion (Fwet) | F34: % body wgt | G34: FI | J34: =COUNTIF(K$21:K34,"=yes") -> 1 | K34: =IF(LOOKUP(VALUE(M34),INPUTS!$G$6:$G$35)=M34,"yes","no") -> no | L34: =IF(K34="yes",(LOOKUP(J34,INPUTS!$E$6:$E$35,INPUTS!$F$6:$F$35)),0) -> 0 | M34: =(M33+1) -> 13 | N34: 1 | O34: 0 | R34: =IF(INPUTS!$B$15="yes",Q34,P34) ->  | U34: =IF(INPUTS!$B$15="yes",T34,S34) ->  | X34: =IF(INPUTS!$B$15="yes",W34,V34) ->  | AA34: =IF(INPUTS!$B$15="yes",Z34,Y34) ->  | AD34: =IF(INPUTS!$B$15="yes",AC34,AB34) ->  | AE34: no | AG34: =P34*('upper bound Kenaga'!$F$36/100) ->  | AI34: =P34*('upper bound Kenaga'!$F$96/100) -> 
B35: Class | C35: Weight (g) | D35: (g bw/day) | E35: (g/day) | F35: consumed | G35: (kg-diet/day) | J35: =COUNTIF(K$21:K35,"=yes") -> 1 | K35: =IF(LOOKUP(VALUE(M35),INPUTS!$G$6:$G$35)=M35,"yes","no") -> no | L35: =IF(K35="yes",(LOOKUP(J35,INPUTS!$E$6:$E$35,INPUTS!$F$6:$F$35)),0) -> 0 | M35: 14 | N35: 1 | O35: 0 | R35: =IF(INPUTS!$B$15="yes",Q35,P35) ->  | U35: =IF(INPUTS!$B$15="yes",T35,S35) ->  | X35: =IF(INPUTS!$B$15="yes",W35,V35) ->  | AA35: =IF(INPUTS!$B$15="yes",Z35,Y35) ->  | AD35: =IF(INPUTS!$B$15="yes",AC35,AB35) ->  | AE35: no | AG35: =P35*('upper bound Kenaga'!$F$36/100) ->  | AI35: =P35*('upper bound Kenaga'!$F$96/100) -> 
B36: Small | C36: =INPUTS!B19 -> 20 | D36: =(0.648*C36^0.651) -> 4.555599463 | E36: =D36/0.2 -> 22.77799731 | F36: =(E36/C36)*100 -> 113.8899866 | G36: =E36/1000 -> 0.02277799731 | J36: =COUNTIF(K$21:K36,"=yes") -> 1 | K36: =IF(LOOKUP(VALUE(M36),INPUTS!$G$6:$G$35)=M36,"yes","no") -> no | L36: =IF(K36="yes",(LOOKUP(J36,INPUTS!$E$6:$E$35,INPUTS!$F$6:$F$35)),0) -> 0 | M36: 15 | N36: 1 | O36: 0 | R36: =IF(INPUTS!$B$15="yes",Q36,P36) ->  | U36: =IF(INPUTS!$B$15="yes",T36,S36) ->  | X36: =IF(INPUTS!$B$15="yes",W36,V36) ->  | AA36: =IF(INPUTS!$B$15="yes",Z36,Y36) ->  | AD36: =IF(INPUTS!$B$15="yes",AC36,AB36) ->  | AE36: no | AG36: =P36*('upper bound Kenaga'!$F$36/100) ->  | AI36: =P36*('upper bound Kenaga'!$F$96/100) -> 
B37: Mid | C37: =INPUTS!B20 -> 100 | D37: 12.98897874 | E37: =D37/0.2 -> 64.94489369 | F37: 64.94489369 | G37: 0.06494489369 | J37: =COUNTIF(K$21:K37,"=yes") -> 1 | K37: =IF(LOOKUP(VALUE(M37),INPUTS!$G$6:$G$35)=M37,"yes","no") -> no | L37: =IF(K37="yes",(LOOKUP(J37,INPUTS!$E$6:$E$35,INPUTS!$F$6:$F$35)),0) -> 0 | M37: 16 | N37: 1 | O37: 0 | R37: =IF(INPUTS!$B$15="yes",Q37,P37) ->  | U37: =IF(INPUTS!$B$15="yes",T37,S37) ->  | X37: =IF(INPUTS!$B$15="yes",W37,V37) ->  | AA37: =IF(INPUTS!$B$15="yes",Z37,Y37) ->  | AD37: =IF(INPUTS!$B$15="yes",AC37,AB37) ->  | AE37: no | AG37: =P37*('upper bound Kenaga'!$F$36/100) ->  | AI37: =P37*('upper bound Kenaga'!$F$96/100) -> 
B38: Large | C38: =INPUTS!B21 -> 1000 | D38: 58.15338588 | E38: =D38/0.2 -> 290.7669294 | F38: 29.07669294 | G38: 0.2907669294 | J38: =COUNTIF(K$21:K38,"=yes") -> 1 | K38: =IF(LOOKUP(VALUE(M38),INPUTS!$G$6:$G$35)=M38,"yes","no") -> no | L38: =IF(K38="yes",(LOOKUP(J38,INPUTS!$E$6:$E$35,INPUTS!$F$6:$F$35)),0) -> 0 | M38: 17 | N38: 1 | O38: 0 | R38: =IF(INPUTS!$B$15="yes",Q38,P38) ->  | U38: =IF(INPUTS!$B$15="yes",T38,S38) ->  | X38: =IF(INPUTS!$B$15="yes",W38,V38) ->  | AA38: =IF(INPUTS!$B$15="yes",Z38,Y38) ->  | AD38: =IF(INPUTS!$B$15="yes",AC38,AB38) ->  | AE38: no | AG38: =P38*('upper bound Kenaga'!$F$36/100) ->  | AI38: =P38*('upper bound Kenaga'!$F$96/100) -> 
C39: =C36 -> 20 | D39: 4.555599463 | E39: =D39/0.9 -> 5.061777181 | F39: 25.3088859 | G39: 0.005061777181 | J39: =COUNTIF(K$21:K39,"=yes") -> 1 | K39: =IF(LOOKUP(VALUE(M39),INPUTS!$G$6:$G$35)=M39,"yes","no") -> no | L39: =IF(K39="yes",(LOOKUP(J39,INPUTS!$E$6:$E$35,INPUTS!$F$6:$F$35)),0) -> 0 | M39: 18 | N39: 1 | O39: 0 | R39: =IF(INPUTS!$B$15="yes",Q39,P39) ->  | U39: =IF(INPUTS!$B$15="yes",T39,S39) ->  | X39: =IF(INPUTS!$B$15="yes",W39,V39) ->  | AA39: =IF(INPUTS!$B$15="yes",Z39,Y39) ->  | AD39: =IF(INPUTS!$B$15="yes",AC39,AB39) ->  | AE39: no | AG39: =P39*('upper bound Kenaga'!$F$36/100) ->  | AI39: =P39*('upper bound Kenaga'!$F$96/100) -> 
B40: Granivores | C40: =C37 -> 100 | D40: 12.98897874 | E40: =D40/0.9 -> 14.4321986 | F40: 14.4321986 | G40: 0.0144321986 | J40: =COUNTIF(K$21:K40,"=yes") -> 1 | K40: =IF(LOOKUP(VALUE(M40),INPUTS!$G$6:$G$35)=M40,"yes","no") -> no | L40: =IF(K40="yes",(LOOKUP(J40,INPUTS!$E$6:$E$35,INPUTS!$F$6:$F$35)),0) -> 0 | M40: 19 | N40: 1 | O40: 0 | R40: =IF(INPUTS!$B$15="yes",Q40,P40) ->  | U40: =IF(INPUTS!$B$15="yes",T40,S40) ->  | X40: =IF(INPUTS!$B$15="yes",W40,V40) ->  | AA40: =IF(INPUTS!$B$15="yes",Z40,Y40) ->  | AD40: =IF(INPUTS!$B$15="yes",AC40,AB40) ->  | AE40: no | AG40: =P40*('upper bound Kenaga'!$F$36/100) ->  | AI40: =P40*('upper bound Kenaga'!$F$96/100) -> 
C41: =C38 -> 1000 | D41: 58.15338588 | E41: =D41/0.9 -> 64.6148732 | F41: 6.46148732 | G41: 0.0646148732 | J41: =COUNTIF(K$21:K41,"=yes") -> 1 | K41: =IF(LOOKUP(VALUE(M41),INPUTS!$G$6:$G$35)=M41,"yes","no") -> no | L41: =IF(K41="yes",(LOOKUP(J41,INPUTS!$E$6:$E$35,INPUTS!$F$6:$F$35)),0) -> 0 | M41: 20 | N41: 1 | O41: 0 | R41: =IF(INPUTS!$B$15="yes",Q41,P41) ->  | U41: =IF(INPUTS!$B$15="yes",T41,S41) ->  | X41: =IF(INPUTS!$B$15="yes",W41,V41) ->  | AA41: =IF(INPUTS!$B$15="yes",Z41,Y41) ->  | AD41: =IF(INPUTS!$B$15="yes",AC41,AB41) ->  | AE41: no | AG41: =P41*('upper bound Kenaga'!$F$36/100) ->  | AI41: =P41*('upper bound Kenaga'!$F$96/100) -> 
J42: =COUNTIF(K$21:K42,"=yes") -> 1 | K42: =IF(LOOKUP(VALUE(M42),INPUTS!$G$6:$G$35)=M42,"yes","no") -> no | L42: =IF(K42="yes",(LOOKUP(J42,INPUTS!$E$6:$E$35,INPUTS!$F$6:$F$35)),0) -> 0 | M42: 21 | N42: 1 | O42: 0 | R42: =IF(INPUTS!$B$15="yes",Q42,P42) ->  | U42: =IF(INPUTS!$B$15="yes",T42,S42) ->  | X42: =IF(INPUTS!$B$15="yes",W42,V42) ->  | AA42: =IF(INPUTS!$B$15="yes",Z42,Y42) ->  | AD42: =IF(INPUTS!$B$15="yes",AC42,AB42) ->  | AG42: =P42*('upper bound Kenaga'!$F$36/100) ->  | AI42: =P42*('upper bound Kenaga'!$F$96/100) -> 
B43: =IF(INPUTS!$D$45="","Warning! You Have Failed to Enter a Toxicity Scaling Factor on the Inputs Page","") ->  | J43: =COUNTIF(K$21:K43,"=yes") -> 1 | K43: =IF(LOOKUP(VALUE(M43),INPUTS!$G$6:$G$35)=M43,"yes","no") -> no | L43: =IF(K43="yes",(LOOKUP(J43,INPUTS!$E$6:$E$35,INPUTS!$F$6:$F$35)),0) -> 0 | M43: 22 | N43: 1 | O43: 0 | R43: =IF(INPUTS!$B$15="yes",Q43,P43) ->  | U43: =IF(INPUTS!$B$15="yes",T43,S43) ->  | X43: =IF(INPUTS!$B$15="yes",W43,V43) ->  | AA43: =IF(INPUTS!$B$15="yes",Z43,Y43) ->  | AD43: =IF(INPUTS!$B$15="yes",AC43,AB43) ->  | AE43: no | AG43: =P43*('upper bound Kenaga'!$F$36/100) ->  | AI43: =P43*('upper bound Kenaga'!$F$96/100) -> 
B44: Avian Body | C44: Adjusted LD50 | J44: =COUNTIF(K$21:K44,"=yes") -> 1 | K44: =IF(LOOKUP(VALUE(M44),INPUTS!$G$6:$G$35)=M44,"yes","no") -> no | L44: =IF(K44="yes",(LOOKUP(J44,INPUTS!$E$6:$E$35,INPUTS!$F$6:$F$35)),0) -> 0 | M44: 23 | N44: 1 | O44: 0 | R44: =IF(INPUTS!$B$15="yes",Q44,P44) ->  | U44: =IF(INPUTS!$B$15="yes",T44,S44) ->  | X44: =IF(INPUTS!$B$15="yes",W44,V44) ->  | AA44: =IF(INPUTS!$B$15="yes",Z44,Y44) ->  | AD44: =IF(INPUTS!$B$15="yes",AC44,AB44) ->  | AE44: no | AG44: =P44*('upper bound Kenaga'!$F$36/100) ->  | AI44: =P44*('upper bound Kenaga'!$F$96/100) -> 
B45: Weight (g) | C45: (mg/kg-bw) | J45: =COUNTIF(K$21:K45,"=yes") -> 1 | K45: =IF(LOOKUP(VALUE(M45),INPUTS!$G$6:$G$35)=M45,"yes","no") -> no | L45: =IF(K45="yes",(LOOKUP(J45,INPUTS!$E$6:$E$35,INPUTS!$F$6:$F$35)),0) -> 0 | M45: 24 | N45: 1 | O45: 0 | R45: =IF(INPUTS!$B$15="yes",Q45,P45) ->  | U45: =IF(INPUTS!$B$15="yes",T45,S45) ->  | X45: =IF(INPUTS!$B$15="yes",W45,V45) ->  | AA45: =IF(INPUTS!$B$15="yes",Z45,Y45) ->  | AD45: =IF(INPUTS!$B$15="yes",AC45,AB45) ->  | AE45: no | AG45: =P45*('upper bound Kenaga'!$F$36/100) ->  | AI45: =P45*('upper bound Kenaga'!$F$96/100) -> 
B46: =C36 -> 20 | C46: =+IF(INPUTS!$D$41=3,(($D$15)*((C36/INPUTS!$F$41)^(INPUTS!$D$45-1))),IF(INPUTS!$D$41=1,(($D$15)*((C36/178)^(INPUTS!$D$45-1))),(($D$15)*((C36/1580)^(INPUTS!$D$45-1))))) -> 0 | E46: =IF(INPUTS!$F$41=0,"",IF(INPUTS!$D$41<3,"NOTE:Toxicity adjustments not based on standard assumed test animal body weight","")) ->  | J46: =COUNTIF(K$21:K46,"=yes") -> 1 | K46: =IF(LOOKUP(VALUE(M46),INPUTS!$G$6:$G$35)=M46,"yes","no") -> no | L46: =IF(K46="yes",(LOOKUP(J46,INPUTS!$E$6:$E$35,INPUTS!$F$6:$F$35)),0) -> 0 | M46: 25 | N46: 1 | O46: 0 | R46: =IF(INPUTS!$B$15="yes",Q46,P46) ->  | U46: =IF(INPUTS!$B$15="yes",T46,S46) ->  | X46: =IF(INPUTS!$B$15="yes",W46,V46) ->  | AA46: =IF(INPUTS!$B$15="yes",Z46,Y46) ->  | AD46: =IF(INPUTS!$B$15="yes",AC46,AB46) ->  | AE46: no | AG46: =P46*('upper bound Kenaga'!$F$36/100) ->  | AI46: =P46*('upper bound Kenaga'!$F$96/100) -> 
B47: =C37 -> 100 | C47: =+IF(INPUTS!$D$41=3,(($D$15)*((C37/INPUTS!$F$41)^(INPUTS!$D$45-1))),IF(INPUTS!$D$41=1,(($D$15)*((C37/178)^(INPUTS!$D$45-1))),(($D$15)*((C37/1580)^(INPUTS!$D$45-1))))) -> 0 | E47: =IF(INPUTS!$F$41=0,"",IF(INPUTS!$D$41<3,"NOTE:Toxicity adjustments not based on standard assumed test animal body weight","")) ->  | J47: =COUNTIF(K$21:K47,"=yes") -> 1 | K47: =IF(LOOKUP(VALUE(M47),INPUTS!$G$6:$G$35)=M47,"yes","no") -> no | L47: =IF(K47="yes",(LOOKUP(J47,INPUTS!$E$6:$E$35,INPUTS!$F$6:$F$35)),0) -> 0 | M47: 26 | N47: 1 | O47: 0 | R47: =IF(INPUTS!$B$15="yes",Q47,P47) ->  | U47: =IF(INPUTS!$B$15="yes",T47,S47) ->  | X47: =IF(INPUTS!$B$15="yes",W47,V47) ->  | AA47: =IF(INPUTS!$B$15="yes",Z47,Y47) ->  | AD47: =IF(INPUTS!$B$15="yes",AC47,AB47) ->  | AE47: no | AG47: =P47*('upper bound Kenaga'!$F$36/100) ->  | AI47: =P47*('upper bound Kenaga'!$F$96/100) -> 
B48: =C38 -> 1000 | C48: =+IF(INPUTS!$D$41=3,(($D$15)*((C38/INPUTS!$F$41)^(INPUTS!$D$45-1))),IF(INPUTS!$D$41=1,(($D$15)*((C38/178)^(INPUTS!$D$45-1))),(($D$15)*((C38/1580)^(INPUTS!$D$45-1))))) -> 0 | E48: =IF(INPUTS!$F$41=0,"",IF(INPUTS!$D$41<3,"NOTE:Toxicity adjustments not based on standard assumed test animal body weight","")) ->  | J48: =COUNTIF(K$21:K48,"=yes") -> 1 | K48: =IF(LOOKUP(VALUE(M48),INPUTS!$G$6:$G$35)=M48,"yes","no") -> no | L48: =IF(K48="yes",(LOOKUP(J48,INPUTS!$E$6:$E$35,INPUTS!$F$6:$F$35)),0) -> 0 | M48: 27 | N48: 1 | O48: 0 | R48: =IF(INPUTS!$B$15="yes",Q48,P48) ->  | U48: =IF(INPUTS!$B$15="yes",T48,S48) ->  | X48: =IF(INPUTS!$B$15="yes",W48,V48) ->  | AA48: =IF(INPUTS!$B$15="yes",Z48,Y48) ->  | AD48: =IF(INPUTS!$B$15="yes",AC48,AB48) ->  | AE48: no | AG48: =P48*('upper bound Kenaga'!$F$36/100) ->  | AI48: =P48*('upper bound Kenaga'!$F$96/100) -> 
J49: =COUNTIF(K$21:K49,"=yes") -> 1 | K49: =IF(LOOKUP(VALUE(M49),INPUTS!$G$6:$G$35)=M49,"yes","no") -> no | L49: =IF(K49="yes",(LOOKUP(J49,INPUTS!$E$6:$E$35,INPUTS!$F$6:$F$35)),0) -> 0 | M49: 28 | N49: 1 | O49: 0 | R49: =IF(INPUTS!$B$15="yes",Q49,P49) ->  | U49: =IF(INPUTS!$B$15="yes",T49,S49) ->  | X49: =IF(INPUTS!$B$15="yes",W49,V49) ->  | AA49: =IF(INPUTS!$B$15="yes",Z49,Y49) ->  | AD49: =IF(INPUTS!$B$15="yes",AC49,AB49) ->  | AE49: no | AG49: =P49*('upper bound Kenaga'!$F$36/100) ->  | AI49: =P49*('upper bound Kenaga'!$F$96/100) -> 
A50: Dose-based EECs (mg/kg-bw) | B50: Avian Classes and Body Weights (grams) | J50: =COUNTIF(K$21:K50,"=yes") -> 1 | K50: =IF(LOOKUP(VALUE(M50),INPUTS!$G$6:$G$35)=M50,"yes","no") -> no | L50: =IF(K50="yes",(LOOKUP(J50,INPUTS!$E$6:$E$35,INPUTS!$F$6:$F$35)),0) -> 0 | M50: 29 | N50: 1 | O50: 0 | R50: =IF(INPUTS!$B$15="yes",Q50,P50) ->  | U50: =IF(INPUTS!$B$15="yes",T50,S50) ->  | X50: =IF(INPUTS!$B$15="yes",W50,V50) ->  | AA50: =IF(INPUTS!$B$15="yes",Z50,Y50) ->  | AD50: =IF(INPUTS!$B$15="yes",AC50,AB50) ->  | AE50: no | AG50: =P50*('upper bound Kenaga'!$F$36/100) ->  | AI50: =P50*('upper bound Kenaga'!$F$96/100) -> 
B51: small | C51: mid | D51: large | J51: =COUNTIF(K$21:K51,"=yes") -> 1 | K51: =IF(LOOKUP(VALUE(M51),INPUTS!$G$6:$G$35)=M51,"yes","no") -> no | L51: =IF(K51="yes",(LOOKUP(J51,INPUTS!$E$6:$E$35,INPUTS!$F$6:$F$35)),0) -> 0 | M51: 30 | N51: 1 | O51: 0 | R51: =IF(INPUTS!$B$15="yes",Q51,P51) ->  | U51: =IF(INPUTS!$B$15="yes",T51,S51) ->  | X51: =IF(INPUTS!$B$15="yes",W51,V51) ->  | AA51: =IF(INPUTS!$B$15="yes",Z51,Y51) ->  | AD51: =IF(INPUTS!$B$15="yes",AC51,AB51) ->  | AE51: no | AG51: =P51*('upper bound Kenaga'!$F$36/100) ->  | AI51: =P51*('upper bound Kenaga'!$F$96/100) -> 
B52: =C36 -> 20 | C52: =C37 -> 100 | D52: =C38 -> 1000 | J52: =COUNTIF(K$21:K52,"=yes") -> 1 | K52: =IF(LOOKUP(VALUE(M52),INPUTS!$G$6:$G$35)=M52,"yes","no") -> no | L52: =IF(K52="yes",(LOOKUP(J52,INPUTS!$E$6:$E$35,INPUTS!$F$6:$F$35)),0) -> 0 | M52: 31 | N52: 1 | O52: 0 | R52: =IF(INPUTS!$B$15="yes",Q52,P52) ->  | U52: =IF(INPUTS!$B$15="yes",T52,S52) ->  | X52: =IF(INPUTS!$B$15="yes",W52,V52) ->  | AA52: =IF(INPUTS!$B$15="yes",Z52,Y52) ->  | AD52: =IF(INPUTS!$B$15="yes",AC52,AB52) ->  | AE52: no | AG52: =P52*('upper bound Kenaga'!$F$36/100) ->  | AI52: =P52*('upper bound Kenaga'!$F$96/100) -> 
A53: Short Grass | B53: =B27*($G$36/($C$36/1000)) ->  | C53: =B27*($G$37/(C$37/1000)) ->  | D53: =B27*($G$38/(C$38/1000)) ->  | J53: =COUNTIF(K$21:K53,"=yes") -> 1 | K53: =IF(LOOKUP(VALUE(M53),INPUTS!$G$6:$G$35)=M53,"yes","no") -> no | L53: =IF(K53="yes",(LOOKUP(J53,INPUTS!$E$6:$E$35,INPUTS!$F$6:$F$35)),0) -> 0 | M53: 32 | N53: 1 | O53: 0 | R53: =IF(INPUTS!$B$15="yes",Q53,P53) ->  | U53: =IF(INPUTS!$B$15="yes",T53,S53) ->  | X53: =IF(INPUTS!$B$15="yes",W53,V53) ->  | AA53: =IF(INPUTS!$B$15="yes",Z53,Y53) ->  | AD53: =IF(INPUTS!$B$15="yes",AC53,AB53) ->  | AE53: no | AG53: =P53*('upper bound Kenaga'!$F$36/100) ->  | AI53: =P53*('upper bound Kenaga'!$F$96/100) -> 
A54: Tall Grass | B54: =B28*($G$36/($C$36/1000)) ->  | C54: =B28*($G$37/(C$37/1000)) ->  | D54: =B28*($G$38/(C$38/1000)) ->  | J54: =COUNTIF(K$21:K54,"=yes") -> 1 | K54: =IF(LOOKUP(VALUE(M54),INPUTS!$G$6:$G$35)=M54,"yes","no") -> no | L54: =IF(K54="yes",(LOOKUP(J54,INPUTS!$E$6:$E$35,INPUTS!$F$6:$F$35)),0) -> 0 | M54: 33 | N54: 1 | O54: 0 | R54: =IF(INPUTS!$B$15="yes",Q54,P54) ->  | U54: =IF(INPUTS!$B$15="yes",T54,S54) ->  | X54: =IF(INPUTS!$B$15="yes",W54,V54) ->  | AA54: =IF(INPUTS!$B$15="yes",Z54,Y54) ->  | AD54: =IF(INPUTS!$B$15="yes",AC54,AB54) ->  | AE54: no | AG54: =P54*('upper bound Kenaga'!$F$36/100) ->  | AI54: =P54*('upper bound Kenaga'!$F$96/100) -> 
A55: Broadleaf plants | B55: =B29*($G$36/($C$36/1000)) ->  | C55: =B29*($G$37/(C$37/1000)) ->  | D55: =B29*($G$38/(C$38/1000)) ->  | J55: =COUNTIF(K$21:K55,"=yes") -> 1 | K55: =IF(LOOKUP(VALUE(M55),INPUTS!$G$6:$G$35)=M55,"yes","no") -> no | L55: =IF(K55="yes",(LOOKUP(J55,INPUTS!$E$6:$E$35,INPUTS!$F$6:$F$35)),0) -> 0 | M55: 34 | N55: 1 | O55: 0 | R55: =IF(INPUTS!$B$15="yes",Q55,P55) ->  | U55: =IF(INPUTS!$B$15="yes",T55,S55) ->  | X55: =IF(INPUTS!$B$15="yes",W55,V55) ->  | AA55: =IF(INPUTS!$B$15="yes",Z55,Y55) ->  | AD55: =IF(INPUTS!$B$15="yes",AC55,AB55) ->  | AE55: no | AG55: =P55*('upper bound Kenaga'!$F$36/100) ->  | AI55: =P55*('upper bound Kenaga'!$F$96/100) -> 
A56: Fruits/pods | B56: =B30*($G$36/($C$36/1000)) ->  | C56: =B30*($G$37/(C$37/1000)) ->  | D56: =B30*($G$38/(C$38/1000)) ->  | J56: =COUNTIF(K$21:K56,"=yes") -> 1 | K56: =IF(LOOKUP(VALUE(M56),INPUTS!$G$6:$G$35)=M56,"yes","no") -> no | L56: =IF(K56="yes",(LOOKUP(J56,INPUTS!$E$6:$E$35,INPUTS!$F$6:$F$35)),0) -> 0 | M56: 35 | N56: 1 | O56: 0 | R56: =IF(INPUTS!$B$15="yes",Q56,P56) ->  | U56: =IF(INPUTS!$B$15="yes",T56,S56) ->  | X56: =IF(INPUTS!$B$15="yes",W56,V56) ->  | AA56: =IF(INPUTS!$B$15="yes",Z56,Y56) ->  | AD56: =IF(INPUTS!$B$15="yes",AC56,AB56) ->  | AE56: no | AG56: =P56*('upper bound Kenaga'!$F$36/100) ->  | AI56: =P56*('upper bound Kenaga'!$F$96/100) -> 
J57: =COUNTIF(K$21:K57,"=yes") -> 1 | K57: =IF(LOOKUP(VALUE(M57),INPUTS!$G$6:$G$35)=M57,"yes","no") -> no | L57: =IF(K57="yes",(LOOKUP(J57,INPUTS!$E$6:$E$35,INPUTS!$F$6:$F$35)),0) -> 0 | M57: 36 | N57: 1 | O57: 0 | R57: =IF(INPUTS!$B$15="yes",Q57,P57) ->  | U57: =IF(INPUTS!$B$15="yes",T57,S57) ->  | X57: =IF(INPUTS!$B$15="yes",W57,V57) ->  | AA57: =IF(INPUTS!$B$15="yes",Z57,Y57) ->  | AD57: =IF(INPUTS!$B$15="yes",AC57,AB57) ->  | AE57: no | AG57: =P57*('upper bound Kenaga'!$F$36/100) ->  | AI57: =P57*('upper bound Kenaga'!$F$96/100) -> 
J58: =COUNTIF(K$21:K58,"=yes") -> 1 | K58: =IF(LOOKUP(VALUE(M58),INPUTS!$G$6:$G$35)=M58,"yes","no") -> no | L58: =IF(K58="yes",(LOOKUP(J58,INPUTS!$E$6:$E$35,INPUTS!$F$6:$F$35)),0) -> 0 | M58: 37 | N58: 1 | O58: 0 | R58: =IF(INPUTS!$B$15="yes",Q58,P58) ->  | U58: =IF(INPUTS!$B$15="yes",T58,S58) ->  | X58: =IF(INPUTS!$B$15="yes",W58,V58) ->  | AA58: =IF(INPUTS!$B$15="yes",Z58,Y58) ->  | AD58: =IF(INPUTS!$B$15="yes",AC58,AB58) ->  | AE58: no | AG58: =P58*('upper bound Kenaga'!$F$36/100) ->  | AI58: =P58*('upper bound Kenaga'!$F$96/100) -> 
J59: =COUNTIF(K$21:K59,"=yes") -> 1 | K59: =IF(LOOKUP(VALUE(M59),INPUTS!$G$6:$G$35)=M59,"yes","no") -> no | L59: =IF(K59="yes",(LOOKUP(J59,INPUTS!$E$6:$E$35,INPUTS!$F$6:$F$35)),0) -> 0 | M59: 38 | N59: 1 | O59: 0 | R59: =IF(INPUTS!$B$15="yes",Q59,P59) ->  | U59: =IF(INPUTS!$B$15="yes",T59,S59) ->  | X59: =IF(INPUTS!$B$15="yes",W59,V59) ->  | AA59: =IF(INPUTS!$B$15="yes",Z59,Y59) ->  | AD59: =IF(INPUTS!$B$15="yes",AC59,AB59) ->  | AE59: no | AG59: =P59*('upper bound Kenaga'!$F$36/100) ->  | AI59: =P59*('upper bound Kenaga'!$F$96/100) -> 
J60: =COUNTIF(K$21:K60,"=yes") -> 1 | K60: =IF(LOOKUP(VALUE(M60),INPUTS!$G$6:$G$35)=M60,"yes","no") -> no | L60: =IF(K60="yes",(LOOKUP(J60,INPUTS!$E$6:$E$35,INPUTS!$F$6:$F$35)),0) -> 0 | M60: 39 | N60: 1 | O60: 0 | R60: =IF(INPUTS!$B$15="yes",Q60,P60) ->  | U60: =IF(INPUTS!$B$15="yes",T60,S60) ->  | X60: =IF(INPUTS!$B$15="yes",W60,V60) ->  | AA60: =IF(INPUTS!$B$15="yes",Z60,Y60) ->  | AD60: =IF(INPUTS!$B$15="yes",AC60,AB60) ->  | AE60: no | AG60: =P60*('upper bound Kenaga'!$F$36/100) ->  | AI60: =P60*('upper bound Kenaga'!$F$96/100) -> 
J61: =COUNTIF(K$21:K61,"=yes") -> 1 | K61: =IF(LOOKUP(VALUE(M61),INPUTS!$G$6:$G$35)=M61,"yes","no") -> no | L61: =IF(K61="yes",(LOOKUP(J61,INPUTS!$E$6:$E$35,INPUTS!$F$6:$F$35)),0) -> 0 | M61: 40 | N61: 1 | O61: 0 | R61: =IF(INPUTS!$B$15="yes",Q61,P61) ->  | U61: =IF(INPUTS!$B$15="yes",T61,S61) ->  | X61: =IF(INPUTS!$B$15="yes",W61,V61) ->  | AA61: =IF(INPUTS!$B$15="yes",Z61,Y61) ->  | AD61: =IF(INPUTS!$B$15="yes",AC61,AB61) ->  | AE61: no | AG61: =P61*('upper bound Kenaga'!$F$36/100) ->  | AI61: =P61*('upper bound Kenaga'!$F$96/100) -> 
J62: =COUNTIF(K$21:K62,"=yes") -> 1 | K62: =IF(LOOKUP(VALUE(M62),INPUTS!$G$6:$G$35)=M62,"yes","no") -> no | L62: =IF(K62="yes",(LOOKUP(J62,INPUTS!$E$6:$E$35,INPUTS!$F$6:$F$35)),0) -> 0 | M62: 41 | N62: 1 | O62: 0 | R62: =IF(INPUTS!$B$15="yes",Q62,P62) ->  | U62: =IF(INPUTS!$B$15="yes",T62,S62) ->  | X62: =IF(INPUTS!$B$15="yes",W62,V62) ->  | AA62: =IF(INPUTS!$B$15="yes",Z62,Y62) ->  | AD62: =IF(INPUTS!$B$15="yes",AC62,AB62) ->  | AE62: no | AG62: =P62*('upper bound Kenaga'!$F$36/100) ->  | AI62: =P62*('upper bound Kenaga'!$F$96/100) -> 
J63: =COUNTIF(K$21:K63,"=yes") -> 1 | K63: =IF(LOOKUP(VALUE(M63),INPUTS!$G$6:$G$35)=M63,"yes","no") -> no | L63: =IF(K63="yes",(LOOKUP(J63,INPUTS!$E$6:$E$35,INPUTS!$F$6:$F$35)),0) -> 0 | M63: 42 | N63: 1 | O63: 0 | R63: =IF(INPUTS!$B$15="yes",Q63,P63) ->  | U63: =IF(INPUTS!$B$15="yes",T63,S63) ->  | X63: =IF(INPUTS!$B$15="yes",W63,V63) ->  | AA63: =IF(INPUTS!$B$15="yes",Z63,Y63) ->  | AD63: =IF(INPUTS!$B$15="yes",AC63,AB63) ->  | AE63: no | AG63: =P63*('upper bound Kenaga'!$F$36/100) ->  | AI63: =P63*('upper bound Kenaga'!$F$96/100) -> 
A64: Arthropods | B64: =B31*($G$36/($C$36/1000)) ->  | C64: =B31*($G$37/(C$37/1000)) ->  | D64: =B31*($G$38/(C$38/1000)) ->  | J64: =COUNTIF(K$21:K64,"=yes") -> 1 | K64: =IF(LOOKUP(VALUE(M64),INPUTS!$G$6:$G$35)=M64,"yes","no") -> no | L64: =IF(K64="yes",(LOOKUP(J64,INPUTS!$E$6:$E$35,INPUTS!$F$6:$F$35)),0) -> 0 | M64: 43 | N64: 1 | O64: 0 | R64: =IF(INPUTS!$B$15="yes",Q64,P64) ->  | U64: =IF(INPUTS!$B$15="yes",T64,S64) ->  | X64: =IF(INPUTS!$B$15="yes",W64,V64) ->  | AA64: =IF(INPUTS!$B$15="yes",Z64,Y64) ->  | AD64: =IF(INPUTS!$B$15="yes",AC64,AB64) ->  | AE64: no | AG64: =P64*('upper bound Kenaga'!$F$36/100) ->  | AI64: =P64*('upper bound Kenaga'!$F$96/100) -> 
A65: Seeds | B65: =B30*(G39/(C39/1000)) ->  | C65: =B30*(G40/(C40/1000)) ->  | D65: =B30*(G41/(C41/1000)) ->  | J65: =COUNTIF(K$21:K65,"=yes") -> 1 | K65: =IF(LOOKUP(VALUE(M65),INPUTS!$G$6:$G$35)=M65,"yes","no") -> no | L65: =IF(K65="yes",(LOOKUP(J65,INPUTS!$E$6:$E$35,INPUTS!$F$6:$F$35)),0) -> 0 | M65: 44 | N65: 1 | O65: 0 | R65: =IF(INPUTS!$B$15="yes",Q65,P65) ->  | U65: =IF(INPUTS!$B$15="yes",T65,S65) ->  | X65: =IF(INPUTS!$B$15="yes",W65,V65) ->  | AA65: =IF(INPUTS!$B$15="yes",Z65,Y65) ->  | AD65: =IF(INPUTS!$B$15="yes",AC65,AB65) ->  | AE65: no | AG65: =P65*('upper bound Kenaga'!$F$36/100) ->  | AI65: =P65*('upper bound Kenaga'!$F$96/100) -> 
J66: =COUNTIF(K$21:K66,"=yes") -> 1 | K66: =IF(LOOKUP(VALUE(M66),INPUTS!$G$6:$G$35)=M66,"yes","no") -> no | L66: =IF(K66="yes",(LOOKUP(J66,INPUTS!$E$6:$E$35,INPUTS!$F$6:$F$35)),0) -> 0 | M66: 45 | N66: 1 | O66: 0 | R66: =IF(INPUTS!$B$15="yes",Q66,P66) ->  | U66: =IF(INPUTS!$B$15="yes",T66,S66) ->  | X66: =IF(INPUTS!$B$15="yes",W66,V66) ->  | AA66: =IF(INPUTS!$B$15="yes",Z66,Y66) ->  | AD66: =IF(INPUTS!$B$15="yes",AC66,AB66) ->  | AE66: no | AG66: =P66*('upper bound Kenaga'!$F$36/100) ->  | AI66: =P66*('upper bound Kenaga'!$F$96/100) -> 
A67: Dose-based RQs (Dose-based EEC/adjusted LD50) | B67: Avian Acute RQs Size Class (grams) | J67: =COUNTIF(K$21:K67,"=yes") -> 1 | K67: =IF(LOOKUP(VALUE(M67),INPUTS!$G$6:$G$35)=M67,"yes","no") -> no | L67: =IF(K67="yes",(LOOKUP(J67,INPUTS!$E$6:$E$35,INPUTS!$F$6:$F$35)),0) -> 0 | M67: 46 | N67: 1 | O67: 0 | R67: =IF(INPUTS!$B$15="yes",Q67,P67) ->  | U67: =IF(INPUTS!$B$15="yes",T67,S67) ->  | X67: =IF(INPUTS!$B$15="yes",W67,V67) ->  | AA67: =IF(INPUTS!$B$15="yes",Z67,Y67) ->  | AD67: =IF(INPUTS!$B$15="yes",AC67,AB67) ->  | AE67: no | AG67: =P67*('upper bound Kenaga'!$F$36/100) ->  | AI67: =P67*('upper bound Kenaga'!$F$96/100) -> 
B68: =B46 -> 20 | C68: =B47 -> 100 | D68: =B48 -> 1000 | J68: =COUNTIF(K$21:K68,"=yes") -> 1 | K68: =IF(LOOKUP(VALUE(M68),INPUTS!$G$6:$G$35)=M68,"yes","no") -> no | L68: =IF(K68="yes",(LOOKUP(J68,INPUTS!$E$6:$E$35,INPUTS!$F$6:$F$35)),0) -> 0 | M68: 47 | N68: 1 | O68: 0 | R68: =IF(INPUTS!$B$15="yes",Q68,P68) ->  | U68: =IF(INPUTS!$B$15="yes",T68,S68) ->  | X68: =IF(INPUTS!$B$15="yes",W68,V68) ->  | AA68: =IF(INPUTS!$B$15="yes",Z68,Y68) ->  | AD68: =IF(INPUTS!$B$15="yes",AC68,AB68) ->  | AE68: no | AG68: =P68*('upper bound Kenaga'!$F$36/100) ->  | AI68: =P68*('upper bound Kenaga'!$F$96/100) -> 
A69: Short Grass | B69: =B53/$C$46 ->  | C69: =C53/$C$47 ->  | D69: =D53/$C$48 ->  | J69: =COUNTIF(K$21:K69,"=yes") -> 1 | K69: =IF(LOOKUP(VALUE(M69),INPUTS!$G$6:$G$35)=M69,"yes","no") -> no | L69: =IF(K69="yes",(LOOKUP(J69,INPUTS!$E$6:$E$35,INPUTS!$F$6:$F$35)),0) -> 0 | M69: 48 | N69: 1 | O69: 0 | R69: =IF(INPUTS!$B$15="yes",Q69,P69) ->  | U69: =IF(INPUTS!$B$15="yes",T69,S69) ->  | X69: =IF(INPUTS!$B$15="yes",W69,V69) ->  | AA69: =IF(INPUTS!$B$15="yes",Z69,Y69) ->  | AD69: =IF(INPUTS!$B$15="yes",AC69,AB69) ->  | AE69: no | AG69: =P69*('upper bound Kenaga'!$F$36/100) ->  | AI69: =P69*('upper bound Kenaga'!$F$96/100) -> 
A70: Tall Grass | B70: =B54/$C$46 ->  | C70: =C54/$C$47 ->  | D70: =D54/$C$48 ->  | J70: =COUNTIF(K$21:K70,"=yes") -> 1 | K70: =IF(LOOKUP(VALUE(M70),INPUTS!$G$6:$G$35)=M70,"yes","no") -> no | L70: =IF(K70="yes",(LOOKUP(J70,INPUTS!$E$6:$E$35,INPUTS!$F$6:$F$35)),0) -> 0 | M70: 49 | N70: 1 | O70: 0 | R70: =IF(INPUTS!$B$15="yes",Q70,P70) ->  | U70: =IF(INPUTS!$B$15="yes",T70,S70) ->  | X70: =IF(INPUTS!$B$15="yes",W70,V70) ->  | AA70: =IF(INPUTS!$B$15="yes",Z70,Y70) ->  | AD70: =IF(INPUTS!$B$15="yes",AC70,AB70) ->  | AE70: no | AG70: =P70*('upper bound Kenaga'!$F$36/100) ->  | AI70: =P70*('upper bound Kenaga'!$F$96/100) -> 
A71: Broadleaf plants | B71: =B55/$C$46 ->  | C71: =C55/$C$47 ->  | D71: =D55/$C$48 ->  | J71: =COUNTIF(K$21:K71,"=yes") -> 1 | K71: =IF(LOOKUP(VALUE(M71),INPUTS!$G$6:$G$35)=M71,"yes","no") -> no | L71: =IF(K71="yes",(LOOKUP(J71,INPUTS!$E$6:$E$35,INPUTS!$F$6:$F$35)),0) -> 0 | M71: 50 | N71: 1 | O71: 0 | R71: =IF(INPUTS!$B$15="yes",Q71,P71) ->  | U71: =IF(INPUTS!$B$15="yes",T71,S71) ->  | X71: =IF(INPUTS!$B$15="yes",W71,V71) ->  | AA71: =IF(INPUTS!$B$15="yes",Z71,Y71) ->  | AD71: =IF(INPUTS!$B$15="yes",AC71,AB71) ->  | AE71: no | AG71: =P71*('upper bound Kenaga'!$F$36/100) ->  | AI71: =P71*('upper bound Kenaga'!$F$96/100) -> 
A72: Fruits/pods | B72: =B56/$C$46 ->  | C72: =C56/$C$47 ->  | D72: =D56/$C$48 ->  | J72: =COUNTIF(K$21:K72,"=yes") -> 1 | K72: =IF(LOOKUP(VALUE(M72),INPUTS!$G$6:$G$35)=M72,"yes","no") -> no | L72: =IF(K72="yes",(LOOKUP(J72,INPUTS!$E$6:$E$35,INPUTS!$F$6:$F$35)),0) -> 0 | M72: 51 | N72: 1 | O72: 0 | R72: =IF(INPUTS!$B$15="yes",Q72,P72) ->  | U72: =IF(INPUTS!$B$15="yes",T72,S72) ->  | X72: =IF(INPUTS!$B$15="yes",W72,V72) ->  | AA72: =IF(INPUTS!$B$15="yes",Z72,Y72) ->  | AD72: =IF(INPUTS!$B$15="yes",AC72,AB72) ->  | AE72: no | AG72: =P72*('upper bound Kenaga'!$F$36/100) ->  | AI72: =P72*('upper bound Kenaga'!$F$96/100) -> 
A73: Arthropods | B73: =B64/$C$46 ->  | C73: =C64/$C$47 ->  | D73: =D64/$C$48 ->  | J73: =COUNTIF(K$21:K73,"=yes") -> 1 | K73: =IF(LOOKUP(VALUE(M73),INPUTS!$G$6:$G$35)=M73,"yes","no") -> no | L73: =IF(K73="yes",(LOOKUP(J73,INPUTS!$E$6:$E$35,INPUTS!$F$6:$F$35)),0) -> 0 | M73: 52 | N73: =IF($B$9>N71,IF(O71=($B$8-1),(N71+1),(N71)),(N71)) -> 1 | O73: 0 | R73: =IF(INPUTS!$B$15="yes",Q73,P73) ->  | U73: =IF(INPUTS!$B$15="yes",T73,S73) ->  | X73: =IF(INPUTS!$B$15="yes",W73,V73) ->  | AA73: =IF(INPUTS!$B$15="yes",Z73,Y73) ->  | AD73: =IF(INPUTS!$B$15="yes",AC73,AB73) ->  | AE73: no | AG73: =P73*('upper bound Kenaga'!$F$36/100) ->  | AI73: =P73*('upper bound Kenaga'!$F$96/100) -> 
A74: Seeds | B74: =$B$65/$C$46 ->  | C74: =$C$65/$C$47 ->  | D74: =$D$65/$C$48 ->  | J74: =COUNTIF(K$21:K74,"=yes") -> 1 | K74: =IF(LOOKUP(VALUE(M74),INPUTS!$G$6:$G$35)=M74,"yes","no") -> no | L74: =IF(K74="yes",(LOOKUP(J74,INPUTS!$E$6:$E$35,INPUTS!$F$6:$F$35)),0) -> 0 | M74: 53 | N74: 1 | O74: 0 | R74: =IF(INPUTS!$B$15="yes",Q74,P74) ->  | U74: =IF(INPUTS!$B$15="yes",T74,S74) ->  | X74: =IF(INPUTS!$B$15="yes",W74,V74) ->  | AA74: =IF(INPUTS!$B$15="yes",Z74,Y74) ->  | AD74: =IF(INPUTS!$B$15="yes",AC74,AB74) ->  | AE74: no | AG74: =P74*('upper bound Kenaga'!$F$36/100) ->  | AI74: =P74*('upper bound Kenaga'!$F$96/100) -> 
J75: =COUNTIF(K$21:K75,"=yes") -> 1 | K75: =IF(LOOKUP(VALUE(M75),INPUTS!$G$6:$G$35)=M75,"yes","no") -> no | L75: =IF(K75="yes",(LOOKUP(J75,INPUTS!$E$6:$E$35,INPUTS!$F$6:$F$35)),0) -> 0 | M75: 54 | N75: 1 | O75: 0 | R75: =IF(INPUTS!$B$15="yes",Q75,P75) ->  | U75: =IF(INPUTS!$B$15="yes",T75,S75) ->  | X75: =IF(INPUTS!$B$15="yes",W75,V75) ->  | AA75: =IF(INPUTS!$B$15="yes",Z75,Y75) ->  | AD75: =IF(INPUTS!$B$15="yes",AC75,AB75) ->  | AE75: no | AG75: =P75*('upper bound Kenaga'!$F$36/100) ->  | AI75: =P75*('upper bound Kenaga'!$F$96/100) -> 
A76: Dietary-based RQs (Dietary-based EEC/LC50 or NOAEC) | B76: RQs | J76: =COUNTIF(K$21:K76,"=yes") -> 1 | K76: =IF(LOOKUP(VALUE(M76),INPUTS!$G$6:$G$35)=M76,"yes","no") -> no | L76: =IF(K76="yes",(LOOKUP(J76,INPUTS!$E$6:$E$35,INPUTS!$F$6:$F$35)),0) -> 0 | M76: 55 | N76: 1 | O76: 0 | R76: =IF(INPUTS!$B$15="yes",Q76,P76) ->  | U76: =IF(INPUTS!$B$15="yes",T76,S76) ->  | X76: =IF(INPUTS!$B$15="yes",W76,V76) ->  | AA76: =IF(INPUTS!$B$15="yes",Z76,Y76) ->  | AD76: =IF(INPUTS!$B$15="yes",AC76,AB76) ->  | AE76: no | AG76: =P76*('upper bound Kenaga'!$F$36/100) ->  | AI76: =P76*('upper bound Kenaga'!$F$96/100) -> 
J77: =COUNTIF(K$21:K77,"=yes") -> 1 | K77: =IF(LOOKUP(VALUE(M77),INPUTS!$G$6:$G$35)=M77,"yes","no") -> no | L77: =IF(K77="yes",(LOOKUP(J77,INPUTS!$E$6:$E$35,INPUTS!$F$6:$F$35)),0) -> 0 | M77: 56 | N77: 1 | O77: 0 | R77: =IF(INPUTS!$B$15="yes",Q77,P77) ->  | U77: =IF(INPUTS!$B$15="yes",T77,S77) ->  | X77: =IF(INPUTS!$B$15="yes",W77,V77) ->  | AA77: =IF(INPUTS!$B$15="yes",Z77,Y77) ->  | AD77: =IF(INPUTS!$B$15="yes",AC77,AB77) ->  | AE77: no | AG77: =P77*('upper bound Kenaga'!$F$36/100) ->  | AI77: =P77*('upper bound Kenaga'!$F$96/100) -> 
B78: Acute | C78: Chronic | J78: =COUNTIF(K$21:K78,"=yes") -> 1 | K78: =IF(LOOKUP(VALUE(M78),INPUTS!$G$6:$G$35)=M78,"yes","no") -> no | L78: =IF(K78="yes",(LOOKUP(J78,INPUTS!$E$6:$E$35,INPUTS!$F$6:$F$35)),0) -> 0 | M78: 57 | N78: 1 | O78: 0 | R78: =IF(INPUTS!$B$15="yes",Q78,P78) ->  | U78: =IF(INPUTS!$B$15="yes",T78,S78) ->  | X78: =IF(INPUTS!$B$15="yes",W78,V78) ->  | AA78: =IF(INPUTS!$B$15="yes",Z78,Y78) ->  | AD78: =IF(INPUTS!$B$15="yes",AC78,AB78) ->  | AE78: no | AG78: =P78*('upper bound Kenaga'!$F$36/100) ->  | AI78: =P78*('upper bound Kenaga'!$F$96/100) -> 
A79: Short Grass | B79: =B27/D16 ->  | C79: =B27/D18 ->  | J79: =COUNTIF(K$21:K79,"=yes") -> 1 | K79: =IF(LOOKUP(VALUE(M79),INPUTS!$G$6:$G$35)=M79,"yes","no") -> no | L79: =IF(K79="yes",(LOOKUP(J79,INPUTS!$E$6:$E$35,INPUTS!$F$6:$F$35)),0) -> 0 | M79: 58 | N79: 1 | O79: 0 | R79: =IF(INPUTS!$B$15="yes",Q79,P79) ->  | U79: =IF(INPUTS!$B$15="yes",T79,S79) ->  | X79: =IF(INPUTS!$B$15="yes",W79,V79) ->  | AA79: =IF(INPUTS!$B$15="yes",Z79,Y79) ->  | AD79: =IF(INPUTS!$B$15="yes",AC79,AB79) ->  | AE79: no | AG79: =P79*('upper bound Kenaga'!$F$36/100) ->  | AI79: =P79*('upper bound Kenaga'!$F$96/100) -> 
A80: Tall Grass | B80: =B28/D16 ->  | C80: =B28/D18 ->  | J80: =COUNTIF(K$21:K80,"=yes") -> 1 | K80: =IF(LOOKUP(VALUE(M80),INPUTS!$G$6:$G$35)=M80,"yes","no") -> no | L80: =IF(K80="yes",(LOOKUP(J80,INPUTS!$E$6:$E$35,INPUTS!$F$6:$F$35)),0) -> 0 | M80: 59 | N80: 1 | O80: 0 | R80: =IF(INPUTS!$B$15="yes",Q80,P80) ->  | U80: =IF(INPUTS!$B$15="yes",T80,S80) ->  | X80: =IF(INPUTS!$B$15="yes",W80,V80) ->  | AA80: =IF(INPUTS!$B$15="yes",Z80,Y80) ->  | AD80: =IF(INPUTS!$B$15="yes",AC80,AB80) ->  | AE80: no | AG80: =P80*('upper bound Kenaga'!$F$36/100) ->  | AI80: =P80*('upper bound Kenaga'!$F$96/100) -> 
A81: Broadleaf plants | B81: =B29/D16 ->  | C81: =B29/D18 ->  | J81: =COUNTIF(K$21:K81,"=yes") -> 1 | K81: =IF(LOOKUP(VALUE(M81),INPUTS!$G$6:$G$35)=M81,"yes","no") -> no | L81: =IF(K81="yes",(LOOKUP(J81,INPUTS!$E$6:$E$35,INPUTS!$F$6:$F$35)),0) -> 0 | M81: 60 | N81: 1 | O81: 0 | R81: =IF(INPUTS!$B$15="yes",Q81,P81) ->  | U81: =IF(INPUTS!$B$15="yes",T81,S81) ->  | X81: =IF(INPUTS!$B$15="yes",W81,V81) ->  | AA81: =IF(INPUTS!$B$15="yes",Z81,Y81) ->  | AD81: =IF(INPUTS!$B$15="yes",AC81,AB81) ->  | AE81: no | AG81: =P81*('upper bound Kenaga'!$F$36/100) ->  | AI81: =P81*('upper bound Kenaga'!$F$96/100) -> 
A82: Fruits/pods/seeds | B82: =B30/D16 ->  | C82: =B30/D18 ->  | J82: =COUNTIF(K$21:K82,"=yes") -> 1 | K82: =IF(LOOKUP(VALUE(M82),INPUTS!$G$6:$G$35)=M82,"yes","no") -> no | L82: =IF(K82="yes",(LOOKUP(J82,INPUTS!$E$6:$E$35,INPUTS!$F$6:$F$35)),0) -> 0 | M82: 61 | N82: 1 | O82: 0 | R82: =IF(INPUTS!$B$15="yes",Q82,P82) ->  | U82: =IF(INPUTS!$B$15="yes",T82,S82) ->  | X82: =IF(INPUTS!$B$15="yes",W82,V82) ->  | AA82: =IF(INPUTS!$B$15="yes",Z82,Y82) ->  | AD82: =IF(INPUTS!$B$15="yes",AC82,AB82) ->  | AE82: no | AG82: =P82*('upper bound Kenaga'!$F$36/100) ->  | AI82: =P82*('upper bound Kenaga'!$F$96/100) -> 
A83: Arthropods | B83: =B31/D16 ->  | C83: =B31/D18 ->  | J83: =COUNTIF(K$21:K83,"=yes") -> 1 | K83: =IF(LOOKUP(VALUE(M83),INPUTS!$G$6:$G$35)=M83,"yes","no") -> no | L83: =IF(K83="yes",(LOOKUP(J83,INPUTS!$E$6:$E$35,INPUTS!$F$6:$F$35)),0) -> 0 | M83: 62 | N83: 1 | O83: 0 | R83: =IF(INPUTS!$B$15="yes",Q83,P83) ->  | U83: =IF(INPUTS!$B$15="yes",T83,S83) ->  | X83: =IF(INPUTS!$B$15="yes",W83,V83) ->  | AA83: =IF(INPUTS!$B$15="yes",Z83,Y83) ->  | AD83: =IF(INPUTS!$B$15="yes",AC83,AB83) ->  | AE83: no | AG83: =P83*('upper bound Kenaga'!$F$36/100) ->  | AI83: =P83*('upper bound Kenaga'!$F$96/100) -> 
J84: =COUNTIF(K$21:K84,"=yes") -> 1 | K84: =IF(LOOKUP(VALUE(M84),INPUTS!$G$6:$G$35)=M84,"yes","no") -> no | L84: =IF(K84="yes",(LOOKUP(J84,INPUTS!$E$6:$E$35,INPUTS!$F$6:$F$35)),0) -> 0 | M84: 63 | N84: 1 | O84: 0 | R84: =IF(INPUTS!$B$15="yes",Q84,P84) ->  | U84: =IF(INPUTS!$B$15="yes",T84,S84) ->  | X84: =IF(INPUTS!$B$15="yes",W84,V84) ->  | AA84: =IF(INPUTS!$B$15="yes",Z84,Y84) ->  | AD84: =IF(INPUTS!$B$15="yes",AC84,AB84) ->  | AE84: no | AG84: =P84*('upper bound Kenaga'!$F$36/100) ->  | AI84: =P84*('upper bound Kenaga'!$F$96/100) -> 
A85: Note: To provide risk management with the maximum possible information, | J85: =COUNTIF(K$21:K85,"=yes") -> 1 | K85: =IF(LOOKUP(VALUE(M85),INPUTS!$G$6:$G$35)=M85,"yes","no") -> no | L85: =IF(K85="yes",(LOOKUP(J85,INPUTS!$E$6:$E$35,INPUTS!$F$6:$F$35)),0) -> 0 | M85: 64 | N85: 1 | O85: 0 | R85: =IF(INPUTS!$B$15="yes",Q85,P85) ->  | U85: =IF(INPUTS!$B$15="yes",T85,S85) ->  | X85: =IF(INPUTS!$B$15="yes",W85,V85) ->  | AA85: =IF(INPUTS!$B$15="yes",Z85,Y85) ->  | AD85: =IF(INPUTS!$B$15="yes",AC85,AB85) ->  | AE85: no | AG85: =P85*('upper bound Kenaga'!$F$36/100) ->  | AI85: =P85*('upper bound Kenaga'!$F$96/100) -> 
A86: it is recommended that both the dose-based and concentration-based | J86: =COUNTIF(K$21:K86,"=yes") -> 1 | K86: =IF(LOOKUP(VALUE(M86),INPUTS!$G$6:$G$35)=M86,"yes","no") -> no | L86: =IF(K86="yes",(LOOKUP(J86,INPUTS!$E$6:$E$35,INPUTS!$F$6:$F$35)),0) -> 0 | M86: 65 | N86: 1 | O86: 0 | Q86: =IF($K86="yes",(EXP(-$R$16)*(Q85)+(240*$L86)),((EXP(-$R$16)*(Q85)))) ->  | R86: =IF(INPUTS!$B$15="yes",Q86,P86) ->  | S86: =IF(($N86>$N85),(EXP(-$R$16)*(S85)+$R$12),((EXP(-$R$16)*(S85)))) ->  | T86: =IF($K86="yes",(EXP(-$R$16)*(T85)+(110*$L86)),((EXP(-$R$16)*(T85)))) ->  | U86: =IF(INPUTS!$B$15="yes",T86,S86) ->  | V86: =IF(($N86>$N85),(EXP(-$R$16)*(V85)+$R$13),((EXP(-$R$16)*(V85)))) ->  | W86: =IF($K86="yes",(EXP(-$R$16)*(W85)+(135*$L86)),((EXP(-$R$16)*(W85)))) ->  | X86: =IF(INPUTS!$B$15="yes",W86,V86) ->  | Y86: =IF(($N86>$N85),(EXP(-$R$16)*(Y85)+$R$14),((EXP(-$R$16)*(Y85)))) ->  | Z86: =IF($K86="yes",(EXP(-$R$16)*(Z85)+(15*$L86)),((EXP(-$R$16)*(Z85)))) ->  | AA86: =IF(INPUTS!$B$15="yes",Z86,Y86) ->  | AB86: =IF(($N86>$N85),(EXP(-$R$16)*(AB85)+$R$15),((EXP(-$R$16)*(AB85)))) ->  | AC86: =IF($K86="yes",(EXP(-$R$16)*(AC85)+(94*$L86)),((EXP(-$R$16)*(AC85)))) ->  | AD86: =IF(INPUTS!$B$15="yes",AC86,AB86) ->  | AE86: no | AG86: =P86*('upper bound Kenaga'!$F$36/100) ->  | AI86: =P86*('upper bound Kenaga'!$F$96/100) -> 
A87: RQs be calculated when data are available | J87: =COUNTIF(K$21:K87,"=yes") -> 1 | K87: =IF(LOOKUP(VALUE(M87),INPUTS!$G$6:$G$35)=M87,"yes","no") -> no | L87: =IF(K87="yes",(LOOKUP(J87,INPUTS!$E$6:$E$35,INPUTS!$F$6:$F$35)),0) -> 0 | M87: 66 | N87: 1 | O87: 0 | R87: =IF(INPUTS!$B$15="yes",Q87,P87) ->  | U87: =IF(INPUTS!$B$15="yes",T87,S87) ->  | X87: =IF(INPUTS!$B$15="yes",W87,V87) ->  | AA87: =IF(INPUTS!$B$15="yes",Z87,Y87) ->  | AD87: =IF(INPUTS!$B$15="yes",AC87,AB87) ->  | AE87: no | AG87: =P87*('upper bound Kenaga'!$F$36/100) ->  | AI87: =P87*('upper bound Kenaga'!$F$96/100) -> 
J88: =COUNTIF(K$21:K88,"=yes") -> 1 | K88: =IF(LOOKUP(VALUE(M88),INPUTS!$G$6:$G$35)=M88,"yes","no") -> no | L88: =IF(K88="yes",(LOOKUP(J88,INPUTS!$E$6:$E$35,INPUTS!$F$6:$F$35)),0) -> 0 | M88: 67 | N88: 1 | O88: 0 | R88: =IF(INPUTS!$B$15="yes",Q88,P88) ->  | U88: =IF(INPUTS!$B$15="yes",T88,S88) ->  | X88: =IF(INPUTS!$B$15="yes",W88,V88) ->  | AA88: =IF(INPUTS!$B$15="yes",Z88,Y88) ->  | AD88: =IF(INPUTS!$B$15="yes",AC88,AB88) ->  | AE88: no | AG88: =P88*('upper bound Kenaga'!$F$36/100) ->  | AI88: =P88*('upper bound Kenaga'!$F$96/100) -> 
J89: =COUNTIF(K$21:K89,"=yes") -> 1 | K89: =IF(LOOKUP(VALUE(M89),INPUTS!$G$6:$G$35)=M89,"yes","no") -> no | L89: =IF(K89="yes",(LOOKUP(J89,INPUTS!$E$6:$E$35,INPUTS!$F$6:$F$35)),0) -> 0 | M89: 68 | N89: 1 | O89: 0 | R89: =IF(INPUTS!$B$15="yes",Q89,P89) ->  | U89: =IF(INPUTS!$B$15="yes",T89,S89) ->  | X89: =IF(INPUTS!$B$15="yes",W89,V89) ->  | AA89: =IF(INPUTS!$B$15="yes",Z89,Y89) ->  | AD89: =IF(INPUTS!$B$15="yes",AC89,AB89) ->  | AE89: no | AG89: =P89*('upper bound Kenaga'!$F$36/100) ->  | AI89: =P89*('upper bound Kenaga'!$F$96/100) -> 
J90: =COUNTIF(K$21:K90,"=yes") -> 1 | K90: =IF(LOOKUP(VALUE(M90),INPUTS!$G$6:$G$35)=M90,"yes","no") -> no | L90: =IF(K90="yes",(LOOKUP(J90,INPUTS!$E$6:$E$35,INPUTS!$F$6:$F$35)),0) -> 0 | M90: 69 | N90: 1 | O90: 0 | R90: =IF(INPUTS!$B$15="yes",Q90,P90) ->  | U90: =IF(INPUTS!$B$15="yes",T90,S90) ->  | X90: =IF(INPUTS!$B$15="yes",W90,V90) ->  | AA90: =IF(INPUTS!$B$15="yes",Z90,Y90) ->  | AD90: =IF(INPUTS!$B$15="yes",AC90,AB90) ->  | AE90: =$B$11 -> no | AG90: =P90*('upper bound Kenaga'!$F$36/100) ->  | AI90: =P90*('upper bound Kenaga'!$F$96/100) -> 
A91: =B3 -> 0 | B91: =B4 -> 0 | E91: Upper bound Kenaga Residues | J91: =COUNTIF(K$21:K91,"=yes") -> 1 | K91: =IF(LOOKUP(VALUE(M91),INPUTS!$G$6:$G$35)=M91,"yes","no") -> no | L91: =IF(K91="yes",(LOOKUP(J91,INPUTS!$E$6:$E$35,INPUTS!$F$6:$F$35)),0) -> 0 | M91: =(M90+1) -> 70 | N91: =IF($B$9>N90,IF(O90=($B$8-1),(N90+1),(N90)),(N90)) -> 1 | O91: =IF(O90<($B$8-1),(1+O90),0) -> 0 | R91: =IF(INPUTS!$B$15="yes",Q91,P91) ->  | U91: =IF(INPUTS!$B$15="yes",T91,S91) ->  | X91: =IF(INPUTS!$B$15="yes",W91,V91) ->  | AA91: =IF(INPUTS!$B$15="yes",Z91,Y91) ->  | AD91: =IF(INPUTS!$B$15="yes",AC91,AB91) ->  | AE91: no | AG91: =P91*('upper bound Kenaga'!$F$36/100) ->  | AI91: =P91*('upper bound Kenaga'!$F$96/100) -> 
A92: Mammalian Results | J92: =COUNTIF(K$21:K92,"=yes") -> 1 | K92: =IF(LOOKUP(VALUE(M92),INPUTS!$G$6:$G$35)=M92,"yes","no") -> no | L92: =IF(K92="yes",(LOOKUP(J92,INPUTS!$E$6:$E$35,INPUTS!$F$6:$F$35)),0) -> 0 | M92: 71 | N92: 1 | O92: 0 | R92: =IF(INPUTS!$B$15="yes",Q92,P92) ->  | U92: =IF(INPUTS!$B$15="yes",T92,S92) ->  | X92: =IF(INPUTS!$B$15="yes",W92,V92) ->  | AA92: =IF(INPUTS!$B$15="yes",Z92,Y92) ->  | AD92: =IF(INPUTS!$B$15="yes",AC92,AB92) ->  | AE92: no | AG92: =P92*('upper bound Kenaga'!$F$36/100) ->  | AI92: =P92*('upper bound Kenaga'!$F$96/100) -> 
J93: =COUNTIF(K$21:K93,"=yes") -> 1 | K93: =IF(LOOKUP(VALUE(M93),INPUTS!$G$6:$G$35)=M93,"yes","no") -> no | L93: =IF(K93="yes",(LOOKUP(J93,INPUTS!$E$6:$E$35,INPUTS!$F$6:$F$35)),0) -> 0 | M93: 72 | N93: 1 | O93: 0 | R93: =IF(INPUTS!$B$15="yes",Q93,P93) ->  | U93: =IF(INPUTS!$B$15="yes",T93,S93) ->  | X93: =IF(INPUTS!$B$15="yes",W93,V93) ->  | AA93: =IF(INPUTS!$B$15="yes",Z93,Y93) ->  | AD93: =IF(INPUTS!$B$15="yes",AC93,AB93) ->  | AE93: no | AG93: =P93*('upper bound Kenaga'!$F$36/100) ->  | AI93: =P93*('upper bound Kenaga'!$F$96/100) -> 
B94: Mammalian | C94: Body | D94: Ingestion (Fdry) | E94: Ingestion (Fwet) | F94: % body wgt | G94: FI | J94: =COUNTIF(K$21:K94,"=yes") -> 1 | K94: =IF(LOOKUP(VALUE(M94),INPUTS!$G$6:$G$35)=M94,"yes","no") -> no | L94: =IF(K94="yes",(LOOKUP(J94,INPUTS!$E$6:$E$35,INPUTS!$F$6:$F$35)),0) -> 0 | M94: 73 | N94: 1 | O94: 0 | R94: =IF(INPUTS!$B$15="yes",Q94,P94) ->  | U94: =IF(INPUTS!$B$15="yes",T94,S94) ->  | X94: =IF(INPUTS!$B$15="yes",W94,V94) ->  | AA94: =IF(INPUTS!$B$15="yes",Z94,Y94) ->  | AD94: =IF(INPUTS!$B$15="yes",AC94,AB94) ->  | AE94: no | AG94: =P94*('upper bound Kenaga'!$F$36/100) ->  | AI94: =P94*('upper bound Kenaga'!$F$96/100) -> 
B95: Class | C95: Weight | D95: (g bwt/day) | E95: (g/day) | F95: consumed | G95: (kg-diet/day) | J95: =COUNTIF(K$21:K95,"=yes") -> 1 | K95: =IF(LOOKUP(VALUE(M95),INPUTS!$G$6:$G$35)=M95,"yes","no") -> no | L95: =IF(K95="yes",(LOOKUP(J95,INPUTS!$E$6:$E$35,INPUTS!$F$6:$F$35)),0) -> 0 | M95: 74 | N95: 1 | O95: 0 | P95: =IF((N95>N94),(EXP(-$R$16)*(P94)+$R$11),((EXP(-$R$16)*(P94)))) ->  | R95: =IF(INPUTS!$B$15="yes",Q95,P95) ->  | U95: =IF(INPUTS!$B$15="yes",T95,S95) ->  | X95: =IF(INPUTS!$B$15="yes",W95,V95) ->  | AA95: =IF(INPUTS!$B$15="yes",Z95,Y95) ->  | AD95: =IF(INPUTS!$B$15="yes",AC95,AB95) ->  | AE95: no | AG95: =P95*('upper bound Kenaga'!$F$36/100) ->  | AI95: =P95*('upper bound Kenaga'!$F$96/100) -> 
C96: =INPUTS!C19 -> 15 | D96: =(0.621*C96^0.564) -> 2.860270259 | E96: =D96/0.2 -> 14.30135129 | F96: =(E96/C96)*100 -> 95.34234195 | G96: =E96/1000 -> 0.01430135129 | J96: =COUNTIF(K$21:K96,"=yes") -> 1 | K96: =IF(LOOKUP(VALUE(M96),INPUTS!$G$6:$G$35)=M96,"yes","no") -> no | L96: =IF(K96="yes",(LOOKUP(J96,INPUTS!$E$6:$E$35,INPUTS!$F$6:$F$35)),0) -> 0 | M96: 75 | N96: 1 | O96: 0 | R96: =IF(INPUTS!$B$15="yes",Q96,P96) ->  | U96: =IF(INPUTS!$B$15="yes",T96,S96) ->  | X96: =IF(INPUTS!$B$15="yes",W96,V96) ->  | AA96: =IF(INPUTS!$B$15="yes",Z96,Y96) ->  | AD96: =IF(INPUTS!$B$15="yes",AC96,AB96) ->  | AE96: no | AG96: =P96*('upper bound Kenaga'!$F$36/100) ->  | AI96: =P96*('upper bound Kenaga'!$F$96/100) -> 
B97: Herbivores/ | C97: =INPUTS!C20 -> 35 | D97: 4.612601939 | E97: =D97/0.2 -> 23.06300969 | F97: 65.89431341 | G97: 0.02306300969 | J97: =COUNTIF(K$21:K97,"=yes") -> 1 | K97: =IF(LOOKUP(VALUE(M97),INPUTS!$G$6:$G$35)=M97,"yes","no") -> no | L97: =IF(K97="yes",(LOOKUP(J97,INPUTS!$E$6:$E$35,INPUTS!$F$6:$F$35)),0) -> 0 | M97: 76 | N97: 1 | O97: 0 | R97: =IF(INPUTS!$B$15="yes",Q97,P97) ->  | U97: =IF(INPUTS!$B$15="yes",T97,S97) ->  | X97: =IF(INPUTS!$B$15="yes",W97,V97) ->  | AA97: =IF(INPUTS!$B$15="yes",Z97,Y97) ->  | AD97: =IF(INPUTS!$B$15="yes",AC97,AB97) ->  | AE97: no | AG97: =P97*('upper bound Kenaga'!$F$36/100) ->  | AI97: =P97*('upper bound Kenaga'!$F$96/100) -> 
B98: insectivores | C98: =INPUTS!C21 -> 1000 | D98: 30.55565517 | E98: =D98/0.2 -> 152.7782758 | F98: 15.27782758 | G98: 0.1527782758 | J98: =COUNTIF(K$21:K98,"=yes") -> 1 | K98: =IF(LOOKUP(VALUE(M98),INPUTS!$G$6:$G$35)=M98,"yes","no") -> no | L98: =IF(K98="yes",(LOOKUP(J98,INPUTS!$E$6:$E$35,INPUTS!$F$6:$F$35)),0) -> 0 | M98: 77 | N98: 1 | O98: 0 | R98: =IF(INPUTS!$B$15="yes",Q98,P98) ->  | U98: =IF(INPUTS!$B$15="yes",T98,S98) ->  | X98: =IF(INPUTS!$B$15="yes",W98,V98) ->  | AA98: =IF(INPUTS!$B$15="yes",Z98,Y98) ->  | AD98: =IF(INPUTS!$B$15="yes",AC98,AB98) ->  | AE98: no | AG98: =P98*('upper bound Kenaga'!$F$36/100) ->  | AI98: =P98*('upper bound Kenaga'!$F$96/100) -> 
C99: =INPUTS!C19 -> 15 | D99: 2.860270259 | E99: =D99/0.9 -> 3.178078065 | F99: 21.1871871 | G99: 0.003178078065 | J99: =COUNTIF(K$21:K99,"=yes") -> 1 | K99: =IF(LOOKUP(VALUE(M99),INPUTS!$G$6:$G$35)=M99,"yes","no") -> no | L99: =IF(K99="yes",(LOOKUP(J99,INPUTS!$E$6:$E$35,INPUTS!$F$6:$F$35)),0) -> 0 | M99: 78 | N99: 1 | O99: 0 | R99: =IF(INPUTS!$B$15="yes",Q99,P99) ->  | U99: =IF(INPUTS!$B$15="yes",T99,S99) ->  | X99: =IF(INPUTS!$B$15="yes",W99,V99) ->  | AA99: =IF(INPUTS!$B$15="yes",Z99,Y99) ->  | AD99: =IF(INPUTS!$B$15="yes",AC99,AB99) ->  | AE99: no | AG99: =P99*('upper bound Kenaga'!$F$36/100) ->  | AI99: =P99*('upper bound Kenaga'!$F$96/100) -> 
B100: Grainvores | C100: =INPUTS!C20 -> 35 | D100: 4.612601939 | E100: =D100/0.9 -> 5.125113265 | F100: 14.64318076 | G100: 0.005125113265 | J100: =COUNTIF(K$21:K100,"=yes") -> 1 | K100: =IF(LOOKUP(VALUE(M100),INPUTS!$G$6:$G$35)=M100,"yes","no") -> no | L100: =IF(K100="yes",(LOOKUP(J100,INPUTS!$E$6:$E$35,INPUTS!$F$6:$F$35)),0) -> 0 | M100: 79 | N100: 1 | O100: 0 | R100: =IF(INPUTS!$B$15="yes",Q100,P100) ->  | U100: =IF(INPUTS!$B$15="yes",T100,S100) ->  | X100: =IF(INPUTS!$B$15="yes",W100,V100) ->  | AA100: =IF(INPUTS!$B$15="yes",Z100,Y100) ->  | AD100: =IF(INPUTS!$B$15="yes",AC100,AB100) ->  | AE100: no | AG100: =P100*('upper bound Kenaga'!$F$36/100) ->  | AI100: =P100*('upper bound Kenaga'!$F$96/100) -> 
C101: =INPUTS!C21 -> 1000 | D101: 30.55565517 | E101: =D101/0.9 -> 33.95072796 | F101: 3.395072796 | G101: 0.03395072796 | J101: =COUNTIF(K$21:K101,"=yes") -> 1 | K101: =IF(LOOKUP(VALUE(M101),INPUTS!$G$6:$G$35)=M101,"yes","no") -> no | L101: =IF(K101="yes",(LOOKUP(J101,INPUTS!$E$6:$E$35,INPUTS!$F$6:$F$35)),0) -> 0 | M101: 80 | N101: 1 | O101: 0 | R101: =IF(INPUTS!$B$15="yes",Q101,P101) ->  | U101: =IF(INPUTS!$B$15="yes",T101,S101) ->  | X101: =IF(INPUTS!$B$15="yes",W101,V101) ->  | AA101: =IF(INPUTS!$B$15="yes",Z101,Y101) ->  | AD101: =IF(INPUTS!$B$15="yes",AC101,AB101) ->  | AE101: no | AG101: =P101*('upper bound Kenaga'!$F$36/100) ->  | AI101: =P101*('upper bound Kenaga'!$F$96/100) -> 
J102: =COUNTIF(K$21:K102,"=yes") -> 1 | K102: =IF(LOOKUP(VALUE(M102),INPUTS!$G$6:$G$35)=M102,"yes","no") -> no | L102: =IF(K102="yes",(LOOKUP(J102,INPUTS!$E$6:$E$35,INPUTS!$F$6:$F$35)),0) -> 0 | M102: 81 | N102: 1 | O102: 0 | R102: =IF(INPUTS!$B$15="yes",Q102,P102) ->  | U102: =IF(INPUTS!$B$15="yes",T102,S102) ->  | X102: =IF(INPUTS!$B$15="yes",W102,V102) ->  | AA102: =IF(INPUTS!$B$15="yes",Z102,Y102) ->  | AD102: =IF(INPUTS!$B$15="yes",AC102,AB102) ->  | AE102: no | AG102: =P102*('upper bound Kenaga'!$F$36/100) ->  | AI102: =P102*('upper bound Kenaga'!$F$96/100) -> 
B103: Mammalian | C103: Body | D103: Adjusted | E103: Adjusted | J103: =COUNTIF(K$21:K103,"=yes") -> 1 | K103: =IF(LOOKUP(VALUE(M103),INPUTS!$G$6:$G$35)=M103,"yes","no") -> no | L103: =IF(K103="yes",(LOOKUP(J103,INPUTS!$E$6:$E$35,INPUTS!$F$6:$F$35)),0) -> 0 | M103: 82 | N103: 1 | O103: 0 | R103: =IF(INPUTS!$B$15="yes",Q103,P103) ->  | U103: =IF(INPUTS!$B$15="yes",T103,S103) ->  | X103: =IF(INPUTS!$B$15="yes",W103,V103) ->  | AA103: =IF(INPUTS!$B$15="yes",Z103,Y103) ->  | AD103: =IF(INPUTS!$B$15="yes",AC103,AB103) ->  | AE103: no | AG103: =P103*('upper bound Kenaga'!$F$36/100) ->  | AI103: =P103*('upper bound Kenaga'!$F$96/100) -> 
B104: Class | C104: Weight | D104: LD50 | E104: NOAEL | J104: =COUNTIF(K$21:K104,"=yes") -> 1 | K104: =IF(LOOKUP(VALUE(M104),INPUTS!$G$6:$G$35)=M104,"yes","no") -> no | L104: =IF(K104="yes",(LOOKUP(J104,INPUTS!$E$6:$E$35,INPUTS!$F$6:$F$35)),0) -> 0 | M104: 83 | N104: 1 | O104: 0 | R104: =IF(INPUTS!$B$15="yes",Q104,P104) ->  | U104: =IF(INPUTS!$B$15="yes",T104,S104) ->  | X104: =IF(INPUTS!$B$15="yes",W104,V104) ->  | AA104: =IF(INPUTS!$B$15="yes",Z104,Y104) ->  | AD104: =IF(INPUTS!$B$15="yes",AC104,AB104) ->  | AE104: no | AG104: =P104*('upper bound Kenaga'!$F$36/100) ->  | AI104: =P104*('upper bound Kenaga'!$F$96/100) -> 
C105: =C96 -> 15 | D105: =($D$20*((INPUTS!$D$48/C105)^0.25)) -> 0 | E105: =($D$22*((INPUTS!$E$48/C105)^0.25)) -> 0 | J105: =COUNTIF(K$21:K105,"=yes") -> 1 | K105: =IF(LOOKUP(VALUE(M105),INPUTS!$G$6:$G$35)=M105,"yes","no") -> no | L105: =IF(K105="yes",(LOOKUP(J105,INPUTS!$E$6:$E$35,INPUTS!$F$6:$F$35)),0) -> 0 | M105: 84 | N105: 1 | O105: 0 | R105: =IF(INPUTS!$B$15="yes",Q105,P105) ->  | U105: =IF(INPUTS!$B$15="yes",T105,S105) ->  | X105: =IF(INPUTS!$B$15="yes",W105,V105) ->  | AA105: =IF(INPUTS!$B$15="yes",Z105,Y105) ->  | AD105: =IF(INPUTS!$B$15="yes",AC105,AB105) ->  | AE105: no | AG105: =P105*('upper bound Kenaga'!$F$36/100) ->  | AI105: =P105*('upper bound Kenaga'!$F$96/100) -> 
B106: Herbivores/ | C106: 35 | D106: =($D$20*((INPUTS!D48/C106)^0.25)) -> 0 | E106: =($D$22*((INPUTS!$E$48/C106)^0.25)) -> 0 | J106: =COUNTIF(K$21:K106,"=yes") -> 1 | K106: =IF(LOOKUP(VALUE(M106),INPUTS!$G$6:$G$35)=M106,"yes","no") -> no | L106: =IF(K106="yes",(LOOKUP(J106,INPUTS!$E$6:$E$35,INPUTS!$F$6:$F$35)),0) -> 0 | M106: 85 | N106: 1 | O106: 0 | R106: =IF(INPUTS!$B$15="yes",Q106,P106) ->  | U106: =IF(INPUTS!$B$15="yes",T106,S106) ->  | X106: =IF(INPUTS!$B$15="yes",W106,V106) ->  | AA106: =IF(INPUTS!$B$15="yes",Z106,Y106) ->  | AD106: =IF(INPUTS!$B$15="yes",AC106,AB106) ->  | AE106: no | AG106: =P106*('upper bound Kenaga'!$F$36/100) ->  | AI106: =P106*('upper bound Kenaga'!$F$96/100) -> 
B107: insectivores | C107: 1000 | D107: =($D$20*((INPUTS!D48/C107)^0.25)) -> 0 | E107: =($D$22*((INPUTS!$E$48/C107)^0.25)) -> 0 | J107: =COUNTIF(K$21:K107,"=yes") -> 1 | K107: =IF(LOOKUP(VALUE(M107),INPUTS!$G$6:$G$35)=M107,"yes","no") -> no | L107: =IF(K107="yes",(LOOKUP(J107,INPUTS!$E$6:$E$35,INPUTS!$F$6:$F$35)),0) -> 0 | M107: 86 | N107: 1 | O107: 0 | R107: =IF(INPUTS!$B$15="yes",Q107,P107) ->  | U107: =IF(INPUTS!$B$15="yes",T107,S107) ->  | X107: =IF(INPUTS!$B$15="yes",W107,V107) ->  | AA107: =IF(INPUTS!$B$15="yes",Z107,Y107) ->  | AD107: =IF(INPUTS!$B$15="yes",AC107,AB107) ->  | AE107: no | AG107: =P107*('upper bound Kenaga'!$F$36/100) ->  | AI107: =P107*('upper bound Kenaga'!$F$96/100) -> 
C108: 15 | D108: =($D$20*((INPUTS!D48/C108)^0.25)) -> 0 | E108: =($D$22*((INPUTS!$E$48/C108)^0.25)) -> 0 | J108: =COUNTIF(K$21:K108,"=yes") -> 1 | K108: =IF(LOOKUP(VALUE(M108),INPUTS!$G$6:$G$35)=M108,"yes","no") -> no | L108: =IF(K108="yes",(LOOKUP(J108,INPUTS!$E$6:$E$35,INPUTS!$F$6:$F$35)),0) -> 0 | M108: 87 | N108: 1 | O108: 0 | R108: =IF(INPUTS!$B$15="yes",Q108,P108) ->  | U108: =IF(INPUTS!$B$15="yes",T108,S108) ->  | X108: =IF(INPUTS!$B$15="yes",W108,V108) ->  | AA108: =IF(INPUTS!$B$15="yes",Z108,Y108) ->  | AD108: =IF(INPUTS!$B$15="yes",AC108,AB108) ->  | AE108: no | AG108: =P108*('upper bound Kenaga'!$F$36/100) ->  | AI108: =P108*('upper bound Kenaga'!$F$96/100) -> 
B109: Granivores | C109: 35 | D109: =($D$20*((INPUTS!D48/C109)^0.25)) -> 0 | E109: =($D$22*((INPUTS!$E$48/C109)^0.25)) -> 0 | J109: =COUNTIF(K$21:K109,"=yes") -> 1 | K109: =IF(LOOKUP(VALUE(M109),INPUTS!$G$6:$G$35)=M109,"yes","no") -> no | L109: =IF(K109="yes",(LOOKUP(J109,INPUTS!$E$6:$E$35,INPUTS!$F$6:$F$35)),0) -> 0 | M109: 88 | N109: 1 | O109: 0 | R109: =IF(INPUTS!$B$15="yes",Q109,P109) ->  | U109: =IF(INPUTS!$B$15="yes",T109,S109) ->  | X109: =IF(INPUTS!$B$15="yes",W109,V109) ->  | AA109: =IF(INPUTS!$B$15="yes",Z109,Y109) ->  | AD109: =IF(INPUTS!$B$15="yes",AC109,AB109) ->  | AE109: no | AG109: =P109*('upper bound Kenaga'!$F$36/100) ->  | AI109: =P109*('upper bound Kenaga'!$F$96/100) -> 
C110: 1000 | D110: =($D$20*((INPUTS!D48/C110)^0.25)) -> 0 | E110: =($D$22*((INPUTS!$E$48/C110)^0.25)) -> 0 | J110: =COUNTIF(K$21:K110,"=yes") -> 1 | K110: =IF(LOOKUP(VALUE(M110),INPUTS!$G$6:$G$35)=M110,"yes","no") -> no | L110: =IF(K110="yes",(LOOKUP(J110,INPUTS!$E$6:$E$35,INPUTS!$F$6:$F$35)),0) -> 0 | M110: 89 | N110: 1 | O110: 0 | R110: =IF(INPUTS!$B$15="yes",Q110,P110) ->  | U110: =IF(INPUTS!$B$15="yes",T110,S110) ->  | X110: =IF(INPUTS!$B$15="yes",W110,V110) ->  | AA110: =IF(INPUTS!$B$15="yes",Z110,Y110) ->  | AD110: =IF(INPUTS!$B$15="yes",AC110,AB110) ->  | AE110: no | AG110: =P110*('upper bound Kenaga'!$F$36/100) ->  | AI110: =P110*('upper bound Kenaga'!$F$96/100) -> 
J111: =COUNTIF(K$21:K111,"=yes") -> 1 | K111: =IF(LOOKUP(VALUE(M111),INPUTS!$G$6:$G$35)=M111,"yes","no") -> no | L111: =IF(K111="yes",(LOOKUP(J111,INPUTS!$E$6:$E$35,INPUTS!$F$6:$F$35)),0) -> 0 | M111: 90 | N111: 1 | O111: 0 | R111: =IF(INPUTS!$B$15="yes",Q111,P111) ->  | U111: =IF(INPUTS!$B$15="yes",T111,S111) ->  | X111: =IF(INPUTS!$B$15="yes",W111,V111) ->  | AA111: =IF(INPUTS!$B$15="yes",Z111,Y111) ->  | AD111: =IF(INPUTS!$B$15="yes",AC111,AB111) ->  | AE111: no | AG111: =P111*('upper bound Kenaga'!$F$36/100) ->  | AI111: =P111*('upper bound Kenaga'!$F$96/100) -> 
A112: Dose-Based EECs (mg/kg-bw) | B112: Mammalian Classes and Body weight | J112: =COUNTIF(K$21:K112,"=yes") -> 1 | K112: =IF(LOOKUP(VALUE(M112),INPUTS!$G$6:$G$35)=M112,"yes","no") -> no | L112: =IF(K112="yes",(LOOKUP(J112,INPUTS!$E$6:$E$35,INPUTS!$F$6:$F$35)),0) -> 0 | M112: 91 | N112: 1 | O112: 0 | R112: =IF(INPUTS!$B$15="yes",Q112,P112) ->  | U112: =IF(INPUTS!$B$15="yes",T112,S112) ->  | X112: =IF(INPUTS!$B$15="yes",W112,V112) ->  | AA112: =IF(INPUTS!$B$15="yes",Z112,Y112) ->  | AD112: =IF(INPUTS!$B$15="yes",AC112,AB112) ->  | AE112: no | AG112: =P112*('upper bound Kenaga'!$F$36/100) ->  | AI112: =P112*('upper bound Kenaga'!$F$96/100) -> 
B113: (grams) | J113: =COUNTIF(K$21:K113,"=yes") -> 1 | K113: =IF(LOOKUP(VALUE(M113),INPUTS!$G$6:$G$35)=M113,"yes","no") -> no | L113: =IF(K113="yes",(LOOKUP(J113,INPUTS!$E$6:$E$35,INPUTS!$F$6:$F$35)),0) -> 0 | M113: 92 | N113: 1 | O113: 0 | R113: =IF(INPUTS!$B$15="yes",Q113,P113) ->  | U113: =IF(INPUTS!$B$15="yes",T113,S113) ->  | X113: =IF(INPUTS!$B$15="yes",W113,V113) ->  | AA113: =IF(INPUTS!$B$15="yes",Z113,Y113) ->  | AD113: =IF(INPUTS!$B$15="yes",AC113,AB113) ->  | AE113: no | AG113: =P113*('upper bound Kenaga'!$F$36/100) ->  | AI113: =P113*('upper bound Kenaga'!$F$96/100) -> 
B114: =C96 -> 15 | C114: =C97 -> 35 | D114: =C98 -> 1000 | J114: =COUNTIF(K$21:K114,"=yes") -> 1 | K114: =IF(LOOKUP(VALUE(M114),INPUTS!$G$6:$G$35)=M114,"yes","no") -> no | L114: =IF(K114="yes",(LOOKUP(J114,INPUTS!$E$6:$E$35,INPUTS!$F$6:$F$35)),0) -> 0 | M114: 93 | N114: 1 | O114: 0 | R114: =IF(INPUTS!$B$15="yes",Q114,P114) ->  | U114: =IF(INPUTS!$B$15="yes",T114,S114) ->  | X114: =IF(INPUTS!$B$15="yes",W114,V114) ->  | AA114: =IF(INPUTS!$B$15="yes",Z114,Y114) ->  | AD114: =IF(INPUTS!$B$15="yes",AC114,AB114) ->  | AE114: no | AG114: =P114*('upper bound Kenaga'!$F$36/100) ->  | AI114: =P114*('upper bound Kenaga'!$F$96/100) -> 
A115: Short Grass | B115: =B27*(G$96/(C$96/1000)) ->  | C115: =B27*($G$97/(C$97/1000)) ->  | D115: =B27*(G$98/(C$98/1000)) ->  | J115: =COUNTIF(K$21:K115,"=yes") -> 1 | K115: =IF(LOOKUP(VALUE(M115),INPUTS!$G$6:$G$35)=M115,"yes","no") -> no | L115: =IF(K115="yes",(LOOKUP(J115,INPUTS!$E$6:$E$35,INPUTS!$F$6:$F$35)),0) -> 0 | M115: 94 | N115: 1 | O115: 0 | R115: =IF(INPUTS!$B$15="yes",Q115,P115) ->  | U115: =IF(INPUTS!$B$15="yes",T115,S115) ->  | X115: =IF(INPUTS!$B$15="yes",W115,V115) ->  | AA115: =IF(INPUTS!$B$15="yes",Z115,Y115) ->  | AD115: =IF(INPUTS!$B$15="yes",AC115,AB115) ->  | AE115: no | AG115: =P115*('upper bound Kenaga'!$F$36/100) ->  | AI115: =P115*('upper bound Kenaga'!$F$96/100) -> 
A116: Tall Grass | B116: =B28*(G$96/(C$96/1000)) ->  | C116: =B28*($G$97/(C$97/1000)) ->  | D116: =B28*(G$98/(C$98/1000)) ->  | J116: =COUNTIF(K$21:K116,"=yes") -> 1 | K116: =IF(LOOKUP(VALUE(M116),INPUTS!$G$6:$G$35)=M116,"yes","no") -> no | L116: =IF(K116="yes",(LOOKUP(J116,INPUTS!$E$6:$E$35,INPUTS!$F$6:$F$35)),0) -> 0 | M116: 95 | N116: 1 | O116: 0 | R116: =IF(INPUTS!$B$15="yes",Q116,P116) ->  | U116: =IF(INPUTS!$B$15="yes",T116,S116) ->  | X116: =IF(INPUTS!$B$15="yes",W116,V116) ->  | AA116: =IF(INPUTS!$B$15="yes",Z116,Y116) ->  | AD116: =IF(INPUTS!$B$15="yes",AC116,AB116) ->  | AE116: no | AG116: =P116*('upper bound Kenaga'!$F$36/100) ->  | AI116: =P116*('upper bound Kenaga'!$F$96/100) -> 
A117: Broadleaf plants | B117: =B29*(G$96/(C$96/1000)) ->  | C117: =B29*($G$97/(C$97/1000)) ->  | D117: =B29*(G$98/(C$98/1000)) ->  | J117: =COUNTIF(K$21:K117,"=yes") -> 1 | K117: =IF(LOOKUP(VALUE(M117),INPUTS!$G$6:$G$35)=M117,"yes","no") -> no | L117: =IF(K117="yes",(LOOKUP(J117,INPUTS!$E$6:$E$35,INPUTS!$F$6:$F$35)),0) -> 0 | M117: 96 | N117: 1 | O117: 0 | R117: =IF(INPUTS!$B$15="yes",Q117,P117) ->  | U117: =IF(INPUTS!$B$15="yes",T117,S117) ->  | X117: =IF(INPUTS!$B$15="yes",W117,V117) ->  | AA117: =IF(INPUTS!$B$15="yes",Z117,Y117) ->  | AD117: =IF(INPUTS!$B$15="yes",AC117,AB117) ->  | AE117: no | AG117: =P117*('upper bound Kenaga'!$F$36/100) ->  | AI117: =P117*('upper bound Kenaga'!$F$96/100) -> 
A118: Fruits/pods | B118: =B30*(G$96/(C$96/1000)) ->  | C118: =B30*($G$97/(C$97/1000)) ->  | D118: =B30*(G$98/(C$98/1000)) ->  | J118: =COUNTIF(K$21:K118,"=yes") -> 1 | K118: =IF(LOOKUP(VALUE(M118),INPUTS!$G$6:$G$35)=M118,"yes","no") -> no | L118: =IF(K118="yes",(LOOKUP(J118,INPUTS!$E$6:$E$35,INPUTS!$F$6:$F$35)),0) -> 0 | M118: 97 | N118: 1 | O118: 0 | R118: =IF(INPUTS!$B$15="yes",Q118,P118) ->  | U118: =IF(INPUTS!$B$15="yes",T118,S118) ->  | X118: =IF(INPUTS!$B$15="yes",W118,V118) ->  | AA118: =IF(INPUTS!$B$15="yes",Z118,Y118) ->  | AD118: =IF(INPUTS!$B$15="yes",AC118,AB118) ->  | AE118: no | AG118: =P118*('upper bound Kenaga'!$F$36/100) ->  | AI118: =P118*('upper bound Kenaga'!$F$96/100) -> 
A119: Arthropods | B119: =B31*(G$96/(C$96/1000)) ->  | C119: =B31*($G$97/(C$97/1000)) ->  | D119: =B31*(G$98/(C$98/1000)) ->  | J119: =COUNTIF(K$21:K119,"=yes") -> 1 | K119: =IF(LOOKUP(VALUE(M119),INPUTS!$G$6:$G$35)=M119,"yes","no") -> no | L119: =IF(K119="yes",(LOOKUP(J119,INPUTS!$E$6:$E$35,INPUTS!$F$6:$F$35)),0) -> 0 | M119: 98 | N119: 1 | O119: 0 | R119: =IF(INPUTS!$B$15="yes",Q119,P119) ->  | U119: =IF(INPUTS!$B$15="yes",T119,S119) ->  | X119: =IF(INPUTS!$B$15="yes",W119,V119) ->  | AA119: =IF(INPUTS!$B$15="yes",Z119,Y119) ->  | AD119: =IF(INPUTS!$B$15="yes",AC119,AB119) ->  | AE119: no | AG119: =P119*('upper bound Kenaga'!$F$36/100) ->  | AI119: =P119*('upper bound Kenaga'!$F$96/100) -> 
A120: Seeds | B120: =B30*(G99/(C99/1000)) ->  | C120: =B30*(G100/(C100/1000)) ->  | D120: =B30*(G101/(C101/1000)) ->  | J120: =COUNTIF(K$21:K120,"=yes") -> 1 | K120: =IF(LOOKUP(VALUE(M120),INPUTS!$G$6:$G$35)=M120,"yes","no") -> no | L120: =IF(K120="yes",(LOOKUP(J120,INPUTS!$E$6:$E$35,INPUTS!$F$6:$F$35)),0) -> 0 | M120: 99 | N120: 1 | O120: 0 | R120: =IF(INPUTS!$B$15="yes",Q120,P120) ->  | U120: =IF(INPUTS!$B$15="yes",T120,S120) ->  | X120: =IF(INPUTS!$B$15="yes",W120,V120) ->  | AA120: =IF(INPUTS!$B$15="yes",Z120,Y120) ->  | AD120: =IF(INPUTS!$B$15="yes",AC120,AB120) ->  | AE120: no | AG120: =P120*('upper bound Kenaga'!$F$36/100) ->  | AI120: =P120*('upper bound Kenaga'!$F$96/100) -> 
J121: =COUNTIF(K$21:K121,"=yes") -> 1 | K121: =IF(LOOKUP(VALUE(M121),INPUTS!$G$6:$G$35)=M121,"yes","no") -> no | L121: =IF(K121="yes",(LOOKUP(J121,INPUTS!$E$6:$E$35,INPUTS!$F$6:$F$35)),0) -> 0 | M121: 100 | N121: 1 | O121: 0 | R121: =IF(INPUTS!$B$15="yes",Q121,P121) ->  | U121: =IF(INPUTS!$B$15="yes",T121,S121) ->  | X121: =IF(INPUTS!$B$15="yes",W121,V121) ->  | AA121: =IF(INPUTS!$B$15="yes",Z121,Y121) ->  | AD121: =IF(INPUTS!$B$15="yes",AC121,AB121) ->  | AE121: no | AG121: =P121*('upper bound Kenaga'!$F$36/100) ->  | AI121: =P121*('upper bound Kenaga'!$F$96/100) -> 
J122: =COUNTIF(K$21:K122,"=yes") -> 1 | K122: =IF(LOOKUP(VALUE(M122),INPUTS!$G$6:$G$35)=M122,"yes","no") -> no | L122: =IF(K122="yes",(LOOKUP(J122,INPUTS!$E$6:$E$35,INPUTS!$F$6:$F$35)),0) -> 0 | M122: 101 | N122: 1 | O122: 0 | R122: =IF(INPUTS!$B$15="yes",Q122,P122) ->  | U122: =IF(INPUTS!$B$15="yes",T122,S122) ->  | X122: =IF(INPUTS!$B$15="yes",W122,V122) ->  | AA122: =IF(INPUTS!$B$15="yes",Z122,Y122) ->  | AD122: =IF(INPUTS!$B$15="yes",AC122,AB122) ->  | AE122: no | AG122: =P122*('upper bound Kenaga'!$F$36/100) ->  | AI122: =P122*('upper bound Kenaga'!$F$96/100) -> 
J123: =COUNTIF(K$21:K123,"=yes") -> 1 | K123: =IF(LOOKUP(VALUE(M123),INPUTS!$G$6:$G$35)=M123,"yes","no") -> no | L123: =IF(K123="yes",(LOOKUP(J123,INPUTS!$E$6:$E$35,INPUTS!$F$6:$F$35)),0) -> 0 | M123: 102 | N123: 1 | O123: 0 | R123: =IF(INPUTS!$B$15="yes",Q123,P123) ->  | U123: =IF(INPUTS!$B$15="yes",T123,S123) ->  | X123: =IF(INPUTS!$B$15="yes",W123,V123) ->  | AA123: =IF(INPUTS!$B$15="yes",Z123,Y123) ->  | AD123: =IF(INPUTS!$B$15="yes",AC123,AB123) ->  | AE123: no | AG123: =P123*('upper bound Kenaga'!$F$36/100) ->  | AI123: =P123*('upper bound Kenaga'!$F$96/100) -> 
J124: =COUNTIF(K$21:K124,"=yes") -> 1 | K124: =IF(LOOKUP(VALUE(M124),INPUTS!$G$6:$G$35)=M124,"yes","no") -> no | L124: =IF(K124="yes",(LOOKUP(J124,INPUTS!$E$6:$E$35,INPUTS!$F$6:$F$35)),0) -> 0 | M124: 103 | N124: 1 | O124: 0 | R124: =IF(INPUTS!$B$15="yes",Q124,P124) ->  | U124: =IF(INPUTS!$B$15="yes",T124,S124) ->  | X124: =IF(INPUTS!$B$15="yes",W124,V124) ->  | AA124: =IF(INPUTS!$B$15="yes",Z124,Y124) ->  | AD124: =IF(INPUTS!$B$15="yes",AC124,AB124) ->  | AE124: no | AG124: =P124*('upper bound Kenaga'!$F$36/100) ->  | AI124: =P124*('upper bound Kenaga'!$F$96/100) -> 
A125: Dose-based RQs (Dose-based EEC/LD50 or NOAEL) | B125: Small mammal | D125: Medium mammal | F125: Large mammal | J125: =COUNTIF(K$21:K125,"=yes") -> 1 | K125: =IF(LOOKUP(VALUE(M125),INPUTS!$G$6:$G$35)=M125,"yes","no") -> no | L125: =IF(K125="yes",(LOOKUP(J125,INPUTS!$E$6:$E$35,INPUTS!$F$6:$F$35)),0) -> 0 | M125: 104 | N125: 1 | O125: 0 | R125: =IF(INPUTS!$B$15="yes",Q125,P125) ->  | U125: =IF(INPUTS!$B$15="yes",T125,S125) ->  | X125: =IF(INPUTS!$B$15="yes",W125,V125) ->  | AA125: =IF(INPUTS!$B$15="yes",Z125,Y125) ->  | AD125: =IF(INPUTS!$B$15="yes",AC125,AB125) ->  | AE125: no | AG125: =P125*('upper bound Kenaga'!$F$36/100) ->  | AI125: =P125*('upper bound Kenaga'!$F$96/100) -> 
B126: =C96 -> 15 | C126: grams | D126: =C97 -> 35 | E126: grams | F126: =C98 -> 1000 | G126: grams | J126: =COUNTIF(K$21:K126,"=yes") -> 1 | K126: =IF(LOOKUP(VALUE(M126),INPUTS!$G$6:$G$35)=M126,"yes","no") -> no | L126: =IF(K126="yes",(LOOKUP(J126,INPUTS!$E$6:$E$35,INPUTS!$F$6:$F$35)),0) -> 0 | M126: 105 | N126: 1 | O126: 0 | R126: =IF(INPUTS!$B$15="yes",Q126,P126) ->  | U126: =IF(INPUTS!$B$15="yes",T126,S126) ->  | X126: =IF(INPUTS!$B$15="yes",W126,V126) ->  | AA126: =IF(INPUTS!$B$15="yes",Z126,Y126) ->  | AD126: =IF(INPUTS!$B$15="yes",AC126,AB126) ->  | AE126: no | AG126: =P126*('upper bound Kenaga'!$F$36/100) ->  | AI126: =P126*('upper bound Kenaga'!$F$96/100) -> 
B127: Acute | C127: Chronic | D127: Acute | E127: Chronic | F127: Acute | G127: Chronic | J127: =COUNTIF(K$21:K127,"=yes") -> 1 | K127: =IF(LOOKUP(VALUE(M127),INPUTS!$G$6:$G$35)=M127,"yes","no") -> no | L127: =IF(K127="yes",(LOOKUP(J127,INPUTS!$E$6:$E$35,INPUTS!$F$6:$F$35)),0) -> 0 | M127: 106 | N127: 1 | O127: 0 | R127: =IF(INPUTS!$B$15="yes",Q127,P127) ->  | U127: =IF(INPUTS!$B$15="yes",T127,S127) ->  | X127: =IF(INPUTS!$B$15="yes",W127,V127) ->  | AA127: =IF(INPUTS!$B$15="yes",Z127,Y127) ->  | AD127: =IF(INPUTS!$B$15="yes",AC127,AB127) ->  | AE127: no | AG127: =P127*('upper bound Kenaga'!$F$36/100) ->  | AI127: =P127*('upper bound Kenaga'!$F$96/100) -> 
A128: Short Grass | B128: =$B$115/$D$105 ->  | C128: =B115/$E$105 ->  | D128: =C115/$D$106 ->  | E128: =C115/E106 ->  | F128: =D115/$D$107 ->  | G128: =D115/E107 ->  | J128: =COUNTIF(K$21:K128,"=yes") -> 1 | K128: =IF(LOOKUP(VALUE(M128),INPUTS!$G$6:$G$35)=M128,"yes","no") -> no | L128: =IF(K128="yes",(LOOKUP(J128,INPUTS!$E$6:$E$35,INPUTS!$F$6:$F$35)),0) -> 0 | M128: 107 | N128: 1 | O128: 0 | R128: =IF(INPUTS!$B$15="yes",Q128,P128) ->  | U128: =IF(INPUTS!$B$15="yes",T128,S128) ->  | X128: =IF(INPUTS!$B$15="yes",W128,V128) ->  | AA128: =IF(INPUTS!$B$15="yes",Z128,Y128) ->  | AD128: =IF(INPUTS!$B$15="yes",AC128,AB128) ->  | AE128: no | AG128: =P128*('upper bound Kenaga'!$F$36/100) ->  | AI128: =P128*('upper bound Kenaga'!$F$96/100) -> 
A129: Tall Grass | B129: =$B$116/$D$105 ->  | C129: =B116/E105 ->  | D129: =C116/$D$106 ->  | E129: =C116/E106 ->  | F129: =D116/$D$107 ->  | G129: =D116/E107 ->  | J129: =COUNTIF(K$21:K129,"=yes") -> 1 | K129: =IF(LOOKUP(VALUE(M129),INPUTS!$G$6:$G$35)=M129,"yes","no") -> no | L129: =IF(K129="yes",(LOOKUP(J129,INPUTS!$E$6:$E$35,INPUTS!$F$6:$F$35)),0) -> 0 | M129: 108 | N129: 1 | O129: 0 | R129: =IF(INPUTS!$B$15="yes",Q129,P129) ->  | U129: =IF(INPUTS!$B$15="yes",T129,S129) ->  | X129: =IF(INPUTS!$B$15="yes",W129,V129) ->  | AA129: =IF(INPUTS!$B$15="yes",Z129,Y129) ->  | AD129: =IF(INPUTS!$B$15="yes",AC129,AB129) ->  | AE129: no | AG129: =P129*('upper bound Kenaga'!$F$36/100) ->  | AI129: =P129*('upper bound Kenaga'!$F$96/100) -> 
A130: Broadleaf plants | B130: =$B$117/$D$105 ->  | C130: =B117/E105 ->  | D130: =C117/$D$106 ->  | E130: =C117/E106 ->  | F130: =D117/$D$107 ->  | G130: =D117/E107 ->  | J130: =COUNTIF(K$21:K130,"=yes") -> 1 | K130: =IF(LOOKUP(VALUE(M130),INPUTS!$G$6:$G$35)=M130,"yes","no") -> no | L130: =IF(K130="yes",(LOOKUP(J130,INPUTS!$E$6:$E$35,INPUTS!$F$6:$F$35)),0) -> 0 | M130: 109 | N130: 1 | O130: 0 | R130: =IF(INPUTS!$B$15="yes",Q130,P130) ->  | U130: =IF(INPUTS!$B$15="yes",T130,S130) ->  | X130: =IF(INPUTS!$B$15="yes",W130,V130) ->  | AA130: =IF(INPUTS!$B$15="yes",Z130,Y130) ->  | AD130: =IF(INPUTS!$B$15="yes",AC130,AB130) ->  | AE130: no | AG130: =P130*('upper bound Kenaga'!$F$36/100) ->  | AI130: =P130*('upper bound Kenaga'!$F$96/100) -> 
A131: Fruits/pods | B131: =$B$118/$D$105 ->  | C131: =B118/E105 ->  | D131: =C118/$D$106 ->  | E131: =C118/E106 ->  | F131: =D118/$D$107 ->  | G131: =D118/E107 ->  | J131: =COUNTIF(K$21:K131,"=yes") -> 1 | K131: =IF(LOOKUP(VALUE(M131),INPUTS!$G$6:$G$35)=M131,"yes","no") -> no | L131: =IF(K131="yes",(LOOKUP(J131,INPUTS!$E$6:$E$35,INPUTS!$F$6:$F$35)),0) -> 0 | M131: 110 | N131: 1 | O131: 0 | R131: =IF(INPUTS!$B$15="yes",Q131,P131) ->  | U131: =IF(INPUTS!$B$15="yes",T131,S131) ->  | X131: =IF(INPUTS!$B$15="yes",W131,V131) ->  | AA131: =IF(INPUTS!$B$15="yes",Z131,Y131) ->  | AD131: =IF(INPUTS!$B$15="yes",AC131,AB131) ->  | AE131: no | AG131: =P131*('upper bound Kenaga'!$F$36/100) ->  | AI131: =P131*('upper bound Kenaga'!$F$96/100) -> 
A132: Arthropods | B132: =$B$119/$D$105 ->  | C132: =B119/E105 ->  | D132: =C119/$D$106 ->  | E132: =C119/E106 ->  | F132: =D119/$D$107 ->  | G132: =D119/E107 ->  | J132: =COUNTIF(K$21:K132,"=yes") -> 1 | K132: =IF(LOOKUP(VALUE(M132),INPUTS!$G$6:$G$35)=M132,"yes","no") -> no | L132: =IF(K132="yes",(LOOKUP(J132,INPUTS!$E$6:$E$35,INPUTS!$F$6:$F$35)),0) -> 0 | M132: 111 | N132: 1 | O132: 0 | R132: =IF(INPUTS!$B$15="yes",Q132,P132) ->  | U132: =IF(INPUTS!$B$15="yes",T132,S132) ->  | X132: =IF(INPUTS!$B$15="yes",W132,V132) ->  | AA132: =IF(INPUTS!$B$15="yes",Z132,Y132) ->  | AD132: =IF(INPUTS!$B$15="yes",AC132,AB132) ->  | AE132: no | AG132: =P132*('upper bound Kenaga'!$F$36/100) ->  | AI132: =P132*('upper bound Kenaga'!$F$96/100) -> 
A133: Seeds | B133: =$B$120/$D$108 ->  | C133: =B120/E108 ->  | D133: =C120/$D$109 ->  | E133: =C120/E109 ->  | F133: =D120/$D$110 ->  | G133: =D120/E110 ->  | J133: =COUNTIF(K$21:K133,"=yes") -> 1 | K133: =IF(LOOKUP(VALUE(M133),INPUTS!$G$6:$G$35)=M133,"yes","no") -> no | L133: =IF(K133="yes",(LOOKUP(J133,INPUTS!$E$6:$E$35,INPUTS!$F$6:$F$35)),0) -> 0 | M133: 112 | N133: 1 | O133: 0 | R133: =IF(INPUTS!$B$15="yes",Q133,P133) ->  | U133: =IF(INPUTS!$B$15="yes",T133,S133) ->  | X133: =IF(INPUTS!$B$15="yes",W133,V133) ->  | AA133: =IF(INPUTS!$B$15="yes",Z133,Y133) ->  | AD133: =IF(INPUTS!$B$15="yes",AC133,AB133) ->  | AE133: no | AG133: =P133*('upper bound Kenaga'!$F$36/100) ->  | AI133: =P133*('upper bound Kenaga'!$F$96/100) -> 
J134: =COUNTIF(K$21:K134,"=yes") -> 1 | K134: =IF(LOOKUP(VALUE(M134),INPUTS!$G$6:$G$35)=M134,"yes","no") -> no | L134: =IF(K134="yes",(LOOKUP(J134,INPUTS!$E$6:$E$35,INPUTS!$F$6:$F$35)),0) -> 0 | M134: 113 | N134: 1 | O134: 0 | R134: =IF(INPUTS!$B$15="yes",Q134,P134) ->  | U134: =IF(INPUTS!$B$15="yes",T134,S134) ->  | X134: =IF(INPUTS!$B$15="yes",W134,V134) ->  | AA134: =IF(INPUTS!$B$15="yes",Z134,Y134) ->  | AD134: =IF(INPUTS!$B$15="yes",AC134,AB134) ->  | AE134: no | AG134: =P134*('upper bound Kenaga'!$F$36/100) ->  | AI134: =P134*('upper bound Kenaga'!$F$96/100) -> 
J135: =COUNTIF(K$21:K135,"=yes") -> 1 | K135: =IF(LOOKUP(VALUE(M135),INPUTS!$G$6:$G$35)=M135,"yes","no") -> no | L135: =IF(K135="yes",(LOOKUP(J135,INPUTS!$E$6:$E$35,INPUTS!$F$6:$F$35)),0) -> 0 | M135: 114 | N135: 1 | O135: 0 | R135: =IF(INPUTS!$B$15="yes",Q135,P135) ->  | U135: =IF(INPUTS!$B$15="yes",T135,S135) ->  | X135: =IF(INPUTS!$B$15="yes",W135,V135) ->  | AA135: =IF(INPUTS!$B$15="yes",Z135,Y135) ->  | AD135: =IF(INPUTS!$B$15="yes",AC135,AB135) ->  | AE135: no | AG135: =P135*('upper bound Kenaga'!$F$36/100) ->  | AI135: =P135*('upper bound Kenaga'!$F$96/100) -> 
J136: =COUNTIF(K$21:K136,"=yes") -> 1 | K136: =IF(LOOKUP(VALUE(M136),INPUTS!$G$6:$G$35)=M136,"yes","no") -> no | L136: =IF(K136="yes",(LOOKUP(J136,INPUTS!$E$6:$E$35,INPUTS!$F$6:$F$35)),0) -> 0 | M136: 115 | N136: 1 | O136: 0 | R136: =IF(INPUTS!$B$15="yes",Q136,P136) ->  | U136: =IF(INPUTS!$B$15="yes",T136,S136) ->  | X136: =IF(INPUTS!$B$15="yes",W136,V136) ->  | AA136: =IF(INPUTS!$B$15="yes",Z136,Y136) ->  | AD136: =IF(INPUTS!$B$15="yes",AC136,AB136) ->  | AE136: no | AG136: =P136*('upper bound Kenaga'!$F$36/100) ->  | AI136: =P136*('upper bound Kenaga'!$F$96/100) -> 
A137: Dietary-based RQs (Dietary-based EEC/LC50 or NOAEC) | B137: Mammal RQs | J137: =COUNTIF(K$21:K137,"=yes") -> 1 | K137: =IF(LOOKUP(VALUE(M137),INPUTS!$G$6:$G$35)=M137,"yes","no") -> no | L137: =IF(K137="yes",(LOOKUP(J137,INPUTS!$E$6:$E$35,INPUTS!$F$6:$F$35)),0) -> 0 | M137: 116 | N137: 1 | O137: 0 | R137: =IF(INPUTS!$B$15="yes",Q137,P137) ->  | U137: =IF(INPUTS!$B$15="yes",T137,S137) ->  | X137: =IF(INPUTS!$B$15="yes",W137,V137) ->  | AA137: =IF(INPUTS!$B$15="yes",Z137,Y137) ->  | AD137: =IF(INPUTS!$B$15="yes",AC137,AB137) ->  | AE137: no | AG137: =P137*('upper bound Kenaga'!$F$36/100) ->  | AI137: =P137*('upper bound Kenaga'!$F$96/100) -> 
J138: =COUNTIF(K$21:K138,"=yes") -> 1 | K138: =IF(LOOKUP(VALUE(M138),INPUTS!$G$6:$G$35)=M138,"yes","no") -> no | L138: =IF(K138="yes",(LOOKUP(J138,INPUTS!$E$6:$E$35,INPUTS!$F$6:$F$35)),0) -> 0 | M138: 117 | N138: 1 | O138: 0 | R138: =IF(INPUTS!$B$15="yes",Q138,P138) ->  | U138: =IF(INPUTS!$B$15="yes",T138,S138) ->  | X138: =IF(INPUTS!$B$15="yes",W138,V138) ->  | AA138: =IF(INPUTS!$B$15="yes",Z138,Y138) ->  | AD138: =IF(INPUTS!$B$15="yes",AC138,AB138) ->  | AE138: no | AG138: =P138*('upper bound Kenaga'!$F$36/100) ->  | AI138: =P138*('upper bound Kenaga'!$F$96/100) -> 
B139: Acute | C139: Chronic | J139: =COUNTIF(K$21:K139,"=yes") -> 1 | K139: =IF(LOOKUP(VALUE(M139),INPUTS!$G$6:$G$35)=M139,"yes","no") -> no | L139: =IF(K139="yes",(LOOKUP(J139,INPUTS!$E$6:$E$35,INPUTS!$F$6:$F$35)),0) -> 0 | M139: 118 | N139: 1 | O139: 0 | R139: =IF(INPUTS!$B$15="yes",Q139,P139) ->  | U139: =IF(INPUTS!$B$15="yes",T139,S139) ->  | X139: =IF(INPUTS!$B$15="yes",W139,V139) ->  | AA139: =IF(INPUTS!$B$15="yes",Z139,Y139) ->  | AD139: =IF(INPUTS!$B$15="yes",AC139,AB139) ->  | AE139: no | AG139: =P139*('upper bound Kenaga'!$F$36/100) ->  | AI139: =P139*('upper bound Kenaga'!$F$96/100) -> 
A140: Short Grass | B140: =B27/$D$21 ->  | C140: =B27/$D$23 ->  | J140: =COUNTIF(K$21:K140,"=yes") -> 1 | K140: =IF(LOOKUP(VALUE(M140),INPUTS!$G$6:$G$35)=M140,"yes","no") -> no | L140: =IF(K140="yes",(LOOKUP(J140,INPUTS!$E$6:$E$35,INPUTS!$F$6:$F$35)),0) -> 0 | M140: 119 | N140: 1 | O140: 0 | R140: =IF(INPUTS!$B$15="yes",Q140,P140) ->  | U140: =IF(INPUTS!$B$15="yes",T140,S140) ->  | X140: =IF(INPUTS!$B$15="yes",W140,V140) ->  | AA140: =IF(INPUTS!$B$15="yes",Z140,Y140) ->  | AD140: =IF(INPUTS!$B$15="yes",AC140,AB140) ->  | AE140: no | AG140: =P140*('upper bound Kenaga'!$F$36/100) ->  | AI140: =P140*('upper bound Kenaga'!$F$96/100) -> 
A141: Tall Grass | B141: =B28/$D$21 ->  | C141: =B28/$D$23 ->  | J141: =COUNTIF(K$21:K141,"=yes") -> 1 | K141: =IF(LOOKUP(VALUE(M141),INPUTS!$G$6:$G$35)=M141,"yes","no") -> no | L141: =IF(K141="yes",(LOOKUP(J141,INPUTS!$E$6:$E$35,INPUTS!$F$6:$F$35)),0) -> 0 | M141: 120 | N141: 1 | O141: 0 | R141: =IF(INPUTS!$B$15="yes",Q141,P141) ->  | U141: =IF(INPUTS!$B$15="yes",T141,S141) ->  | X141: =IF(INPUTS!$B$15="yes",W141,V141) ->  | AA141: =IF(INPUTS!$B$15="yes",Z141,Y141) ->  | AD141: =IF(INPUTS!$B$15="yes",AC141,AB141) ->  | AE141: no | AG141: =P141*('upper bound Kenaga'!$F$36/100) ->  | AI141: =P141*('upper bound Kenaga'!$F$96/100) -> 
A142: Broadleaf plants | B142: =B29/$D$21 ->  | C142: =B29/$D$23 ->  | J142: =COUNTIF(K$21:K142,"=yes") -> 1 | K142: =IF(LOOKUP(VALUE(M142),INPUTS!$G$6:$G$35)=M142,"yes","no") -> no | L142: =IF(K142="yes",(LOOKUP(J142,INPUTS!$E$6:$E$35,INPUTS!$F$6:$F$35)),0) -> 0 | M142: 121 | N142: 1 | O142: 0 | R142: =IF(INPUTS!$B$15="yes",Q142,P142) ->  | U142: =IF(INPUTS!$B$15="yes",T142,S142) ->  | X142: =IF(INPUTS!$B$15="yes",W142,V142) ->  | AA142: =IF(INPUTS!$B$15="yes",Z142,Y142) ->  | AD142: =IF(INPUTS!$B$15="yes",AC142,AB142) ->  | AE142: no | AG142: =P142*('upper bound Kenaga'!$F$36/100) ->  | AI142: =P142*('upper bound Kenaga'!$F$96/100) -> 
A143: Fruits/pods/seeds | B143: =B30/$D$21 ->  | C143: =B30/$D$23 ->  | J143: =COUNTIF(K$21:K143,"=yes") -> 1 | K143: =IF(LOOKUP(VALUE(M143),INPUTS!$G$6:$G$35)=M143,"yes","no") -> no | L143: =IF(K143="yes",(LOOKUP(J143,INPUTS!$E$6:$E$35,INPUTS!$F$6:$F$35)),0) -> 0 | M143: 122 | N143: 1 | O143: 0 | R143: =IF(INPUTS!$B$15="yes",Q143,P143) ->  | U143: =IF(INPUTS!$B$15="yes",T143,S143) ->  | X143: =IF(INPUTS!$B$15="yes",W143,V143) ->  | AA143: =IF(INPUTS!$B$15="yes",Z143,Y143) ->  | AD143: =IF(INPUTS!$B$15="yes",AC143,AB143) ->  | AE143: no | AG143: =P143*('upper bound Kenaga'!$F$36/100) ->  | AI143: =P143*('upper bound Kenaga'!$F$96/100) -> 
A144: Arthropods | B144: =B31/$D$21 ->  | C144: =B31/$D$23 ->  | J144: =COUNTIF(K$21:K144,"=yes") -> 1 | K144: =IF(LOOKUP(VALUE(M144),INPUTS!$G$6:$G$35)=M144,"yes","no") -> no | L144: =IF(K144="yes",(LOOKUP(J144,INPUTS!$E$6:$E$35,INPUTS!$F$6:$F$35)),0) -> 0 | M144: 123 | N144: 1 | O144: 0 | R144: =IF(INPUTS!$B$15="yes",Q144,P144) ->  | U144: =IF(INPUTS!$B$15="yes",T144,S144) ->  | X144: =IF(INPUTS!$B$15="yes",W144,V144) ->  | AA144: =IF(INPUTS!$B$15="yes",Z144,Y144) ->  | AD144: =IF(INPUTS!$B$15="yes",AC144,AB144) ->  | AE144: no | AG144: =P144*('upper bound Kenaga'!$F$36/100) ->  | AI144: =P144*('upper bound Kenaga'!$F$96/100) -> 
J145: =COUNTIF(K$21:K145,"=yes") -> 1 | K145: =IF(LOOKUP(VALUE(M145),INPUTS!$G$6:$G$35)=M145,"yes","no") -> no | L145: =IF(K145="yes",(LOOKUP(J145,INPUTS!$E$6:$E$35,INPUTS!$F$6:$F$35)),0) -> 0 | M145: 124 | N145: 1 | O145: 0 | R145: =IF(INPUTS!$B$15="yes",Q145,P145) ->  | U145: =IF(INPUTS!$B$15="yes",T145,S145) ->  | X145: =IF(INPUTS!$B$15="yes",W145,V145) ->  | AA145: =IF(INPUTS!$B$15="yes",Z145,Y145) ->  | AD145: =IF(INPUTS!$B$15="yes",AC145,AB145) ->  | AE145: no | AG145: =P145*('upper bound Kenaga'!$F$36/100) ->  | AI145: =P145*('upper bound Kenaga'!$F$96/100) -> 
A146: Note: To provide risk management with the maximum possible information, | J146: =COUNTIF(K$21:K146,"=yes") -> 1 | K146: =IF(LOOKUP(VALUE(M146),INPUTS!$G$6:$G$35)=M146,"yes","no") -> no | L146: =IF(K146="yes",(LOOKUP(J146,INPUTS!$E$6:$E$35,INPUTS!$F$6:$F$35)),0) -> 0 | M146: 125 | N146: 1 | O146: 0 | R146: =IF(INPUTS!$B$15="yes",Q146,P146) ->  | U146: =IF(INPUTS!$B$15="yes",T146,S146) ->  | X146: =IF(INPUTS!$B$15="yes",W146,V146) ->  | AA146: =IF(INPUTS!$B$15="yes",Z146,Y146) ->  | AD146: =IF(INPUTS!$B$15="yes",AC146,AB146) ->  | AE146: no | AG146: =P146*('upper bound Kenaga'!$F$36/100) ->  | AI146: =P146*('upper bound Kenaga'!$F$96/100) -> 
A147: it is recommended that both the dose-based and concentration-based | J147: =COUNTIF(K$21:K147,"=yes") -> 1 | K147: =IF(LOOKUP(VALUE(M147),INPUTS!$G$6:$G$35)=M147,"yes","no") -> no | L147: =IF(K147="yes",(LOOKUP(J147,INPUTS!$E$6:$E$35,INPUTS!$F$6:$F$35)),0) -> 0 | M147: 126 | N147: 1 | O147: 0 | R147: =IF(INPUTS!$B$15="yes",Q147,P147) ->  | U147: =IF(INPUTS!$B$15="yes",T147,S147) ->  | X147: =IF(INPUTS!$B$15="yes",W147,V147) ->  | AA147: =IF(INPUTS!$B$15="yes",Z147,Y147) ->  | AD147: =IF(INPUTS!$B$15="yes",AC147,AB147) ->  | AE147: no | AG147: =P147*('upper bound Kenaga'!$F$36/100) ->  | AI147: =P147*('upper bound Kenaga'!$F$96/100) -> 
A148: RQs be calculated when data are available | J148: =COUNTIF(K$21:K148,"=yes") -> 1 | K148: =IF(LOOKUP(VALUE(M148),INPUTS!$G$6:$G$35)=M148,"yes","no") -> no | L148: =IF(K148="yes",(LOOKUP(J148,INPUTS!$E$6:$E$35,INPUTS!$F$6:$F$35)),0) -> 0 | M148: 127 | N148: 1 | O148: 0 | R148: =IF(INPUTS!$B$15="yes",Q148,P148) ->  | U148: =IF(INPUTS!$B$15="yes",T148,S148) ->  | X148: =IF(INPUTS!$B$15="yes",W148,V148) ->  | AA148: =IF(INPUTS!$B$15="yes",Z148,Y148) ->  | AD148: =IF(INPUTS!$B$15="yes",AC148,AB148) ->  | AE148: no | AG148: =P148*('upper bound Kenaga'!$F$36/100) ->  | AI148: =P148*('upper bound Kenaga'!$F$96/100) -> 
J149: =COUNTIF(K$21:K149,"=yes") -> 1 | K149: =IF(LOOKUP(VALUE(M149),INPUTS!$G$6:$G$35)=M149,"yes","no") -> no | L149: =IF(K149="yes",(LOOKUP(J149,INPUTS!$E$6:$E$35,INPUTS!$F$6:$F$35)),0) -> 0 | M149: 128 | N149: 1 | O149: 0 | R149: =IF(INPUTS!$B$15="yes",Q149,P149) ->  | U149: =IF(INPUTS!$B$15="yes",T149,S149) ->  | X149: =IF(INPUTS!$B$15="yes",W149,V149) ->  | AA149: =IF(INPUTS!$B$15="yes",Z149,Y149) ->  | AD149: =IF(INPUTS!$B$15="yes",AC149,AB149) ->  | AE149: no | AG149: =P149*('upper bound Kenaga'!$F$36/100) ->  | AI149: =P149*('upper bound Kenaga'!$F$96/100) -> 
J150: =COUNTIF(K$21:K150,"=yes") -> 1 | K150: =IF(LOOKUP(VALUE(M150),INPUTS!$G$6:$G$35)=M150,"yes","no") -> no | L150: =IF(K150="yes",(LOOKUP(J150,INPUTS!$E$6:$E$35,INPUTS!$F$6:$F$35)),0) -> 0 | M150: 129 | N150: 1 | O150: 0 | Q150: =IF($K150="yes",(EXP(-$R$16)*(Q149)+(240*$L150)),((EXP(-$R$16)*(Q149)))) ->  | R150: =IF(INPUTS!$B$15="yes",Q150,P150) ->  | S150: =IF(($N150>$N149),(EXP(-$R$16)*(S149)+$R$12),((EXP(-$R$16)*(S149)))) ->  | T150: =IF($K150="yes",(EXP(-$R$16)*(T149)+(110*$L150)),((EXP(-$R$16)*(T149)))) ->  | U150: =IF(INPUTS!$B$15="yes",T150,S150) ->  | V150: =IF(($N150>$N149),(EXP(-$R$16)*(V149)+$R$13),((EXP(-$R$16)*(V149)))) ->  | W150: =IF($K150="yes",(EXP(-$R$16)*(W149)+(135*$L150)),((EXP(-$R$16)*(W149)))) ->  | X150: =IF(INPUTS!$B$15="yes",W150,V150) ->  | Y150: =IF(($N150>$N149),(EXP(-$R$16)*(Y149)+$R$14),((EXP(-$R$16)*(Y149)))) ->  | Z150: =IF($K150="yes",(EXP(-$R$16)*(Z149)+(15*$L150)),((EXP(-$R$16)*(Z149)))) ->  | AA150: =IF(INPUTS!$B$15="yes",Z150,Y150) ->  | AB150: =IF(($N150>$N149),(EXP(-$R$16)*(AB149)+$R$15),((EXP(-$R$16)*(AB149)))) ->  | AC150: =IF($K150="yes",(EXP(-$R$16)*(AC149)+(94*$L150)),((EXP(-$R$16)*(AC149)))) ->  | AD150: =IF(INPUTS!$B$15="yes",AC150,AB150) ->  | AE150: no | AG150: =P150*('upper bound Kenaga'!$F$36/100) ->  | AI150: =P150*('upper bound Kenaga'!$F$96/100) -> 
J151: =COUNTIF(K$21:K151,"=yes") -> 1 | K151: =IF(LOOKUP(VALUE(M151),INPUTS!$G$6:$G$35)=M151,"yes","no") -> no | L151: =IF(K151="yes",(LOOKUP(J151,INPUTS!$E$6:$E$35,INPUTS!$F$6:$F$35)),0) -> 0 | M151: 130 | N151: 1 | O151: 0 | R151: =IF(INPUTS!$B$15="yes",Q151,P151) ->  | U151: =IF(INPUTS!$B$15="yes",T151,S151) ->  | X151: =IF(INPUTS!$B$15="yes",W151,V151) ->  | AA151: =IF(INPUTS!$B$15="yes",Z151,Y151) ->  | AD151: =IF(INPUTS!$B$15="yes",AC151,AB151) ->  | AE151: no | AG151: =P151*('upper bound Kenaga'!$F$36/100) ->  | AI151: =P151*('upper bound Kenaga'!$F$96/100) -> 
J152: =COUNTIF(K$21:K152,"=yes") -> 1 | K152: =IF(LOOKUP(VALUE(M152),INPUTS!$G$6:$G$35)=M152,"yes","no") -> no | L152: =IF(K152="yes",(LOOKUP(J152,INPUTS!$E$6:$E$35,INPUTS!$F$6:$F$35)),0) -> 0 | M152: 131 | N152: 1 | O152: 0 | R152: =IF(INPUTS!$B$15="yes",Q152,P152) ->  | U152: =IF(INPUTS!$B$15="yes",T152,S152) ->  | X152: =IF(INPUTS!$B$15="yes",W152,V152) ->  | AA152: =IF(INPUTS!$B$15="yes",Z152,Y152) ->  | AD152: =IF(INPUTS!$B$15="yes",AC152,AB152) ->  | AE152: no | AG152: =P152*('upper bound Kenaga'!$F$36/100) ->  | AI152: =P152*('upper bound Kenaga'!$F$96/100) -> 
J153: =COUNTIF(K$21:K153,"=yes") -> 1 | K153: =IF(LOOKUP(VALUE(M153),INPUTS!$G$6:$G$35)=M153,"yes","no") -> no | L153: =IF(K153="yes",(LOOKUP(J153,INPUTS!$E$6:$E$35,INPUTS!$F$6:$F$35)),0) -> 0 | M153: 132 | N153: 1 | O153: 0 | R153: =IF(INPUTS!$B$15="yes",Q153,P153) ->  | U153: =IF(INPUTS!$B$15="yes",T153,S153) ->  | X153: =IF(INPUTS!$B$15="yes",W153,V153) ->  | AA153: =IF(INPUTS!$B$15="yes",Z153,Y153) ->  | AD153: =IF(INPUTS!$B$15="yes",AC153,AB153) ->  | AE153: no | AG153: =P153*('upper bound Kenaga'!$F$36/100) ->  | AI153: =P153*('upper bound Kenaga'!$F$96/100) -> 
J154: =COUNTIF(K$21:K154,"=yes") -> 1 | K154: =IF(LOOKUP(VALUE(M154),INPUTS!$G$6:$G$35)=M154,"yes","no") -> no | L154: =IF(K154="yes",(LOOKUP(J154,INPUTS!$E$6:$E$35,INPUTS!$F$6:$F$35)),0) -> 0 | M154: 133 | N154: 1 | O154: 0 | R154: =IF(INPUTS!$B$15="yes",Q154,P154) ->  | U154: =IF(INPUTS!$B$15="yes",T154,S154) ->  | X154: =IF(INPUTS!$B$15="yes",W154,V154) ->  | AA154: =IF(INPUTS!$B$15="yes",Z154,Y154) ->  | AD154: =IF(INPUTS!$B$15="yes",AC154,AB154) ->  | AE154: =$B$11 -> no | AG154: =P154*('upper bound Kenaga'!$F$36/100) ->  | AI154: =P154*('upper bound Kenaga'!$F$96/100) -> 
J155: =COUNTIF(K$21:K155,"=yes") -> 1 | K155: =IF(LOOKUP(VALUE(M155),INPUTS!$G$6:$G$35)=M155,"yes","no") -> no | L155: =IF(K155="yes",(LOOKUP(J155,INPUTS!$E$6:$E$35,INPUTS!$F$6:$F$35)),0) -> 0 | M155: =(M154+1) -> 134 | N155: =IF($B$9>N154,IF(O154=($B$8-1),(N154+1),(N154)),(N154)) -> 1 | O155: =IF(O154<($B$8-1),(1+O154),0) -> 0 | R155: =IF(INPUTS!$B$15="yes",Q155,P155) ->  | U155: =IF(INPUTS!$B$15="yes",T155,S155) ->  | X155: =IF(INPUTS!$B$15="yes",W155,V155) ->  | AA155: =IF(INPUTS!$B$15="yes",Z155,Y155) ->  | AD155: =IF(INPUTS!$B$15="yes",AC155,AB155) ->  | AE155: no | AG155: =P155*('upper bound Kenaga'!$F$36/100) ->  | AI155: =P155*('upper bound Kenaga'!$F$96/100) -> 
J156: =COUNTIF(K$21:K156,"=yes") -> 1 | K156: =IF(LOOKUP(VALUE(M156),INPUTS!$G$6:$G$35)=M156,"yes","no") -> no | L156: =IF(K156="yes",(LOOKUP(J156,INPUTS!$E$6:$E$35,INPUTS!$F$6:$F$35)),0) -> 0 | M156: 135 | N156: 1 | O156: 0 | R156: =IF(INPUTS!$B$15="yes",Q156,P156) ->  | U156: =IF(INPUTS!$B$15="yes",T156,S156) ->  | X156: =IF(INPUTS!$B$15="yes",W156,V156) ->  | AA156: =IF(INPUTS!$B$15="yes",Z156,Y156) ->  | AD156: =IF(INPUTS!$B$15="yes",AC156,AB156) ->  | AE156: no | AG156: =P156*('upper bound Kenaga'!$F$36/100) ->  | AI156: =P156*('upper bound Kenaga'!$F$96/100) -> 
J157: =COUNTIF(K$21:K157,"=yes") -> 1 | K157: =IF(LOOKUP(VALUE(M157),INPUTS!$G$6:$G$35)=M157,"yes","no") -> no | L157: =IF(K157="yes",(LOOKUP(J157,INPUTS!$E$6:$E$35,INPUTS!$F$6:$F$35)),0) -> 0 | M157: 136 | N157: 1 | O157: 0 | R157: =IF(INPUTS!$B$15="yes",Q157,P157) ->  | U157: =IF(INPUTS!$B$15="yes",T157,S157) ->  | X157: =IF(INPUTS!$B$15="yes",W157,V157) ->  | AA157: =IF(INPUTS!$B$15="yes",Z157,Y157) ->  | AD157: =IF(INPUTS!$B$15="yes",AC157,AB157) ->  | AE157: no | AG157: =P157*('upper bound Kenaga'!$F$36/100) ->  | AI157: =P157*('upper bound Kenaga'!$F$96/100) -> 
J158: =COUNTIF(K$21:K158,"=yes") -> 1 | K158: =IF(LOOKUP(VALUE(M158),INPUTS!$G$6:$G$35)=M158,"yes","no") -> no | L158: =IF(K158="yes",(LOOKUP(J158,INPUTS!$E$6:$E$35,INPUTS!$F$6:$F$35)),0) -> 0 | M158: 137 | N158: 1 | O158: 0 | R158: =IF(INPUTS!$B$15="yes",Q158,P158) ->  | U158: =IF(INPUTS!$B$15="yes",T158,S158) ->  | X158: =IF(INPUTS!$B$15="yes",W158,V158) ->  | AA158: =IF(INPUTS!$B$15="yes",Z158,Y158) ->  | AD158: =IF(INPUTS!$B$15="yes",AC158,AB158) ->  | AE158: no | AG158: =P158*('upper bound Kenaga'!$F$36/100) ->  | AI158: =P158*('upper bound Kenaga'!$F$96/100) -> 
J159: =COUNTIF(K$21:K159,"=yes") -> 1 | K159: =IF(LOOKUP(VALUE(M159),INPUTS!$G$6:$G$35)=M159,"yes","no") -> no | L159: =IF(K159="yes",(LOOKUP(J159,INPUTS!$E$6:$E$35,INPUTS!$F$6:$F$35)),0) -> 0 | M159: 138 | N159: 1 | O159: 0 | P159: =IF((N159>N158),(EXP(-$R$16)*(P158)+$R$11),((EXP(-$R$16)*(P158)))) ->  | R159: =IF(INPUTS!$B$15="yes",Q159,P159) ->  | U159: =IF(INPUTS!$B$15="yes",T159,S159) ->  | X159: =IF(INPUTS!$B$15="yes",W159,V159) ->  | AA159: =IF(INPUTS!$B$15="yes",Z159,Y159) ->  | AD159: =IF(INPUTS!$B$15="yes",AC159,AB159) ->  | AE159: no | AG159: =P159*('upper bound Kenaga'!$F$36/100) ->  | AI159: =P159*('upper bound Kenaga'!$F$96/100) -> 
J160: =COUNTIF(K$21:K160,"=yes") -> 1 | K160: =IF(LOOKUP(VALUE(M160),INPUTS!$G$6:$G$35)=M160,"yes","no") -> no | L160: =IF(K160="yes",(LOOKUP(J160,INPUTS!$E$6:$E$35,INPUTS!$F$6:$F$35)),0) -> 0 | M160: 139 | N160: 1 | O160: 0 | R160: =IF(INPUTS!$B$15="yes",Q160,P160) ->  | U160: =IF(INPUTS!$B$15="yes",T160,S160) ->  | X160: =IF(INPUTS!$B$15="yes",W160,V160) ->  | AA160: =IF(INPUTS!$B$15="yes",Z160,Y160) ->  | AD160: =IF(INPUTS!$B$15="yes",AC160,AB160) ->  | AE160: no | AG160: =P160*('upper bound Kenaga'!$F$36/100) ->  | AI160: =P160*('upper bound Kenaga'!$F$96/100) -> 
J161: =COUNTIF(K$21:K161,"=yes") -> 1 | K161: =IF(LOOKUP(VALUE(M161),INPUTS!$G$6:$G$35)=M161,"yes","no") -> no | L161: =IF(K161="yes",(LOOKUP(J161,INPUTS!$E$6:$E$35,INPUTS!$F$6:$F$35)),0) -> 0 | M161: 140 | N161: 1 | O161: 0 | R161: =IF(INPUTS!$B$15="yes",Q161,P161) ->  | U161: =IF(INPUTS!$B$15="yes",T161,S161) ->  | X161: =IF(INPUTS!$B$15="yes",W161,V161) ->  | AA161: =IF(INPUTS!$B$15="yes",Z161,Y161) ->  | AD161: =IF(INPUTS!$B$15="yes",AC161,AB161) ->  | AE161: no | AG161: =P161*('upper bound Kenaga'!$F$36/100) ->  | AI161: =P161*('upper bound Kenaga'!$F$96/100) -> 
J162: =COUNTIF(K$21:K162,"=yes") -> 1 | K162: =IF(LOOKUP(VALUE(M162),INPUTS!$G$6:$G$35)=M162,"yes","no") -> no | L162: =IF(K162="yes",(LOOKUP(J162,INPUTS!$E$6:$E$35,INPUTS!$F$6:$F$35)),0) -> 0 | M162: 141 | N162: 1 | O162: 0 | R162: =IF(INPUTS!$B$15="yes",Q162,P162) ->  | U162: =IF(INPUTS!$B$15="yes",T162,S162) ->  | X162: =IF(INPUTS!$B$15="yes",W162,V162) ->  | AA162: =IF(INPUTS!$B$15="yes",Z162,Y162) ->  | AD162: =IF(INPUTS!$B$15="yes",AC162,AB162) ->  | AE162: no | AG162: =P162*('upper bound Kenaga'!$F$36/100) ->  | AI162: =P162*('upper bound Kenaga'!$F$96/100) -> 
J163: =COUNTIF(K$21:K163,"=yes") -> 1 | K163: =IF(LOOKUP(VALUE(M163),INPUTS!$G$6:$G$35)=M163,"yes","no") -> no | L163: =IF(K163="yes",(LOOKUP(J163,INPUTS!$E$6:$E$35,INPUTS!$F$6:$F$35)),0) -> 0 | M163: 142 | N163: 1 | O163: 0 | R163: =IF(INPUTS!$B$15="yes",Q163,P163) ->  | U163: =IF(INPUTS!$B$15="yes",T163,S163) ->  | X163: =IF(INPUTS!$B$15="yes",W163,V163) ->  | AA163: =IF(INPUTS!$B$15="yes",Z163,Y163) ->  | AD163: =IF(INPUTS!$B$15="yes",AC163,AB163) ->  | AE163: no | AG163: =P163*('upper bound Kenaga'!$F$36/100) ->  | AI163: =P163*('upper bound Kenaga'!$F$96/100) -> 
J164: =COUNTIF(K$21:K164,"=yes") -> 1 | K164: =IF(LOOKUP(VALUE(M164),INPUTS!$G$6:$G$35)=M164,"yes","no") -> no | L164: =IF(K164="yes",(LOOKUP(J164,INPUTS!$E$6:$E$35,INPUTS!$F$6:$F$35)),0) -> 0 | M164: 143 | N164: 1 | O164: 0 | R164: =IF(INPUTS!$B$15="yes",Q164,P164) ->  | U164: =IF(INPUTS!$B$15="yes",T164,S164) ->  | X164: =IF(INPUTS!$B$15="yes",W164,V164) ->  | AA164: =IF(INPUTS!$B$15="yes",Z164,Y164) ->  | AD164: =IF(INPUTS!$B$15="yes",AC164,AB164) ->  | AE164: no | AG164: =P164*('upper bound Kenaga'!$F$36/100) ->  | AI164: =P164*('upper bound Kenaga'!$F$96/100) -> 
J165: =COUNTIF(K$21:K165,"=yes") -> 1 | K165: =IF(LOOKUP(VALUE(M165),INPUTS!$G$6:$G$35)=M165,"yes","no") -> no | L165: =IF(K165="yes",(LOOKUP(J165,INPUTS!$E$6:$E$35,INPUTS!$F$6:$F$35)),0) -> 0 | M165: 144 | N165: 1 | O165: 0 | R165: =IF(INPUTS!$B$15="yes",Q165,P165) ->  | U165: =IF(INPUTS!$B$15="yes",T165,S165) ->  | X165: =IF(INPUTS!$B$15="yes",W165,V165) ->  | AA165: =IF(INPUTS!$B$15="yes",Z165,Y165) ->  | AD165: =IF(INPUTS!$B$15="yes",AC165,AB165) ->  | AE165: no | AG165: =P165*('upper bound Kenaga'!$F$36/100) ->  | AI165: =P165*('upper bound Kenaga'!$F$96/100) -> 
J166: =COUNTIF(K$21:K166,"=yes") -> 1 | K166: =IF(LOOKUP(VALUE(M166),INPUTS!$G$6:$G$35)=M166,"yes","no") -> no | L166: =IF(K166="yes",(LOOKUP(J166,INPUTS!$E$6:$E$35,INPUTS!$F$6:$F$35)),0) -> 0 | M166: 145 | N166: 1 | O166: 0 | R166: =IF(INPUTS!$B$15="yes",Q166,P166) ->  | U166: =IF(INPUTS!$B$15="yes",T166,S166) ->  | X166: =IF(INPUTS!$B$15="yes",W166,V166) ->  | AA166: =IF(INPUTS!$B$15="yes",Z166,Y166) ->  | AD166: =IF(INPUTS!$B$15="yes",AC166,AB166) ->  | AE166: no | AG166: =P166*('upper bound Kenaga'!$F$36/100) ->  | AI166: =P166*('upper bound Kenaga'!$F$96/100) -> 
J167: =COUNTIF(K$21:K167,"=yes") -> 1 | K167: =IF(LOOKUP(VALUE(M167),INPUTS!$G$6:$G$35)=M167,"yes","no") -> no | L167: =IF(K167="yes",(LOOKUP(J167,INPUTS!$E$6:$E$35,INPUTS!$F$6:$F$35)),0) -> 0 | M167: 146 | N167: 1 | O167: 0 | R167: =IF(INPUTS!$B$15="yes",Q167,P167) ->  | U167: =IF(INPUTS!$B$15="yes",T167,S167) ->  | X167: =IF(INPUTS!$B$15="yes",W167,V167) ->  | AA167: =IF(INPUTS!$B$15="yes",Z167,Y167) ->  | AD167: =IF(INPUTS!$B$15="yes",AC167,AB167) ->  | AE167: no | AG167: =P167*('upper bound Kenaga'!$F$36/100) ->  | AI167: =P167*('upper bound Kenaga'!$F$96/100) -> 
J168: =COUNTIF(K$21:K168,"=yes") -> 1 | K168: =IF(LOOKUP(VALUE(M168),INPUTS!$G$6:$G$35)=M168,"yes","no") -> no | L168: =IF(K168="yes",(LOOKUP(J168,INPUTS!$E$6:$E$35,INPUTS!$F$6:$F$35)),0) -> 0 | M168: 147 | N168: 1 | O168: 0 | R168: =IF(INPUTS!$B$15="yes",Q168,P168) ->  | U168: =IF(INPUTS!$B$15="yes",T168,S168) ->  | X168: =IF(INPUTS!$B$15="yes",W168,V168) ->  | AA168: =IF(INPUTS!$B$15="yes",Z168,Y168) ->  | AD168: =IF(INPUTS!$B$15="yes",AC168,AB168) ->  | AE168: no | AG168: =P168*('upper bound Kenaga'!$F$36/100) ->  | AI168: =P168*('upper bound Kenaga'!$F$96/100) -> 
J169: =COUNTIF(K$21:K169,"=yes") -> 1 | K169: =IF(LOOKUP(VALUE(M169),INPUTS!$G$6:$G$35)=M169,"yes","no") -> no | L169: =IF(K169="yes",(LOOKUP(J169,INPUTS!$E$6:$E$35,INPUTS!$F$6:$F$35)),0) -> 0 | M169: 148 | N169: 1 | O169: 0 | R169: =IF(INPUTS!$B$15="yes",Q169,P169) ->  | U169: =IF(INPUTS!$B$15="yes",T169,S169) ->  | X169: =IF(INPUTS!$B$15="yes",W169,V169) ->  | AA169: =IF(INPUTS!$B$15="yes",Z169,Y169) ->  | AD169: =IF(INPUTS!$B$15="yes",AC169,AB169) ->  | AE169: no | AG169: =P169*('upper bound Kenaga'!$F$36/100) ->  | AI169: =P169*('upper bound Kenaga'!$F$96/100) -> 
J170: =COUNTIF(K$21:K170,"=yes") -> 1 | K170: =IF(LOOKUP(VALUE(M170),INPUTS!$G$6:$G$35)=M170,"yes","no") -> no | L170: =IF(K170="yes",(LOOKUP(J170,INPUTS!$E$6:$E$35,INPUTS!$F$6:$F$35)),0) -> 0 | M170: 149 | N170: 1 | O170: 0 | R170: =IF(INPUTS!$B$15="yes",Q170,P170) ->  | U170: =IF(INPUTS!$B$15="yes",T170,S170) ->  | X170: =IF(INPUTS!$B$15="yes",W170,V170) ->  | AA170: =IF(INPUTS!$B$15="yes",Z170,Y170) ->  | AD170: =IF(INPUTS!$B$15="yes",AC170,AB170) ->  | AE170: no | AG170: =P170*('upper bound Kenaga'!$F$36/100) ->  | AI170: =P170*('upper bound Kenaga'!$F$96/100) -> 
J171: =COUNTIF(K$21:K171,"=yes") -> 1 | K171: =IF(LOOKUP(VALUE(M171),INPUTS!$G$6:$G$35)=M171,"yes","no") -> no | L171: =IF(K171="yes",(LOOKUP(J171,INPUTS!$E$6:$E$35,INPUTS!$F$6:$F$35)),0) -> 0 | M171: 150 | N171: 1 | O171: 0 | R171: =IF(INPUTS!$B$15="yes",Q171,P171) ->  | U171: =IF(INPUTS!$B$15="yes",T171,S171) ->  | X171: =IF(INPUTS!$B$15="yes",W171,V171) ->  | AA171: =IF(INPUTS!$B$15="yes",Z171,Y171) ->  | AD171: =IF(INPUTS!$B$15="yes",AC171,AB171) ->  | AE171: no | AG171: =P171*('upper bound Kenaga'!$F$36/100) ->  | AI171: =P171*('upper bound Kenaga'!$F$96/100) -> 
J172: =COUNTIF(K$21:K172,"=yes") -> 1 | K172: =IF(LOOKUP(VALUE(M172),INPUTS!$G$6:$G$35)=M172,"yes","no") -> no | L172: =IF(K172="yes",(LOOKUP(J172,INPUTS!$E$6:$E$35,INPUTS!$F$6:$F$35)),0) -> 0 | M172: 151 | N172: 1 | O172: 0 | R172: =IF(INPUTS!$B$15="yes",Q172,P172) ->  | U172: =IF(INPUTS!$B$15="yes",T172,S172) ->  | X172: =IF(INPUTS!$B$15="yes",W172,V172) ->  | AA172: =IF(INPUTS!$B$15="yes",Z172,Y172) ->  | AD172: =IF(INPUTS!$B$15="yes",AC172,AB172) ->  | AE172: no | AG172: =P172*('upper bound Kenaga'!$F$36/100) ->  | AI172: =P172*('upper bound Kenaga'!$F$96/100) -> 
J173: =COUNTIF(K$21:K173,"=yes") -> 1 | K173: =IF(LOOKUP(VALUE(M173),INPUTS!$G$6:$G$35)=M173,"yes","no") -> no | L173: =IF(K173="yes",(LOOKUP(J173,INPUTS!$E$6:$E$35,INPUTS!$F$6:$F$35)),0) -> 0 | M173: 152 | N173: 1 | O173: 0 | R173: =IF(INPUTS!$B$15="yes",Q173,P173) ->  | U173: =IF(INPUTS!$B$15="yes",T173,S173) ->  | X173: =IF(INPUTS!$B$15="yes",W173,V173) ->  | AA173: =IF(INPUTS!$B$15="yes",Z173,Y173) ->  | AD173: =IF(INPUTS!$B$15="yes",AC173,AB173) ->  | AE173: no | AG173: =P173*('upper bound Kenaga'!$F$36/100) ->  | AI173: =P173*('upper bound Kenaga'!$F$96/100) -> 
J174: =COUNTIF(K$21:K174,"=yes") -> 1 | K174: =IF(LOOKUP(VALUE(M174),INPUTS!$G$6:$G$35)=M174,"yes","no") -> no | L174: =IF(K174="yes",(LOOKUP(J174,INPUTS!$E$6:$E$35,INPUTS!$F$6:$F$35)),0) -> 0 | M174: 153 | N174: 1 | O174: 0 | R174: =IF(INPUTS!$B$15="yes",Q174,P174) ->  | U174: =IF(INPUTS!$B$15="yes",T174,S174) ->  | X174: =IF(INPUTS!$B$15="yes",W174,V174) ->  | AA174: =IF(INPUTS!$B$15="yes",Z174,Y174) ->  | AD174: =IF(INPUTS!$B$15="yes",AC174,AB174) ->  | AE174: no | AG174: =P174*('upper bound Kenaga'!$F$36/100) ->  | AI174: =P174*('upper bound Kenaga'!$F$96/100) -> 
J175: =COUNTIF(K$21:K175,"=yes") -> 1 | K175: =IF(LOOKUP(VALUE(M175),INPUTS!$G$6:$G$35)=M175,"yes","no") -> no | L175: =IF(K175="yes",(LOOKUP(J175,INPUTS!$E$6:$E$35,INPUTS!$F$6:$F$35)),0) -> 0 | M175: 154 | N175: 1 | O175: 0 | R175: =IF(INPUTS!$B$15="yes",Q175,P175) ->  | U175: =IF(INPUTS!$B$15="yes",T175,S175) ->  | X175: =IF(INPUTS!$B$15="yes",W175,V175) ->  | AA175: =IF(INPUTS!$B$15="yes",Z175,Y175) ->  | AD175: =IF(INPUTS!$B$15="yes",AC175,AB175) ->  | AE175: no | AG175: =P175*('upper bound Kenaga'!$F$36/100) ->  | AI175: =P175*('upper bound Kenaga'!$F$96/100) -> 
J176: =COUNTIF(K$21:K176,"=yes") -> 1 | K176: =IF(LOOKUP(VALUE(M176),INPUTS!$G$6:$G$35)=M176,"yes","no") -> no | L176: =IF(K176="yes",(LOOKUP(J176,INPUTS!$E$6:$E$35,INPUTS!$F$6:$F$35)),0) -> 0 | M176: 155 | N176: 1 | O176: 0 | R176: =IF(INPUTS!$B$15="yes",Q176,P176) ->  | U176: =IF(INPUTS!$B$15="yes",T176,S176) ->  | X176: =IF(INPUTS!$B$15="yes",W176,V176) ->  | AA176: =IF(INPUTS!$B$15="yes",Z176,Y176) ->  | AD176: =IF(INPUTS!$B$15="yes",AC176,AB176) ->  | AE176: no | AG176: =P176*('upper bound Kenaga'!$F$36/100) ->  | AI176: =P176*('upper bound Kenaga'!$F$96/100) -> 
J177: =COUNTIF(K$21:K177,"=yes") -> 1 | K177: =IF(LOOKUP(VALUE(M177),INPUTS!$G$6:$G$35)=M177,"yes","no") -> no | L177: =IF(K177="yes",(LOOKUP(J177,INPUTS!$E$6:$E$35,INPUTS!$F$6:$F$35)),0) -> 0 | M177: 156 | N177: 1 | O177: 0 | R177: =IF(INPUTS!$B$15="yes",Q177,P177) ->  | U177: =IF(INPUTS!$B$15="yes",T177,S177) ->  | X177: =IF(INPUTS!$B$15="yes",W177,V177) ->  | AA177: =IF(INPUTS!$B$15="yes",Z177,Y177) ->  | AD177: =IF(INPUTS!$B$15="yes",AC177,AB177) ->  | AE177: no | AG177: =P177*('upper bound Kenaga'!$F$36/100) ->  | AI177: =P177*('upper bound Kenaga'!$F$96/100) -> 
J178: =COUNTIF(K$21:K178,"=yes") -> 1 | K178: =IF(LOOKUP(VALUE(M178),INPUTS!$G$6:$G$35)=M178,"yes","no") -> no | L178: =IF(K178="yes",(LOOKUP(J178,INPUTS!$E$6:$E$35,INPUTS!$F$6:$F$35)),0) -> 0 | M178: 157 | N178: 1 | O178: 0 | R178: =IF(INPUTS!$B$15="yes",Q178,P178) ->  | U178: =IF(INPUTS!$B$15="yes",T178,S178) ->  | X178: =IF(INPUTS!$B$15="yes",W178,V178) ->  | AA178: =IF(INPUTS!$B$15="yes",Z178,Y178) ->  | AD178: =IF(INPUTS!$B$15="yes",AC178,AB178) ->  | AE178: no | AG178: =P178*('upper bound Kenaga'!$F$36/100) ->  | AI178: =P178*('upper bound Kenaga'!$F$96/100) -> 
J179: =COUNTIF(K$21:K179,"=yes") -> 1 | K179: =IF(LOOKUP(VALUE(M179),INPUTS!$G$6:$G$35)=M179,"yes","no") -> no | L179: =IF(K179="yes",(LOOKUP(J179,INPUTS!$E$6:$E$35,INPUTS!$F$6:$F$35)),0) -> 0 | M179: 158 | N179: 1 | O179: 0 | R179: =IF(INPUTS!$B$15="yes",Q179,P179) ->  | U179: =IF(INPUTS!$B$15="yes",T179,S179) ->  | X179: =IF(INPUTS!$B$15="yes",W179,V179) ->  | AA179: =IF(INPUTS!$B$15="yes",Z179,Y179) ->  | AD179: =IF(INPUTS!$B$15="yes",AC179,AB179) ->  | AE179: no | AG179: =P179*('upper bound Kenaga'!$F$36/100) ->  | AI179: =P179*('upper bound Kenaga'!$F$96/100) -> 
J180: =COUNTIF(K$21:K180,"=yes") -> 1 | K180: =IF(LOOKUP(VALUE(M180),INPUTS!$G$6:$G$35)=M180,"yes","no") -> no | L180: =IF(K180="yes",(LOOKUP(J180,INPUTS!$E$6:$E$35,INPUTS!$F$6:$F$35)),0) -> 0 | M180: 159 | N180: 1 | O180: 0 | R180: =IF(INPUTS!$B$15="yes",Q180,P180) ->  | U180: =IF(INPUTS!$B$15="yes",T180,S180) ->  | X180: =IF(INPUTS!$B$15="yes",W180,V180) ->  | AA180: =IF(INPUTS!$B$15="yes",Z180,Y180) ->  | AD180: =IF(INPUTS!$B$15="yes",AC180,AB180) ->  | AE180: no | AG180: =P180*('upper bound Kenaga'!$F$36/100) ->  | AI180: =P180*('upper bound Kenaga'!$F$96/100) -> 
J181: =COUNTIF(K$21:K181,"=yes") -> 1 | K181: =IF(LOOKUP(VALUE(M181),INPUTS!$G$6:$G$35)=M181,"yes","no") -> no | L181: =IF(K181="yes",(LOOKUP(J181,INPUTS!$E$6:$E$35,INPUTS!$F$6:$F$35)),0) -> 0 | M181: 160 | N181: 1 | O181: 0 | R181: =IF(INPUTS!$B$15="yes",Q181,P181) ->  | U181: =IF(INPUTS!$B$15="yes",T181,S181) ->  | X181: =IF(INPUTS!$B$15="yes",W181,V181) ->  | AA181: =IF(INPUTS!$B$15="yes",Z181,Y181) ->  | AD181: =IF(INPUTS!$B$15="yes",AC181,AB181) ->  | AE181: no | AG181: =P181*('upper bound Kenaga'!$F$36/100) ->  | AI181: =P181*('upper bound Kenaga'!$F$96/100) -> 
A182: =$B$3 -> 0 | B182: =$B$4 -> 0 | E182: Upper bound Kenaga Residues | J182: =COUNTIF(K$21:K182,"=yes") -> 1 | K182: =IF(LOOKUP(VALUE(M182),INPUTS!$G$6:$G$35)=M182,"yes","no") -> no | L182: =IF(K182="yes",(LOOKUP(J182,INPUTS!$E$6:$E$35,INPUTS!$F$6:$F$35)),0) -> 0 | M182: 161 | N182: 1 | O182: 0 | R182: =IF(INPUTS!$B$15="yes",Q182,P182) ->  | U182: =IF(INPUTS!$B$15="yes",T182,S182) ->  | X182: =IF(INPUTS!$B$15="yes",W182,V182) ->  | AA182: =IF(INPUTS!$B$15="yes",Z182,Y182) ->  | AD182: =IF(INPUTS!$B$15="yes",AC182,AB182) ->  | AE182: no | AG182: =P182*('upper bound Kenaga'!$F$36/100) ->  | AI182: =P182*('upper bound Kenaga'!$F$96/100) -> 
A183: Terrestrial Residues Graph | J183: =COUNTIF(K$21:K183,"=yes") -> 1 | K183: =IF(LOOKUP(VALUE(M183),INPUTS!$G$6:$G$35)=M183,"yes","no") -> no | L183: =IF(K183="yes",(LOOKUP(J183,INPUTS!$E$6:$E$35,INPUTS!$F$6:$F$35)),0) -> 0 | M183: 162 | N183: 1 | O183: 0 | R183: =IF(INPUTS!$B$15="yes",Q183,P183) ->  | U183: =IF(INPUTS!$B$15="yes",T183,S183) ->  | X183: =IF(INPUTS!$B$15="yes",W183,V183) ->  | AA183: =IF(INPUTS!$B$15="yes",Z183,Y183) ->  | AD183: =IF(INPUTS!$B$15="yes",AC183,AB183) ->  | AE183: no | AG183: =P183*('upper bound Kenaga'!$F$36/100) ->  | AI183: =P183*('upper bound Kenaga'!$F$96/100) -> 
J184: =COUNTIF(K$21:K184,"=yes") -> 1 | K184: =IF(LOOKUP(VALUE(M184),INPUTS!$G$6:$G$35)=M184,"yes","no") -> no | L184: =IF(K184="yes",(LOOKUP(J184,INPUTS!$E$6:$E$35,INPUTS!$F$6:$F$35)),0) -> 0 | M184: 163 | N184: 1 | O184: 0 | R184: =IF(INPUTS!$B$15="yes",Q184,P184) ->  | U184: =IF(INPUTS!$B$15="yes",T184,S184) ->  | X184: =IF(INPUTS!$B$15="yes",W184,V184) ->  | AA184: =IF(INPUTS!$B$15="yes",Z184,Y184) ->  | AD184: =IF(INPUTS!$B$15="yes",AC184,AB184) ->  | AE184: no | AG184: =P184*('upper bound Kenaga'!$F$36/100) ->  | AI184: =P184*('upper bound Kenaga'!$F$96/100) -> 
J185: =COUNTIF(K$21:K185,"=yes") -> 1 | K185: =IF(LOOKUP(VALUE(M185),INPUTS!$G$6:$G$35)=M185,"yes","no") -> no | L185: =IF(K185="yes",(LOOKUP(J185,INPUTS!$E$6:$E$35,INPUTS!$F$6:$F$35)),0) -> 0 | M185: 164 | N185: 1 | O185: 0 | R185: =IF(INPUTS!$B$15="yes",Q185,P185) ->  | U185: =IF(INPUTS!$B$15="yes",T185,S185) ->  | X185: =IF(INPUTS!$B$15="yes",W185,V185) ->  | AA185: =IF(INPUTS!$B$15="yes",Z185,Y185) ->  | AD185: =IF(INPUTS!$B$15="yes",AC185,AB185) ->  | AE185: no | AG185: =P185*('upper bound Kenaga'!$F$36/100) ->  | AI185: =P185*('upper bound Kenaga'!$F$96/100) -> 
J186: =COUNTIF(K$21:K186,"=yes") -> 1 | K186: =IF(LOOKUP(VALUE(M186),INPUTS!$G$6:$G$35)=M186,"yes","no") -> no | L186: =IF(K186="yes",(LOOKUP(J186,INPUTS!$E$6:$E$35,INPUTS!$F$6:$F$35)),0) -> 0 | M186: 165 | N186: 1 | O186: 0 | R186: =IF(INPUTS!$B$15="yes",Q186,P186) ->  | U186: =IF(INPUTS!$B$15="yes",T186,S186) ->  | X186: =IF(INPUTS!$B$15="yes",W186,V186) ->  | AA186: =IF(INPUTS!$B$15="yes",Z186,Y186) ->  | AD186: =IF(INPUTS!$B$15="yes",AC186,AB186) ->  | AE186: no | AG186: =P186*('upper bound Kenaga'!$F$36/100) ->  | AI186: =P186*('upper bound Kenaga'!$F$96/100) -> 
J187: =COUNTIF(K$21:K187,"=yes") -> 1 | K187: =IF(LOOKUP(VALUE(M187),INPUTS!$G$6:$G$35)=M187,"yes","no") -> no | L187: =IF(K187="yes",(LOOKUP(J187,INPUTS!$E$6:$E$35,INPUTS!$F$6:$F$35)),0) -> 0 | M187: 166 | N187: 1 | O187: 0 | R187: =IF(INPUTS!$B$15="yes",Q187,P187) ->  | U187: =IF(INPUTS!$B$15="yes",T187,S187) ->  | X187: =IF(INPUTS!$B$15="yes",W187,V187) ->  | AA187: =IF(INPUTS!$B$15="yes",Z187,Y187) ->  | AD187: =IF(INPUTS!$B$15="yes",AC187,AB187) ->  | AE187: no | AG187: =P187*('upper bound Kenaga'!$F$36/100) ->  | AI187: =P187*('upper bound Kenaga'!$F$96/100) -> 
J188: =COUNTIF(K$21:K188,"=yes") -> 1 | K188: =IF(LOOKUP(VALUE(M188),INPUTS!$G$6:$G$35)=M188,"yes","no") -> no | L188: =IF(K188="yes",(LOOKUP(J188,INPUTS!$E$6:$E$35,INPUTS!$F$6:$F$35)),0) -> 0 | M188: 167 | N188: 1 | O188: 0 | R188: =IF(INPUTS!$B$15="yes",Q188,P188) ->  | U188: =IF(INPUTS!$B$15="yes",T188,S188) ->  | X188: =IF(INPUTS!$B$15="yes",W188,V188) ->  | AA188: =IF(INPUTS!$B$15="yes",Z188,Y188) ->  | AD188: =IF(INPUTS!$B$15="yes",AC188,AB188) ->  | AE188: no | AG188: =P188*('upper bound Kenaga'!$F$36/100) ->  | AI188: =P188*('upper bound Kenaga'!$F$96/100) -> 
J189: =COUNTIF(K$21:K189,"=yes") -> 1 | K189: =IF(LOOKUP(VALUE(M189),INPUTS!$G$6:$G$35)=M189,"yes","no") -> no | L189: =IF(K189="yes",(LOOKUP(J189,INPUTS!$E$6:$E$35,INPUTS!$F$6:$F$35)),0) -> 0 | M189: 168 | N189: 1 | O189: 0 | R189: =IF(INPUTS!$B$15="yes",Q189,P189) ->  | U189: =IF(INPUTS!$B$15="yes",T189,S189) ->  | X189: =IF(INPUTS!$B$15="yes",W189,V189) ->  | AA189: =IF(INPUTS!$B$15="yes",Z189,Y189) ->  | AD189: =IF(INPUTS!$B$15="yes",AC189,AB189) ->  | AE189: no | AG189: =P189*('upper bound Kenaga'!$F$36/100) ->  | AI189: =P189*('upper bound Kenaga'!$F$96/100) -> 
J190: =COUNTIF(K$21:K190,"=yes") -> 1 | K190: =IF(LOOKUP(VALUE(M190),INPUTS!$G$6:$G$35)=M190,"yes","no") -> no | L190: =IF(K190="yes",(LOOKUP(J190,INPUTS!$E$6:$E$35,INPUTS!$F$6:$F$35)),0) -> 0 | M190: 169 | N190: 1 | O190: 0 | R190: =IF(INPUTS!$B$15="yes",Q190,P190) ->  | U190: =IF(INPUTS!$B$15="yes",T190,S190) ->  | X190: =IF(INPUTS!$B$15="yes",W190,V190) ->  | AA190: =IF(INPUTS!$B$15="yes",Z190,Y190) ->  | AD190: =IF(INPUTS!$B$15="yes",AC190,AB190) ->  | AE190: no | AG190: =P190*('upper bound Kenaga'!$F$36/100) ->  | AI190: =P190*('upper bound Kenaga'!$F$96/100) -> 
J191: =COUNTIF(K$21:K191,"=yes") -> 1 | K191: =IF(LOOKUP(VALUE(M191),INPUTS!$G$6:$G$35)=M191,"yes","no") -> no | L191: =IF(K191="yes",(LOOKUP(J191,INPUTS!$E$6:$E$35,INPUTS!$F$6:$F$35)),0) -> 0 | M191: 170 | N191: 1 | O191: 0 | R191: =IF(INPUTS!$B$15="yes",Q191,P191) ->  | U191: =IF(INPUTS!$B$15="yes",T191,S191) ->  | X191: =IF(INPUTS!$B$15="yes",W191,V191) ->  | AA191: =IF(INPUTS!$B$15="yes",Z191,Y191) ->  | AD191: =IF(INPUTS!$B$15="yes",AC191,AB191) ->  | AE191: no | AG191: =P191*('upper bound Kenaga'!$F$36/100) ->  | AI191: =P191*('upper bound Kenaga'!$F$96/100) -> 
J192: =COUNTIF(K$21:K192,"=yes") -> 1 | K192: =IF(LOOKUP(VALUE(M192),INPUTS!$G$6:$G$35)=M192,"yes","no") -> no | L192: =IF(K192="yes",(LOOKUP(J192,INPUTS!$E$6:$E$35,INPUTS!$F$6:$F$35)),0) -> 0 | M192: 171 | N192: 1 | O192: 0 | R192: =IF(INPUTS!$B$15="yes",Q192,P192) ->  | U192: =IF(INPUTS!$B$15="yes",T192,S192) ->  | X192: =IF(INPUTS!$B$15="yes",W192,V192) ->  | AA192: =IF(INPUTS!$B$15="yes",Z192,Y192) ->  | AD192: =IF(INPUTS!$B$15="yes",AC192,AB192) ->  | AE192: no | AG192: =P192*('upper bound Kenaga'!$F$36/100) ->  | AI192: =P192*('upper bound Kenaga'!$F$96/100) -> 
J193: =COUNTIF(K$21:K193,"=yes") -> 1 | K193: =IF(LOOKUP(VALUE(M193),INPUTS!$G$6:$G$35)=M193,"yes","no") -> no | L193: =IF(K193="yes",(LOOKUP(J193,INPUTS!$E$6:$E$35,INPUTS!$F$6:$F$35)),0) -> 0 | M193: 172 | N193: 1 | O193: 0 | R193: =IF(INPUTS!$B$15="yes",Q193,P193) ->  | U193: =IF(INPUTS!$B$15="yes",T193,S193) ->  | X193: =IF(INPUTS!$B$15="yes",W193,V193) ->  | AA193: =IF(INPUTS!$B$15="yes",Z193,Y193) ->  | AD193: =IF(INPUTS!$B$15="yes",AC193,AB193) ->  | AE193: no | AG193: =P193*('upper bound Kenaga'!$F$36/100) ->  | AI193: =P193*('upper bound Kenaga'!$F$96/100) -> 
J194: =COUNTIF(K$21:K194,"=yes") -> 1 | K194: =IF(LOOKUP(VALUE(M194),INPUTS!$G$6:$G$35)=M194,"yes","no") -> no | L194: =IF(K194="yes",(LOOKUP(J194,INPUTS!$E$6:$E$35,INPUTS!$F$6:$F$35)),0) -> 0 | M194: 173 | N194: 1 | O194: 0 | R194: =IF(INPUTS!$B$15="yes",Q194,P194) ->  | U194: =IF(INPUTS!$B$15="yes",T194,S194) ->  | X194: =IF(INPUTS!$B$15="yes",W194,V194) ->  | AA194: =IF(INPUTS!$B$15="yes",Z194,Y194) ->  | AD194: =IF(INPUTS!$B$15="yes",AC194,AB194) ->  | AE194: no | AG194: =P194*('upper bound Kenaga'!$F$36/100) ->  | AI194: =P194*('upper bound Kenaga'!$F$96/100) -> 
J195: =COUNTIF(K$21:K195,"=yes") -> 1 | K195: =IF(LOOKUP(VALUE(M195),INPUTS!$G$6:$G$35)=M195,"yes","no") -> no | L195: =IF(K195="yes",(LOOKUP(J195,INPUTS!$E$6:$E$35,INPUTS!$F$6:$F$35)),0) -> 0 | M195: 174 | N195: 1 | O195: 0 | R195: =IF(INPUTS!$B$15="yes",Q195,P195) ->  | U195: =IF(INPUTS!$B$15="yes",T195,S195) ->  | X195: =IF(INPUTS!$B$15="yes",W195,V195) ->  | AA195: =IF(INPUTS!$B$15="yes",Z195,Y195) ->  | AD195: =IF(INPUTS!$B$15="yes",AC195,AB195) ->  | AE195: no | AG195: =P195*('upper bound Kenaga'!$F$36/100) ->  | AI195: =P195*('upper bound Kenaga'!$F$96/100) -> 
J196: =COUNTIF(K$21:K196,"=yes") -> 1 | K196: =IF(LOOKUP(VALUE(M196),INPUTS!$G$6:$G$35)=M196,"yes","no") -> no | L196: =IF(K196="yes",(LOOKUP(J196,INPUTS!$E$6:$E$35,INPUTS!$F$6:$F$35)),0) -> 0 | M196: 175 | N196: 1 | O196: 0 | R196: =IF(INPUTS!$B$15="yes",Q196,P196) ->  | U196: =IF(INPUTS!$B$15="yes",T196,S196) ->  | X196: =IF(INPUTS!$B$15="yes",W196,V196) ->  | AA196: =IF(INPUTS!$B$15="yes",Z196,Y196) ->  | AD196: =IF(INPUTS!$B$15="yes",AC196,AB196) ->  | AE196: no | AG196: =P196*('upper bound Kenaga'!$F$36/100) ->  | AI196: =P196*('upper bound Kenaga'!$F$96/100) -> 
J197: =COUNTIF(K$21:K197,"=yes") -> 1 | K197: =IF(LOOKUP(VALUE(M197),INPUTS!$G$6:$G$35)=M197,"yes","no") -> no | L197: =IF(K197="yes",(LOOKUP(J197,INPUTS!$E$6:$E$35,INPUTS!$F$6:$F$35)),0) -> 0 | M197: 176 | N197: 1 | O197: 0 | R197: =IF(INPUTS!$B$15="yes",Q197,P197) ->  | U197: =IF(INPUTS!$B$15="yes",T197,S197) ->  | X197: =IF(INPUTS!$B$15="yes",W197,V197) ->  | AA197: =IF(INPUTS!$B$15="yes",Z197,Y197) ->  | AD197: =IF(INPUTS!$B$15="yes",AC197,AB197) ->  | AE197: no | AG197: =P197*('upper bound Kenaga'!$F$36/100) ->  | AI197: =P197*('upper bound Kenaga'!$F$96/100) -> 
J198: =COUNTIF(K$21:K198,"=yes") -> 1 | K198: =IF(LOOKUP(VALUE(M198),INPUTS!$G$6:$G$35)=M198,"yes","no") -> no | L198: =IF(K198="yes",(LOOKUP(J198,INPUTS!$E$6:$E$35,INPUTS!$F$6:$F$35)),0) -> 0 | M198: 177 | N198: 1 | O198: 0 | R198: =IF(INPUTS!$B$15="yes",Q198,P198) ->  | U198: =IF(INPUTS!$B$15="yes",T198,S198) ->  | X198: =IF(INPUTS!$B$15="yes",W198,V198) ->  | AA198: =IF(INPUTS!$B$15="yes",Z198,Y198) ->  | AD198: =IF(INPUTS!$B$15="yes",AC198,AB198) ->  | AE198: no | AG198: =P198*('upper bound Kenaga'!$F$36/100) ->  | AI198: =P198*('upper bound Kenaga'!$F$96/100) -> 
J199: =COUNTIF(K$21:K199,"=yes") -> 1 | K199: =IF(LOOKUP(VALUE(M199),INPUTS!$G$6:$G$35)=M199,"yes","no") -> no | L199: =IF(K199="yes",(LOOKUP(J199,INPUTS!$E$6:$E$35,INPUTS!$F$6:$F$35)),0) -> 0 | M199: 178 | N199: 1 | O199: 0 | R199: =IF(INPUTS!$B$15="yes",Q199,P199) ->  | U199: =IF(INPUTS!$B$15="yes",T199,S199) ->  | X199: =IF(INPUTS!$B$15="yes",W199,V199) ->  | AA199: =IF(INPUTS!$B$15="yes",Z199,Y199) ->  | AD199: =IF(INPUTS!$B$15="yes",AC199,AB199) ->  | AE199: no | AG199: =P199*('upper bound Kenaga'!$F$36/100) ->  | AI199: =P199*('upper bound Kenaga'!$F$96/100) -> 
J200: =COUNTIF(K$21:K200,"=yes") -> 1 | K200: =IF(LOOKUP(VALUE(M200),INPUTS!$G$6:$G$35)=M200,"yes","no") -> no | L200: =IF(K200="yes",(LOOKUP(J200,INPUTS!$E$6:$E$35,INPUTS!$F$6:$F$35)),0) -> 0 | M200: 179 | N200: 1 | O200: 0 | R200: =IF(INPUTS!$B$15="yes",Q200,P200) ->  | U200: =IF(INPUTS!$B$15="yes",T200,S200) ->  | X200: =IF(INPUTS!$B$15="yes",W200,V200) ->  | AA200: =IF(INPUTS!$B$15="yes",Z200,Y200) ->  | AD200: =IF(INPUTS!$B$15="yes",AC200,AB200) ->  | AE200: no | AG200: =P200*('upper bound Kenaga'!$F$36/100) ->  | AI200: =P200*('upper bound Kenaga'!$F$96/100) -> 
... 191 more rows

Sheet Mean Kenaga
A1: Upper Bound Kenaga Residues For RQ Calculation | E1: Acute and Chronic RQs are based on the Upper Bound
E2: Kenaga Residues.
A3: Chemical Name: | B3: =INPUTS!B6 -> 0 | E3: The maximum single day residue estimation is used for
A4: Use | B4: =INPUTS!B8 -> 0 | E4: both the acute and reproduction RQs.
A5: Formulation | B5: =INPUTS!B9 -> 0 | P5: Calculations
A6: Application Rate | B6: =INPUTS!B11*INPUTS!B10 -> 0 | C6: lbs a.i./acre | E6: RQs reported as "0.00" in the RQ tables below should be noted as
A7: Half-life | B7: =INPUTS!B12 -> 0 | C7: days | E7: <0.01 in your assessment. This is due to rounding and significant
A8: Application Interval | B8: =INPUTS!B13 -> 0 | C8: days | E8: figure issues in Excel. | P8: Food Item (Kenaga #) | Q8: Upper Bound Multiplier | R8: Initial Concentration
A9: Maximum # Apps./Year | B9: =INPUTS!B14 -> 0
A10: Length of Simulation | B10: 1 | C10: year
A11: Variable application rates? | B11: =INPUTS!B15 -> no | P11: Short Grass | Q11: 85 | R11: =(B6*Q11) -> 0
P12: Tall Grass | Q12: 36 | R12: =(B6*Q12) -> 0
A13: Endpoints | P13: Broadleaf plants | Q13: 45 | R13: =(B6*Q13) -> 0
P14: Seeds | Q14: 7 | R14: =(B6*Q14) -> 0
A15: Avian | B15: =IF(INPUTS!D41=3,INPUTS!G41,IF(INPUTS!D41=1,"Bobwhite quail ","Mallard duck ")) -> Bobwhite quail | C15: LD50 (mg/kg-bw) | D15: =INPUTS!C41 -> 0 | E15: =IF(INPUTS!$F$41=0,"",IF(INPUTS!$D$41<3,"Toxicity adjustments not based on standard assumed test animal body weight","")) ->  | P15: Arthropods | Q15: 65 | R15: =(B6*Q15) -> 0 | AG15: Number of days LOCs are excced
B16: =IF(INPUTS!D42=3,INPUTS!G42,IF(INPUTS!D42=1,"Bobwhite quail ","Mallard duck)")) -> Bobwhite quail | C16: LC50 (mg/kg-diet) | D16: =INPUTS!C42 -> 0 | P16: 1st order decay constant | R16: =(LN(2)/B7) ->  | AG16: Short grass EEC / NOAEC | AI16: Dose based short grass EEC / (Adj-LD50 * LOC of 0.1) | AK16: Dose based short grass EEC / Adj-NOAEL | AL16: Short grass dose based EEC/Adj-LD50
B17: =IF(INPUTS!D43=3,INPUTS!G43,IF(INPUTS!D43=1,"Bobwhite quail ","Mallard duck ")) -> Mallard duck | C17: NOAEL(mg/kg-bw) | D17: =INPUTS!C43 -> 0 | AF17: Avian | AH17: Avian | AJ17: Mammalian | AK17: Mammalian
B18: =IF(INPUTS!D44=3,INPUTS!G44,IF(INPUTS!D44=1,"Bobwhite quail ","Mallard duck ")) -> Bobwhite quail | C18: NOAEC (mg/kg-diet) | D18: =INPUTS!C44 -> 0 | K18: Variable Rate Calculations | AE18: Graph | AF18: Chronic Exceedance | AH18: Acute Exceedance | AJ18: Chronic Exceedance | AK18: Acute Exceedance
J19: # apps - Variable | K19: Application? | L19: Rate | M19: Day | N19: # Apps | O19: App | P19: Short Grass | S19: Tall Grass | V19: Broadleaf plants | Y19: Fruits/pods | AB19: Arthropods | AE19: Line | AF19: (days in first 56) | AH19: (days in first 56) | AJ19: (days in first 56) | AK19: (days in first 56)
A20: Mammals | B20: LD50 (mg/kg-bw) | D20: =INPUTS!C50 -> 0 | O20: Period | P20: Fixed Rates/Intervals | Q20: Variable Rates/Intervals | R20: Column used for assessment | S20: Fixed Rates/Intervals | T20: Variable Rates/Intervals | U20: Column used for assessment | V20: Fixed Rates/Intervals | W20: Variable Rates/Intervals | X20: Column used for assessment | Y20: Fixed Rates/Intervals | Z20: Variable Rates/Intervals | AA20: Column used for assessment | AB20: Fixed Rates/Intervals | AC20: Variable Rates/Intervals | AD20: Column used for assessment | AF20: Short Grass | AG20: Avian Dose | AH20: Short Grass | AJ20: Short Grass | AK20: Short Grass
B21: LC50 (mg/kg-diet) | D21: =INPUTS!C51 -> 0 | J21: =COUNTIF(K$21,"=yes") -> 1 | K21: =IF(LOOKUP(VALUE(M21),INPUTS!$G$6:$G$35)=M21,"yes","no") -> yes | L21: =IF(K21="yes",(LOOKUP(J21,INPUTS!$E$6:$E$35,INPUTS!$F$6:$F$35)),0) -> 0 | M21: 0 | N21: 1 | O21: 0 | P21: =(R11) -> 0 | Q21: =Q11*L21 -> 0 | R21: =IF(INPUTS!$B$15="yes",Q21,P21) -> 0 | S21: =(R12) -> 0 | T21: =Q12*L21 -> 0 | U21: =IF(INPUTS!$B$15="yes",T21,S21) -> 0 | V21: =(R13) -> 0 | W21: =Q13*L21 -> 0 | X21: =IF(INPUTS!$B$15="yes",W21,V21) -> 0 | Y21: =(R14) -> 0 | Z21: =Q14*$L21 -> 0 | AA21: =IF(INPUTS!$B$15="yes",Z21,Y21) -> 0 | AB21: =(R15) -> 0 | AC21: =Q15*$L21 -> 0 | AD21: =IF(INPUTS!$B$15="yes",AC21,AB21) -> 0 | AE21: =$B$11 -> no | AF21: =COUNTIF(P21:P76,">"&INPUTS!C44) -> 0 | AG21: =P21*('upper bound Kenaga'!$F$36/100) -> 0 | AH21: =COUNTIF(AG21:AG76,">="&(C46*0.1)) -> 1 | AI21: =P21*('upper bound Kenaga'!$F$96/100) -> 0 | AJ21: =COUNTIF(AI21:AI76,">="&(E105)) -> 1 | AK21: =COUNTIF(AI21:AI76,">="&(D105*0.1)) -> 1
B22: NOAEL (mg/kg-bw) | D22: =IF(INPUTS!D52=2,INPUTS!C55,INPUTS!C52) -> 0 | J22: =COUNTIF(K$21:K22,"=yes") -> 1 | K22: =IF(LOOKUP(VALUE(M22),INPUTS!$G$6:$G$35)=M22,"yes","no") -> no | L22: =IF(K22="yes",(LOOKUP(J22,INPUTS!$E$6:$E$35,INPUTS!$F$6:$F$35)),0) -> 0 | M22: =(M21+1) -> 1 | N22: =IF($B$9>N21,IF(O21=($B$8-1),(N21+1),(N21)),(N21)) -> 1 | O22: =IF(O21<($B$8-1),(1+O21),0) -> 0 | P22: =IF(($N22>$N21),(EXP(-$R$16)*(P21)+$R$11),((EXP(-$R$16)*(P21)))) ->  | Q22: =IF($K22="yes",(EXP(-$R$16)*(Q21)+(Q$11*$L22)),((EXP(-$R$16)*(Q21)))) ->  | R22: =IF(INPUTS!$B$15="yes",Q22,P22) ->  | S22: =IF(($N22>$N21),(EXP(-$R$16)*(S21)+$R$12),((EXP(-$R$16)*(S21)))) ->  | T22: =IF($K22="yes",(EXP(-$R$16)*(T21)+(Q$12*$L22)),((EXP(-$R$16)*(T21)))) ->  | U22: =IF(INPUTS!$B$15="yes",T22,S22) ->  | V22: =IF(($N22>$N21),(EXP(-$R$16)*(V21)+$R$13),((EXP(-$R$16)*(V21)))) ->  | W22: =IF($K22="yes",(EXP(-$R$16)*(W21)+(Q$13*$L22)),((EXP(-$R$16)*(W21)))) ->  | X22: =IF(INPUTS!$B$15="yes",W22,V22) ->  | Y22: =IF(($N22>$N21),(EXP(-$R$16)*(Y21)+$R$14),((EXP(-$R$16)*(Y21)))) ->  | Z22: =IF($K22="yes",(EXP(-$R$16)*(Z21)+(Q$14*$L22)),((EXP(-$R$16)*(Z21)))) ->  | AA22: =IF(INPUTS!$B$15="yes",Z22,Y22) ->  | AB22: =IF(($N22>$N21),(EXP(-$R$16)*(AB21)+$R$15),((EXP(-$R$16)*(AB21)))) ->  | AC22: =IF($K22="yes",(EXP(-$R$16)*(AC21)+(Q$15*$L22)),((EXP(-$R$16)*(AC21)))) ->  | AD22: =IF(INPUTS!$B$15="yes",AC22,AB22) ->  | AE22: no | AG22: =P22*('upper bound Kenaga'!$F$36/100) ->  | AI22: =P22*('upper bound Kenaga'!$F$96/100) -> 
B23: NOAEC (mg/kg-diet) | D23: =IF(INPUTS!D52=1,INPUTS!C55,INPUTS!C52) -> 0 | J23: =COUNTIF(K$21:K23,"=yes") -> 1 | K23: =IF(LOOKUP(VALUE(M23),INPUTS!$G$6:$G$35)=M23,"yes","no") -> no | L23: =IF(K23="yes",(LOOKUP(J23,INPUTS!$E$6:$E$35,INPUTS!$F$6:$F$35)),0) -> 0 | M23: 2 | N23: 1 | O23: 0 | P23: =IF((N23>N22),(EXP(-$R$16)*(P22)+$R$11),((EXP(-$R$16)*(P22)))) ->  | Q23: =IF($K23="yes",(EXP(-$R$16)*(Q22)+(Q$11*$L23)),((EXP(-$R$16)*(Q22)))) ->  | R23: =IF(INPUTS!$B$15="yes",Q23,P23) ->  | T23: =IF($K23="yes",(EXP(-$R$16)*(T22)+(Q$12*$L23)),((EXP(-$R$16)*(T22)))) ->  | U23: =IF(INPUTS!$B$15="yes",T23,S23) ->  | W23: =IF($K23="yes",(EXP(-$R$16)*(W22)+(Q$13*$L23)),((EXP(-$R$16)*(W22)))) ->  | X23: =IF(INPUTS!$B$15="yes",W23,V23) ->  | Z23: =IF($K23="yes",(EXP(-$R$16)*(Z22)+(Q$14*$L23)),((EXP(-$R$16)*(Z22)))) ->  | AA23: =IF(INPUTS!$B$15="yes",Z23,Y23) ->  | AC23: =IF($K23="yes",(EXP(-$R$16)*(AC22)+(Q$15*$L23)),((EXP(-$R$16)*(AC22)))) ->  | AD23: =IF(INPUTS!$B$15="yes",AC23,AB23) ->  | AE23: no | AG23: =P23*('upper bound Kenaga'!$F$36/100) ->  | AI23: =P23*('upper bound Kenaga'!$F$96/100) -> 
J24: =COUNTIF(K$21:K24,"=yes") -> 1 | K24: =IF(LOOKUP(VALUE(M24),INPUTS!$G$6:$G$35)=M24,"yes","no") -> no | L24: =IF(K24="yes",(LOOKUP(J24,INPUTS!$E$6:$E$35,INPUTS!$F$6:$F$35)),0) -> 0 | M24: 3 | N24: 1 | O24: 0 | R24: =IF(INPUTS!$B$15="yes",Q24,P24) ->  | U24: =IF(INPUTS!$B$15="yes",T24,S24) ->  | X24: =IF(INPUTS!$B$15="yes",W24,V24) ->  | AA24: =IF(INPUTS!$B$15="yes",Z24,Y24) ->  | AD24: =IF(INPUTS!$B$15="yes",AC24,AB24) ->  | AE24: no | AG24: =P24*('upper bound Kenaga'!$F$36/100) ->  | AI24: =P24*('upper bound Kenaga'!$F$96/100) -> 
A25: Dietary-based EECs (ppm) | B25: Kenaga | J25: =COUNTIF(K$21:K25,"=yes") -> 1 | K25: =IF(LOOKUP(VALUE(M25),INPUTS!$G$6:$G$35)=M25,"yes","no") -> no | L25: =IF(K25="yes",(LOOKUP(J25,INPUTS!$E$6:$E$35,INPUTS!$F$6:$F$35)),0) -> 0 | M25: 4 | N25: 1 | O25: 0 | R25: =IF(INPUTS!$B$15="yes",Q25,P25) ->  | U25: =IF(INPUTS!$B$15="yes",T25,S25) ->  | X25: =IF(INPUTS!$B$15="yes",W25,V25) ->  | AA25: =IF(INPUTS!$B$15="yes",Z25,Y25) ->  | AD25: =IF(INPUTS!$B$15="yes",AC25,AB25) ->  | AE25: no | AG25: =P25*('upper bound Kenaga'!$F$36/100) ->  | AI25: =P25*('upper bound Kenaga'!$F$96/100) -> 
B26: Values | J26: =COUNTIF(K$21:K26,"=yes") -> 1 | K26: =IF(LOOKUP(VALUE(M26),INPUTS!$G$6:$G$35)=M26,"yes","no") -> no | L26: =IF(K26="yes",(LOOKUP(J26,INPUTS!$E$6:$E$35,INPUTS!$F$6:$F$35)),0) -> 0 | M26: 5 | N26: 1 | O26: 0 | R26: =IF(INPUTS!$B$15="yes",Q26,P26) ->  | U26: =IF(INPUTS!$B$15="yes",T26,S26) ->  | X26: =IF(INPUTS!$B$15="yes",W26,V26) ->  | AA26: =IF(INPUTS!$B$15="yes",Z26,Y26) ->  | AD26: =IF(INPUTS!$B$15="yes",AC26,AB26) ->  | AE26: no | AG26: =P26*('upper bound Kenaga'!$F$36/100) ->  | AI26: =P26*('upper bound Kenaga'!$F$96/100) -> 
A27: Short Grass | B27: =MAX(R21:R391) ->  | J27: =COUNTIF(K$21:K27,"=yes") -> 1 | K27: =IF(LOOKUP(VALUE(M27),INPUTS!$G$6:$G$35)=M27,"yes","no") -> no | L27: =IF(K27="yes",(LOOKUP(J27,INPUTS!$E$6:$E$35,INPUTS!$F$6:$F$35)),0) -> 0 | M27: 6 | N27: 1 | O27: 0 | R27: =IF(INPUTS!$B$15="yes",Q27,P27) ->  | U27: =IF(INPUTS!$B$15="yes",T27,S27) ->  | X27: =IF(INPUTS!$B$15="yes",W27,V27) ->  | AA27: =IF(INPUTS!$B$15="yes",Z27,Y27) ->  | AD27: =IF(INPUTS!$B$15="yes",AC27,AB27) ->  | AE27: no | AG27: =P27*('upper bound Kenaga'!$F$36/100) ->  | AI27: =P27*('upper bound Kenaga'!$F$96/100) -> 
A28: Tall Grass | B28: =MAX(U21:U391) ->  | J28: =COUNTIF(K$21:K28,"=yes") -> 1 | K28: =IF(LOOKUP(VALUE(M28),INPUTS!$G$6:$G$35)=M28,"yes","no") -> no | L28: =IF(K28="yes",(LOOKUP(J28,INPUTS!$E$6:$E$35,INPUTS!$F$6:$F$35)),0) -> 0 | M28: 7 | N28: 1 | O28: 0 | R28: =IF(INPUTS!$B$15="yes",Q28,P28) ->  | U28: =IF(INPUTS!$B$15="yes",T28,S28) ->  | X28: =IF(INPUTS!$B$15="yes",W28,V28) ->  | AA28: =IF(INPUTS!$B$15="yes",Z28,Y28) ->  | AD28: =IF(INPUTS!$B$15="yes",AC28,AB28) ->  | AE28: no | AG28: =P28*('upper bound Kenaga'!$F$36/100) ->  | AI28: =P28*('upper bound Kenaga'!$F$96/100) -> 
A29: Broadleaf plants | B29: =MAX(X21:X391) ->  | J29: =COUNTIF(K$21:K29,"=yes") -> 1 | K29: =IF(LOOKUP(VALUE(M29),INPUTS!$G$6:$G$35)=M29,"yes","no") -> no | L29: =IF(K29="yes",(LOOKUP(J29,INPUTS!$E$6:$E$35,INPUTS!$F$6:$F$35)),0) -> 0 | M29: 8 | N29: 1 | O29: 0 | R29: =IF(INPUTS!$B$15="yes",Q29,P29) ->  | U29: =IF(INPUTS!$B$15="yes",T29,S29) ->  | X29: =IF(INPUTS!$B$15="yes",W29,V29) ->  | AA29: =IF(INPUTS!$B$15="yes",Z29,Y29) ->  | AD29: =IF(INPUTS!$B$15="yes",AC29,AB29) ->  | AE29: no | AG29: =P29*('upper bound Kenaga'!$F$36/100) ->  | AI29: =P29*('upper bound Kenaga'!$F$96/100) -> 
A30: Fruits/pods/seeds | B30: =MAX(AA21:AA391) ->  | J30: =COUNTIF(K$21:K30,"=yes") -> 1 | K30: =IF(LOOKUP(VALUE(M30),INPUTS!$G$6:$G$35)=M30,"yes","no") -> no | L30: =IF(K30="yes",(LOOKUP(J30,INPUTS!$E$6:$E$35,INPUTS!$F$6:$F$35)),0) -> 0 | M30: 9 | N30: 1 | O30: 0 | P30: =IF((N30>N29),(EXP(-$R$16)*(P29)+$R$11),((EXP(-$R$16)*(P29)))) ->  | R30: =IF(INPUTS!$B$15="yes",Q30,P30) ->  | U30: =IF(INPUTS!$B$15="yes",T30,S30) ->  | X30: =IF(INPUTS!$B$15="yes",W30,V30) ->  | AA30: =IF(INPUTS!$B$15="yes",Z30,Y30) ->  | AD30: =IF(INPUTS!$B$15="yes",AC30,AB30) ->  | AE30: no | AG30: =P30*('upper bound Kenaga'!$F$36/100) ->  | AI30: =P30*('upper bound Kenaga'!$F$96/100) -> 
A31: Arthropods | B31: =MAX(AD21:AD391) ->  | J31: =COUNTIF(K$21:K31,"=yes") -> 1 | K31: =IF(LOOKUP(VALUE(M31),INPUTS!$G$6:$G$35)=M31,"yes","no") -> no | L31: =IF(K31="yes",(LOOKUP(J31,INPUTS!$E$6:$E$35,INPUTS!$F$6:$F$35)),0) -> 0 | M31: 10 | N31: 1 | O31: 0 | P31: =IF((N31>N30),(EXP(-$R$16)*(P30)+$R$11),((EXP(-$R$16)*(P30)))) ->  | R31: =IF(INPUTS!$B$15="yes",Q31,P31) ->  | U31: =IF(INPUTS!$B$15="yes",T31,S31) ->  | X31: =IF(INPUTS!$B$15="yes",W31,V31) ->  | AA31: =IF(INPUTS!$B$15="yes",Z31,Y31) ->  | AD31: =IF(INPUTS!$B$15="yes",AC31,AB31) ->  | AE31: no | AG31: =P31*('upper bound Kenaga'!$F$36/100) ->  | AI31: =P31*('upper bound Kenaga'!$F$96/100) -> 
J32: =COUNTIF(K$21:K32,"=yes") -> 1 | K32: =IF(LOOKUP(VALUE(M32),INPUTS!$G$6:$G$35)=M32,"yes","no") -> no | L32: =IF(K32="yes",(LOOKUP(J32,INPUTS!$E$6:$E$35,INPUTS!$F$6:$F$35)),0) -> 0 | M32: 11 | N32: 1 | O32: 0 | R32: =IF(INPUTS!$B$15="yes",Q32,P32) ->  | U32: =IF(INPUTS!$B$15="yes",T32,S32) ->  | X32: =IF(INPUTS!$B$15="yes",W32,V32) ->  | AA32: =IF(INPUTS!$B$15="yes",Z32,Y32) ->  | AD32: =IF(INPUTS!$B$15="yes",AC32,AB32) ->  | AE32: no | AG32: =P32*('upper bound Kenaga'!$F$36/100) ->  | AI32: =P32*('upper bound Kenaga'!$F$96/100) -> 
A33: Avian Results | J33: =COUNTIF(K$21:K33,"=yes") -> 1 | K33: =IF(LOOKUP(VALUE(M33),INPUTS!$G$6:$G$35)=M33,"yes","no") -> no | L33: =IF(K33="yes",(LOOKUP(J33,INPUTS!$E$6:$E$35,INPUTS!$F$6:$F$35)),0) -> 0 | M33: 12 | N33: 1 | O33: 0 | R33: =IF(INPUTS!$B$15="yes",Q33,P33) ->  | U33: =IF(INPUTS!$B$15="yes",T33,S33) ->  | X33: =IF(INPUTS!$B$15="yes",W33,V33) ->  | AA33: =IF(INPUTS!$B$15="yes",Z33,Y33) ->  | AD33: =IF(INPUTS!$B$15="yes",AC33,AB33) ->  | AE33: no | AG33: =P33*('upper bound Kenaga'!$F$36/100) ->  | AI33: =P33*('upper bound Kenaga'!$F$96/100) -> 
B34: Avian | C34: Body | D34: Ingestion (Fdry) | E34: Ingestion (Fwet) | F34: % body wgt | G34: FI | J34: =COUNTIF(K$21:K34,"=yes") -> 1 | K34: =IF(LOOKUP(VALUE(M34),INPUTS!$G$6:$G$35)=M34,"yes","no") -> no | L34: =IF(K34="yes",(LOOKUP(J34,INPUTS!$E$6:$E$35,INPUTS!$F$6:$F$35)),0) -> 0 | M34: =(M33+1) -> 13 | N34: 1 | O34: 0 | R34: =IF(INPUTS!$B$15="yes",Q34,P34) ->  | U34: =IF(INPUTS!$B$15="yes",T34,S34) ->  | X34: =IF(INPUTS!$B$15="yes",W34,V34) ->  | AA34: =IF(INPUTS!$B$15="yes",Z34,Y34) ->  | AD34: =IF(INPUTS!$B$15="yes",AC34,AB34) ->  | AE34: no | AG34: =P34*('upper bound Kenaga'!$F$36/100) ->  | AI34: =P34*('upper bound Kenaga'!$F$96/100) -> 
B35: Class | C35: Weight (g) | D35: (g bw/day) | E35: (g/day) | F35: consumed | G35: (kg-diet/day) | J35: =COUNTIF(K$21:K35,"=yes") -> 1 | K35: =IF(LOOKUP(VALUE(M35),INPUTS!$G$6:$G$35)=M35,"yes","no") -> no | L35: =IF(K35="yes",(LOOKUP(J35,INPUTS!$E$6:$E$35,INPUTS!$F$6:$F$35)),0) -> 0 | M35: 14 | N35: 1 | O35: 0 | R35: =IF(INPUTS!$B$15="yes",Q35,P35) ->  | U35: =IF(INPUTS!$B$15="yes",T35,S35) ->  | X35: =IF(INPUTS!$B$15="yes",W35,V35) ->  | AA35: =IF(INPUTS!$B$15="yes",Z35,Y35) ->  | AD35: =IF(INPUTS!$B$15="yes",AC35,AB35) ->  | AE35: no | AG35: =P35*('upper bound Kenaga'!$F$36/100) ->  | AI35: =P35*('upper bound Kenaga'!$F$96/100) -> 
B36: Small | C36: =INPUTS!B19 -> 20 | D36: =(0.648*C36^0.651) -> 4.555599463 | E36: =D36/0.2 -> 22.77799731 | F36: =(E36/C36)*100 -> 113.8899866 | G36: =E36/1000 -> 0.02277799731 | J36: =COUNTIF(K$21:K36,"=yes") -> 1 | K36: =IF(LOOKUP(VALUE(M36),INPUTS!$G$6:$G$35)=M36,"yes","no") -> no | L36: =IF(K36="yes",(LOOKUP(J36,INPUTS!$E$6:$E$35,INPUTS!$F$6:$F$35)),0) -> 0 | M36: 15 | N36: 1 | O36: 0 | R36: =IF(INPUTS!$B$15="yes",Q36,P36) ->  | U36: =IF(INPUTS!$B$15="yes",T36,S36) ->  | X36: =IF(INPUTS!$B$15="yes",W36,V36) ->  | AA36: =IF(INPUTS!$B$15="yes",Z36,Y36) ->  | AD36: =IF(INPUTS!$B$15="yes",AC36,AB36) ->  | AE36: no | AG36: =P36*('upper bound Kenaga'!$F$36/100) ->  | AI36: =P36*('upper bound Kenaga'!$F$96/100) -> 
B37: Mid | C37: =INPUTS!B20 -> 100 | D37: 12.98897874 | E37: =D37/0.2 -> 64.94489369 | F37: 64.94489369 | G37: 0.06494489369 | J37: =COUNTIF(K$21:K37,"=yes") -> 1 | K37: =IF(LOOKUP(VALUE(M37),INPUTS!$G$6:$G$35)=M37,"yes","no") -> no | L37: =IF(K37="yes",(LOOKUP(J37,INPUTS!$E$6:$E$35,INPUTS!$F$6:$F$35)),0) -> 0 | M37: 16 | N37: 1 | O37: 0 | R37: =IF(INPUTS!$B$15="yes",Q37,P37) ->  | U37: =IF(INPUTS!$B$15="yes",T37,S37) ->  | X37: =IF(INPUTS!$B$15="yes",W37,V37) ->  | AA37: =IF(INPUTS!$B$15="yes",Z37,Y37) ->  | AD37: =IF(INPUTS!$B$15="yes",AC37,AB37) ->  | AE37: no | AG37: =P37*('upper bound Kenaga'!$F$36/100) ->  | AI37: =P37*('upper bound Kenaga'!$F$96/100) -> 
B38: Large | C38: =INPUTS!B21 -> 1000 | D38: 58.15338588 | E38: =D38/0.2 -> 290.7669294 | F38: 29.07669294 | G38: 0.2907669294 | J38: =COUNTIF(K$21:K38,"=yes") -> 1 | K38: =IF(LOOKUP(VALUE(M38),INPUTS!$G$6:$G$35)=M38,"yes","no") -> no | L38: =IF(K38="yes",(LOOKUP(J38,INPUTS!$E$6:$E$35,INPUTS!$F$6:$F$35)),0) -> 0 | M38: 17 | N38: 1 | O38: 0 | R38: =IF(INPUTS!$B$15="yes",Q38,P38) ->  | U38: =IF(INPUTS!$B$15="yes",T38,S38) ->  | X38: =IF(INPUTS!$B$15="yes",W38,V38) ->  | AA38: =IF(INPUTS!$B$15="yes",Z38,Y38) ->  | AD38: =IF(INPUTS!$B$15="yes",AC38,AB38) ->  | AE38: no | AG38: =P38*('upper bound Kenaga'!$F$36/100) ->  | AI38: =P38*('upper bound Kenaga'!$F$96/100) -> 
C39: =C36 -> 20 | D39: 4.555599463 | E39: =D39/0.9 -> 5.061777181 | F39: 25.3088859 | G39: 0.005061777181 | J39: =COUNTIF(K$21:K39,"=yes") -> 1 | K39: =IF(LOOKUP(VALUE(M39),INPUTS!$G$6:$G$35)=M39,"yes","no") -> no | L39: =IF(K39="yes",(LOOKUP(J39,INPUTS!$E$6:$E$35,INPUTS!$F$6:$F$35)),0) -> 0 | M39: 18 | N39: 1 | O39: 0 | R39: =IF(INPUTS!$B$15="yes",Q39,P39) ->  | U39: =IF(INPUTS!$B$15="yes",T39,S39) ->  | X39: =IF(INPUTS!$B$15="yes",W39,V39) ->  | AA39: =IF(INPUTS!$B$15="yes",Z39,Y39) ->  | AD39: =IF(INPUTS!$B$15="yes",AC39,AB39) ->  | AE39: no | AG39: =P39*('upper bound Kenaga'!$F$36/100) ->  | AI39: =P39*('upper bound Kenaga'!$F$96/100) -> 
B40: Granivores | C40: =C37 -> 100 | D40: 12.98897874 | E40: =D40/0.9 -> 14.4321986 | F40: 14.4321986 | G40: 0.0144321986 | J40: =COUNTIF(K$21:K40,"=yes") -> 1 | K40: =IF(LOOKUP(VALUE(M40),INPUTS!$G$6:$G$35)=M40,"yes","no") -> no | L40: =IF(K40="yes",(LOOKUP(J40,INPUTS!$E$6:$E$35,INPUTS!$F$6:$F$35)),0) -> 0 | M40: 19 | N40: 1 | O40: 0 | R40: =IF(INPUTS!$B$15="yes",Q40,P40) ->  | U40: =IF(INPUTS!$B$15="yes",T40,S40) ->  | X40: =IF(INPUTS!$B$15="yes",W40,V40) ->  | AA40: =IF(INPUTS!$B$15="yes",Z40,Y40) ->  | AD40: =IF(INPUTS!$B$15="yes",AC40,AB40) ->  | AE40: no | AG40: =P40*('upper bound Kenaga'!$F$36/100) ->  | AI40: =P40*('upper bound Kenaga'!$F$96/100) -> 
C41: =C38 -> 1000 | D41: 58.15338588 | E41: =D41/0.9 -> 64.6148732 | F41: 6.46148732 | G41: 0.0646148732 | J41: =COUNTIF(K$21:K41,"=yes") -> 1 | K41: =IF(LOOKUP(VALUE(M41),INPUTS!$G$6:$G$35)=M41,"yes","no") -> no | L41: =IF(K41="yes",(LOOKUP(J41,INPUTS!$E$6:$E$35,INPUTS!$F$6:$F$35)),0) -> 0 | M41: 20 | N41: 1 | O41: 0 | R41: =IF(INPUTS!$B$15="yes",Q41,P41) ->  | U41: =IF(INPUTS!$B$15="yes",T41,S41) ->  | X41: =IF(INPUTS!$B$15="yes",W41,V41) ->  | AA41: =IF(INPUTS!$B$15="yes",Z41,Y41) ->  | AD41: =IF(INPUTS!$B$15="yes",AC41,AB41) ->  | AE41: no | AG41: =P41*('upper bound Kenaga'!$F$36/100) ->  | AI41: =P41*('upper bound Kenaga'!$F$96/100) -> 
J42: =COUNTIF(K$21:K42,"=yes") -> 1 | K42: =IF(LOOKUP(VALUE(M42),INPUTS!$G$6:$G$35)=M42,"yes","no") -> no | L42: =IF(K42="yes",(LOOKUP(J42,INPUTS!$E$6:$E$35,INPUTS!$F$6:$F$35)),0) -> 0 | M42: 21 | N42: 1 | O42: 0 | R42: =IF(INPUTS!$B$15="yes",Q42,P42) ->  | U42: =IF(INPUTS!$B$15="yes",T42,S42) ->  | X42: =IF(INPUTS!$B$15="yes",W42,V42) ->  | AA42: =IF(INPUTS!$B$15="yes",Z42,Y42) ->  | AD42: =IF(INPUTS!$B$15="yes",AC42,AB42) ->  | AG42: =P42*('upper bound Kenaga'!$F$36/100) ->  | AI42: =P42*('upper bound Kenaga'!$F$96/100) -> 
B43: =IF(INPUTS!$D$45="","Warning! You Have Failed to Enter a Toxicity Scaling Factor on the Inputs Page","") ->  | J43: =COUNTIF(K$21:K43,"=yes") -> 1 | K43: =IF(LOOKUP(VALUE(M43),INPUTS!$G$6:$G$35)=M43,"yes","no") -> no | L43: =IF(K43="yes",(LOOKUP(J43,INPUTS!$E$6:$E$35,INPUTS!$F$6:$F$35)),0) -> 0 | M43: 22 | N43: 1 | O43: 0 | R43: =IF(INPUTS!$B$15="yes",Q43,P43) ->  | U43: =IF(INPUTS!$B$15="yes",T43,S43) ->  | X43: =IF(INPUTS!$B$15="yes",W43,V43) ->  | AA43: =IF(INPUTS!$B$15="yes",Z43,Y43) ->  | AD43: =IF(INPUTS!$B$15="yes",AC43,AB43) ->  | AE43: no | AG43: =P43*('upper bound Kenaga'!$F$36/100) ->  | AI43: =P43*('upper bound Kenaga'!$F$96/100) -> 
B44: Avian Body | C44: Adjusted LD50 | J44: =COUNTIF(K$21:K44,"=yes") -> 1 | K44: =IF(LOOKUP(VALUE(M44),INPUTS!$G$6:$G$35)=M44,"yes","no") -> no | L44: =IF(K44="yes",(LOOKUP(J44,INPUTS!$E$6:$E$35,INPUTS!$F$6:$F$35)),0) -> 0 | M44: 23 | N44: 1 | O44: 0 | R44: =IF(INPUTS!$B$15="yes",Q44,P44) ->  | U44: =IF(INPUTS!$B$15="yes",T44,S44) ->  | X44: =IF(INPUTS!$B$15="yes",W44,V44) ->  | AA44: =IF(INPUTS!$B$15="yes",Z44,Y44) ->  | AD44: =IF(INPUTS!$B$15="yes",AC44,AB44) ->  | AE44: no | AG44: =P44*('upper bound Kenaga'!$F$36/100) ->  | AI44: =P44*('upper bound Kenaga'!$F$96/100) -> 
B45: Weight (g) | C45: (mg/kg-bw) | J45: =COUNTIF(K$21:K45,"=yes") -> 1 | K45: =IF(LOOKUP(VALUE(M45),INPUTS!$G$6:$G$35)=M45,"yes","no") -> no | L45: =IF(K45="yes",(LOOKUP(J45,INPUTS!$E$6:$E$35,INPUTS!$F$6:$F$35)),0) -> 0 | M45: 24 | N45: 1 | O45: 0 | R45: =IF(INPUTS!$B$15="yes",Q45,P45) ->  | U45: =IF(INPUTS!$B$15="yes",T45,S45) ->  | X45: =IF(INPUTS!$B$15="yes",W45,V45) ->  | AA45: =IF(INPUTS!$B$15="yes",Z45,Y45) ->  | AD45: =IF(INPUTS!$B$15="yes",AC45,AB45) ->  | AE45: no | AG45: =P45*('upper bound Kenaga'!$F$36/100) ->  | AI45: =P45*('upper bound Kenaga'!$F$96/100) -> 
B46: =C36 -> 20 | C46: =+IF(INPUTS!$D$41=3,(($D$15)*((C36/INPUTS!$F$41)^(INPUTS!$D$45-1))),IF(INPUTS!$D$41=1,(($D$15)*((C36/178)^(INPUTS!$D$45-1))),(($D$15)*((C36/1580)^(INPUTS!$D$45-1))))) -> 0 | E46: =IF(INPUTS!$F$41=0,"",IF(INPUTS!$D$41<3,"NOTE:Toxicity adjustments not based on standard assumed test animal body weight","")) ->  | J46: =COUNTIF(K$21:K46,"=yes") -> 1 | K46: =IF(LOOKUP(VALUE(M46),INPUTS!$G$6:$G$35)=M46,"yes","no") -> no | L46: =IF(K46="yes",(LOOKUP(J46,INPUTS!$E$6:$E$35,INPUTS!$F$6:$F$35)),0) -> 0 | M46: 25 | N46: 1 | O46: 0 | R46: =IF(INPUTS!$B$15="yes",Q46,P46) ->  | U46: =IF(INPUTS!$B$15="yes",T46,S46) ->  | X46: =IF(INPUTS!$B$15="yes",W46,V46) ->  | AA46: =IF(INPUTS!$B$15="yes",Z46,Y46) ->  | AD46: =IF(INPUTS!$B$15="yes",AC46,AB46) ->  | AE46: no | AG46: =P46*('upper bound Kenaga'!$F$36/100) ->  | AI46: =P46*('upper bound Kenaga'!$F$96/100) -> 
B47: =C37 -> 100 | C47: =+IF(INPUTS!$D$41=3,(($D$15)*((C37/INPUTS!$F$41)^(INPUTS!$D$45-1))),IF(INPUTS!$D$41=1,(($D$15)*((C37/178)^(INPUTS!$D$45-1))),(($D$15)*((C37/1580)^(INPUTS!$D$45-1))))) -> 0 | E47: =IF(INPUTS!$F$41=0,"",IF(INPUTS!$D$41<3,"NOTE:Toxicity adjustments not based on standard assumed test animal body weight","")) ->  | J47: =COUNTIF(K$21:K47,"=yes") -> 1 | K47: =IF(LOOKUP(VALUE(M47),INPUTS!$G$6:$G$35)=M47,"yes","no") -> no | L47: =IF(K47="yes",(LOOKUP(J47,INPUTS!$E$6:$E$35,INPUTS!$F$6:$F$35)),0) -> 0 | M47: 26 | N47: 1 | O47: 0 | R47: =IF(INPUTS!$B$15="yes",Q47,P47) ->  | U47: =IF(INPUTS!$B$15="yes",T47,S47) ->  | X47: =IF(INPUTS!$B$15="yes",W47,V47) ->  | AA47: =IF(INPUTS!$B$15="yes",Z47,Y47) ->  | AD47: =IF(INPUTS!$B$15="yes",AC47,AB47) ->  | AE47: no | AG47: =P47*('upper bound Kenaga'!$F$36/100) ->  | AI47: =P47*('upper bound Kenaga'!$F$96/100) -> 
B48: =C38 -> 1000 | C48: =+IF(INPUTS!$D$41=3,(($D$15)*((C38/INPUTS!$F$41)^(INPUTS!$D$45-1))),IF(INPUTS!$D$41=1,(($D$15)*((C38/178)^(INPUTS!$D$45-1))),(($D$15)*((C38/1580)^(INPUTS!$D$45-1))))) -> 0 | E48: =IF(INPUTS!$F$41=0,"",IF(INPUTS!$D$41<3,"NOTE:Toxicity adjustments not based on standard assumed test animal body weight","")) ->  | J48: =COUNTIF(K$21:K48,"=yes") -> 1 | K48: =IF(LOOKUP(VALUE(M48),INPUTS!$G$6:$G$35)=M48,"yes","no") -> no | L48: =IF(K48="yes",(LOOKUP(J48,INPUTS!$E$6:$E$35,INPUTS!$F$6:$F$35)),0) -> 0 | M48: 27 | N48: 1 | O48: 0 | R48: =IF(INPUTS!$B$15="yes",Q48,P48) ->  | U48: =IF(INPUTS!$B$15="yes",T48,S48) ->  | X48: =IF(INPUTS!$B$15="yes",W48,V48) ->  | AA48: =IF(INPUTS!$B$15="yes",Z48,Y48) ->  | AD48: =IF(INPUTS!$B$15="yes",AC48,AB48) ->  | AE48: no | AG48: =P48*('upper bound Kenaga'!$F$36/100) ->  | AI48: =P48*('upper bound Kenaga'!$F$96/100) -> 
J49: =COUNTIF(K$21:K49,"=yes") -> 1 | K49: =IF(LOOKUP(VALUE(M49),INPUTS!$G$6:$G$35)=M49,"yes","no") -> no | L49: =IF(K49="yes",(LOOKUP(J49,INPUTS!$E$6:$E$35,INPUTS!$F$6:$F$35)),0) -> 0 | M49: 28 | N49: 1 | O49: 0 | R49: =IF(INPUTS!$B$15="yes",Q49,P49) ->  | U49: =IF(INPUTS!$B$15="yes",T49,S49) ->  | X49: =IF(INPUTS!$B$15="yes",W49,V49) ->  | AA49: =IF(INPUTS!$B$15="yes",Z49,Y49) ->  | AD49: =IF(INPUTS!$B$15="yes",AC49,AB49) ->  | AE49: no | AG49: =P49*('upper bound Kenaga'!$F$36/100) ->  | AI49: =P49*('upper bound Kenaga'!$F$96/100) -> 
A50: Dose-based EECs (mg/kg-bw) | B50: Avian Classes and Body Weights (grams) | J50: =COUNTIF(K$21:K50,"=yes") -> 1 | K50: =IF(LOOKUP(VALUE(M50),INPUTS!$G$6:$G$35)=M50,"yes","no") -> no | L50: =IF(K50="yes",(LOOKUP(J50,INPUTS!$E$6:$E$35,INPUTS!$F$6:$F$35)),0) -> 0 | M50: 29 | N50: 1 | O50: 0 | R50: =IF(INPUTS!$B$15="yes",Q50,P50) ->  | U50: =IF(INPUTS!$B$15="yes",T50,S50) ->  | X50: =IF(INPUTS!$B$15="yes",W50,V50) ->  | AA50: =IF(INPUTS!$B$15="yes",Z50,Y50) ->  | AD50: =IF(INPUTS!$B$15="yes",AC50,AB50) ->  | AE50: no | AG50: =P50*('upper bound Kenaga'!$F$36/100) ->  | AI50: =P50*('upper bound Kenaga'!$F$96/100) -> 
B51: small | C51: mid | D51: large | J51: =COUNTIF(K$21:K51,"=yes") -> 1 | K51: =IF(LOOKUP(VALUE(M51),INPUTS!$G$6:$G$35)=M51,"yes","no") -> no | L51: =IF(K51="yes",(LOOKUP(J51,INPUTS!$E$6:$E$35,INPUTS!$F$6:$F$35)),0) -> 0 | M51: 30 | N51: 1 | O51: 0 | R51: =IF(INPUTS!$B$15="yes",Q51,P51) ->  | U51: =IF(INPUTS!$B$15="yes",T51,S51) ->  | X51: =IF(INPUTS!$B$15="yes",W51,V51) ->  | AA51: =IF(INPUTS!$B$15="yes",Z51,Y51) ->  | AD51: =IF(INPUTS!$B$15="yes",AC51,AB51) ->  | AE51: no | AG51: =P51*('upper bound Kenaga'!$F$36/100) ->  | AI51: =P51*('upper bound Kenaga'!$F$96/100) -> 
B52: =C36 -> 20 | C52: =C37 -> 100 | D52: =C38 -> 1000 | J52: =COUNTIF(K$21:K52,"=yes") -> 1 | K52: =IF(LOOKUP(VALUE(M52),INPUTS!$G$6:$G$35)=M52,"yes","no") -> no | L52: =IF(K52="yes",(LOOKUP(J52,INPUTS!$E$6:$E$35,INPUTS!$F$6:$F$35)),0) -> 0 | M52: 31 | N52: 1 | O52: 0 | R52: =IF(INPUTS!$B$15="yes",Q52,P52) ->  | U52: =IF(INPUTS!$B$15="yes",T52,S52) ->  | X52: =IF(INPUTS!$B$15="yes",W52,V52) ->  | AA52: =IF(INPUTS!$B$15="yes",Z52,Y52) ->  | AD52: =IF(INPUTS!$B$15="yes",AC52,AB52) ->  | AE52: no | AG52: =P52*('upper bound Kenaga'!$F$36/100) ->  | AI52: =P52*('upper bound Kenaga'!$F$96/100) -> 
A53: Short Grass | B53: =B27*($G$36/($C$36/1000)) ->  | C53: =B27*($G$37/(C$37/1000)) ->  | D53: =B27*($G$38/(C$38/1000)) ->  | J53: =COUNTIF(K$21:K53,"=yes") -> 1 | K53: =IF(LOOKUP(VALUE(M53),INPUTS!$G$6:$G$35)=M53,"yes","no") -> no | L53: =IF(K53="yes",(LOOKUP(J53,INPUTS!$E$6:$E$35,INPUTS!$F$6:$F$35)),0) -> 0 | M53: 32 | N53: 1 | O53: 0 | R53: =IF(INPUTS!$B$15="yes",Q53,P53) ->  | U53: =IF(INPUTS!$B$15="yes",T53,S53) ->  | X53: =IF(INPUTS!$B$15="yes",W53,V53) ->  | AA53: =IF(INPUTS!$B$15="yes",Z53,Y53) ->  | AD53: =IF(INPUTS!$B$15="yes",AC53,AB53) ->  | AE53: no | AG53: =P53*('upper bound Kenaga'!$F$36/100) ->  | AI53: =P53*('upper bound Kenaga'!$F$96/100) -> 
A54: Tall Grass | B54: =B28*($G$36/($C$36/1000)) ->  | C54: =B28*($G$37/(C$37/1000)) ->  | D54: =B28*($G$38/(C$38/1000)) ->  | J54: =COUNTIF(K$21:K54,"=yes") -> 1 | K54: =IF(LOOKUP(VALUE(M54),INPUTS!$G$6:$G$35)=M54,"yes","no") -> no | L54: =IF(K54="yes",(LOOKUP(J54,INPUTS!$E$6:$E$35,INPUTS!$F$6:$F$35)),0) -> 0 | M54: 33 | N54: 1 | O54: 0 | R54: =IF(INPUTS!$B$15="yes",Q54,P54) ->  | U54: =IF(INPUTS!$B$15="yes",T54,S54) ->  | X54: =IF(INPUTS!$B$15="yes",W54,V54) ->  | AA54: =IF(INPUTS!$B$15="yes",Z54,Y54) ->  | AD54: =IF(INPUTS!$B$15="yes",AC54,AB54) ->  | AE54: no | AG54: =P54*('upper bound Kenaga'!$F$36/100) ->  | AI54: =P54*('upper bound Kenaga'!$F$96/100) -> 
A55: Broadleaf plants | B55: =B29*($G$36/($C$36/1000)) ->  | C55: =B29*($G$37/(C$37/1000)) ->  | D55: =B29*($G$38/(C$38/1000)) ->  | J55: =COUNTIF(K$21:K55,"=yes") -> 1 | K55: =IF(LOOKUP(VALUE(M55),INPUTS!$G$6:$G$35)=M55,"yes","no") -> no | L55: =IF(K55="yes",(LOOKUP(J55,INPUTS!$E$6:$E$35,INPUTS!$F$6:$F$35)),0) -> 0 | M55: 34 | N55: 1 | O55: 0 | R55: =IF(INPUTS!$B$15="yes",Q55,P55) ->  | U55: =IF(INPUTS!$B$15="yes",T55,S55) ->  | X55: =IF(INPUTS!$B$15="yes",W55,V55) ->  | AA55: =IF(INPUTS!$B$15="yes",Z55,Y55) ->  | AD55: =IF(INPUTS!$B$15="yes",AC55,AB55) ->  | AE55: no | AG55: =P55*('upper bound Kenaga'!$F$36/100) ->  | AI55: =P55*('upper bound Kenaga'!$F$96/100) -> 
A56: Fruits/pods | B56: =B30*($G$36/($C$36/1000)) ->  | C56: =B30*($G$37/(C$37/1000)) ->  | D56: =B30*($G$38/(C$38/1000)) ->  | J56: =COUNTIF(K$21:K56,"=yes") -> 1 | K56: =IF(LOOKUP(VALUE(M56),INPUTS!$G$6:$G$35)=M56,"yes","no") -> no | L56: =IF(K56="yes",(LOOKUP(J56,INPUTS!$E$6:$E$35,INPUTS!$F$6:$F$35)),0) -> 0 | M56: 35 | N56: 1 | O56: 0 | R56: =IF(INPUTS!$B$15="yes",Q56,P56) ->  | U56: =IF(INPUTS!$B$15="yes",T56,S56) ->  | X56: =IF(INPUTS!$B$15="yes",W56,V56) ->  | AA56: =IF(INPUTS!$B$15="yes",Z56,Y56) ->  | AD56: =IF(INPUTS!$B$15="yes",AC56,AB56) ->  | AE56: no | AG56: =P56*('upper bound Kenaga'!$F$36/100) ->  | AI56: =P56*('upper bound Kenaga'!$F$96/100) -> 
J57: =COUNTIF(K$21:K57,"=yes") -> 1 | K57: =IF(LOOKUP(VALUE(M57),INPUTS!$G$6:$G$35)=M57,"yes","no") -> no | L57: =IF(K57="yes",(LOOKUP(J57,INPUTS!$E$6:$E$35,INPUTS!$F$6:$F$35)),0) -> 0 | M57: 36 | N57: 1 | O57: 0 | R57: =IF(INPUTS!$B$15="yes",Q57,P57) ->  | U57: =IF(INPUTS!$B$15="yes",T57,S57) ->  | X57: =IF(INPUTS!$B$15="yes",W57,V57) ->  | AA57: =IF(INPUTS!$B$15="yes",Z57,Y57) ->  | AD57: =IF(INPUTS!$B$15="yes",AC57,AB57) ->  | AE57: no | AG57: =P57*('upper bound Kenaga'!$F$36/100) ->  | AI57: =P57*('upper bound Kenaga'!$F$96/100) -> 
J58: =COUNTIF(K$21:K58,"=yes") -> 1 | K58: =IF(LOOKUP(VALUE(M58),INPUTS!$G$6:$G$35)=M58,"yes","no") -> no | L58: =IF(K58="yes",(LOOKUP(J58,INPUTS!$E$6:$E$35,INPUTS!$F$6:$F$35)),0) -> 0 | M58: 37 | N58: 1 | O58: 0 | R58: =IF(INPUTS!$B$15="yes",Q58,P58) ->  | U58: =IF(INPUTS!$B$15="yes",T58,S58) ->  | X58: =IF(INPUTS!$B$15="yes",W58,V58) ->  | AA58: =IF(INPUTS!$B$15="yes",Z58,Y58) ->  | AD58: =IF(INPUTS!$B$15="yes",AC58,AB58) ->  | AE58: no | AG58: =P58*('upper bound Kenaga'!$F$36/100) ->  | AI58: =P58*('upper bound Kenaga'!$F$96/100) -> 
J59: =COUNTIF(K$21:K59,"=yes") -> 1 | K59: =IF(LOOKUP(VALUE(M59),INPUTS!$G$6:$G$35)=M59,"yes","no") -> no | L59: =IF(K59="yes",(LOOKUP(J59,INPUTS!$E$6:$E$35,INPUTS!$F$6:$F$35)),0) -> 0 | M59: 38 | N59: 1 | O59: 0 | R59: =IF(INPUTS!$B$15="yes",Q59,P59) ->  | U59: =IF(INPUTS!$B$15="yes",T59,S59) ->  | X59: =IF(INPUTS!$B$15="yes",W59,V59) ->  | AA59: =IF(INPUTS!$B$15="yes",Z59,Y59) ->  | AD59: =IF(INPUTS!$B$15="yes",AC59,AB59) ->  | AE59: no | AG59: =P59*('upper bound Kenaga'!$F$36/100) ->  | AI59: =P59*('upper bound Kenaga'!$F$96/100) -> 
J60: =COUNTIF(K$21:K60,"=yes") -> 1 | K60: =IF(LOOKUP(VALUE(M60),INPUTS!$G$6:$G$35)=M60,"yes","no") -> no | L60: =IF(K60="yes",(LOOKUP(J60,INPUTS!$E$6:$E$35,INPUTS!$F$6:$F$35)),0) -> 0 | M60: 39 | N60: 1 | O60: 0 | R60: =IF(INPUTS!$B$15="yes",Q60,P60) ->  | U60: =IF(INPUTS!$B$15="yes",T60,S60) ->  | X60: =IF(INPUTS!$B$15="yes",W60,V60) ->  | AA60: =IF(INPUTS!$B$15="yes",Z60,Y60) ->  | AD60: =IF(INPUTS!$B$15="yes",AC60,AB60) ->  | AE60: no | AG60: =P60*('upper bound Kenaga'!$F$36/100) ->  | AI60: =P60*('upper bound Kenaga'!$F$96/100) -> 
J61: =COUNTIF(K$21:K61,"=yes") -> 1 | K61: =IF(LOOKUP(VALUE(M61),INPUTS!$G$6:$G$35)=M61,"yes","no") -> no | L61: =IF(K61="yes",(LOOKUP(J61,INPUTS!$E$6:$E$35,INPUTS!$F$6:$F$35)),0) -> 0 | M61: 40 | N61: 1 | O61: 0 | R61: =IF(INPUTS!$B$15="yes",Q61,P61) ->  | U61: =IF(INPUTS!$B$15="yes",T61,S61) ->  | X61: =IF(INPUTS!$B$15="yes",W61,V61) ->  | AA61: =IF(INPUTS!$B$15="yes",Z61,Y61) ->  | AD61: =IF(INPUTS!$B$15="yes",AC61,AB61) ->  | AE61: no | AG61: =P61*('upper bound Kenaga'!$F$36/100) ->  | AI61: =P61*('upper bound Kenaga'!$F$96/100) -> 
J62: =COUNTIF(K$21:K62,"=yes") -> 1 | K62: =IF(LOOKUP(VALUE(M62),INPUTS!$G$6:$G$35)=M62,"yes","no") -> no | L62: =IF(K62="yes",(LOOKUP(J62,INPUTS!$E$6:$E$35,INPUTS!$F$6:$F$35)),0) -> 0 | M62: 41 | N62: 1 | O62: 0 | R62: =IF(INPUTS!$B$15="yes",Q62,P62) ->  | U62: =IF(INPUTS!$B$15="yes",T62,S62) ->  | X62: =IF(INPUTS!$B$15="yes",W62,V62) ->  | AA62: =IF(INPUTS!$B$15="yes",Z62,Y62) ->  | AD62: =IF(INPUTS!$B$15="yes",AC62,AB62) ->  | AE62: no | AG62: =P62*('upper bound Kenaga'!$F$36/100) ->  | AI62: =P62*('upper bound Kenaga'!$F$96/100) -> 
J63: =COUNTIF(K$21:K63,"=yes") -> 1 | K63: =IF(LOOKUP(VALUE(M63),INPUTS!$G$6:$G$35)=M63,"yes","no") -> no | L63: =IF(K63="yes",(LOOKUP(J63,INPUTS!$E$6:$E$35,INPUTS!$F$6:$F$35)),0) -> 0 | M63: 42 | N63: 1 | O63: 0 | R63: =IF(INPUTS!$B$15="yes",Q63,P63) ->  | U63: =IF(INPUTS!$B$15="yes",T63,S63) ->  | X63: =IF(INPUTS!$B$15="yes",W63,V63) ->  | AA63: =IF(INPUTS!$B$15="yes",Z63,Y63) ->  | AD63: =IF(INPUTS!$B$15="yes",AC63,AB63) ->  | AE63: no | AG63: =P63*('upper bound Kenaga'!$F$36/100) ->  | AI63: =P63*('upper bound Kenaga'!$F$96/100) -> 
A64: Arthropods | B64: =B31*($G$36/($C$36/1000)) ->  | C64: =B31*($G$37/(C$37/1000)) ->  | D64: =B31*($G$38/(C$38/1000)) ->  | J64: =COUNTIF(K$21:K64,"=yes") -> 1 | K64: =IF(LOOKUP(VALUE(M64),INPUTS!$G$6:$G$35)=M64,"yes","no") -> no | L64: =IF(K64="yes",(LOOKUP(J64,INPUTS!$E$6:$E$35,INPUTS!$F$6:$F$35)),0) -> 0 | M64: 43 | N64: 1 | O64: 0 | R64: =IF(INPUTS!$B$15="yes",Q64,P64) ->  | U64: =IF(INPUTS!$B$15="yes",T64,S64) ->  | X64: =IF(INPUTS!$B$15="yes",W64,V64) ->  | AA64: =IF(INPUTS!$B$15="yes",Z64,Y64) ->  | AD64: =IF(INPUTS!$B$15="yes",AC64,AB64) ->  | AE64: no | AG64: =P64*('upper bound Kenaga'!$F$36/100) ->  | AI64: =P64*('upper bound Kenaga'!$F$96/100) -> 
A65: Seeds | B65: =B30*(G39/(C39/1000)) ->  | C65: =B30*(G40/(C40/1000)) ->  | D65: =B30*(G41/(C41/1000)) ->  | J65: =COUNTIF(K$21:K65,"=yes") -> 1 | K65: =IF(LOOKUP(VALUE(M65),INPUTS!$G$6:$G$35)=M65,"yes","no") -> no | L65: =IF(K65="yes",(LOOKUP(J65,INPUTS!$E$6:$E$35,INPUTS!$F$6:$F$35)),0) -> 0 | M65: 44 | N65: 1 | O65: 0 | R65: =IF(INPUTS!$B$15="yes",Q65,P65) ->  | U65: =IF(INPUTS!$B$15="yes",T65,S65) ->  | X65: =IF(INPUTS!$B$15="yes",W65,V65) ->  | AA65: =IF(INPUTS!$B$15="yes",Z65,Y65) ->  | AD65: =IF(INPUTS!$B$15="yes",AC65,AB65) ->  | AE65: no | AG65: =P65*('upper bound Kenaga'!$F$36/100) ->  | AI65: =P65*('upper bound Kenaga'!$F$96/100) -> 
J66: =COUNTIF(K$21:K66,"=yes") -> 1 | K66: =IF(LOOKUP(VALUE(M66),INPUTS!$G$6:$G$35)=M66,"yes","no") -> no | L66: =IF(K66="yes",(LOOKUP(J66,INPUTS!$E$6:$E$35,INPUTS!$F$6:$F$35)),0) -> 0 | M66: 45 | N66: 1 | O66: 0 | R66: =IF(INPUTS!$B$15="yes",Q66,P66) ->  | U66: =IF(INPUTS!$B$15="yes",T66,S66) ->  | X66: =IF(INPUTS!$B$15="yes",W66,V66) ->  | AA66: =IF(INPUTS!$B$15="yes",Z66,Y66) ->  | AD66: =IF(INPUTS!$B$15="yes",AC66,AB66) ->  | AE66: no | AG66: =P66*('upper bound Kenaga'!$F$36/100) ->  | AI66: =P66*('upper bound Kenaga'!$F$96/100) -> 
A67: Dose-based RQs (Dose-based EEC/adjusted LD50) | B67: Avian Acute RQs Size Class (grams) | J67: =COUNTIF(K$21:K67,"=yes") -> 1 | K67: =IF(LOOKUP(VALUE(M67),INPUTS!$G$6:$G$35)=M67,"yes","no") -> no | L67: =IF(K67="yes",(LOOKUP(J67,INPUTS!$E$6:$E$35,INPUTS!$F$6:$F$35)),0) -> 0 | M67: 46 | N67: 1 | O67: 0 | R67: =IF(INPUTS!$B$15="yes",Q67,P67) ->  | U67: =IF(INPUTS!$B$15="yes",T67,S67) ->  | X67: =IF(INPUTS!$B$15="yes",W67,V67) ->  | AA67: =IF(INPUTS!$B$15="yes",Z67,Y67) ->  | AD67: =IF(INPUTS!$B$15="yes",AC67,AB67) ->  | AE67: no | AG67: =P67*('upper bound Kenaga'!$F$36/100) ->  | AI67: =P67*('upper bound Kenaga'!$F$96/100) -> 
B68: =B46 -> 20 | C68: =B47 -> 100 | D68: =B48 -> 1000 | J68: =COUNTIF(K$21:K68,"=yes") -> 1 | K68: =IF(LOOKUP(VALUE(M68),INPUTS!$G$6:$G$35)=M68,"yes","no") -> no | L68: =IF(K68="yes",(LOOKUP(J68,INPUTS!$E$6:$E$35,INPUTS!$F$6:$F$35)),0) -> 0 | M68: 47 | N68: 1 | O68: 0 | R68: =IF(INPUTS!$B$15="yes",Q68,P68) ->  | U68: =IF(INPUTS!$B$15="yes",T68,S68) ->  | X68: =IF(INPUTS!$B$15="yes",W68,V68) ->  | AA68: =IF(INPUTS!$B$15="yes",Z68,Y68) ->  | AD68: =IF(INPUTS!$B$15="yes",AC68,AB68) ->  | AE68: no | AG68: =P68*('upper bound Kenaga'!$F$36/100) ->  | AI68: =P68*('upper bound Kenaga'!$F$96/100) -> 
A69: Short Grass | B69: =B53/$C$46 ->  | C69: =C53/$C$47 ->  | D69: =D53/$C$48 ->  | J69: =COUNTIF(K$21:K69,"=yes") -> 1 | K69: =IF(LOOKUP(VALUE(M69),INPUTS!$G$6:$G$35)=M69,"yes","no") -> no | L69: =IF(K69="yes",(LOOKUP(J69,INPUTS!$E$6:$E$35,INPUTS!$F$6:$F$35)),0) -> 0 | M69: 48 | N69: 1 | O69: 0 | R69: =IF(INPUTS!$B$15="yes",Q69,P69) ->  | U69: =IF(INPUTS!$B$15="yes",T69,S69) ->  | X69: =IF(INPUTS!$B$15="yes",W69,V69) ->  | AA69: =IF(INPUTS!$B$15="yes",Z69,Y69) ->  | AD69: =IF(INPUTS!$B$15="yes",AC69,AB69) ->  | AE69: no | AG69: =P69*('upper bound Kenaga'!$F$36/100) ->  | AI69: =P69*('upper bound Kenaga'!$F$96/100) -> 
A70: Tall Grass | B70: =B54/$C$46 ->  | C70: =C54/$C$47 ->  | D70: =D54/$C$48 ->  | J70: =COUNTIF(K$21:K70,"=yes") -> 1 | K70: =IF(LOOKUP(VALUE(M70),INPUTS!$G$6:$G$35)=M70,"yes","no") -> no | L70: =IF(K70="yes",(LOOKUP(J70,INPUTS!$E$6:$E$35,INPUTS!$F$6:$F$35)),0) -> 0 | M70: 49 | N70: 1 | O70: 0 | R70: =IF(INPUTS!$B$15="yes",Q70,P70) ->  | U70: =IF(INPUTS!$B$15="yes",T70,S70) ->  | X70: =IF(INPUTS!$B$15="yes",W70,V70) ->  | AA70: =IF(INPUTS!$B$15="yes",Z70,Y70) ->  | AD70: =IF(INPUTS!$B$15="yes",AC70,AB70) ->  | AE70: no | AG70: =P70*('upper bound Kenaga'!$F$36/100) ->  | AI70: =P70*('upper bound Kenaga'!$F$96/100) -> 
A71: Broadleaf plants | B71: =B55/$C$46 ->  | C71: =C55/$C$47 ->  | D71: =D55/$C$48 ->  | J71: =COUNTIF(K$21:K71,"=yes") -> 1 | K71: =IF(LOOKUP(VALUE(M71),INPUTS!$G$6:$G$35)=M71,"yes","no") -> no | L71: =IF(K71="yes",(LOOKUP(J71,INPUTS!$E$6:$E$35,INPUTS!$F$6:$F$35)),0) -> 0 | M71: 50 | N71: 1 | O71: 0 | R71: =IF(INPUTS!$B$15="yes",Q71,P71) ->  | U71: =IF(INPUTS!$B$15="yes",T71,S71) ->  | X71: =IF(INPUTS!$B$15="yes",W71,V71) ->  | AA71: =IF(INPUTS!$B$15="yes",Z71,Y71) ->  | AD71: =IF(INPUTS!$B$15="yes",AC71,AB71) ->  | AE71: no | AG71: =P71*('upper bound Kenaga'!$F$36/100) ->  | AI71: =P71*('upper bound Kenaga'!$F$96/100) -> 
A72: Fruits/pods | B72: =B56/$C$46 ->  | C72: =C56/$C$47 ->  | D72: =D56/$C$48 ->  | J72: =COUNTIF(K$21:K72,"=yes") -> 1 | K72: =IF(LOOKUP(VALUE(M72),INPUTS!$G$6:$G$35)=M72,"yes","no") -> no | L72: =IF(K72="yes",(LOOKUP(J72,INPUTS!$E$6:$E$35,INPUTS!$F$6:$F$35)),0) -> 0 | M72: 51 | N72: 1 | O72: 0 | R72: =IF(INPUTS!$B$15="yes",Q72,P72) ->  | U72: =IF(INPUTS!$B$15="yes",T72,S72) ->  | X72: =IF(INPUTS!$B$15="yes",W72,V72) ->  | AA72: =IF(INPUTS!$B$15="yes",Z72,Y72) ->  | AD72: =IF(INPUTS!$B$15="yes",AC72,AB72) ->  | AE72: no | AG72: =P72*('upper bound Kenaga'!$F$36/100) ->  | AI72: =P72*('upper bound Kenaga'!$F$96/100) -> 
A73: Arthropods | B73: =B64/$C$46 ->  | C73: =C64/$C$47 ->  | D73: =D64/$C$48 ->  | J73: =COUNTIF(K$21:K73,"=yes") -> 1 | K73: =IF(LOOKUP(VALUE(M73),INPUTS!$G$6:$G$35)=M73,"yes","no") -> no | L73: =IF(K73="yes",(LOOKUP(J73,INPUTS!$E$6:$E$35,INPUTS!$F$6:$F$35)),0) -> 0 | M73: 52 | N73: =IF($B$9>N71,IF(O71=($B$8-1),(N71+1),(N71)),(N71)) -> 1 | O73: 0 | R73: =IF(INPUTS!$B$15="yes",Q73,P73) ->  | U73: =IF(INPUTS!$B$15="yes",T73,S73) ->  | X73: =IF(INPUTS!$B$15="yes",W73,V73) ->  | AA73: =IF(INPUTS!$B$15="yes",Z73,Y73) ->  | AD73: =IF(INPUTS!$B$15="yes",AC73,AB73) ->  | AE73: no | AG73: =P73*('upper bound Kenaga'!$F$36/100) ->  | AI73: =P73*('upper bound Kenaga'!$F$96/100) -> 
A74: Seeds | B74: =$B$65/$C$46 ->  | C74: =$C$65/$C$47 ->  | D74: =$D$65/$C$48 ->  | J74: =COUNTIF(K$21:K74,"=yes") -> 1 | K74: =IF(LOOKUP(VALUE(M74),INPUTS!$G$6:$G$35)=M74,"yes","no") -> no | L74: =IF(K74="yes",(LOOKUP(J74,INPUTS!$E$6:$E$35,INPUTS!$F$6:$F$35)),0) -> 0 | M74: 53 | N74: 1 | O74: 0 | R74: =IF(INPUTS!$B$15="yes",Q74,P74) ->  | U74: =IF(INPUTS!$B$15="yes",T74,S74) ->  | X74: =IF(INPUTS!$B$15="yes",W74,V74) ->  | AA74: =IF(INPUTS!$B$15="yes",Z74,Y74) ->  | AD74: =IF(INPUTS!$B$15="yes",AC74,AB74) ->  | AE74: no | AG74: =P74*('upper bound Kenaga'!$F$36/100) ->  | AI74: =P74*('upper bound Kenaga'!$F$96/100) -> 
J75: =COUNTIF(K$21:K75,"=yes") -> 1 | K75: =IF(LOOKUP(VALUE(M75),INPUTS!$G$6:$G$35)=M75,"yes","no") -> no | L75: =IF(K75="yes",(LOOKUP(J75,INPUTS!$E$6:$E$35,INPUTS!$F$6:$F$35)),0) -> 0 | M75: 54 | N75: 1 | O75: 0 | R75: =IF(INPUTS!$B$15="yes",Q75,P75) ->  | U75: =IF(INPUTS!$B$15="yes",T75,S75) ->  | X75: =IF(INPUTS!$B$15="yes",W75,V75) ->  | AA75: =IF(INPUTS!$B$15="yes",Z75,Y75) ->  | AD75: =IF(INPUTS!$B$15="yes",AC75,AB75) ->  | AE75: no | AG75: =P75*('upper bound Kenaga'!$F$36/100) ->  | AI75: =P75*('upper bound Kenaga'!$F$96/100) -> 
A76: Dietary-based RQs (Dietary-based EEC/LC50 or NOAEC) | B76: RQs | J76: =COUNTIF(K$21:K76,"=yes") -> 1 | K76: =IF(LOOKUP(VALUE(M76),INPUTS!$G$6:$G$35)=M76,"yes","no") -> no | L76: =IF(K76="yes",(LOOKUP(J76,INPUTS!$E$6:$E$35,INPUTS!$F$6:$F$35)),0) -> 0 | M76: 55 | N76: 1 | O76: 0 | R76: =IF(INPUTS!$B$15="yes",Q76,P76) ->  | U76: =IF(INPUTS!$B$15="yes",T76,S76) ->  | X76: =IF(INPUTS!$B$15="yes",W76,V76) ->  | AA76: =IF(INPUTS!$B$15="yes",Z76,Y76) ->  | AD76: =IF(INPUTS!$B$15="yes",AC76,AB76) ->  | AE76: no | AG76: =P76*('upper bound Kenaga'!$F$36/100) ->  | AI76: =P76*('upper bound Kenaga'!$F$96/100) -> 
J77: =COUNTIF(K$21:K77,"=yes") -> 1 | K77: =IF(LOOKUP(VALUE(M77),INPUTS!$G$6:$G$35)=M77,"yes","no") -> no | L77: =IF(K77="yes",(LOOKUP(J77,INPUTS!$E$6:$E$35,INPUTS!$F$6:$F$35)),0) -> 0 | M77: 56 | N77: 1 | O77: 0 | R77: =IF(INPUTS!$B$15="yes",Q77,P77) ->  | U77: =IF(INPUTS!$B$15="yes",T77,S77) ->  | X77: =IF(INPUTS!$B$15="yes",W77,V77) ->  | AA77: =IF(INPUTS!$B$15="yes",Z77,Y77) ->  | AD77: =IF(INPUTS!$B$15="yes",AC77,AB77) ->  | AE77: no | AG77: =P77*('upper bound Kenaga'!$F$36/100) ->  | AI77: =P77*('upper bound Kenaga'!$F$96/100) -> 
B78: Acute | C78: Chronic | J78: =COUNTIF(K$21:K78,"=yes") -> 1 | K78: =IF(LOOKUP(VALUE(M78),INPUTS!$G$6:$G$35)=M78,"yes","no") -> no | L78: =IF(K78="yes",(LOOKUP(J78,INPUTS!$E$6:$E$35,INPUTS!$F$6:$F$35)),0) -> 0 | M78: 57 | N78: 1 | O78: 0 | R78: =IF(INPUTS!$B$15="yes",Q78,P78) ->  | U78: =IF(INPUTS!$B$15="yes",T78,S78) ->  | X78: =IF(INPUTS!$B$15="yes",W78,V78) ->  | AA78: =IF(INPUTS!$B$15="yes",Z78,Y78) ->  | AD78: =IF(INPUTS!$B$15="yes",AC78,AB78) ->  | AE78: no | AG78: =P78*('upper bound Kenaga'!$F$36/100) ->  | AI78: =P78*('upper bound Kenaga'!$F$96/100) -> 
A79: Short Grass | B79: =B27/D16 ->  | C79: =B27/D18 ->  | J79: =COUNTIF(K$21:K79,"=yes") -> 1 | K79: =IF(LOOKUP(VALUE(M79),INPUTS!$G$6:$G$35)=M79,"yes","no") -> no | L79: =IF(K79="yes",(LOOKUP(J79,INPUTS!$E$6:$E$35,INPUTS!$F$6:$F$35)),0) -> 0 | M79: 58 | N79: 1 | O79: 0 | R79: =IF(INPUTS!$B$15="yes",Q79,P79) ->  | U79: =IF(INPUTS!$B$15="yes",T79,S79) ->  | X79: =IF(INPUTS!$B$15="yes",W79,V79) ->  | AA79: =IF(INPUTS!$B$15="yes",Z79,Y79) ->  | AD79: =IF(INPUTS!$B$15="yes",AC79,AB79) ->  | AE79: no | AG79: =P79*('upper bound Kenaga'!$F$36/100) ->  | AI79: =P79*('upper bound Kenaga'!$F$96/100) -> 
A80: Tall Grass | B80: =B28/D16 ->  | C80: =B28/D18 ->  | J80: =COUNTIF(K$21:K80,"=yes") -> 1 | K80: =IF(LOOKUP(VALUE(M80),INPUTS!$G$6:$G$35)=M80,"yes","no") -> no | L80: =IF(K80="yes",(LOOKUP(J80,INPUTS!$E$6:$E$35,INPUTS!$F$6:$F$35)),0) -> 0 | M80: 59 | N80: 1 | O80: 0 | R80: =IF(INPUTS!$B$15="yes",Q80,P80) ->  | U80: =IF(INPUTS!$B$15="yes",T80,S80) ->  | X80: =IF(INPUTS!$B$15="yes",W80,V80) ->  | AA80: =IF(INPUTS!$B$15="yes",Z80,Y80) ->  | AD80: =IF(INPUTS!$B$15="yes",AC80,AB80) ->  | AE80: no | AG80: =P80*('upper bound Kenaga'!$F$36/100) ->  | AI80: =P80*('upper bound Kenaga'!$F$96/100) -> 
A81: Broadleaf plants | B81: =B29/D16 ->  | C81: =B29/D18 ->  | J81: =COUNTIF(K$21:K81,"=yes") -> 1 | K81: =IF(LOOKUP(VALUE(M81),INPUTS!$G$6:$G$35)=M81,"yes","no") -> no | L81: =IF(K81="yes",(LOOKUP(J81,INPUTS!$E$6:$E$35,INPUTS!$F$6:$F$35)),0) -> 0 | M81: 60 | N81: 1 | O81: 0 | R81: =IF(INPUTS!$B$15="yes",Q81,P81) ->  | U81: =IF(INPUTS!$B$15="yes",T81,S81) ->  | X81: =IF(INPUTS!$B$15="yes",W81,V81) ->  | AA81: =IF(INPUTS!$B$15="yes",Z81,Y81) ->  | AD81: =IF(INPUTS!$B$15="yes",AC81,AB81) ->  | AE81: no | AG81: =P81*('upper bound Kenaga'!$F$36/100) ->  | AI81: =P81*('upper bound Kenaga'!$F$96/100) -> 
A82: Fruits/pods/seeds | B82: =B30/D16 ->  | C82: =B30/D18 ->  | J82: =COUNTIF(K$21:K82,"=yes") -> 1 | K82: =IF(LOOKUP(VALUE(M82),INPUTS!$G$6:$G$35)=M82,"yes","no") -> no | L82: =IF(K82="yes",(LOOKUP(J82,INPUTS!$E$6:$E$35,INPUTS!$F$6:$F$35)),0) -> 0 | M82: 61 | N82: 1 | O82: 0 | R82: =IF(INPUTS!$B$15="yes",Q82,P82) ->  | U82: =IF(INPUTS!$B$15="yes",T82,S82) ->  | X82: =IF(INPUTS!$B$15="yes",W82,V82) ->  | AA82: =IF(INPUTS!$B$15="yes",Z82,Y82) ->  | AD82: =IF(INPUTS!$B$15="yes",AC82,AB82) ->  | AE82: no | AG82: =P82*('upper bound Kenaga'!$F$36/100) ->  | AI82: =P82*('upper bound Kenaga'!$F$96/100) -> 
A83: Arthropods | B83: =B31/D16 ->  | C83: =B31/D18 ->  | J83: =COUNTIF(K$21:K83,"=yes") -> 1 | K83: =IF(LOOKUP(VALUE(M83),INPUTS!$G$6:$G$35)=M83,"yes","no") -> no | L83: =IF(K83="yes",(LOOKUP(J83,INPUTS!$E$6:$E$35,INPUTS!$F$6:$F$35)),0) -> 0 | M83: 62 | N83: 1 | O83: 0 | R83: =IF(INPUTS!$B$15="yes",Q83,P83) ->  | U83: =IF(INPUTS!$B$15="yes",T83,S83) ->  | X83: =IF(INPUTS!$B$15="yes",W83,V83) ->  | AA83: =IF(INPUTS!$B$15="yes",Z83,Y83) ->  | AD83: =IF(INPUTS!$B$15="yes",AC83,AB83) ->  | AE83: no | AG83: =P83*('upper bound Kenaga'!$F$36/100) ->  | AI83: =P83*('upper bound Kenaga'!$F$96/100) -> 
J84: =COUNTIF(K$21:K84,"=yes") -> 1 | K84: =IF(LOOKUP(VALUE(M84),INPUTS!$G$6:$G$35)=M84,"yes","no") -> no | L84: =IF(K84="yes",(LOOKUP(J84,INPUTS!$E$6:$E$35,INPUTS!$F$6:$F$35)),0) -> 0 | M84: 63 | N84: 1 | O84: 0 | R84: =IF(INPUTS!$B$15="yes",Q84,P84) ->  | U84: =IF(INPUTS!$B$15="yes",T84,S84) ->  | X84: =IF(INPUTS!$B$15="yes",W84,V84) ->  | AA84: =IF(INPUTS!$B$15="yes",Z84,Y84) ->  | AD84: =IF(INPUTS!$B$15="yes",AC84,AB84) ->  | AE84: no | AG84: =P84*('upper bound Kenaga'!$F$36/100) ->  | AI84: =P84*('upper bound Kenaga'!$F$96/100) -> 
A85: Note: To provide risk management with the maximum possible information, | J85: =COUNTIF(K$21:K85,"=yes") -> 1 | K85: =IF(LOOKUP(VALUE(M85),INPUTS!$G$6:$G$35)=M85,"yes","no") -> no | L85: =IF(K85="yes",(LOOKUP(J85,INPUTS!$E$6:$E$35,INPUTS!$F$6:$F$35)),0) -> 0 | M85: 64 | N85: 1 | O85: 0 | R85: =IF(INPUTS!$B$15="yes",Q85,P85) ->  | U85: =IF(INPUTS!$B$15="yes",T85,S85) ->  | X85: =IF(INPUTS!$B$15="yes",W85,V85) ->  | AA85: =IF(INPUTS!$B$15="yes",Z85,Y85) ->  | AD85: =IF(INPUTS!$B$15="yes",AC85,AB85) ->  | AE85: no | AG85: =P85*('upper bound Kenaga'!$F$36/100) ->  | AI85: =P85*('upper bound Kenaga'!$F$96/100) -> 
A86: it is recommended that both the dose-based and concentration-based | J86: =COUNTIF(K$21:K86,"=yes") -> 1 | K86: =IF(LOOKUP(VALUE(M86),INPUTS!$G$6:$G$35)=M86,"yes","no") -> no | L86: =IF(K86="yes",(LOOKUP(J86,INPUTS!$E$6:$E$35,INPUTS!$F$6:$F$35)),0) -> 0 | M86: =(M85+1) -> 65 | N86: =IF($B$9>N85,IF(O85=($B$8-1),(N85+1),(N85)),(N85)) -> 1 | O86: =IF(O85<($B$8-1),(1+O85),0) -> 0 | R86: =IF(INPUTS!$B$15="yes",Q86,P86) ->  | S86: =IF(($N86>$N85),(EXP(-$R$16)*(S85)+$R$12),((EXP(-$R$16)*(S85)))) ->  | U86: =IF(INPUTS!$B$15="yes",T86,S86) ->  | V86: =IF(($N86>$N85),(EXP(-$R$16)*(V85)+$R$13),((EXP(-$R$16)*(V85)))) ->  | X86: =IF(INPUTS!$B$15="yes",W86,V86) ->  | Y86: =IF(($N86>$N85),(EXP(-$R$16)*(Y85)+$R$14),((EXP(-$R$16)*(Y85)))) ->  | AA86: =IF(INPUTS!$B$15="yes",Z86,Y86) ->  | AB86: =IF(($N86>$N85),(EXP(-$R$16)*(AB85)+$R$15),((EXP(-$R$16)*(AB85)))) ->  | AD86: =IF(INPUTS!$B$15="yes",AC86,AB86) ->  | AE86: no | AG86: =P86*('upper bound Kenaga'!$F$36/100) ->  | AI86: =P86*('upper bound Kenaga'!$F$96/100) -> 
A87: RQs be calculated when data are available | J87: =COUNTIF(K$21:K87,"=yes") -> 1 | K87: =IF(LOOKUP(VALUE(M87),INPUTS!$G$6:$G$35)=M87,"yes","no") -> no | L87: =IF(K87="yes",(LOOKUP(J87,INPUTS!$E$6:$E$35,INPUTS!$F$6:$F$35)),0) -> 0 | M87: 66 | N87: 1 | O87: 0 | Q87: =IF($K87="yes",(EXP(-$R$16)*(Q86)+(Q$11*$L87)),((EXP(-$R$16)*(Q86)))) ->  | R87: =IF(INPUTS!$B$15="yes",Q87,P87) ->  | T87: =IF($K87="yes",(EXP(-$R$16)*(T86)+(Q$12*$L87)),((EXP(-$R$16)*(T86)))) ->  | U87: =IF(INPUTS!$B$15="yes",T87,S87) ->  | W87: =IF($K87="yes",(EXP(-$R$16)*(W86)+(Q$13*$L87)),((EXP(-$R$16)*(W86)))) ->  | X87: =IF(INPUTS!$B$15="yes",W87,V87) ->  | Z87: =IF($K87="yes",(EXP(-$R$16)*(Z86)+(Q$14*$L87)),((EXP(-$R$16)*(Z86)))) ->  | AA87: =IF(INPUTS!$B$15="yes",Z87,Y87) ->  | AC87: =IF($K87="yes",(EXP(-$R$16)*(AC86)+(Q$15*$L87)),((EXP(-$R$16)*(AC86)))) ->  | AD87: =IF(INPUTS!$B$15="yes",AC87,AB87) ->  | AE87: no | AG87: =P87*('upper bound Kenaga'!$F$36/100) ->  | AI87: =P87*('upper bound Kenaga'!$F$96/100) -> 
J88: =COUNTIF(K$21:K88,"=yes") -> 1 | K88: =IF(LOOKUP(VALUE(M88),INPUTS!$G$6:$G$35)=M88,"yes","no") -> no | L88: =IF(K88="yes",(LOOKUP(J88,INPUTS!$E$6:$E$35,INPUTS!$F$6:$F$35)),0) -> 0 | M88: 67 | N88: 1 | O88: 0 | R88: =IF(INPUTS!$B$15="yes",Q88,P88) ->  | U88: =IF(INPUTS!$B$15="yes",T88,S88) ->  | X88: =IF(INPUTS!$B$15="yes",W88,V88) ->  | AA88: =IF(INPUTS!$B$15="yes",Z88,Y88) ->  | AD88: =IF(INPUTS!$B$15="yes",AC88,AB88) ->  | AE88: no | AG88: =P88*('upper bound Kenaga'!$F$36/100) ->  | AI88: =P88*('upper bound Kenaga'!$F$96/100) -> 
J89: =COUNTIF(K$21:K89,"=yes") -> 1 | K89: =IF(LOOKUP(VALUE(M89),INPUTS!$G$6:$G$35)=M89,"yes","no") -> no | L89: =IF(K89="yes",(LOOKUP(J89,INPUTS!$E$6:$E$35,INPUTS!$F$6:$F$35)),0) -> 0 | M89: 68 | N89: 1 | O89: 0 | R89: =IF(INPUTS!$B$15="yes",Q89,P89) ->  | U89: =IF(INPUTS!$B$15="yes",T89,S89) ->  | X89: =IF(INPUTS!$B$15="yes",W89,V89) ->  | AA89: =IF(INPUTS!$B$15="yes",Z89,Y89) ->  | AD89: =IF(INPUTS!$B$15="yes",AC89,AB89) ->  | AE89: no | AG89: =P89*('upper bound Kenaga'!$F$36/100) ->  | AI89: =P89*('upper bound Kenaga'!$F$96/100) -> 
J90: =COUNTIF(K$21:K90,"=yes") -> 1 | K90: =IF(LOOKUP(VALUE(M90),INPUTS!$G$6:$G$35)=M90,"yes","no") -> no | L90: =IF(K90="yes",(LOOKUP(J90,INPUTS!$E$6:$E$35,INPUTS!$F$6:$F$35)),0) -> 0 | M90: 69 | N90: 1 | O90: 0 | R90: =IF(INPUTS!$B$15="yes",Q90,P90) ->  | U90: =IF(INPUTS!$B$15="yes",T90,S90) ->  | X90: =IF(INPUTS!$B$15="yes",W90,V90) ->  | AA90: =IF(INPUTS!$B$15="yes",Z90,Y90) ->  | AD90: =IF(INPUTS!$B$15="yes",AC90,AB90) ->  | AE90: =$B$11 -> no | AG90: =P90*('upper bound Kenaga'!$F$36/100) ->  | AI90: =P90*('upper bound Kenaga'!$F$96/100) -> 
A91: =B3 -> 0 | B91: =B4 -> 0 | E91: Upper bound Kenaga Residues | J91: =COUNTIF(K$21:K91,"=yes") -> 1 | K91: =IF(LOOKUP(VALUE(M91),INPUTS!$G$6:$G$35)=M91,"yes","no") -> no | L91: =IF(K91="yes",(LOOKUP(J91,INPUTS!$E$6:$E$35,INPUTS!$F$6:$F$35)),0) -> 0 | M91: 70 | N91: 1 | O91: 0 | R91: =IF(INPUTS!$B$15="yes",Q91,P91) ->  | U91: =IF(INPUTS!$B$15="yes",T91,S91) ->  | X91: =IF(INPUTS!$B$15="yes",W91,V91) ->  | AA91: =IF(INPUTS!$B$15="yes",Z91,Y91) ->  | AD91: =IF(INPUTS!$B$15="yes",AC91,AB91) ->  | AE91: no | AG91: =P91*('upper bound Kenaga'!$F$36/100) ->  | AI91: =P91*('upper bound Kenaga'!$F$96/100) -> 
A92: Mammalian Results | J92: =COUNTIF(K$21:K92,"=yes") -> 1 | K92: =IF(LOOKUP(VALUE(M92),INPUTS!$G$6:$G$35)=M92,"yes","no") -> no | L92: =IF(K92="yes",(LOOKUP(J92,INPUTS!$E$6:$E$35,INPUTS!$F$6:$F$35)),0) -> 0 | M92: 71 | N92: 1 | O92: 0 | R92: =IF(INPUTS!$B$15="yes",Q92,P92) ->  | U92: =IF(INPUTS!$B$15="yes",T92,S92) ->  | X92: =IF(INPUTS!$B$15="yes",W92,V92) ->  | AA92: =IF(INPUTS!$B$15="yes",Z92,Y92) ->  | AD92: =IF(INPUTS!$B$15="yes",AC92,AB92) ->  | AE92: no | AG92: =P92*('upper bound Kenaga'!$F$36/100) ->  | AI92: =P92*('upper bound Kenaga'!$F$96/100) -> 
J93: =COUNTIF(K$21:K93,"=yes") -> 1 | K93: =IF(LOOKUP(VALUE(M93),INPUTS!$G$6:$G$35)=M93,"yes","no") -> no | L93: =IF(K93="yes",(LOOKUP(J93,INPUTS!$E$6:$E$35,INPUTS!$F$6:$F$35)),0) -> 0 | M93: 72 | N93: 1 | O93: 0 | R93: =IF(INPUTS!$B$15="yes",Q93,P93) ->  | U93: =IF(INPUTS!$B$15="yes",T93,S93) ->  | X93: =IF(INPUTS!$B$15="yes",W93,V93) ->  | AA93: =IF(INPUTS!$B$15="yes",Z93,Y93) ->  | AD93: =IF(INPUTS!$B$15="yes",AC93,AB93) ->  | AE93: no | AG93: =P93*('upper bound Kenaga'!$F$36/100) ->  | AI93: =P93*('upper bound Kenaga'!$F$96/100) -> 
B94: Mammalian | C94: Body | D94: Ingestion (Fdry) | E94: Ingestion (Fwet) | F94: % body wgt | G94: FI | J94: =COUNTIF(K$21:K94,"=yes") -> 1 | K94: =IF(LOOKUP(VALUE(M94),INPUTS!$G$6:$G$35)=M94,"yes","no") -> no | L94: =IF(K94="yes",(LOOKUP(J94,INPUTS!$E$6:$E$35,INPUTS!$F$6:$F$35)),0) -> 0 | M94: 73 | N94: 1 | O94: 0 | R94: =IF(INPUTS!$B$15="yes",Q94,P94) ->  | U94: =IF(INPUTS!$B$15="yes",T94,S94) ->  | X94: =IF(INPUTS!$B$15="yes",W94,V94) ->  | AA94: =IF(INPUTS!$B$15="yes",Z94,Y94) ->  | AD94: =IF(INPUTS!$B$15="yes",AC94,AB94) ->  | AE94: no | AG94: =P94*('upper bound Kenaga'!$F$36/100) ->  | AI94: =P94*('upper bound Kenaga'!$F$96/100) -> 
B95: Class | C95: Weight | D95: (g bwt/day) | E95: (g/day) | F95: consumed | G95: (kg-diet/day) | J95: =COUNTIF(K$21:K95,"=yes") -> 1 | K95: =IF(LOOKUP(VALUE(M95),INPUTS!$G$6:$G$35)=M95,"yes","no") -> no | L95: =IF(K95="yes",(LOOKUP(J95,INPUTS!$E$6:$E$35,INPUTS!$F$6:$F$35)),0) -> 0 | M95: 74 | N95: 1 | O95: 0 | P95: =IF((N95>N94),(EXP(-$R$16)*(P94)+$R$11),((EXP(-$R$16)*(P94)))) ->  | R95: =IF(INPUTS!$B$15="yes",Q95,P95) ->  | U95: =IF(INPUTS!$B$15="yes",T95,S95) ->  | X95: =IF(INPUTS!$B$15="yes",W95,V95) ->  | AA95: =IF(INPUTS!$B$15="yes",Z95,Y95) ->  | AD95: =IF(INPUTS!$B$15="yes",AC95,AB95) ->  | AE95: no | AG95: =P95*('upper bound Kenaga'!$F$36/100) ->  | AI95: =P95*('upper bound Kenaga'!$F$96/100) -> 
C96: =INPUTS!C19 -> 15 | D96: =(0.621*C96^0.564) -> 2.860270259 | E96: =D96/0.2 -> 14.30135129 | F96: =(E96/C96)*100 -> 95.34234195 | G96: =E96/1000 -> 0.01430135129 | J96: =COUNTIF(K$21:K96,"=yes") -> 1 | K96: =IF(LOOKUP(VALUE(M96),INPUTS!$G$6:$G$35)=M96,"yes","no") -> no | L96: =IF(K96="yes",(LOOKUP(J96,INPUTS!$E$6:$E$35,INPUTS!$F$6:$F$35)),0) -> 0 | M96: 75 | N96: 1 | O96: 0 | R96: =IF(INPUTS!$B$15="yes",Q96,P96) ->  | U96: =IF(INPUTS!$B$15="yes",T96,S96) ->  | X96: =IF(INPUTS!$B$15="yes",W96,V96) ->  | AA96: =IF(INPUTS!$B$15="yes",Z96,Y96) ->  | AD96: =IF(INPUTS!$B$15="yes",AC96,AB96) ->  | AE96: no | AG96: =P96*('upper bound Kenaga'!$F$36/100) ->  | AI96: =P96*('upper bound Kenaga'!$F$96/100) -> 
B97: Herbivores/ | C97: =INPUTS!C20 -> 35 | D97: 4.612601939 | E97: =D97/0.2 -> 23.06300969 | F97: 65.89431341 | G97: 0.02306300969 | J97: =COUNTIF(K$21:K97,"=yes") -> 1 | K97: =IF(LOOKUP(VALUE(M97),INPUTS!$G$6:$G$35)=M97,"yes","no") -> no | L97: =IF(K97="yes",(LOOKUP(J97,INPUTS!$E$6:$E$35,INPUTS!$F$6:$F$35)),0) -> 0 | M97: 76 | N97: 1 | O97: 0 | R97: =IF(INPUTS!$B$15="yes",Q97,P97) ->  | U97: =IF(INPUTS!$B$15="yes",T97,S97) ->  | X97: =IF(INPUTS!$B$15="yes",W97,V97) ->  | AA97: =IF(INPUTS!$B$15="yes",Z97,Y97) ->  | AD97: =IF(INPUTS!$B$15="yes",AC97,AB97) ->  | AE97: no | AG97: =P97*('upper bound Kenaga'!$F$36/100) ->  | AI97: =P97*('upper bound Kenaga'!$F$96/100) -> 
B98: insectivores | C98: =INPUTS!C21 -> 1000 | D98: 30.55565517 | E98: =D98/0.2 -> 152.7782758 | F98: 15.27782758 | G98: 0.1527782758 | J98: =COUNTIF(K$21:K98,"=yes") -> 1 | K98: =IF(LOOKUP(VALUE(M98),INPUTS!$G$6:$G$35)=M98,"yes","no") -> no | L98: =IF(K98="yes",(LOOKUP(J98,INPUTS!$E$6:$E$35,INPUTS!$F$6:$F$35)),0) -> 0 | M98: 77 | N98: 1 | O98: 0 | R98: =IF(INPUTS!$B$15="yes",Q98,P98) ->  | U98: =IF(INPUTS!$B$15="yes",T98,S98) ->  | X98: =IF(INPUTS!$B$15="yes",W98,V98) ->  | AA98: =IF(INPUTS!$B$15="yes",Z98,Y98) ->  | AD98: =IF(INPUTS!$B$15="yes",AC98,AB98) ->  | AE98: no | AG98: =P98*('upper bound Kenaga'!$F$36/100) ->  | AI98: =P98*('upper bound Kenaga'!$F$96/100) -> 
C99: =INPUTS!C19 -> 15 | D99: 2.860270259 | E99: =D99/0.9 -> 3.178078065 | F99: 21.1871871 | G99: 0.003178078065 | J99: =COUNTIF(K$21:K99,"=yes") -> 1 | K99: =IF(LOOKUP(VALUE(M99),INPUTS!$G$6:$G$35)=M99,"yes","no") -> no | L99: =IF(K99="yes",(LOOKUP(J99,INPUTS!$E$6:$E$35,INPUTS!$F$6:$F$35)),0) -> 0 | M99: 78 | N99: 1 | O99: 0 | R99: =IF(INPUTS!$B$15="yes",Q99,P99) ->  | U99: =IF(INPUTS!$B$15="yes",T99,S99) ->  | X99: =IF(INPUTS!$B$15="yes",W99,V99) ->  | AA99: =IF(INPUTS!$B$15="yes",Z99,Y99) ->  | AD99: =IF(INPUTS!$B$15="yes",AC99,AB99) ->  | AE99: no | AG99: =P99*('upper bound Kenaga'!$F$36/100) ->  | AI99: =P99*('upper bound Kenaga'!$F$96/100) -> 
B100: Grainvores | C100: =INPUTS!C20 -> 35 | D100: 4.612601939 | E100: =D100/0.9 -> 5.125113265 | F100: 14.64318076 | G100: 0.005125113265 | J100: =COUNTIF(K$21:K100,"=yes") -> 1 | K100: =IF(LOOKUP(VALUE(M100),INPUTS!$G$6:$G$35)=M100,"yes","no") -> no | L100: =IF(K100="yes",(LOOKUP(J100,INPUTS!$E$6:$E$35,INPUTS!$F$6:$F$35)),0) -> 0 | M100: 79 | N100: 1 | O100: 0 | R100: =IF(INPUTS!$B$15="yes",Q100,P100) ->  | U100: =IF(INPUTS!$B$15="yes",T100,S100) ->  | X100: =IF(INPUTS!$B$15="yes",W100,V100) ->  | AA100: =IF(INPUTS!$B$15="yes",Z100,Y100) ->  | AD100: =IF(INPUTS!$B$15="yes",AC100,AB100) ->  | AE100: no | AG100: =P100*('upper bound Kenaga'!$F$36/100) ->  | AI100: =P100*('upper bound Kenaga'!$F$96/100) -> 
C101: =INPUTS!C21 -> 1000 | D101: 30.55565517 | E101: =D101/0.9 -> 33.95072796 | F101: 3.395072796 | G101: 0.03395072796 | J101: =COUNTIF(K$21:K101,"=yes") -> 1 | K101: =IF(LOOKUP(VALUE(M101),INPUTS!$G$6:$G$35)=M101,"yes","no") -> no | L101: =IF(K101="yes",(LOOKUP(J101,INPUTS!$E$6:$E$35,INPUTS!$F$6:$F$35)),0) -> 0 | M101: 80 | N101: 1 | O101: 0 | R101: =IF(INPUTS!$B$15="yes",Q101,P101) ->  | U101: =IF(INPUTS!$B$15="yes",T101,S101) ->  | X101: =IF(INPUTS!$B$15="yes",W101,V101) ->  | AA101: =IF(INPUTS!$B$15="yes",Z101,Y101) ->  | AD101: =IF(INPUTS!$B$15="yes",AC101,AB101) ->  | AE101: no | AG101: =P101*('upper bound Kenaga'!$F$36/100) ->  | AI101: =P101*('upper bound Kenaga'!$F$96/100) -> 
J102: =COUNTIF(K$21:K102,"=yes") -> 1 | K102: =IF(LOOKUP(VALUE(M102),INPUTS!$G$6:$G$35)=M102,"yes","no") -> no | L102: =IF(K102="yes",(LOOKUP(J102,INPUTS!$E$6:$E$35,INPUTS!$F$6:$F$35)),0) -> 0 | M102: 81 | N102: 1 | O102: 0 | R102: =IF(INPUTS!$B$15="yes",Q102,P102) ->  | U102: =IF(INPUTS!$B$15="yes",T102,S102) ->  | X102: =IF(INPUTS!$B$15="yes",W102,V102) ->  | AA102: =IF(INPUTS!$B$15="yes",Z102,Y102) ->  | AD102: =IF(INPUTS!$B$15="yes",AC102,AB102) ->  | AE102: no | AG102: =P102*('upper bound Kenaga'!$F$36/100) ->  | AI102: =P102*('upper bound Kenaga'!$F$96/100) -> 
B103: Mammalian | C103: Body | D103: Adjusted | E103: Adjusted | J103: =COUNTIF(K$21:K103,"=yes") -> 1 | K103: =IF(LOOKUP(VALUE(M103),INPUTS!$G$6:$G$35)=M103,"yes","no") -> no | L103: =IF(K103="yes",(LOOKUP(J103,INPUTS!$E$6:$E$35,INPUTS!$F$6:$F$35)),0) -> 0 | M103: 82 | N103: 1 | O103: 0 | R103: =IF(INPUTS!$B$15="yes",Q103,P103) ->  | U103: =IF(INPUTS!$B$15="yes",T103,S103) ->  | X103: =IF(INPUTS!$B$15="yes",W103,V103) ->  | AA103: =IF(INPUTS!$B$15="yes",Z103,Y103) ->  | AD103: =IF(INPUTS!$B$15="yes",AC103,AB103) ->  | AE103: no | AG103: =P103*('upper bound Kenaga'!$F$36/100) ->  | AI103: =P103*('upper bound Kenaga'!$F$96/100) -> 
B104: Class | C104: Weight | D104: LD50 | E104: NOAEL | J104: =COUNTIF(K$21:K104,"=yes") -> 1 | K104: =IF(LOOKUP(VALUE(M104),INPUTS!$G$6:$G$35)=M104,"yes","no") -> no | L104: =IF(K104="yes",(LOOKUP(J104,INPUTS!$E$6:$E$35,INPUTS!$F$6:$F$35)),0) -> 0 | M104: 83 | N104: 1 | O104: 0 | R104: =IF(INPUTS!$B$15="yes",Q104,P104) ->  | U104: =IF(INPUTS!$B$15="yes",T104,S104) ->  | X104: =IF(INPUTS!$B$15="yes",W104,V104) ->  | AA104: =IF(INPUTS!$B$15="yes",Z104,Y104) ->  | AD104: =IF(INPUTS!$B$15="yes",AC104,AB104) ->  | AE104: no | AG104: =P104*('upper bound Kenaga'!$F$36/100) ->  | AI104: =P104*('upper bound Kenaga'!$F$96/100) -> 
C105: =C96 -> 15 | D105: =($D$20*((INPUTS!$D$48/C105)^0.25)) -> 0 | E105: =($D$22*((INPUTS!$E$48/C105)^0.25)) -> 0 | J105: =COUNTIF(K$21:K105,"=yes") -> 1 | K105: =IF(LOOKUP(VALUE(M105),INPUTS!$G$6:$G$35)=M105,"yes","no") -> no | L105: =IF(K105="yes",(LOOKUP(J105,INPUTS!$E$6:$E$35,INPUTS!$F$6:$F$35)),0) -> 0 | M105: 84 | N105: 1 | O105: 0 | R105: =IF(INPUTS!$B$15="yes",Q105,P105) ->  | U105: =IF(INPUTS!$B$15="yes",T105,S105) ->  | X105: =IF(INPUTS!$B$15="yes",W105,V105) ->  | AA105: =IF(INPUTS!$B$15="yes",Z105,Y105) ->  | AD105: =IF(INPUTS!$B$15="yes",AC105,AB105) ->  | AE105: no | AG105: =P105*('upper bound Kenaga'!$F$36/100) ->  | AI105: =P105*('upper bound Kenaga'!$F$96/100) -> 
B106: Herbivores/ | C106: 35 | D106: =($D$20*((INPUTS!D48/C106)^0.25)) -> 0 | E106: =($D$22*((INPUTS!$E$48/C106)^0.25)) -> 0 | J106: =COUNTIF(K$21:K106,"=yes") -> 1 | K106: =IF(LOOKUP(VALUE(M106),INPUTS!$G$6:$G$35)=M106,"yes","no") -> no | L106: =IF(K106="yes",(LOOKUP(J106,INPUTS!$E$6:$E$35,INPUTS!$F$6:$F$35)),0) -> 0 | M106: 85 | N106: 1 | O106: 0 | R106: =IF(INPUTS!$B$15="yes",Q106,P106) ->  | U106: =IF(INPUTS!$B$15="yes",T106,S106) ->  | X106: =IF(INPUTS!$B$15="yes",W106,V106) ->  | AA106: =IF(INPUTS!$B$15="yes",Z106,Y106) ->  | AD106: =IF(INPUTS!$B$15="yes",AC106,AB106) ->  | AE106: no | AG106: =P106*('upper bound Kenaga'!$F$36/100) ->  | AI106: =P106*('upper bound Kenaga'!$F$96/100) -> 
B107: insectivores | C107: 1000 | D107: =($D$20*((INPUTS!D48/C107)^0.25)) -> 0 | E107: =($D$22*((INPUTS!$E$48/C107)^0.25)) -> 0 | J107: =COUNTIF(K$21:K107,"=yes") -> 1 | K107: =IF(LOOKUP(VALUE(M107),INPUTS!$G$6:$G$35)=M107,"yes","no") -> no | L107: =IF(K107="yes",(LOOKUP(J107,INPUTS!$E$6:$E$35,INPUTS!$F$6:$F$35)),0) -> 0 | M107: 86 | N107: 1 | O107: 0 | R107: =IF(INPUTS!$B$15="yes",Q107,P107) ->  | U107: =IF(INPUTS!$B$15="yes",T107,S107) ->  | X107: =IF(INPUTS!$B$15="yes",W107,V107) ->  | AA107: =IF(INPUTS!$B$15="yes",Z107,Y107) ->  | AD107: =IF(INPUTS!$B$15="yes",AC107,AB107) ->  | AE107: no | AG107: =P107*('upper bound Kenaga'!$F$36/100) ->  | AI107: =P107*('upper bound Kenaga'!$F$96/100) -> 
C108: 15 | D108: =($D$20*((INPUTS!D48/C108)^0.25)) -> 0 | E108: =($D$22*((INPUTS!$E$48/C108)^0.25)) -> 0 | J108: =COUNTIF(K$21:K108,"=yes") -> 1 | K108: =IF(LOOKUP(VALUE(M108),INPUTS!$G$6:$G$35)=M108,"yes","no") -> no | L108: =IF(K108="yes",(LOOKUP(J108,INPUTS!$E$6:$E$35,INPUTS!$F$6:$F$35)),0) -> 0 | M108: 87 | N108: 1 | O108: 0 | R108: =IF(INPUTS!$B$15="yes",Q108,P108) ->  | U108: =IF(INPUTS!$B$15="yes",T108,S108) ->  | X108: =IF(INPUTS!$B$15="yes",W108,V108) ->  | AA108: =IF(INPUTS!$B$15="yes",Z108,Y108) ->  | AD108: =IF(INPUTS!$B$15="yes",AC108,AB108) ->  | AE108: no | AG108: =P108*('upper bound Kenaga'!$F$36/100) ->  | AI108: =P108*('upper bound Kenaga'!$F$96/100) -> 
B109: Grainvores | C109: 35 | D109: =($D$20*((INPUTS!D48/C109)^0.25)) -> 0 | E109: =($D$22*((INPUTS!$E$48/C109)^0.25)) -> 0 | J109: =COUNTIF(K$21:K109,"=yes") -> 1 | K109: =IF(LOOKUP(VALUE(M109),INPUTS!$G$6:$G$35)=M109,"yes","no") -> no | L109: =IF(K109="yes",(LOOKUP(J109,INPUTS!$E$6:$E$35,INPUTS!$F$6:$F$35)),0) -> 0 | M109: 88 | N109: 1 | O109: 0 | R109: =IF(INPUTS!$B$15="yes",Q109,P109) ->  | U109: =IF(INPUTS!$B$15="yes",T109,S109) ->  | X109: =IF(INPUTS!$B$15="yes",W109,V109) ->  | AA109: =IF(INPUTS!$B$15="yes",Z109,Y109) ->  | AD109: =IF(INPUTS!$B$15="yes",AC109,AB109) ->  | AE109: no | AG109: =P109*('upper bound Kenaga'!$F$36/100) ->  | AI109: =P109*('upper bound Kenaga'!$F$96/100) -> 
C110: 1000 | D110: =($D$20*((INPUTS!D48/C110)^0.25)) -> 0 | E110: =($D$22*((INPUTS!$E$48/C110)^0.25)) -> 0 | J110: =COUNTIF(K$21:K110,"=yes") -> 1 | K110: =IF(LOOKUP(VALUE(M110),INPUTS!$G$6:$G$35)=M110,"yes","no") -> no | L110: =IF(K110="yes",(LOOKUP(J110,INPUTS!$E$6:$E$35,INPUTS!$F$6:$F$35)),0) -> 0 | M110: 89 | N110: 1 | O110: 0 | R110: =IF(INPUTS!$B$15="yes",Q110,P110) ->  | U110: =IF(INPUTS!$B$15="yes",T110,S110) ->  | X110: =IF(INPUTS!$B$15="yes",W110,V110) ->  | AA110: =IF(INPUTS!$B$15="yes",Z110,Y110) ->  | AD110: =IF(INPUTS!$B$15="yes",AC110,AB110) ->  | AE110: no | AG110: =P110*('upper bound Kenaga'!$F$36/100) ->  | AI110: =P110*('upper bound Kenaga'!$F$96/100) -> 
J111: =COUNTIF(K$21:K111,"=yes") -> 1 | K111: =IF(LOOKUP(VALUE(M111),INPUTS!$G$6:$G$35)=M111,"yes","no") -> no | L111: =IF(K111="yes",(LOOKUP(J111,INPUTS!$E$6:$E$35,INPUTS!$F$6:$F$35)),0) -> 0 | M111: 90 | N111: 1 | O111: 0 | R111: =IF(INPUTS!$B$15="yes",Q111,P111) ->  | U111: =IF(INPUTS!$B$15="yes",T111,S111) ->  | X111: =IF(INPUTS!$B$15="yes",W111,V111) ->  | AA111: =IF(INPUTS!$B$15="yes",Z111,Y111) ->  | AD111: =IF(INPUTS!$B$15="yes",AC111,AB111) ->  | AE111: no | AG111: =P111*('upper bound Kenaga'!$F$36/100) ->  | AI111: =P111*('upper bound Kenaga'!$F$96/100) -> 
A112: Dose-Based EECs (mg/kg-bw) | B112: Mammalian Classes and Body weight | J112: =COUNTIF(K$21:K112,"=yes") -> 1 | K112: =IF(LOOKUP(VALUE(M112),INPUTS!$G$6:$G$35)=M112,"yes","no") -> no | L112: =IF(K112="yes",(LOOKUP(J112,INPUTS!$E$6:$E$35,INPUTS!$F$6:$F$35)),0) -> 0 | M112: 91 | N112: 1 | O112: 0 | R112: =IF(INPUTS!$B$15="yes",Q112,P112) ->  | U112: =IF(INPUTS!$B$15="yes",T112,S112) ->  | X112: =IF(INPUTS!$B$15="yes",W112,V112) ->  | AA112: =IF(INPUTS!$B$15="yes",Z112,Y112) ->  | AD112: =IF(INPUTS!$B$15="yes",AC112,AB112) ->  | AE112: no | AG112: =P112*('upper bound Kenaga'!$F$36/100) ->  | AI112: =P112*('upper bound Kenaga'!$F$96/100) -> 
B113: (grams) | J113: =COUNTIF(K$21:K113,"=yes") -> 1 | K113: =IF(LOOKUP(VALUE(M113),INPUTS!$G$6:$G$35)=M113,"yes","no") -> no | L113: =IF(K113="yes",(LOOKUP(J113,INPUTS!$E$6:$E$35,INPUTS!$F$6:$F$35)),0) -> 0 | M113: 92 | N113: 1 | O113: 0 | R113: =IF(INPUTS!$B$15="yes",Q113,P113) ->  | U113: =IF(INPUTS!$B$15="yes",T113,S113) ->  | X113: =IF(INPUTS!$B$15="yes",W113,V113) ->  | AA113: =IF(INPUTS!$B$15="yes",Z113,Y113) ->  | AD113: =IF(INPUTS!$B$15="yes",AC113,AB113) ->  | AE113: no | AG113: =P113*('upper bound Kenaga'!$F$36/100) ->  | AI113: =P113*('upper bound Kenaga'!$F$96/100) -> 
B114: =C96 -> 15 | C114: =C97 -> 35 | D114: =C98 -> 1000 | J114: =COUNTIF(K$21:K114,"=yes") -> 1 | K114: =IF(LOOKUP(VALUE(M114),INPUTS!$G$6:$G$35)=M114,"yes","no") -> no | L114: =IF(K114="yes",(LOOKUP(J114,INPUTS!$E$6:$E$35,INPUTS!$F$6:$F$35)),0) -> 0 | M114: 93 | N114: 1 | O114: 0 | R114: =IF(INPUTS!$B$15="yes",Q114,P114) ->  | U114: =IF(INPUTS!$B$15="yes",T114,S114) ->  | X114: =IF(INPUTS!$B$15="yes",W114,V114) ->  | AA114: =IF(INPUTS!$B$15="yes",Z114,Y114) ->  | AD114: =IF(INPUTS!$B$15="yes",AC114,AB114) ->  | AE114: no | AG114: =P114*('upper bound Kenaga'!$F$36/100) ->  | AI114: =P114*('upper bound Kenaga'!$F$96/100) -> 
A115: Short Grass | B115: =B27*(G$96/(C$96/1000)) ->  | C115: =B27*($G$97/(C$97/1000)) ->  | D115: =B27*(G$98/(C$98/1000)) ->  | J115: =COUNTIF(K$21:K115,"=yes") -> 1 | K115: =IF(LOOKUP(VALUE(M115),INPUTS!$G$6:$G$35)=M115,"yes","no") -> no | L115: =IF(K115="yes",(LOOKUP(J115,INPUTS!$E$6:$E$35,INPUTS!$F$6:$F$35)),0) -> 0 | M115: 94 | N115: 1 | O115: 0 | R115: =IF(INPUTS!$B$15="yes",Q115,P115) ->  | U115: =IF(INPUTS!$B$15="yes",T115,S115) ->  | X115: =IF(INPUTS!$B$15="yes",W115,V115) ->  | AA115: =IF(INPUTS!$B$15="yes",Z115,Y115) ->  | AD115: =IF(INPUTS!$B$15="yes",AC115,AB115) ->  | AE115: no | AG115: =P115*('upper bound Kenaga'!$F$36/100) ->  | AI115: =P115*('upper bound Kenaga'!$F$96/100) -> 
A116: Tall Grass | B116: =B28*(G$96/(C$96/1000)) ->  | C116: =B28*($G$97/(C$97/1000)) ->  | D116: =B28*(G$98/(C$98/1000)) ->  | J116: =COUNTIF(K$21:K116,"=yes") -> 1 | K116: =IF(LOOKUP(VALUE(M116),INPUTS!$G$6:$G$35)=M116,"yes","no") -> no | L116: =IF(K116="yes",(LOOKUP(J116,INPUTS!$E$6:$E$35,INPUTS!$F$6:$F$35)),0) -> 0 | M116: 95 | N116: 1 | O116: 0 | R116: =IF(INPUTS!$B$15="yes",Q116,P116) ->  | U116: =IF(INPUTS!$B$15="yes",T116,S116) ->  | X116: =IF(INPUTS!$B$15="yes",W116,V116) ->  | AA116: =IF(INPUTS!$B$15="yes",Z116,Y116) ->  | AD116: =IF(INPUTS!$B$15="yes",AC116,AB116) ->  | AE116: no | AG116: =P116*('upper bound Kenaga'!$F$36/100) ->  | AI116: =P116*('upper bound Kenaga'!$F$96/100) -> 
A117: Broadleaf plants | B117: =B29*(G$96/(C$96/1000)) ->  | C117: =B29*($G$97/(C$97/1000)) ->  | D117: =B29*(G$98/(C$98/1000)) ->  | J117: =COUNTIF(K$21:K117,"=yes") -> 1 | K117: =IF(LOOKUP(VALUE(M117),INPUTS!$G$6:$G$35)=M117,"yes","no") -> no | L117: =IF(K117="yes",(LOOKUP(J117,INPUTS!$E$6:$E$35,INPUTS!$F$6:$F$35)),0) -> 0 | M117: 96 | N117: 1 | O117: 0 | R117: =IF(INPUTS!$B$15="yes",Q117,P117) ->  | U117: =IF(INPUTS!$B$15="yes",T117,S117) ->  | X117: =IF(INPUTS!$B$15="yes",W117,V117) ->  | AA117: =IF(INPUTS!$B$15="yes",Z117,Y117) ->  | AD117: =IF(INPUTS!$B$15="yes",AC117,AB117) ->  | AE117: no | AG117: =P117*('upper bound Kenaga'!$F$36/100) ->  | AI117: =P117*('upper bound Kenaga'!$F$96/100) -> 
A118: Fruits/pods | B118: =B30*(G$96/(C$96/1000)) ->  | C118: =B30*($G$97/(C$97/1000)) ->  | D118: =B30*(G$98/(C$98/1000)) ->  | J118: =COUNTIF(K$21:K118,"=yes") -> 1 | K118: =IF(LOOKUP(VALUE(M118),INPUTS!$G$6:$G$35)=M118,"yes","no") -> no | L118: =IF(K118="yes",(LOOKUP(J118,INPUTS!$E$6:$E$35,INPUTS!$F$6:$F$35)),0) -> 0 | M118: 97 | N118: 1 | O118: 0 | R118: =IF(INPUTS!$B$15="yes",Q118,P118) ->  | U118: =IF(INPUTS!$B$15="yes",T118,S118) ->  | X118: =IF(INPUTS!$B$15="yes",W118,V118) ->  | AA118: =IF(INPUTS!$B$15="yes",Z118,Y118) ->  | AD118: =IF(INPUTS!$B$15="yes",AC118,AB118) ->  | AE118: no | AG118: =P118*('upper bound Kenaga'!$F$36/100) ->  | AI118: =P118*('upper bound Kenaga'!$F$96/100) -> 
A119: Arthropods | B119: =B31*(G$96/(C$96/1000)) ->  | C119: =B31*($G$97/(C$97/1000)) ->  | D119: =B31*(G$98/(C$98/1000)) ->  | J119: =COUNTIF(K$21:K119,"=yes") -> 1 | K119: =IF(LOOKUP(VALUE(M119),INPUTS!$G$6:$G$35)=M119,"yes","no") -> no | L119: =IF(K119="yes",(LOOKUP(J119,INPUTS!$E$6:$E$35,INPUTS!$F$6:$F$35)),0) -> 0 | M119: 98 | N119: 1 | O119: 0 | R119: =IF(INPUTS!$B$15="yes",Q119,P119) ->  | U119: =IF(INPUTS!$B$15="yes",T119,S119) ->  | X119: =IF(INPUTS!$B$15="yes",W119,V119) ->  | AA119: =IF(INPUTS!$B$15="yes",Z119,Y119) ->  | AD119: =IF(INPUTS!$B$15="yes",AC119,AB119) ->  | AE119: no | AG119: =P119*('upper bound Kenaga'!$F$36/100) ->  | AI119: =P119*('upper bound Kenaga'!$F$96/100) -> 
A120: Seeds | B120: =B30*(G99/(C99/1000)) ->  | C120: =B30*(G100/(C100/1000)) ->  | D120: =B30*(G101/(C101/1000)) ->  | J120: =COUNTIF(K$21:K120,"=yes") -> 1 | K120: =IF(LOOKUP(VALUE(M120),INPUTS!$G$6:$G$35)=M120,"yes","no") -> no | L120: =IF(K120="yes",(LOOKUP(J120,INPUTS!$E$6:$E$35,INPUTS!$F$6:$F$35)),0) -> 0 | M120: 99 | N120: 1 | O120: 0 | R120: =IF(INPUTS!$B$15="yes",Q120,P120) ->  | U120: =IF(INPUTS!$B$15="yes",T120,S120) ->  | X120: =IF(INPUTS!$B$15="yes",W120,V120) ->  | AA120: =IF(INPUTS!$B$15="yes",Z120,Y120) ->  | AD120: =IF(INPUTS!$B$15="yes",AC120,AB120) ->  | AE120: no | AG120: =P120*('upper bound Kenaga'!$F$36/100) ->  | AI120: =P120*('upper bound Kenaga'!$F$96/100) -> 
J121: =COUNTIF(K$21:K121,"=yes") -> 1 | K121: =IF(LOOKUP(VALUE(M121),INPUTS!$G$6:$G$35)=M121,"yes","no") -> no | L121: =IF(K121="yes",(LOOKUP(J121,INPUTS!$E$6:$E$35,INPUTS!$F$6:$F$35)),0) -> 0 | M121: 100 | N121: 1 | O121: 0 | R121: =IF(INPUTS!$B$15="yes",Q121,P121) ->  | U121: =IF(INPUTS!$B$15="yes",T121,S121) ->  | X121: =IF(INPUTS!$B$15="yes",W121,V121) ->  | AA121: =IF(INPUTS!$B$15="yes",Z121,Y121) ->  | AD121: =IF(INPUTS!$B$15="yes",AC121,AB121) ->  | AE121: no | AG121: =P121*('upper bound Kenaga'!$F$36/100) ->  | AI121: =P121*('upper bound Kenaga'!$F$96/100) -> 
J122: =COUNTIF(K$21:K122,"=yes") -> 1 | K122: =IF(LOOKUP(VALUE(M122),INPUTS!$G$6:$G$35)=M122,"yes","no") -> no | L122: =IF(K122="yes",(LOOKUP(J122,INPUTS!$E$6:$E$35,INPUTS!$F$6:$F$35)),0) -> 0 | M122: 101 | N122: 1 | O122: 0 | R122: =IF(INPUTS!$B$15="yes",Q122,P122) ->  | U122: =IF(INPUTS!$B$15="yes",T122,S122) ->  | X122: =IF(INPUTS!$B$15="yes",W122,V122) ->  | AA122: =IF(INPUTS!$B$15="yes",Z122,Y122) ->  | AD122: =IF(INPUTS!$B$15="yes",AC122,AB122) ->  | AE122: no | AG122: =P122*('upper bound Kenaga'!$F$36/100) ->  | AI122: =P122*('upper bound Kenaga'!$F$96/100) -> 
J123: =COUNTIF(K$21:K123,"=yes") -> 1 | K123: =IF(LOOKUP(VALUE(M123),INPUTS!$G$6:$G$35)=M123,"yes","no") -> no | L123: =IF(K123="yes",(LOOKUP(J123,INPUTS!$E$6:$E$35,INPUTS!$F$6:$F$35)),0) -> 0 | M123: 102 | N123: 1 | O123: 0 | R123: =IF(INPUTS!$B$15="yes",Q123,P123) ->  | U123: =IF(INPUTS!$B$15="yes",T123,S123) ->  | X123: =IF(INPUTS!$B$15="yes",W123,V123) ->  | AA123: =IF(INPUTS!$B$15="yes",Z123,Y123) ->  | AD123: =IF(INPUTS!$B$15="yes",AC123,AB123) ->  | AE123: no | AG123: =P123*('upper bound Kenaga'!$F$36/100) ->  | AI123: =P123*('upper bound Kenaga'!$F$96/100) -> 
J124: =COUNTIF(K$21:K124,"=yes") -> 1 | K124: =IF(LOOKUP(VALUE(M124),INPUTS!$G$6:$G$35)=M124,"yes","no") -> no | L124: =IF(K124="yes",(LOOKUP(J124,INPUTS!$E$6:$E$35,INPUTS!$F$6:$F$35)),0) -> 0 | M124: 103 | N124: 1 | O124: 0 | R124: =IF(INPUTS!$B$15="yes",Q124,P124) ->  | U124: =IF(INPUTS!$B$15="yes",T124,S124) ->  | X124: =IF(INPUTS!$B$15="yes",W124,V124) ->  | AA124: =IF(INPUTS!$B$15="yes",Z124,Y124) ->  | AD124: =IF(INPUTS!$B$15="yes",AC124,AB124) ->  | AE124: no | AG124: =P124*('upper bound Kenaga'!$F$36/100) ->  | AI124: =P124*('upper bound Kenaga'!$F$96/100) -> 
A125: Dose-based RQs (Dose-based EEC/LD50 or NOAEL) | B125: Small mammal | D125: Medium mammal | F125: Large mammal | J125: =COUNTIF(K$21:K125,"=yes") -> 1 | K125: =IF(LOOKUP(VALUE(M125),INPUTS!$G$6:$G$35)=M125,"yes","no") -> no | L125: =IF(K125="yes",(LOOKUP(J125,INPUTS!$E$6:$E$35,INPUTS!$F$6:$F$35)),0) -> 0 | M125: 104 | N125: 1 | O125: 0 | R125: =IF(INPUTS!$B$15="yes",Q125,P125) ->  | U125: =IF(INPUTS!$B$15="yes",T125,S125) ->  | X125: =IF(INPUTS!$B$15="yes",W125,V125) ->  | AA125: =IF(INPUTS!$B$15="yes",Z125,Y125) ->  | AD125: =IF(INPUTS!$B$15="yes",AC125,AB125) ->  | AE125: no | AG125: =P125*('upper bound Kenaga'!$F$36/100) ->  | AI125: =P125*('upper bound Kenaga'!$F$96/100) -> 
B126: =C96 -> 15 | C126: grams | D126: =C97 -> 35 | E126: grams | F126: =C98 -> 1000 | G126: grams | J126: =COUNTIF(K$21:K126,"=yes") -> 1 | K126: =IF(LOOKUP(VALUE(M126),INPUTS!$G$6:$G$35)=M126,"yes","no") -> no | L126: =IF(K126="yes",(LOOKUP(J126,INPUTS!$E$6:$E$35,INPUTS!$F$6:$F$35)),0) -> 0 | M126: 105 | N126: 1 | O126: 0 | R126: =IF(INPUTS!$B$15="yes",Q126,P126) ->  | U126: =IF(INPUTS!$B$15="yes",T126,S126) ->  | X126: =IF(INPUTS!$B$15="yes",W126,V126) ->  | AA126: =IF(INPUTS!$B$15="yes",Z126,Y126) ->  | AD126: =IF(INPUTS!$B$15="yes",AC126,AB126) ->  | AE126: no | AG126: =P126*('upper bound Kenaga'!$F$36/100) ->  | AI126: =P126*('upper bound Kenaga'!$F$96/100) -> 
B127: Acute | C127: Chronic | D127: Acute | E127: Chronic | F127: Acute | G127: Chronic | J127: =COUNTIF(K$21:K127,"=yes") -> 1 | K127: =IF(LOOKUP(VALUE(M127),INPUTS!$G$6:$G$35)=M127,"yes","no") -> no | L127: =IF(K127="yes",(LOOKUP(J127,INPUTS!$E$6:$E$35,INPUTS!$F$6:$F$35)),0) -> 0 | M127: 106 | N127: 1 | O127: 0 | R127: =IF(INPUTS!$B$15="yes",Q127,P127) ->  | U127: =IF(INPUTS!$B$15="yes",T127,S127) ->  | X127: =IF(INPUTS!$B$15="yes",W127,V127) ->  | AA127: =IF(INPUTS!$B$15="yes",Z127,Y127) ->  | AD127: =IF(INPUTS!$B$15="yes",AC127,AB127) ->  | AE127: no | AG127: =P127*('upper bound Kenaga'!$F$36/100) ->  | AI127: =P127*('upper bound Kenaga'!$F$96/100) -> 
A128: Short Grass | B128: =$B$115/$D$105 ->  | C128: =B115/$E$105 ->  | D128: =C115/$D$106 ->  | E128: =C115/E106 ->  | F128: =D115/$D$107 ->  | G128: =D115/E107 ->  | J128: =COUNTIF(K$21:K128,"=yes") -> 1 | K128: =IF(LOOKUP(VALUE(M128),INPUTS!$G$6:$G$35)=M128,"yes","no") -> no | L128: =IF(K128="yes",(LOOKUP(J128,INPUTS!$E$6:$E$35,INPUTS!$F$6:$F$35)),0) -> 0 | M128: 107 | N128: 1 | O128: 0 | R128: =IF(INPUTS!$B$15="yes",Q128,P128) ->  | U128: =IF(INPUTS!$B$15="yes",T128,S128) ->  | X128: =IF(INPUTS!$B$15="yes",W128,V128) ->  | AA128: =IF(INPUTS!$B$15="yes",Z128,Y128) ->  | AD128: =IF(INPUTS!$B$15="yes",AC128,AB128) ->  | AE128: no | AG128: =P128*('upper bound Kenaga'!$F$36/100) ->  | AI128: =P128*('upper bound Kenaga'!$F$96/100) -> 
A129: Tall Grass | B129: =$B$116/$D$105 ->  | C129: =B116/E105 ->  | D129: =C116/$D$106 ->  | E129: =C116/E106 ->  | F129: =D116/$D$107 ->  | G129: =D116/E107 ->  | J129: =COUNTIF(K$21:K129,"=yes") -> 1 | K129: =IF(LOOKUP(VALUE(M129),INPUTS!$G$6:$G$35)=M129,"yes","no") -> no | L129: =IF(K129="yes",(LOOKUP(J129,INPUTS!$E$6:$E$35,INPUTS!$F$6:$F$35)),0) -> 0 | M129: 108 | N129: 1 | O129: 0 | R129: =IF(INPUTS!$B$15="yes",Q129,P129) ->  | U129: =IF(INPUTS!$B$15="yes",T129,S129) ->  | X129: =IF(INPUTS!$B$15="yes",W129,V129) ->  | AA129: =IF(INPUTS!$B$15="yes",Z129,Y129) ->  | AD129: =IF(INPUTS!$B$15="yes",AC129,AB129) ->  | AE129: no | AG129: =P129*('upper bound Kenaga'!$F$36/100) ->  | AI129: =P129*('upper bound Kenaga'!$F$96/100) -> 
A130: Broadleaf plants | B130: =$B$117/$D$105 ->  | C130: =B117/E105 ->  | D130: =C117/$D$106 ->  | E130: =C117/E106 ->  | F130: =D117/$D$107 ->  | G130: =D117/E107 ->  | J130: =COUNTIF(K$21:K130,"=yes") -> 1 | K130: =IF(LOOKUP(VALUE(M130),INPUTS!$G$6:$G$35)=M130,"yes","no") -> no | L130: =IF(K130="yes",(LOOKUP(J130,INPUTS!$E$6:$E$35,INPUTS!$F$6:$F$35)),0) -> 0 | M130: 109 | N130: 1 | O130: 0 | R130: =IF(INPUTS!$B$15="yes",Q130,P130) ->  | U130: =IF(INPUTS!$B$15="yes",T130,S130) ->  | X130: =IF(INPUTS!$B$15="yes",W130,V130) ->  | AA130: =IF(INPUTS!$B$15="yes",Z130,Y130) ->  | AD130: =IF(INPUTS!$B$15="yes",AC130,AB130) ->  | AE130: no | AG130: =P130*('upper bound Kenaga'!$F$36/100) ->  | AI130: =P130*('upper bound Kenaga'!$F$96/100) -> 
A131: Fruits/pods | B131: =$B$118/$D$105 ->  | C131: =B118/E105 ->  | D131: =C118/$D$106 ->  | E131: =C118/E106 ->  | F131: =D118/$D$107 ->  | G131: =D118/E107 ->  | J131: =COUNTIF(K$21:K131,"=yes") -> 1 | K131: =IF(LOOKUP(VALUE(M131),INPUTS!$G$6:$G$35)=M131,"yes","no") -> no | L131: =IF(K131="yes",(LOOKUP(J131,INPUTS!$E$6:$E$35,INPUTS!$F$6:$F$35)),0) -> 0 | M131: 110 | N131: 1 | O131: 0 | R131: =IF(INPUTS!$B$15="yes",Q131,P131) ->  | U131: =IF(INPUTS!$B$15="yes",T131,S131) ->  | X131: =IF(INPUTS!$B$15="yes",W131,V131) ->  | AA131: =IF(INPUTS!$B$15="yes",Z131,Y131) ->  | AD131: =IF(INPUTS!$B$15="yes",AC131,AB131) ->  | AE131: no | AG131: =P131*('upper bound Kenaga'!$F$36/100) ->  | AI131: =P131*('upper bound Kenaga'!$F$96/100) -> 
A132: Arthropods | B132: =$B$119/$D$105 ->  | C132: =B119/E105 ->  | D132: =C119/$D$106 ->  | E132: =C119/E106 ->  | F132: =D119/$D$107 ->  | G132: =D119/E107 ->  | J132: =COUNTIF(K$21:K132,"=yes") -> 1 | K132: =IF(LOOKUP(VALUE(M132),INPUTS!$G$6:$G$35)=M132,"yes","no") -> no | L132: =IF(K132="yes",(LOOKUP(J132,INPUTS!$E$6:$E$35,INPUTS!$F$6:$F$35)),0) -> 0 | M132: 111 | N132: 1 | O132: 0 | R132: =IF(INPUTS!$B$15="yes",Q132,P132) ->  | U132: =IF(INPUTS!$B$15="yes",T132,S132) ->  | X132: =IF(INPUTS!$B$15="yes",W132,V132) ->  | AA132: =IF(INPUTS!$B$15="yes",Z132,Y132) ->  | AD132: =IF(INPUTS!$B$15="yes",AC132,AB132) ->  | AE132: no | AG132: =P132*('upper bound Kenaga'!$F$36/100) ->  | AI132: =P132*('upper bound Kenaga'!$F$96/100) -> 
A133: Seeds | B133: =$B$120/$D$108 ->  | C133: =B120/E108 ->  | D133: =C120/$D$109 ->  | E133: =C120/E109 ->  | F133: =D120/$D$110 ->  | G133: =D120/E110 ->  | J133: =COUNTIF(K$21:K133,"=yes") -> 1 | K133: =IF(LOOKUP(VALUE(M133),INPUTS!$G$6:$G$35)=M133,"yes","no") -> no | L133: =IF(K133="yes",(LOOKUP(J133,INPUTS!$E$6:$E$35,INPUTS!$F$6:$F$35)),0) -> 0 | M133: 112 | N133: 1 | O133: 0 | R133: =IF(INPUTS!$B$15="yes",Q133,P133) ->  | U133: =IF(INPUTS!$B$15="yes",T133,S133) ->  | X133: =IF(INPUTS!$B$15="yes",W133,V133) ->  | AA133: =IF(INPUTS!$B$15="yes",Z133,Y133) ->  | AD133: =IF(INPUTS!$B$15="yes",AC133,AB133) ->  | AE133: no | AG133: =P133*('upper bound Kenaga'!$F$36/100) ->  | AI133: =P133*('upper bound Kenaga'!$F$96/100) -> 
J134: =COUNTIF(K$21:K134,"=yes") -> 1 | K134: =IF(LOOKUP(VALUE(M134),INPUTS!$G$6:$G$35)=M134,"yes","no") -> no | L134: =IF(K134="yes",(LOOKUP(J134,INPUTS!$E$6:$E$35,INPUTS!$F$6:$F$35)),0) -> 0 | M134: 113 | N134: 1 | O134: 0 | R134: =IF(INPUTS!$B$15="yes",Q134,P134) ->  | U134: =IF(INPUTS!$B$15="yes",T134,S134) ->  | X134: =IF(INPUTS!$B$15="yes",W134,V134) ->  | AA134: =IF(INPUTS!$B$15="yes",Z134,Y134) ->  | AD134: =IF(INPUTS!$B$15="yes",AC134,AB134) ->  | AE134: no | AG134: =P134*('upper bound Kenaga'!$F$36/100) ->  | AI134: =P134*('upper bound Kenaga'!$F$96/100) -> 
J135: =COUNTIF(K$21:K135,"=yes") -> 1 | K135: =IF(LOOKUP(VALUE(M135),INPUTS!$G$6:$G$35)=M135,"yes","no") -> no | L135: =IF(K135="yes",(LOOKUP(J135,INPUTS!$E$6:$E$35,INPUTS!$F$6:$F$35)),0) -> 0 | M135: 114 | N135: 1 | O135: 0 | R135: =IF(INPUTS!$B$15="yes",Q135,P135) ->  | U135: =IF(INPUTS!$B$15="yes",T135,S135) ->  | X135: =IF(INPUTS!$B$15="yes",W135,V135) ->  | AA135: =IF(INPUTS!$B$15="yes",Z135,Y135) ->  | AD135: =IF(INPUTS!$B$15="yes",AC135,AB135) ->  | AE135: no | AG135: =P135*('upper bound Kenaga'!$F$36/100) ->  | AI135: =P135*('upper bound Kenaga'!$F$96/100) -> 
J136: =COUNTIF(K$21:K136,"=yes") -> 1 | K136: =IF(LOOKUP(VALUE(M136),INPUTS!$G$6:$G$35)=M136,"yes","no") -> no | L136: =IF(K136="yes",(LOOKUP(J136,INPUTS!$E$6:$E$35,INPUTS!$F$6:$F$35)),0) -> 0 | M136: 115 | N136: 1 | O136: 0 | R136: =IF(INPUTS!$B$15="yes",Q136,P136) ->  | U136: =IF(INPUTS!$B$15="yes",T136,S136) ->  | X136: =IF(INPUTS!$B$15="yes",W136,V136) ->  | AA136: =IF(INPUTS!$B$15="yes",Z136,Y136) ->  | AD136: =IF(INPUTS!$B$15="yes",AC136,AB136) ->  | AE136: no | AG136: =P136*('upper bound Kenaga'!$F$36/100) ->  | AI136: =P136*('upper bound Kenaga'!$F$96/100) -> 
A137: Dietary-based RQs (Dietary-based EEC/LC50 or NOAEC) | B137: Mammal RQs | J137: =COUNTIF(K$21:K137,"=yes") -> 1 | K137: =IF(LOOKUP(VALUE(M137),INPUTS!$G$6:$G$35)=M137,"yes","no") -> no | L137: =IF(K137="yes",(LOOKUP(J137,INPUTS!$E$6:$E$35,INPUTS!$F$6:$F$35)),0) -> 0 | M137: 116 | N137: 1 | O137: 0 | R137: =IF(INPUTS!$B$15="yes",Q137,P137) ->  | U137: =IF(INPUTS!$B$15="yes",T137,S137) ->  | X137: =IF(INPUTS!$B$15="yes",W137,V137) ->  | AA137: =IF(INPUTS!$B$15="yes",Z137,Y137) ->  | AD137: =IF(INPUTS!$B$15="yes",AC137,AB137) ->  | AE137: no | AG137: =P137*('upper bound Kenaga'!$F$36/100) ->  | AI137: =P137*('upper bound Kenaga'!$F$96/100) -> 
J138: =COUNTIF(K$21:K138,"=yes") -> 1 | K138: =IF(LOOKUP(VALUE(M138),INPUTS!$G$6:$G$35)=M138,"yes","no") -> no | L138: =IF(K138="yes",(LOOKUP(J138,INPUTS!$E$6:$E$35,INPUTS!$F$6:$F$35)),0) -> 0 | M138: 117 | N138: 1 | O138: 0 | R138: =IF(INPUTS!$B$15="yes",Q138,P138) ->  | U138: =IF(INPUTS!$B$15="yes",T138,S138) ->  | X138: =IF(INPUTS!$B$15="yes",W138,V138) ->  | AA138: =IF(INPUTS!$B$15="yes",Z138,Y138) ->  | AD138: =IF(INPUTS!$B$15="yes",AC138,AB138) ->  | AE138: no | AG138: =P138*('upper bound Kenaga'!$F$36/100) ->  | AI138: =P138*('upper bound Kenaga'!$F$96/100) -> 
B139: Acute | C139: Chronic | J139: =COUNTIF(K$21:K139,"=yes") -> 1 | K139: =IF(LOOKUP(VALUE(M139),INPUTS!$G$6:$G$35)=M139,"yes","no") -> no | L139: =IF(K139="yes",(LOOKUP(J139,INPUTS!$E$6:$E$35,INPUTS!$F$6:$F$35)),0) -> 0 | M139: 118 | N139: 1 | O139: 0 | R139: =IF(INPUTS!$B$15="yes",Q139,P139) ->  | U139: =IF(INPUTS!$B$15="yes",T139,S139) ->  | X139: =IF(INPUTS!$B$15="yes",W139,V139) ->  | AA139: =IF(INPUTS!$B$15="yes",Z139,Y139) ->  | AD139: =IF(INPUTS!$B$15="yes",AC139,AB139) ->  | AE139: no | AG139: =P139*('upper bound Kenaga'!$F$36/100) ->  | AI139: =P139*('upper bound Kenaga'!$F$96/100) -> 
A140: Short Grass | B140: =B27/$D$21 ->  | C140: =B27/$D$23 ->  | J140: =COUNTIF(K$21:K140,"=yes") -> 1 | K140: =IF(LOOKUP(VALUE(M140),INPUTS!$G$6:$G$35)=M140,"yes","no") -> no | L140: =IF(K140="yes",(LOOKUP(J140,INPUTS!$E$6:$E$35,INPUTS!$F$6:$F$35)),0) -> 0 | M140: 119 | N140: 1 | O140: 0 | R140: =IF(INPUTS!$B$15="yes",Q140,P140) ->  | U140: =IF(INPUTS!$B$15="yes",T140,S140) ->  | X140: =IF(INPUTS!$B$15="yes",W140,V140) ->  | AA140: =IF(INPUTS!$B$15="yes",Z140,Y140) ->  | AD140: =IF(INPUTS!$B$15="yes",AC140,AB140) ->  | AE140: no | AG140: =P140*('upper bound Kenaga'!$F$36/100) ->  | AI140: =P140*('upper bound Kenaga'!$F$96/100) -> 
A141: Tall Grass | B141: =B28/$D$21 ->  | C141: =B28/$D$23 ->  | J141: =COUNTIF(K$21:K141,"=yes") -> 1 | K141: =IF(LOOKUP(VALUE(M141),INPUTS!$G$6:$G$35)=M141,"yes","no") -> no | L141: =IF(K141="yes",(LOOKUP(J141,INPUTS!$E$6:$E$35,INPUTS!$F$6:$F$35)),0) -> 0 | M141: 120 | N141: 1 | O141: 0 | R141: =IF(INPUTS!$B$15="yes",Q141,P141) ->  | U141: =IF(INPUTS!$B$15="yes",T141,S141) ->  | X141: =IF(INPUTS!$B$15="yes",W141,V141) ->  | AA141: =IF(INPUTS!$B$15="yes",Z141,Y141) ->  | AD141: =IF(INPUTS!$B$15="yes",AC141,AB141) ->  | AE141: no | AG141: =P141*('upper bound Kenaga'!$F$36/100) ->  | AI141: =P141*('upper bound Kenaga'!$F$96/100) -> 
A142: Broadleaf plants | B142: =B29/$D$21 ->  | C142: =B29/$D$23 ->  | J142: =COUNTIF(K$21:K142,"=yes") -> 1 | K142: =IF(LOOKUP(VALUE(M142),INPUTS!$G$6:$G$35)=M142,"yes","no") -> no | L142: =IF(K142="yes",(LOOKUP(J142,INPUTS!$E$6:$E$35,INPUTS!$F$6:$F$35)),0) -> 0 | M142: 121 | N142: 1 | O142: 0 | R142: =IF(INPUTS!$B$15="yes",Q142,P142) ->  | U142: =IF(INPUTS!$B$15="yes",T142,S142) ->  | X142: =IF(INPUTS!$B$15="yes",W142,V142) ->  | AA142: =IF(INPUTS!$B$15="yes",Z142,Y142) ->  | AD142: =IF(INPUTS!$B$15="yes",AC142,AB142) ->  | AE142: no | AG142: =P142*('upper bound Kenaga'!$F$36/100) ->  | AI142: =P142*('upper bound Kenaga'!$F$96/100) -> 
A143: Fruits/pods/seeds | B143: =B30/$D$21 ->  | C143: =B30/$D$23 ->  | J143: =COUNTIF(K$21:K143,"=yes") -> 1 | K143: =IF(LOOKUP(VALUE(M143),INPUTS!$G$6:$G$35)=M143,"yes","no") -> no | L143: =IF(K143="yes",(LOOKUP(J143,INPUTS!$E$6:$E$35,INPUTS!$F$6:$F$35)),0) -> 0 | M143: 122 | N143: 1 | O143: 0 | R143: =IF(INPUTS!$B$15="yes",Q143,P143) ->  | U143: =IF(INPUTS!$B$15="yes",T143,S143) ->  | X143: =IF(INPUTS!$B$15="yes",W143,V143) ->  | AA143: =IF(INPUTS!$B$15="yes",Z143,Y143) ->  | AD143: =IF(INPUTS!$B$15="yes",AC143,AB143) ->  | AE143: no | AG143: =P143*('upper bound Kenaga'!$F$36/100) ->  | AI143: =P143*('upper bound Kenaga'!$F$96/100) -> 
A144: Arthropods | B144: =B31/$D$21 ->  | C144: =B31/$D$23 ->  | J144: =COUNTIF(K$21:K144,"=yes") -> 1 | K144: =IF(LOOKUP(VALUE(M144),INPUTS!$G$6:$G$35)=M144,"yes","no") -> no | L144: =IF(K144="yes",(LOOKUP(J144,INPUTS!$E$6:$E$35,INPUTS!$F$6:$F$35)),0) -> 0 | M144: 123 | N144: 1 | O144: 0 | R144: =IF(INPUTS!$B$15="yes",Q144,P144) ->  | U144: =IF(INPUTS!$B$15="yes",T144,S144) ->  | X144: =IF(INPUTS!$B$15="yes",W144,V144) ->  | AA144: =IF(INPUTS!$B$15="yes",Z144,Y144) ->  | AD144: =IF(INPUTS!$B$15="yes",AC144,AB144) ->  | AE144: no | AG144: =P144*('upper bound Kenaga'!$F$36/100) ->  | AI144: =P144*('upper bound Kenaga'!$F$96/100) -> 
J145: =COUNTIF(K$21:K145,"=yes") -> 1 | K145: =IF(LOOKUP(VALUE(M145),INPUTS!$G$6:$G$35)=M145,"yes","no") -> no | L145: =IF(K145="yes",(LOOKUP(J145,INPUTS!$E$6:$E$35,INPUTS!$F$6:$F$35)),0) -> 0 | M145: 124 | N145: 1 | O145: 0 | R145: =IF(INPUTS!$B$15="yes",Q145,P145) ->  | U145: =IF(INPUTS!$B$15="yes",T145,S145) ->  | X145: =IF(INPUTS!$B$15="yes",W145,V145) ->  | AA145: =IF(INPUTS!$B$15="yes",Z145,Y145) ->  | AD145: =IF(INPUTS!$B$15="yes",AC145,AB145) ->  | AE145: no | AG145: =P145*('upper bound Kenaga'!$F$36/100) ->  | AI145: =P145*('upper bound Kenaga'!$F$96/100) -> 
A146: Note: To provide risk management with the maximum possible information, | J146: =COUNTIF(K$21:K146,"=yes") -> 1 | K146: =IF(LOOKUP(VALUE(M146),INPUTS!$G$6:$G$35)=M146,"yes","no") -> no | L146: =IF(K146="yes",(LOOKUP(J146,INPUTS!$E$6:$E$35,INPUTS!$F$6:$F$35)),0) -> 0 | M146: 125 | N146: 1 | O146: 0 | R146: =IF(INPUTS!$B$15="yes",Q146,P146) ->  | U146: =IF(INPUTS!$B$15="yes",T146,S146) ->  | X146: =IF(INPUTS!$B$15="yes",W146,V146) ->  | AA146: =IF(INPUTS!$B$15="yes",Z146,Y146) ->  | AD146: =IF(INPUTS!$B$15="yes",AC146,AB146) ->  | AE146: no | AG146: =P146*('upper bound Kenaga'!$F$36/100) ->  | AI146: =P146*('upper bound Kenaga'!$F$96/100) -> 
A147: it is recommended that both the dose-based and concentration-based | J147: =COUNTIF(K$21:K147,"=yes") -> 1 | K147: =IF(LOOKUP(VALUE(M147),INPUTS!$G$6:$G$35)=M147,"yes","no") -> no | L147: =IF(K147="yes",(LOOKUP(J147,INPUTS!$E$6:$E$35,INPUTS!$F$6:$F$35)),0) -> 0 | M147: 126 | N147: 1 | O147: 0 | R147: =IF(INPUTS!$B$15="yes",Q147,P147) ->  | U147: =IF(INPUTS!$B$15="yes",T147,S147) ->  | X147: =IF(INPUTS!$B$15="yes",W147,V147) ->  | AA147: =IF(INPUTS!$B$15="yes",Z147,Y147) ->  | AD147: =IF(INPUTS!$B$15="yes",AC147,AB147) ->  | AE147: no | AG147: =P147*('upper bound Kenaga'!$F$36/100) ->  | AI147: =P147*('upper bound Kenaga'!$F$96/100) -> 
A148: RQs be calculated when data are available | J148: =COUNTIF(K$21:K148,"=yes") -> 1 | K148: =IF(LOOKUP(VALUE(M148),INPUTS!$G$6:$G$35)=M148,"yes","no") -> no | L148: =IF(K148="yes",(LOOKUP(J148,INPUTS!$E$6:$E$35,INPUTS!$F$6:$F$35)),0) -> 0 | M148: 127 | N148: 1 | O148: 0 | R148: =IF(INPUTS!$B$15="yes",Q148,P148) ->  | U148: =IF(INPUTS!$B$15="yes",T148,S148) ->  | X148: =IF(INPUTS!$B$15="yes",W148,V148) ->  | AA148: =IF(INPUTS!$B$15="yes",Z148,Y148) ->  | AD148: =IF(INPUTS!$B$15="yes",AC148,AB148) ->  | AE148: no | AG148: =P148*('upper bound Kenaga'!$F$36/100) ->  | AI148: =P148*('upper bound Kenaga'!$F$96/100) -> 
J149: =COUNTIF(K$21:K149,"=yes") -> 1 | K149: =IF(LOOKUP(VALUE(M149),INPUTS!$G$6:$G$35)=M149,"yes","no") -> no | L149: =IF(K149="yes",(LOOKUP(J149,INPUTS!$E$6:$E$35,INPUTS!$F$6:$F$35)),0) -> 0 | M149: 128 | N149: 1 | O149: 0 | R149: =IF(INPUTS!$B$15="yes",Q149,P149) ->  | U149: =IF(INPUTS!$B$15="yes",T149,S149) ->  | X149: =IF(INPUTS!$B$15="yes",W149,V149) ->  | AA149: =IF(INPUTS!$B$15="yes",Z149,Y149) ->  | AD149: =IF(INPUTS!$B$15="yes",AC149,AB149) ->  | AE149: no | AG149: =P149*('upper bound Kenaga'!$F$36/100) ->  | AI149: =P149*('upper bound Kenaga'!$F$96/100) -> 
J150: =COUNTIF(K$21:K150,"=yes") -> 1 | K150: =IF(LOOKUP(VALUE(M150),INPUTS!$G$6:$G$35)=M150,"yes","no") -> no | L150: =IF(K150="yes",(LOOKUP(J150,INPUTS!$E$6:$E$35,INPUTS!$F$6:$F$35)),0) -> 0 | M150: =(M149+1) -> 129 | N150: =IF($B$9>N149,IF(O149=($B$8-1),(N149+1),(N149)),(N149)) -> 1 | O150: =IF(O149<($B$8-1),(1+O149),0) -> 0 | R150: =IF(INPUTS!$B$15="yes",Q150,P150) ->  | S150: =IF(($N150>$N149),(EXP(-$R$16)*(S149)+$R$12),((EXP(-$R$16)*(S149)))) ->  | U150: =IF(INPUTS!$B$15="yes",T150,S150) ->  | V150: =IF(($N150>$N149),(EXP(-$R$16)*(V149)+$R$13),((EXP(-$R$16)*(V149)))) ->  | X150: =IF(INPUTS!$B$15="yes",W150,V150) ->  | Y150: =IF(($N150>$N149),(EXP(-$R$16)*(Y149)+$R$14),((EXP(-$R$16)*(Y149)))) ->  | AA150: =IF(INPUTS!$B$15="yes",Z150,Y150) ->  | AB150: =IF(($N150>$N149),(EXP(-$R$16)*(AB149)+$R$15),((EXP(-$R$16)*(AB149)))) ->  | AD150: =IF(INPUTS!$B$15="yes",AC150,AB150) ->  | AE150: no | AG150: =P150*('upper bound Kenaga'!$F$36/100) ->  | AI150: =P150*('upper bound Kenaga'!$F$96/100) -> 
J151: =COUNTIF(K$21:K151,"=yes") -> 1 | K151: =IF(LOOKUP(VALUE(M151),INPUTS!$G$6:$G$35)=M151,"yes","no") -> no | L151: =IF(K151="yes",(LOOKUP(J151,INPUTS!$E$6:$E$35,INPUTS!$F$6:$F$35)),0) -> 0 | M151: 130 | N151: 1 | O151: 0 | Q151: =IF($K151="yes",(EXP(-$R$16)*(Q150)+(Q$11*$L151)),((EXP(-$R$16)*(Q150)))) ->  | R151: =IF(INPUTS!$B$15="yes",Q151,P151) ->  | T151: =IF($K151="yes",(EXP(-$R$16)*(T150)+(Q$12*$L151)),((EXP(-$R$16)*(T150)))) ->  | U151: =IF(INPUTS!$B$15="yes",T151,S151) ->  | W151: =IF($K151="yes",(EXP(-$R$16)*(W150)+(Q$13*$L151)),((EXP(-$R$16)*(W150)))) ->  | X151: =IF(INPUTS!$B$15="yes",W151,V151) ->  | Z151: =IF($K151="yes",(EXP(-$R$16)*(Z150)+(Q$14*$L151)),((EXP(-$R$16)*(Z150)))) ->  | AA151: =IF(INPUTS!$B$15="yes",Z151,Y151) ->  | AC151: =IF($K151="yes",(EXP(-$R$16)*(AC150)+(Q$15*$L151)),((EXP(-$R$16)*(AC150)))) ->  | AD151: =IF(INPUTS!$B$15="yes",AC151,AB151) ->  | AE151: no | AG151: =P151*('upper bound Kenaga'!$F$36/100) ->  | AI151: =P151*('upper bound Kenaga'!$F$96/100) -> 
J152: =COUNTIF(K$21:K152,"=yes") -> 1 | K152: =IF(LOOKUP(VALUE(M152),INPUTS!$G$6:$G$35)=M152,"yes","no") -> no | L152: =IF(K152="yes",(LOOKUP(J152,INPUTS!$E$6:$E$35,INPUTS!$F$6:$F$35)),0) -> 0 | M152: 131 | N152: 1 | O152: 0 | R152: =IF(INPUTS!$B$15="yes",Q152,P152) ->  | U152: =IF(INPUTS!$B$15="yes",T152,S152) ->  | X152: =IF(INPUTS!$B$15="yes",W152,V152) ->  | AA152: =IF(INPUTS!$B$15="yes",Z152,Y152) ->  | AD152: =IF(INPUTS!$B$15="yes",AC152,AB152) ->  | AE152: no | AG152: =P152*('upper bound Kenaga'!$F$36/100) ->  | AI152: =P152*('upper bound Kenaga'!$F$96/100) -> 
J153: =COUNTIF(K$21:K153,"=yes") -> 1 | K153: =IF(LOOKUP(VALUE(M153),INPUTS!$G$6:$G$35)=M153,"yes","no") -> no | L153: =IF(K153="yes",(LOOKUP(J153,INPUTS!$E$6:$E$35,INPUTS!$F$6:$F$35)),0) -> 0 | M153: 132 | N153: 1 | O153: 0 | R153: =IF(INPUTS!$B$15="yes",Q153,P153) ->  | U153: =IF(INPUTS!$B$15="yes",T153,S153) ->  | X153: =IF(INPUTS!$B$15="yes",W153,V153) ->  | AA153: =IF(INPUTS!$B$15="yes",Z153,Y153) ->  | AD153: =IF(INPUTS!$B$15="yes",AC153,AB153) ->  | AE153: no | AG153: =P153*('upper bound Kenaga'!$F$36/100) ->  | AI153: =P153*('upper bound Kenaga'!$F$96/100) -> 
J154: =COUNTIF(K$21:K154,"=yes") -> 1 | K154: =IF(LOOKUP(VALUE(M154),INPUTS!$G$6:$G$35)=M154,"yes","no") -> no | L154: =IF(K154="yes",(LOOKUP(J154,INPUTS!$E$6:$E$35,INPUTS!$F$6:$F$35)),0) -> 0 | M154: 133 | N154: 1 | O154: 0 | R154: =IF(INPUTS!$B$15="yes",Q154,P154) ->  | U154: =IF(INPUTS!$B$15="yes",T154,S154) ->  | X154: =IF(INPUTS!$B$15="yes",W154,V154) ->  | AA154: =IF(INPUTS!$B$15="yes",Z154,Y154) ->  | AD154: =IF(INPUTS!$B$15="yes",AC154,AB154) ->  | AE154: =$B$11 -> no | AG154: =P154*('upper bound Kenaga'!$F$36/100) ->  | AI154: =P154*('upper bound Kenaga'!$F$96/100) -> 
J155: =COUNTIF(K$21:K155,"=yes") -> 1 | K155: =IF(LOOKUP(VALUE(M155),INPUTS!$G$6:$G$35)=M155,"yes","no") -> no | L155: =IF(K155="yes",(LOOKUP(J155,INPUTS!$E$6:$E$35,INPUTS!$F$6:$F$35)),0) -> 0 | M155: 134 | N155: 1 | O155: 0 | R155: =IF(INPUTS!$B$15="yes",Q155,P155) ->  | U155: =IF(INPUTS!$B$15="yes",T155,S155) ->  | X155: =IF(INPUTS!$B$15="yes",W155,V155) ->  | AA155: =IF(INPUTS!$B$15="yes",Z155,Y155) ->  | AD155: =IF(INPUTS!$B$15="yes",AC155,AB155) ->  | AE155: no | AG155: =P155*('upper bound Kenaga'!$F$36/100) ->  | AI155: =P155*('upper bound Kenaga'!$F$96/100) -> 
J156: =COUNTIF(K$21:K156,"=yes") -> 1 | K156: =IF(LOOKUP(VALUE(M156),INPUTS!$G$6:$G$35)=M156,"yes","no") -> no | L156: =IF(K156="yes",(LOOKUP(J156,INPUTS!$E$6:$E$35,INPUTS!$F$6:$F$35)),0) -> 0 | M156: 135 | N156: 1 | O156: 0 | R156: =IF(INPUTS!$B$15="yes",Q156,P156) ->  | U156: =IF(INPUTS!$B$15="yes",T156,S156) ->  | X156: =IF(INPUTS!$B$15="yes",W156,V156) ->  | AA156: =IF(INPUTS!$B$15="yes",Z156,Y156) ->  | AD156: =IF(INPUTS!$B$15="yes",AC156,AB156) ->  | AE156: no | AG156: =P156*('upper bound Kenaga'!$F$36/100) ->  | AI156: =P156*('upper bound Kenaga'!$F$96/100) -> 
J157: =COUNTIF(K$21:K157,"=yes") -> 1 | K157: =IF(LOOKUP(VALUE(M157),INPUTS!$G$6:$G$35)=M157,"yes","no") -> no | L157: =IF(K157="yes",(LOOKUP(J157,INPUTS!$E$6:$E$35,INPUTS!$F$6:$F$35)),0) -> 0 | M157: 136 | N157: 1 | O157: 0 | R157: =IF(INPUTS!$B$15="yes",Q157,P157) ->  | U157: =IF(INPUTS!$B$15="yes",T157,S157) ->  | X157: =IF(INPUTS!$B$15="yes",W157,V157) ->  | AA157: =IF(INPUTS!$B$15="yes",Z157,Y157) ->  | AD157: =IF(INPUTS!$B$15="yes",AC157,AB157) ->  | AE157: no | AG157: =P157*('upper bound Kenaga'!$F$36/100) ->  | AI157: =P157*('upper bound Kenaga'!$F$96/100) -> 
J158: =COUNTIF(K$21:K158,"=yes") -> 1 | K158: =IF(LOOKUP(VALUE(M158),INPUTS!$G$6:$G$35)=M158,"yes","no") -> no | L158: =IF(K158="yes",(LOOKUP(J158,INPUTS!$E$6:$E$35,INPUTS!$F$6:$F$35)),0) -> 0 | M158: 137 | N158: 1 | O158: 0 | R158: =IF(INPUTS!$B$15="yes",Q158,P158) ->  | U158: =IF(INPUTS!$B$15="yes",T158,S158) ->  | X158: =IF(INPUTS!$B$15="yes",W158,V158) ->  | AA158: =IF(INPUTS!$B$15="yes",Z158,Y158) ->  | AD158: =IF(INPUTS!$B$15="yes",AC158,AB158) ->  | AE158: no | AG158: =P158*('upper bound Kenaga'!$F$36/100) ->  | AI158: =P158*('upper bound Kenaga'!$F$96/100) -> 
J159: =COUNTIF(K$21:K159,"=yes") -> 1 | K159: =IF(LOOKUP(VALUE(M159),INPUTS!$G$6:$G$35)=M159,"yes","no") -> no | L159: =IF(K159="yes",(LOOKUP(J159,INPUTS!$E$6:$E$35,INPUTS!$F$6:$F$35)),0) -> 0 | M159: 138 | N159: 1 | O159: 0 | P159: =IF((N159>N158),(EXP(-$R$16)*(P158)+$R$11),((EXP(-$R$16)*(P158)))) ->  | R159: =IF(INPUTS!$B$15="yes",Q159,P159) ->  | U159: =IF(INPUTS!$B$15="yes",T159,S159) ->  | X159: =IF(INPUTS!$B$15="yes",W159,V159) ->  | AA159: =IF(INPUTS!$B$15="yes",Z159,Y159) ->  | AD159: =IF(INPUTS!$B$15="yes",AC159,AB159) ->  | AE159: no | AG159: =P159*('upper bound Kenaga'!$F$36/100) ->  | AI159: =P159*('upper bound Kenaga'!$F$96/100) -> 
J160: =COUNTIF(K$21:K160,"=yes") -> 1 | K160: =IF(LOOKUP(VALUE(M160),INPUTS!$G$6:$G$35)=M160,"yes","no") -> no | L160: =IF(K160="yes",(LOOKUP(J160,INPUTS!$E$6:$E$35,INPUTS!$F$6:$F$35)),0) -> 0 | M160: 139 | N160: 1 | O160: 0 | R160: =IF(INPUTS!$B$15="yes",Q160,P160) ->  | U160: =IF(INPUTS!$B$15="yes",T160,S160) ->  | X160: =IF(INPUTS!$B$15="yes",W160,V160) ->  | AA160: =IF(INPUTS!$B$15="yes",Z160,Y160) ->  | AD160: =IF(INPUTS!$B$15="yes",AC160,AB160) ->  | AE160: no | AG160: =P160*('upper bound Kenaga'!$F$36/100) ->  | AI160: =P160*('upper bound Kenaga'!$F$96/100) -> 
J161: =COUNTIF(K$21:K161,"=yes") -> 1 | K161: =IF(LOOKUP(VALUE(M161),INPUTS!$G$6:$G$35)=M161,"yes","no") -> no | L161: =IF(K161="yes",(LOOKUP(J161,INPUTS!$E$6:$E$35,INPUTS!$F$6:$F$35)),0) -> 0 | M161: 140 | N161: 1 | O161: 0 | R161: =IF(INPUTS!$B$15="yes",Q161,P161) ->  | U161: =IF(INPUTS!$B$15="yes",T161,S161) ->  | X161: =IF(INPUTS!$B$15="yes",W161,V161) ->  | AA161: =IF(INPUTS!$B$15="yes",Z161,Y161) ->  | AD161: =IF(INPUTS!$B$15="yes",AC161,AB161) ->  | AE161: no | AG161: =P161*('upper bound Kenaga'!$F$36/100) ->  | AI161: =P161*('upper bound Kenaga'!$F$96/100) -> 
J162: =COUNTIF(K$21:K162,"=yes") -> 1 | K162: =IF(LOOKUP(VALUE(M162),INPUTS!$G$6:$G$35)=M162,"yes","no") -> no | L162: =IF(K162="yes",(LOOKUP(J162,INPUTS!$E$6:$E$35,INPUTS!$F$6:$F$35)),0) -> 0 | M162: 141 | N162: 1 | O162: 0 | R162: =IF(INPUTS!$B$15="yes",Q162,P162) ->  | U162: =IF(INPUTS!$B$15="yes",T162,S162) ->  | X162: =IF(INPUTS!$B$15="yes",W162,V162) ->  | AA162: =IF(INPUTS!$B$15="yes",Z162,Y162) ->  | AD162: =IF(INPUTS!$B$15="yes",AC162,AB162) ->  | AE162: no | AG162: =P162*('upper bound Kenaga'!$F$36/100) ->  | AI162: =P162*('upper bound Kenaga'!$F$96/100) -> 
J163: =COUNTIF(K$21:K163,"=yes") -> 1 | K163: =IF(LOOKUP(VALUE(M163),INPUTS!$G$6:$G$35)=M163,"yes","no") -> no | L163: =IF(K163="yes",(LOOKUP(J163,INPUTS!$E$6:$E$35,INPUTS!$F$6:$F$35)),0) -> 0 | M163: 142 | N163: 1 | O163: 0 | R163: =IF(INPUTS!$B$15="yes",Q163,P163) ->  | U163: =IF(INPUTS!$B$15="yes",T163,S163) ->  | X163: =IF(INPUTS!$B$15="yes",W163,V163) ->  | AA163: =IF(INPUTS!$B$15="yes",Z163,Y163) ->  | AD163: =IF(INPUTS!$B$15="yes",AC163,AB163) ->  | AE163: no | AG163: =P163*('upper bound Kenaga'!$F$36/100) ->  | AI163: =P163*('upper bound Kenaga'!$F$96/100) -> 
J164: =COUNTIF(K$21:K164,"=yes") -> 1 | K164: =IF(LOOKUP(VALUE(M164),INPUTS!$G$6:$G$35)=M164,"yes","no") -> no | L164: =IF(K164="yes",(LOOKUP(J164,INPUTS!$E$6:$E$35,INPUTS!$F$6:$F$35)),0) -> 0 | M164: 143 | N164: 1 | O164: 0 | R164: =IF(INPUTS!$B$15="yes",Q164,P164) ->  | U164: =IF(INPUTS!$B$15="yes",T164,S164) ->  | X164: =IF(INPUTS!$B$15="yes",W164,V164) ->  | AA164: =IF(INPUTS!$B$15="yes",Z164,Y164) ->  | AD164: =IF(INPUTS!$B$15="yes",AC164,AB164) ->  | AE164: no | AG164: =P164*('upper bound Kenaga'!$F$36/100) ->  | AI164: =P164*('upper bound Kenaga'!$F$96/100) -> 
J165: =COUNTIF(K$21:K165,"=yes") -> 1 | K165: =IF(LOOKUP(VALUE(M165),INPUTS!$G$6:$G$35)=M165,"yes","no") -> no | L165: =IF(K165="yes",(LOOKUP(J165,INPUTS!$E$6:$E$35,INPUTS!$F$6:$F$35)),0) -> 0 | M165: 144 | N165: 1 | O165: 0 | R165: =IF(INPUTS!$B$15="yes",Q165,P165) ->  | U165: =IF(INPUTS!$B$15="yes",T165,S165) ->  | X165: =IF(INPUTS!$B$15="yes",W165,V165) ->  | AA165: =IF(INPUTS!$B$15="yes",Z165,Y165) ->  | AD165: =IF(INPUTS!$B$15="yes",AC165,AB165) ->  | AE165: no | AG165: =P165*('upper bound Kenaga'!$F$36/100) ->  | AI165: =P165*('upper bound Kenaga'!$F$96/100) -> 
J166: =COUNTIF(K$21:K166,"=yes") -> 1 | K166: =IF(LOOKUP(VALUE(M166),INPUTS!$G$6:$G$35)=M166,"yes","no") -> no | L166: =IF(K166="yes",(LOOKUP(J166,INPUTS!$E$6:$E$35,INPUTS!$F$6:$F$35)),0) -> 0 | M166: 145 | N166: 1 | O166: 0 | R166: =IF(INPUTS!$B$15="yes",Q166,P166) ->  | U166: =IF(INPUTS!$B$15="yes",T166,S166) ->  | X166: =IF(INPUTS!$B$15="yes",W166,V166) ->  | AA166: =IF(INPUTS!$B$15="yes",Z166,Y166) ->  | AD166: =IF(INPUTS!$B$15="yes",AC166,AB166) ->  | AE166: no | AG166: =P166*('upper bound Kenaga'!$F$36/100) ->  | AI166: =P166*('upper bound Kenaga'!$F$96/100) -> 
J167: =COUNTIF(K$21:K167,"=yes") -> 1 | K167: =IF(LOOKUP(VALUE(M167),INPUTS!$G$6:$G$35)=M167,"yes","no") -> no | L167: =IF(K167="yes",(LOOKUP(J167,INPUTS!$E$6:$E$35,INPUTS!$F$6:$F$35)),0) -> 0 | M167: 146 | N167: 1 | O167: 0 | R167: =IF(INPUTS!$B$15="yes",Q167,P167) ->  | U167: =IF(INPUTS!$B$15="yes",T167,S167) ->  | X167: =IF(INPUTS!$B$15="yes",W167,V167) ->  | AA167: =IF(INPUTS!$B$15="yes",Z167,Y167) ->  | AD167: =IF(INPUTS!$B$15="yes",AC167,AB167) ->  | AE167: no | AG167: =P167*('upper bound Kenaga'!$F$36/100) ->  | AI167: =P167*('upper bound Kenaga'!$F$96/100) -> 
J168: =COUNTIF(K$21:K168,"=yes") -> 1 | K168: =IF(LOOKUP(VALUE(M168),INPUTS!$G$6:$G$35)=M168,"yes","no") -> no | L168: =IF(K168="yes",(LOOKUP(J168,INPUTS!$E$6:$E$35,INPUTS!$F$6:$F$35)),0) -> 0 | M168: 147 | N168: 1 | O168: 0 | R168: =IF(INPUTS!$B$15="yes",Q168,P168) ->  | U168: =IF(INPUTS!$B$15="yes",T168,S168) ->  | X168: =IF(INPUTS!$B$15="yes",W168,V168) ->  | AA168: =IF(INPUTS!$B$15="yes",Z168,Y168) ->  | AD168: =IF(INPUTS!$B$15="yes",AC168,AB168) ->  | AE168: no | AG168: =P168*('upper bound Kenaga'!$F$36/100) ->  | AI168: =P168*('upper bound Kenaga'!$F$96/100) -> 
J169: =COUNTIF(K$21:K169,"=yes") -> 1 | K169: =IF(LOOKUP(VALUE(M169),INPUTS!$G$6:$G$35)=M169,"yes","no") -> no | L169: =IF(K169="yes",(LOOKUP(J169,INPUTS!$E$6:$E$35,INPUTS!$F$6:$F$35)),0) -> 0 | M169: 148 | N169: 1 | O169: 0 | R169: =IF(INPUTS!$B$15="yes",Q169,P169) ->  | U169: =IF(INPUTS!$B$15="yes",T169,S169) ->  | X169: =IF(INPUTS!$B$15="yes",W169,V169) ->  | AA169: =IF(INPUTS!$B$15="yes",Z169,Y169) ->  | AD169: =IF(INPUTS!$B$15="yes",AC169,AB169) ->  | AE169: no | AG169: =P169*('upper bound Kenaga'!$F$36/100) ->  | AI169: =P169*('upper bound Kenaga'!$F$96/100) -> 
J170: =COUNTIF(K$21:K170,"=yes") -> 1 | K170: =IF(LOOKUP(VALUE(M170),INPUTS!$G$6:$G$35)=M170,"yes","no") -> no | L170: =IF(K170="yes",(LOOKUP(J170,INPUTS!$E$6:$E$35,INPUTS!$F$6:$F$35)),0) -> 0 | M170: 149 | N170: 1 | O170: 0 | R170: =IF(INPUTS!$B$15="yes",Q170,P170) ->  | U170: =IF(INPUTS!$B$15="yes",T170,S170) ->  | X170: =IF(INPUTS!$B$15="yes",W170,V170) ->  | AA170: =IF(INPUTS!$B$15="yes",Z170,Y170) ->  | AD170: =IF(INPUTS!$B$15="yes",AC170,AB170) ->  | AE170: no | AG170: =P170*('upper bound Kenaga'!$F$36/100) ->  | AI170: =P170*('upper bound Kenaga'!$F$96/100) -> 
J171: =COUNTIF(K$21:K171,"=yes") -> 1 | K171: =IF(LOOKUP(VALUE(M171),INPUTS!$G$6:$G$35)=M171,"yes","no") -> no | L171: =IF(K171="yes",(LOOKUP(J171,INPUTS!$E$6:$E$35,INPUTS!$F$6:$F$35)),0) -> 0 | M171: 150 | N171: 1 | O171: 0 | R171: =IF(INPUTS!$B$15="yes",Q171,P171) ->  | U171: =IF(INPUTS!$B$15="yes",T171,S171) ->  | X171: =IF(INPUTS!$B$15="yes",W171,V171) ->  | AA171: =IF(INPUTS!$B$15="yes",Z171,Y171) ->  | AD171: =IF(INPUTS!$B$15="yes",AC171,AB171) ->  | AE171: no | AG171: =P171*('upper bound Kenaga'!$F$36/100) ->  | AI171: =P171*('upper bound Kenaga'!$F$96/100) -> 
J172: =COUNTIF(K$21:K172,"=yes") -> 1 | K172: =IF(LOOKUP(VALUE(M172),INPUTS!$G$6:$G$35)=M172,"yes","no") -> no | L172: =IF(K172="yes",(LOOKUP(J172,INPUTS!$E$6:$E$35,INPUTS!$F$6:$F$35)),0) -> 0 | M172: 151 | N172: 1 | O172: 0 | R172: =IF(INPUTS!$B$15="yes",Q172,P172) ->  | U172: =IF(INPUTS!$B$15="yes",T172,S172) ->  | X172: =IF(INPUTS!$B$15="yes",W172,V172) ->  | AA172: =IF(INPUTS!$B$15="yes",Z172,Y172) ->  | AD172: =IF(INPUTS!$B$15="yes",AC172,AB172) ->  | AE172: no | AG172: =P172*('upper bound Kenaga'!$F$36/100) ->  | AI172: =P172*('upper bound Kenaga'!$F$96/100) -> 
J173: =COUNTIF(K$21:K173,"=yes") -> 1 | K173: =IF(LOOKUP(VALUE(M173),INPUTS!$G$6:$G$35)=M173,"yes","no") -> no | L173: =IF(K173="yes",(LOOKUP(J173,INPUTS!$E$6:$E$35,INPUTS!$F$6:$F$35)),0) -> 0 | M173: 152 | N173: 1 | O173: 0 | R173: =IF(INPUTS!$B$15="yes",Q173,P173) ->  | U173: =IF(INPUTS!$B$15="yes",T173,S173) ->  | X173: =IF(INPUTS!$B$15="yes",W173,V173) ->  | AA173: =IF(INPUTS!$B$15="yes",Z173,Y173) ->  | AD173: =IF(INPUTS!$B$15="yes",AC173,AB173) ->  | AE173: no | AG173: =P173*('upper bound Kenaga'!$F$36/100) ->  | AI173: =P173*('upper bound Kenaga'!$F$96/100) -> 
J174: =COUNTIF(K$21:K174,"=yes") -> 1 | K174: =IF(LOOKUP(VALUE(M174),INPUTS!$G$6:$G$35)=M174,"yes","no") -> no | L174: =IF(K174="yes",(LOOKUP(J174,INPUTS!$E$6:$E$35,INPUTS!$F$6:$F$35)),0) -> 0 | M174: 153 | N174: 1 | O174: 0 | R174: =IF(INPUTS!$B$15="yes",Q174,P174) ->  | U174: =IF(INPUTS!$B$15="yes",T174,S174) ->  | X174: =IF(INPUTS!$B$15="yes",W174,V174) ->  | AA174: =IF(INPUTS!$B$15="yes",Z174,Y174) ->  | AD174: =IF(INPUTS!$B$15="yes",AC174,AB174) ->  | AE174: no | AG174: =P174*('upper bound Kenaga'!$F$36/100) ->  | AI174: =P174*('upper bound Kenaga'!$F$96/100) -> 
J175: =COUNTIF(K$21:K175,"=yes") -> 1 | K175: =IF(LOOKUP(VALUE(M175),INPUTS!$G$6:$G$35)=M175,"yes","no") -> no | L175: =IF(K175="yes",(LOOKUP(J175,INPUTS!$E$6:$E$35,INPUTS!$F$6:$F$35)),0) -> 0 | M175: 154 | N175: 1 | O175: 0 | R175: =IF(INPUTS!$B$15="yes",Q175,P175) ->  | U175: =IF(INPUTS!$B$15="yes",T175,S175) ->  | X175: =IF(INPUTS!$B$15="yes",W175,V175) ->  | AA175: =IF(INPUTS!$B$15="yes",Z175,Y175) ->  | AD175: =IF(INPUTS!$B$15="yes",AC175,AB175) ->  | AE175: no | AG175: =P175*('upper bound Kenaga'!$F$36/100) ->  | AI175: =P175*('upper bound Kenaga'!$F$96/100) -> 
J176: =COUNTIF(K$21:K176,"=yes") -> 1 | K176: =IF(LOOKUP(VALUE(M176),INPUTS!$G$6:$G$35)=M176,"yes","no") -> no | L176: =IF(K176="yes",(LOOKUP(J176,INPUTS!$E$6:$E$35,INPUTS!$F$6:$F$35)),0) -> 0 | M176: 155 | N176: 1 | O176: 0 | R176: =IF(INPUTS!$B$15="yes",Q176,P176) ->  | U176: =IF(INPUTS!$B$15="yes",T176,S176) ->  | X176: =IF(INPUTS!$B$15="yes",W176,V176) ->  | AA176: =IF(INPUTS!$B$15="yes",Z176,Y176) ->  | AD176: =IF(INPUTS!$B$15="yes",AC176,AB176) ->  | AE176: no | AG176: =P176*('upper bound Kenaga'!$F$36/100) ->  | AI176: =P176*('upper bound Kenaga'!$F$96/100) -> 
J177: =COUNTIF(K$21:K177,"=yes") -> 1 | K177: =IF(LOOKUP(VALUE(M177),INPUTS!$G$6:$G$35)=M177,"yes","no") -> no | L177: =IF(K177="yes",(LOOKUP(J177,INPUTS!$E$6:$E$35,INPUTS!$F$6:$F$35)),0) -> 0 | M177: 156 | N177: 1 | O177: 0 | R177: =IF(INPUTS!$B$15="yes",Q177,P177) ->  | U177: =IF(INPUTS!$B$15="yes",T177,S177) ->  | X177: =IF(INPUTS!$B$15="yes",W177,V177) ->  | AA177: =IF(INPUTS!$B$15="yes",Z177,Y177) ->  | AD177: =IF(INPUTS!$B$15="yes",AC177,AB177) ->  | AE177: no | AG177: =P177*('upper bound Kenaga'!$F$36/100) ->  | AI177: =P177*('upper bound Kenaga'!$F$96/100) -> 
J178: =COUNTIF(K$21:K178,"=yes") -> 1 | K178: =IF(LOOKUP(VALUE(M178),INPUTS!$G$6:$G$35)=M178,"yes","no") -> no | L178: =IF(K178="yes",(LOOKUP(J178,INPUTS!$E$6:$E$35,INPUTS!$F$6:$F$35)),0) -> 0 | M178: 157 | N178: 1 | O178: 0 | R178: =IF(INPUTS!$B$15="yes",Q178,P178) ->  | U178: =IF(INPUTS!$B$15="yes",T178,S178) ->  | X178: =IF(INPUTS!$B$15="yes",W178,V178) ->  | AA178: =IF(INPUTS!$B$15="yes",Z178,Y178) ->  | AD178: =IF(INPUTS!$B$15="yes",AC178,AB178) ->  | AE178: no | AG178: =P178*('upper bound Kenaga'!$F$36/100) ->  | AI178: =P178*('upper bound Kenaga'!$F$96/100) -> 
J179: =COUNTIF(K$21:K179,"=yes") -> 1 | K179: =IF(LOOKUP(VALUE(M179),INPUTS!$G$6:$G$35)=M179,"yes","no") -> no | L179: =IF(K179="yes",(LOOKUP(J179,INPUTS!$E$6:$E$35,INPUTS!$F$6:$F$35)),0) -> 0 | M179: 158 | N179: 1 | O179: 0 | R179: =IF(INPUTS!$B$15="yes",Q179,P179) ->  | U179: =IF(INPUTS!$B$15="yes",T179,S179) ->  | X179: =IF(INPUTS!$B$15="yes",W179,V179) ->  | AA179: =IF(INPUTS!$B$15="yes",Z179,Y179) ->  | AD179: =IF(INPUTS!$B$15="yes",AC179,AB179) ->  | AE179: no | AG179: =P179*('upper bound Kenaga'!$F$36/100) ->  | AI179: =P179*('upper bound Kenaga'!$F$96/100) -> 
J180: =COUNTIF(K$21:K180,"=yes") -> 1 | K180: =IF(LOOKUP(VALUE(M180),INPUTS!$G$6:$G$35)=M180,"yes","no") -> no | L180: =IF(K180="yes",(LOOKUP(J180,INPUTS!$E$6:$E$35,INPUTS!$F$6:$F$35)),0) -> 0 | M180: 159 | N180: 1 | O180: 0 | R180: =IF(INPUTS!$B$15="yes",Q180,P180) ->  | U180: =IF(INPUTS!$B$15="yes",T180,S180) ->  | X180: =IF(INPUTS!$B$15="yes",W180,V180) ->  | AA180: =IF(INPUTS!$B$15="yes",Z180,Y180) ->  | AD180: =IF(INPUTS!$B$15="yes",AC180,AB180) ->  | AE180: no | AG180: =P180*('upper bound Kenaga'!$F$36/100) ->  | AI180: =P180*('upper bound Kenaga'!$F$96/100) -> 
J181: =COUNTIF(K$21:K181,"=yes") -> 1 | K181: =IF(LOOKUP(VALUE(M181),INPUTS!$G$6:$G$35)=M181,"yes","no") -> no | L181: =IF(K181="yes",(LOOKUP(J181,INPUTS!$E$6:$E$35,INPUTS!$F$6:$F$35)),0) -> 0 | M181: 160 | N181: 1 | O181: 0 | R181: =IF(INPUTS!$B$15="yes",Q181,P181) ->  | U181: =IF(INPUTS!$B$15="yes",T181,S181) ->  | X181: =IF(INPUTS!$B$15="yes",W181,V181) ->  | AA181: =IF(INPUTS!$B$15="yes",Z181,Y181) ->  | AD181: =IF(INPUTS!$B$15="yes",AC181,AB181) ->  | AE181: no | AG181: =P181*('upper bound Kenaga'!$F$36/100) ->  | AI181: =P181*('upper bound Kenaga'!$F$96/100) -> 
A182: =$B$3 -> 0 | B182: =$B$4 -> 0 | E182: Upper bound Kenaga Residues | J182: =COUNTIF(K$21:K182,"=yes") -> 1 | K182: =IF(LOOKUP(VALUE(M182),INPUTS!$G$6:$G$35)=M182,"yes","no") -> no | L182: =IF(K182="yes",(LOOKUP(J182,INPUTS!$E$6:$E$35,INPUTS!$F$6:$F$35)),0) -> 0 | M182: 161 | N182: 1 | O182: 0 | R182: =IF(INPUTS!$B$15="yes",Q182,P182) ->  | U182: =IF(INPUTS!$B$15="yes",T182,S182) ->  | X182: =IF(INPUTS!$B$15="yes",W182,V182) ->  | AA182: =IF(INPUTS!$B$15="yes",Z182,Y182) ->  | AD182: =IF(INPUTS!$B$15="yes",AC182,AB182) ->  | AE182: no | AG182: =P182*('upper bound Kenaga'!$F$36/100) ->  | AI182: =P182*('upper bound Kenaga'!$F$96/100) -> 
A183: Terrestrial Residues Graph | J183: =COUNTIF(K$21:K183,"=yes") -> 1 | K183: =IF(LOOKUP(VALUE(M183),INPUTS!$G$6:$G$35)=M183,"yes","no") -> no | L183: =IF(K183="yes",(LOOKUP(J183,INPUTS!$E$6:$E$35,INPUTS!$F$6:$F$35)),0) -> 0 | M183: 162 | N183: 1 | O183: 0 | R183: =IF(INPUTS!$B$15="yes",Q183,P183) ->  | U183: =IF(INPUTS!$B$15="yes",T183,S183) ->  | X183: =IF(INPUTS!$B$15="yes",W183,V183) ->  | AA183: =IF(INPUTS!$B$15="yes",Z183,Y183) ->  | AD183: =IF(INPUTS!$B$15="yes",AC183,AB183) ->  | AE183: no | AG183: =P183*('upper bound Kenaga'!$F$36/100) ->  | AI183: =P183*('upper bound Kenaga'!$F$96/100) -> 
J184: =COUNTIF(K$21:K184,"=yes") -> 1 | K184: =IF(LOOKUP(VALUE(M184),INPUTS!$G$6:$G$35)=M184,"yes","no") -> no | L184: =IF(K184="yes",(LOOKUP(J184,INPUTS!$E$6:$E$35,INPUTS!$F$6:$F$35)),0) -> 0 | M184: 163 | N184: 1 | O184: 0 | R184: =IF(INPUTS!$B$15="yes",Q184,P184) ->  | U184: =IF(INPUTS!$B$15="yes",T184,S184) ->  | X184: =IF(INPUTS!$B$15="yes",W184,V184) ->  | AA184: =IF(INPUTS!$B$15="yes",Z184,Y184) ->  | AD184: =IF(INPUTS!$B$15="yes",AC184,AB184) ->  | AE184: no | AG184: =P184*('upper bound Kenaga'!$F$36/100) ->  | AI184: =P184*('upper bound Kenaga'!$F$96/100) -> 
J185: =COUNTIF(K$21:K185,"=yes") -> 1 | K185: =IF(LOOKUP(VALUE(M185),INPUTS!$G$6:$G$35)=M185,"yes","no") -> no | L185: =IF(K185="yes",(LOOKUP(J185,INPUTS!$E$6:$E$35,INPUTS!$F$6:$F$35)),0) -> 0 | M185: 164 | N185: 1 | O185: 0 | R185: =IF(INPUTS!$B$15="yes",Q185,P185) ->  | U185: =IF(INPUTS!$B$15="yes",T185,S185) ->  | X185: =IF(INPUTS!$B$15="yes",W185,V185) ->  | AA185: =IF(INPUTS!$B$15="yes",Z185,Y185) ->  | AD185: =IF(INPUTS!$B$15="yes",AC185,AB185) ->  | AE185: no | AG185: =P185*('upper bound Kenaga'!$F$36/100) ->  | AI185: =P185*('upper bound Kenaga'!$F$96/100) -> 
J186: =COUNTIF(K$21:K186,"=yes") -> 1 | K186: =IF(LOOKUP(VALUE(M186),INPUTS!$G$6:$G$35)=M186,"yes","no") -> no | L186: =IF(K186="yes",(LOOKUP(J186,INPUTS!$E$6:$E$35,INPUTS!$F$6:$F$35)),0) -> 0 | M186: 165 | N186: 1 | O186: 0 | R186: =IF(INPUTS!$B$15="yes",Q186,P186) ->  | U186: =IF(INPUTS!$B$15="yes",T186,S186) ->  | X186: =IF(INPUTS!$B$15="yes",W186,V186) ->  | AA186: =IF(INPUTS!$B$15="yes",Z186,Y186) ->  | AD186: =IF(INPUTS!$B$15="yes",AC186,AB186) ->  | AE186: no | AG186: =P186*('upper bound Kenaga'!$F$36/100) ->  | AI186: =P186*('upper bound Kenaga'!$F$96/100) -> 
J187: =COUNTIF(K$21:K187,"=yes") -> 1 | K187: =IF(LOOKUP(VALUE(M187),INPUTS!$G$6:$G$35)=M187,"yes","no") -> no | L187: =IF(K187="yes",(LOOKUP(J187,INPUTS!$E$6:$E$35,INPUTS!$F$6:$F$35)),0) -> 0 | M187: 166 | N187: 1 | O187: 0 | R187: =IF(INPUTS!$B$15="yes",Q187,P187) ->  | U187: =IF(INPUTS!$B$15="yes",T187,S187) ->  | X187: =IF(INPUTS!$B$15="yes",W187,V187) ->  | AA187: =IF(INPUTS!$B$15="yes",Z187,Y187) ->  | AD187: =IF(INPUTS!$B$15="yes",AC187,AB187) ->  | AE187: no | AG187: =P187*('upper bound Kenaga'!$F$36/100) ->  | AI187: =P187*('upper bound Kenaga'!$F$96/100) -> 
J188: =COUNTIF(K$21:K188,"=yes") -> 1 | K188: =IF(LOOKUP(VALUE(M188),INPUTS!$G$6:$G$35)=M188,"yes","no") -> no | L188: =IF(K188="yes",(LOOKUP(J188,INPUTS!$E$6:$E$35,INPUTS!$F$6:$F$35)),0) -> 0 | M188: 167 | N188: 1 | O188: 0 | R188: =IF(INPUTS!$B$15="yes",Q188,P188) ->  | U188: =IF(INPUTS!$B$15="yes",T188,S188) ->  | X188: =IF(INPUTS!$B$15="yes",W188,V188) ->  | AA188: =IF(INPUTS!$B$15="yes",Z188,Y188) ->  | AD188: =IF(INPUTS!$B$15="yes",AC188,AB188) ->  | AE188: no | AG188: =P188*('upper bound Kenaga'!$F$36/100) ->  | AI188: =P188*('upper bound Kenaga'!$F$96/100) -> 
J189: =COUNTIF(K$21:K189,"=yes") -> 1 | K189: =IF(LOOKUP(VALUE(M189),INPUTS!$G$6:$G$35)=M189,"yes","no") -> no | L189: =IF(K189="yes",(LOOKUP(J189,INPUTS!$E$6:$E$35,INPUTS!$F$6:$F$35)),0) -> 0 | M189: 168 | N189: 1 | O189: 0 | R189: =IF(INPUTS!$B$15="yes",Q189,P189) ->  | U189: =IF(INPUTS!$B$15="yes",T189,S189) ->  | X189: =IF(INPUTS!$B$15="yes",W189,V189) ->  | AA189: =IF(INPUTS!$B$15="yes",Z189,Y189) ->  | AD189: =IF(INPUTS!$B$15="yes",AC189,AB189) ->  | AE189: no | AG189: =P189*('upper bound Kenaga'!$F$36/100) ->  | AI189: =P189*('upper bound Kenaga'!$F$96/100) -> 
J190: =COUNTIF(K$21:K190,"=yes") -> 1 | K190: =IF(LOOKUP(VALUE(M190),INPUTS!$G$6:$G$35)=M190,"yes","no") -> no | L190: =IF(K190="yes",(LOOKUP(J190,INPUTS!$E$6:$E$35,INPUTS!$F$6:$F$35)),0) -> 0 | M190: 169 | N190: 1 | O190: 0 | R190: =IF(INPUTS!$B$15="yes",Q190,P190) ->  | U190: =IF(INPUTS!$B$15="yes",T190,S190) ->  | X190: =IF(INPUTS!$B$15="yes",W190,V190) ->  | AA190: =IF(INPUTS!$B$15="yes",Z190,Y190) ->  | AD190: =IF(INPUTS!$B$15="yes",AC190,AB190) ->  | AE190: no | AG190: =P190*('upper bound Kenaga'!$F$36/100) ->  | AI190: =P190*('upper bound Kenaga'!$F$96/100) -> 
J191: =COUNTIF(K$21:K191,"=yes") -> 1 | K191: =IF(LOOKUP(VALUE(M191),INPUTS!$G$6:$G$35)=M191,"yes","no") -> no | L191: =IF(K191="yes",(LOOKUP(J191,INPUTS!$E$6:$E$35,INPUTS!$F$6:$F$35)),0) -> 0 | M191: 170 | N191: 1 | O191: 0 | R191: =IF(INPUTS!$B$15="yes",Q191,P191) ->  | U191: =IF(INPUTS!$B$15="yes",T191,S191) ->  | X191: =IF(INPUTS!$B$15="yes",W191,V191) ->  | AA191: =IF(INPUTS!$B$15="yes",Z191,Y191) ->  | AD191: =IF(INPUTS!$B$15="yes",AC191,AB191) ->  | AE191: no | AG191: =P191*('upper bound Kenaga'!$F$36/100) ->  | AI191: =P191*('upper bound Kenaga'!$F$96/100) -> 
J192: =COUNTIF(K$21:K192,"=yes") -> 1 | K192: =IF(LOOKUP(VALUE(M192),INPUTS!$G$6:$G$35)=M192,"yes","no") -> no | L192: =IF(K192="yes",(LOOKUP(J192,INPUTS!$E$6:$E$35,INPUTS!$F$6:$F$35)),0) -> 0 | M192: 171 | N192: 1 | O192: 0 | R192: =IF(INPUTS!$B$15="yes",Q192,P192) ->  | U192: =IF(INPUTS!$B$15="yes",T192,S192) ->  | X192: =IF(INPUTS!$B$15="yes",W192,V192) ->  | AA192: =IF(INPUTS!$B$15="yes",Z192,Y192) ->  | AD192: =IF(INPUTS!$B$15="yes",AC192,AB192) ->  | AE192: no | AG192: =P192*('upper bound Kenaga'!$F$36/100) ->  | AI192: =P192*('upper bound Kenaga'!$F$96/100) -> 
J193: =COUNTIF(K$21:K193,"=yes") -> 1 | K193: =IF(LOOKUP(VALUE(M193),INPUTS!$G$6:$G$35)=M193,"yes","no") -> no | L193: =IF(K193="yes",(LOOKUP(J193,INPUTS!$E$6:$E$35,INPUTS!$F$6:$F$35)),0) -> 0 | M193: 172 | N193: 1 | O193: 0 | R193: =IF(INPUTS!$B$15="yes",Q193,P193) ->  | U193: =IF(INPUTS!$B$15="yes",T193,S193) ->  | X193: =IF(INPUTS!$B$15="yes",W193,V193) ->  | AA193: =IF(INPUTS!$B$15="yes",Z193,Y193) ->  | AD193: =IF(INPUTS!$B$15="yes",AC193,AB193) ->  | AE193: no | AG193: =P193*('upper bound Kenaga'!$F$36/100) ->  | AI193: =P193*('upper bound Kenaga'!$F$96/100) -> 
J194: =COUNTIF(K$21:K194,"=yes") -> 1 | K194: =IF(LOOKUP(VALUE(M194),INPUTS!$G$6:$G$35)=M194,"yes","no") -> no | L194: =IF(K194="yes",(LOOKUP(J194,INPUTS!$E$6:$E$35,INPUTS!$F$6:$F$35)),0) -> 0 | M194: 173 | N194: 1 | O194: 0 | R194: =IF(INPUTS!$B$15="yes",Q194,P194) ->  | U194: =IF(INPUTS!$B$15="yes",T194,S194) ->  | X194: =IF(INPUTS!$B$15="yes",W194,V194) ->  | AA194: =IF(INPUTS!$B$15="yes",Z194,Y194) ->  | AD194: =IF(INPUTS!$B$15="yes",AC194,AB194) ->  | AE194: no | AG194: =P194*('upper bound Kenaga'!$F$36/100) ->  | AI194: =P194*('upper bound Kenaga'!$F$96/100) -> 
J195: =COUNTIF(K$21:K195,"=yes") -> 1 | K195: =IF(LOOKUP(VALUE(M195),INPUTS!$G$6:$G$35)=M195,"yes","no") -> no | L195: =IF(K195="yes",(LOOKUP(J195,INPUTS!$E$6:$E$35,INPUTS!$F$6:$F$35)),0) -> 0 | M195: 174 | N195: 1 | O195: 0 | R195: =IF(INPUTS!$B$15="yes",Q195,P195) ->  | U195: =IF(INPUTS!$B$15="yes",T195,S195) ->  | X195: =IF(INPUTS!$B$15="yes",W195,V195) ->  | AA195: =IF(INPUTS!$B$15="yes",Z195,Y195) ->  | AD195: =IF(INPUTS!$B$15="yes",AC195,AB195) ->  | AE195: no | AG195: =P195*('upper bound Kenaga'!$F$36/100) ->  | AI195: =P195*('upper bound Kenaga'!$F$96/100) -> 
J196: =COUNTIF(K$21:K196,"=yes") -> 1 | K196: =IF(LOOKUP(VALUE(M196),INPUTS!$G$6:$G$35)=M196,"yes","no") -> no | L196: =IF(K196="yes",(LOOKUP(J196,INPUTS!$E$6:$E$35,INPUTS!$F$6:$F$35)),0) -> 0 | M196: 175 | N196: 1 | O196: 0 | R196: =IF(INPUTS!$B$15="yes",Q196,P196) ->  | U196: =IF(INPUTS!$B$15="yes",T196,S196) ->  | X196: =IF(INPUTS!$B$15="yes",W196,V196) ->  | AA196: =IF(INPUTS!$B$15="yes",Z196,Y196) ->  | AD196: =IF(INPUTS!$B$15="yes",AC196,AB196) ->  | AE196: no | AG196: =P196*('upper bound Kenaga'!$F$36/100) ->  | AI196: =P196*('upper bound Kenaga'!$F$96/100) -> 
J197: =COUNTIF(K$21:K197,"=yes") -> 1 | K197: =IF(LOOKUP(VALUE(M197),INPUTS!$G$6:$G$35)=M197,"yes","no") -> no | L197: =IF(K197="yes",(LOOKUP(J197,INPUTS!$E$6:$E$35,INPUTS!$F$6:$F$35)),0) -> 0 | M197: 176 | N197: 1 | O197: 0 | R197: =IF(INPUTS!$B$15="yes",Q197,P197) ->  | U197: =IF(INPUTS!$B$15="yes",T197,S197) ->  | X197: =IF(INPUTS!$B$15="yes",W197,V197) ->  | AA197: =IF(INPUTS!$B$15="yes",Z197,Y197) ->  | AD197: =IF(INPUTS!$B$15="yes",AC197,AB197) ->  | AE197: no | AG197: =P197*('upper bound Kenaga'!$F$36/100) ->  | AI197: =P197*('upper bound Kenaga'!$F$96/100) -> 
J198: =COUNTIF(K$21:K198,"=yes") -> 1 | K198: =IF(LOOKUP(VALUE(M198),INPUTS!$G$6:$G$35)=M198,"yes","no") -> no | L198: =IF(K198="yes",(LOOKUP(J198,INPUTS!$E$6:$E$35,INPUTS!$F$6:$F$35)),0) -> 0 | M198: 177 | N198: 1 | O198: 0 | R198: =IF(INPUTS!$B$15="yes",Q198,P198) ->  | U198: =IF(INPUTS!$B$15="yes",T198,S198) ->  | X198: =IF(INPUTS!$B$15="yes",W198,V198) ->  | AA198: =IF(INPUTS!$B$15="yes",Z198,Y198) ->  | AD198: =IF(INPUTS!$B$15="yes",AC198,AB198) ->  | AE198: no | AG198: =P198*('upper bound Kenaga'!$F$36/100) ->  | AI198: =P198*('upper bound Kenaga'!$F$96/100) -> 
J199: =COUNTIF(K$21:K199,"=yes") -> 1 | K199: =IF(LOOKUP(VALUE(M199),INPUTS!$G$6:$G$35)=M199,"yes","no") -> no | L199: =IF(K199="yes",(LOOKUP(J199,INPUTS!$E$6:$E$35,INPUTS!$F$6:$F$35)),0) -> 0 | M199: 178 | N199: 1 | O199: 0 | R199: =IF(INPUTS!$B$15="yes",Q199,P199) ->  | U199: =IF(INPUTS!$B$15="yes",T199,S199) ->  | X199: =IF(INPUTS!$B$15="yes",W199,V199) ->  | AA199: =IF(INPUTS!$B$15="yes",Z199,Y199) ->  | AD199: =IF(INPUTS!$B$15="yes",AC199,AB199) ->  | AE199: no | AG199: =P199*('upper bound Kenaga'!$F$36/100) ->  | AI199: =P199*('upper bound Kenaga'!$F$96/100) -> 
J200: =COUNTIF(K$21:K200,"=yes") -> 1 | K200: =IF(LOOKUP(VALUE(M200),INPUTS!$G$6:$G$35)=M200,"yes","no") -> no | L200: =IF(K200="yes",(LOOKUP(J200,INPUTS!$E$6:$E$35,INPUTS!$F$6:$F$35)),0) -> 0 | M200: 179 | N200: 1 | O200: 0 | R200: =IF(INPUTS!$B$15="yes",Q200,P200) ->  | U200: =IF(INPUTS!$B$15="yes",T200,S200) ->  | X200: =IF(INPUTS!$B$15="yes",W200,V200) ->  | AA200: =IF(INPUTS!$B$15="yes",Z200,Y200) ->  | AD200: =IF(INPUTS!$B$15="yes",AC200,AB200) ->  | AE200: no | AG200: =P200*('upper bound Kenaga'!$F$36/100) ->  | AI200: =P200*('upper bound Kenaga'!$F$96/100) -> 
... 191 more rows

Sheet LD50 ft-2
B1: Chemical: | C1: ='upper bound Kenaga'!B3 -> 0
B3: LD50 ft-2
B5: INPUTS | C5: Do not overwrite these numbers. | H5: Changes to the inputs must be
B6: Application Rate: | D6: =INPUTS!B11 -> 0 | E6: lbs / acre | H6: made in the "INPUTS" worksheet.
B7: % A.I.: | D7: =INPUTS!B10 -> 0 | G7: =IF(INPUTS!$D$45="","Warning! You Have Failed to Enter a Toxicity Scaling Factor on the Inputs Page","") -> 
B8: Avian LD50 (20g): | D8: ='upper bound Kenaga'!C46 -> 0 | E8: mg/kg bw | G8: =IF(INPUTS!$F$41=0,"",IF(INPUTS!$D$41<3,"NOTE:Toxicity adjustments not based on standard assumed test animal body weight","")) -> 
B9: (100g) | D9: ='upper bound Kenaga'!C47 -> 0 | G9: =IF(INPUTS!$F$41=0,"",IF(INPUTS!$D$41<3,"NOTE:Toxicity adjustments not based on standard assumed test animal body weight","")) -> 
B10: (1000g) | D10: ='upper bound Kenaga'!C48 -> 0 | G10: =IF(INPUTS!$F$41=0,"",IF(INPUTS!$D$41<3,"NOTE:Toxicity adjustments not based on standard assumed test animal body weight","")) -> 
B11: Mammalian LD50 (15g): | D11: ='upper bound Kenaga'!D105 -> 0 | E11: mg/kg bw
B12: (35g) | D12: ='upper bound Kenaga'!D106 -> 0
B13: (1000g) | D13: ='upper bound Kenaga'!D107 -> 0
B14: Row Spacing: | D14: =INPUTS!D63 -> 0 | E14: inches
B15: Bandwidth: | D15: =INPUTS!D64 -> 0 | E15: inches
B16: Unincorporation: | D16: =1-INPUTS!D65 -> 1
B18: Row/Band/In-furrow applications
B20: =IF(AND(INPUTS!C59=2,INPUTS!D60="yes"),"Liquid",IF(AND(INPUTS!C59=2,INPUTS!D60="no"),"N/A","Granular")) -> Liquid | G20: =IF(INPUTS!D60="yes","N/A","Liquid") -> N/A
B21: Intermediate Calculations | G21: Intermediate Calculations
B22: # rows acre-1: | D22: =IF(INPUTS!C58=1,"N/A",IF(AND(INPUTS!C59=2,INPUTS!D60="No"),"N/A",(SQRT(43560))/(D14/12))) -> N/A | G22: mg a.i./1000 ft row: | I22: =IF(INPUTS!C58=1,"N/A",IF(INPUTS!C59=1,"N/A",IF(INPUTS!D60="yes","N/A",INPUTS!D62*28349*D7))) -> N/A
B23: row length (ft): | D23: =IF(INPUTS!C58=1,"N/A",IF(AND(INPUTS!C59=2,INPUTS!D60="No"),"N/A",SQRT(43560))) -> N/A | G23: bandwidth: | I23: =IF(INPUTS!C58=1,"N/A",IF(INPUTS!C59=1,"N/A",IF(INPUTS!D60="yes","N/A",D15/12))) -> N/A
B24: lb ai/1000 ft row: | D24: =IF(INPUTS!C58=1,"N/A",IF(AND(INPUTS!C59=2,INPUTS!D60="No"),"N/A",((D6)/((43560)/(D14/12)))*1000)) -> N/A | G24: mg a.i./ft2: | I24: =IF(INPUTS!C58=1,"N/A",IF(INPUTS!C59=1,"N/A",IF(INPUTS!D60="yes","N/A",I22/(1000*I23)))) -> N/A
B25: bandwidth (ft): | D25: =IF(INPUTS!C58=1,"N/A",IF(AND(INPUTS!C59=2,INPUTS!D60="No"),"N/A",D15/12)) -> N/A | G25: exposed mg a.i./ft2: | I25: =IF(INPUTS!C58=1,"N/A",IF(INPUTS!C59=1,"N/A",IF(INPUTS!D60="yes","N/A",I24*D16))) -> N/A
B26: mg ai/ft2: | D26: =IF(INPUTS!C58=1,"N/A",IF(AND(INPUTS!C59=2,INPUTS!D60="No"),"N/A",(D6*D7*453590)/((D22*D25*D23)))) -> N/A
B27: exposed mg ai/ft2: | D27: =IF(INPUTS!C58=1,"N/A",IF(AND(INPUTS!C59=2,INPUTS!D60="No"),"N/A",D26*D16)) -> N/A
B29: LD50 ft-2 | G29: =IF(G20="N/A","N/A","LD50 ft-2") -> N/A
C30: wgt class (grams) | H30: wgt class (grams)
B31: Avian | C31: =C46 -> 20 | D31: =IF(INPUTS!C58=1,"N/A",IF(AND(INPUTS!C59=2,INPUTS!D60="No"),"N/A",$D$27/($D$8*(C31/1000)))) -> N/A | G31: Avian | H31: =C31 -> 20 | I31: =IF(INPUTS!C58=1,"N/A",IF(INPUTS!C59=1,"N/A",IF(INPUTS!D60="yes","N/A",I25/($D$8*(H31/1000))))) -> N/A
C32: 100 | D32: =IF(INPUTS!C58=1,"N/A",IF(AND(INPUTS!C59=2,INPUTS!D60="No"),"N/A",$D$27/(D9*(C32/1000)))) -> N/A | H32: 100 | I32: =IF(INPUTS!C58=1,"N/A",IF(INPUTS!C59=1,"N/A",IF(INPUTS!D60="yes","N/A",I25/(D9*(H32/1000))))) -> N/A
C33: 1000 | D33: =IF(INPUTS!C58=1,"N/A",IF(AND(INPUTS!C59=2,INPUTS!D60="No"),"N/A",$D$27/(D10*(C33/1000)))) -> N/A | H33: 1000 | I33: =IF(INPUTS!C58=1,"N/A",IF(INPUTS!C59=1,"N/A",IF(INPUTS!D60="yes","N/A",I25/(D10*(H33/1000))))) -> N/A
B34: Mammal | C34: 15 | D34: =IF(INPUTS!C58=1,"N/A",IF(AND(INPUTS!C59=2,INPUTS!D60="No"),"N/A",$D$27/($D$11*(C34/1000)))) -> N/A | G34: Mammal | H34: 15 | I34: =IF(INPUTS!C58=1,"N/A",IF(INPUTS!C59=1,"N/A",IF(INPUTS!D60="yes","N/A",I25/($D$11*(H34/1000))))) -> N/A
C35: 35 | D35: =IF(INPUTS!C58=1,"N/A",IF(AND(INPUTS!C59=2,INPUTS!D60="No"),"N/A",$D$27/(D12*(C35/1000)))) -> N/A | H35: 35 | I35: =IF(INPUTS!C58=1,"N/A",IF(INPUTS!C59=1,"N/A",IF(INPUTS!D60="yes","N/A",I25/(D12*(H35/1000))))) -> N/A
C36: 1000 | D36: =IF(INPUTS!C58=1,"N/A",IF(AND(INPUTS!C59=2,INPUTS!D60="No"),"N/A",$D$27/(D13*(C36/1000)))) -> N/A | H36: 1000 | I36: =IF(INPUTS!C58=1,"N/A",IF(INPUTS!C59=1,"N/A",IF(INPUTS!D60="yes","N/A",I25/(D13*(H36/1000))))) -> N/A
B39: Broadcast applications
B40: =IF(INPUTS!C59=1,"Granular","Liquid") -> Liquid
B41: Intermediate Calculations
B42: mg ai/ft2: | C42: =IF(OR(INPUTS!C59=1,(AND(INPUTS!C59=2,INPUTS!D60="yes"))),((D6*D7*453590)/43560),((INPUTS!D62*28349*'LD50 ft-2'!D7)/43560))*D16 -> 0
B44: LD50 ft-2
C45: wgt class (grams)
B46: Avian | C46: =INPUTS!B19 -> 20 | D46: =IF(INPUTS!C58=1,C42/($D$8*(C46/1000)),"N/A") -> 
C47: =INPUTS!B20 -> 100 | D47: =IF(INPUTS!C58=1,C42/(D9*(C47/1000)),"N/A") -> 
C48: =INPUTS!B21 -> 1000 | D48: =IF(INPUTS!C58=1,C42/(D10*(C48/1000)),"N/A") -> 
B49: Mammal | C49: =INPUTS!C19 -> 15 | D49: =IF(INPUTS!C58=1,C42/($D$11*(C49/1000)),"N/A") -> 
C50: =INPUTS!C20 -> 35 | D50: =IF(INPUTS!C58=1,C42/(D12*(C50/1000)),"N/A") -> 
C51: =INPUTS!C21 -> 1000 | D51: =IF(INPUTS!C58=1,C42/(D13*(C51/1000)),"N/A") -> 
B53: Formulas used in the calculations are in the User's Guide

Sheet Granular Characterization Calcs
A10: Estimation of the number of granules needed to achieve toxicity thresholds
A11: Step 1. Estimate mass of a.i. consumed for the assessed species weight to achieve the desired toxicity threshold
A12: Parameter | B12: Value | D12: Comment
B13: Bird | C13: Mammal
A14: Weight of assessed animal (kg) | B14: 0 | C14: 0.15 | D14: INPUT (0.02 kg and 0.015 kg are typically used for general assessments for birds and mammals, respectively).
A15: LD50, mg/kg-bw | B15: =+IF(INPUTS!$D$41=3,(('upper bound Kenaga'!D15)*((B14*1000/INPUTS!$F$41)^(INPUTS!$D$45-1))),IF(INPUTS!$D$41=1,(('upper bound Kenaga'!D15)*((B14*1000/178)^(INPUTS!$D$45-1))),(('upper bound Kenaga'!D15)*((B14*1000/1580)^(INPUTS!$D$45-1))))) -> 0 | C15: =(INPUTS!C50*((350/(C14*1000))^0.25)) -> 0 | D15: Calculated from the body weight entered in B13 and C13 and the LD50 entered in the "Inputs" sheet.
A16: Mg a.i. needed to achieve the LD50 for animal of assessed weight | B16: =B15*B14 -> 0 | C16: =C15*C14 -> 0 | D16: mg a.i./kg-bw * kg-bw = mg a.i.
A17: Mg a.i. needed to achieve the LOC of 0.5 (1/2 LD50) for animal of assessed weight | B17: =B15/2*B14 -> 0 | C17: =C15/2*C14 -> 0
A18: Mg a.i. needed to achieve the LOC of 0.1 (1/10th LD50) for animal of assessed weight | B18: =(B15/10)*B14 -> 0 | C18: =(C15/10)*C14 -> 0
A19: Step 2. Determine the mass of a.i. per granule
A20: Percent of a.i. in formulated product | B20: 0 | C20: 0 | D20: Must enter percent a.i. specified on the label
A21: Weight of 1 granule (mg, obtained from registrant) | B21: 0 | C21: 0 | D21: INPUT (Note: Be sure to enter units in mg!)
A22: mg a.i./granule | B22: =B21*B20 -> 0 | C22: =C21*C20 -> 0 | D22: weight of granule (mg) x fraction of a.i. = mg a.i./granule
A23: Step 3. Calculate number of granules with mass of a.i. equivalent to adjusted LD50 for bird of assessed weight
A24: No. of granules needed to achieve LD50 | B24: =B16/B22 ->  | C24: =C16/C22 ->  | D24: mg a.i. needed to achieve adjusted LD50 (B/C14) / mg a.i. per granule (B/C20)
A25: No. of granules needed to achieve the LOC of 0.5 (1/2 LD50) | B25: =B17/B22 ->  | C25: =C17/C22 ->  | D25: mg a.i. needed to achieve 1/2 adjusted LD50 (B/C15) / mg a.i. per granule (B/C20)
A26: No. of granules needed to achieve the LOC of 0.1 (1/10 LD50) | B26: =B18/B22 ->  | C26: =C18/C22 ->  | D26: mg a.i. needed to achieve 1/10 adjusted LD50 (B/C16) / mg a.i. per granule (B/C20)
A29: Minimum Foraging Area Needed to Allow for Ingestion of Sufficient Mass of a.i. to Achieve LOC Exceedance
A30: EEC (mg a.i./square foot) | B30: ='LD50 ft-2'!C42 -> 0 | C30: ='LD50 ft-2'!C42 -> 0 | D30: From LD50 ft-2 page
A31: Foraging area (square feet) needed to achieve LOC of 0.1 exceedance assuming 100% feeding efficiency | B31: =B18/B30 ->  | C31: =C18/C30 ->  | D31: mg a.i. needed to achieve LD50 in 20-gram bird (B/C16) / mg a.i.per sq. ft (B/C27)
A32: Foraging area (square feet) needed to achieve LOC of 0.1 exceedance assuming 50% feeding efficiency | B32: =B31*2 ->  | C32: =C31*2 ->  | D32: Foraging area needed to achieve LOC Exceedance assuming 100% feeding efficiency (B/C28) * 2 (i.e., twice the foraging area is needed for 50% feeding efficiency)
A33: Foraging area (square feet) needed to achieve LOC of 0.1 exceedance assuming 10% feeding efficiency | B33: =B31*10 ->  | C33: =C31*10 ->  | D33: Foraging area needed to achieve LOC Exceedance assuming 100% feeding efficiency (B/C28) * 10 (i.e., 10 times the foraging area is needed for 10% feeding efficiency)

Sheet Seed Treatments
B2: Chemical: | C2: ='upper bound Kenaga'!B3 -> 0 | G2: Data inputs are in blue
B3: Name of seed treatment formulation: | C3: =INPUTS!B9 -> 0
B4: Percent AI in formulation: | C4: =INPUTS!B10 -> 0 | E4: =C4 -> 0 | F4: Density of product (lbs/gal): | J4: 8.33
A5: Endpoints | C5: Reported | D5: Tested Body | E5: Adjusted LD50 | F5: Size class for adjusted LD50
D6: Weight (g)
B7: Avian LD50: | C7: ='upper bound Kenaga'!D15 -> 0 | D7: =IF(INPUTS!D41=1,178,IF(INPUTS!D41=2,1580,INPUTS!F41)) -> 178 | E7: =((C7)*((20/D7)^(INPUTS!$D$45-1))) -> 0 | F7: Small (20g)
B8: Avian repro. NOAEC: | C8: ='upper bound Kenaga'!D18 -> 0 | E8: =((C7)*((100/D7)^(INPUTS!$D$45-1))) -> 0 | F8: Medium (100g)
E9: =((C7)*((1000/D7)^(INPUTS!$D$45-1))) -> 0 | F9: Large (1000g)
B10: Mammalian LD50: | C10: ='upper bound Kenaga'!D20 -> 0 | D10: 350 | E10: =(C10*((D10/15)^0.25)) -> 0 | F10: Small (15g)
B11: Mammalian NOAEL: | C11: ='upper bound Kenaga'!D23 -> 0 | E11: =(C10*((D10/35)^0.25)) -> 0 | F11: Medium (35g)
E12: =(C10*((D10/1000)^0.25)) -> 0 | F12: Large (1000g)
D13: Adjusted NOAEL for Mammals
D14: Small (15g) | E14: ='upper bound Kenaga'!E108 -> 0
D15: Medium (35g) | E15: ='upper bound Kenaga'!E109 -> 0
D16: Large (1000g) | E16: ='upper bound Kenaga'!E110 -> 0
C18: =IF(INPUTS!$D$45="","Warning! You Have Failed to Enter a Toxicity Scaling Factor on the Inputs Page","") -> 
A20: Animal Size | B20: Crop | C20: Maximum Application Rate | D20: Maximum Seed Application Rate | E20: Avian Nagy Dose | F20: Mammalian Nagy Dose | G20: Available AI
C21: (lbs ai/A) | D21: (mg ai/kg seed) | E21: (mg ai/kg-bw/day) | F21: (mg ai/kg-bw/day) | G21: (mg ai ft-2)
A22: Small | B22: =INPUTS!T8 ->  | C22: =(VLOOKUP(B22,B$55:C$195,2,FALSE)*((INPUTS!$B$11*$C$4)/128)*$J$4)/100 ->  | D22: =((INPUTS!$B$11*$C$4)/128)*$J$4*10000 -> 0 | E22: =($B$43*0.001*D22)/0.02 -> 0 | F22: =($B$44*0.001*D22)/0.015 -> 0 | G22: =((C22*10^6)/(43560*2.2)) -> 
A23: Medium | E23: =($B$45*0.001*D22)/0.1 -> 0 | F23: =($B$46*0.001*D22)/0.035 -> 0
A24: Large | E24: =($B$47*0.001*D22)/1 -> 0 | F24: =($B$48*0.001*D22)/1 -> 0
A27: Crop | B27: Risk Quotients†
B28: Avian (20 g) | E28: Mammalian (15 g)
B29: Acute (# 1) | C29: Acute (# 2) | D29: Chronic | E29: Acute (# 1) | F29: Acute (# 2) | G29: Chronic
A30: =B22 ->  | B30: =E22/$E$7 ->  | C30: =((G22)/($E$7*0.02)) ->  | D30: =D22/$C$8 ->  | E30: =F22/$E$10 ->  | F30: =((G22)/($E$10*0.015)) ->  | G30: =F22/$E$14 -> 
B31: Avian (100 g) | E31: Mammalian (35 g)
B32: Acute (# 1) | C32: Acute (# 2) | D32: Chronic | E32: Acute (# 1) | F32: Acute (# 2) | G32: Chronic
A33: =A30 ->  | B33: =E23/$E$8 ->  | C33: =((G22)/($E$8*0.1)) ->  | D33: =D22/$C$8 ->  | E33: =F23/$E$11 ->  | F33: =((G22)/($E$11*0.035)) ->  | G33: =F23/$E$15 -> 
B34: Avian (1000 g) | E34: Mammalian (1000 g)
B35: Acute (# 1) | C35: Acute (# 2) | D35: Chronic | E35: Acute (# 1) | F35: Acute (# 2) | G35: Chronic
A36: =A33 ->  | B36: =E24/$E$9 ->  | C36: =((G22)/($E$9*1)) ->  | D36: =D22/$C$8 ->  | E36: =F24/$E$12 ->  | F36: =((G22)/($E$12*1)) ->  | G36: =F24/$E$16 -> 
A37: † | B37: Acute RQ #1 = | C37: (mg ai /kg-bw/day) / LD50
B38: Acute RQ #2 = | C38: mg ai ft-2 /(LD50*bw)
B39: Avian Chronic RQ = | C39: mg kg-1 seed / NOAEL
B40: Mammalian Chronic RQ = | C40: mg a.i./kg-bw/day / adjusted NOAEL
A41: Animal | B41: Nagy allometry
B42: Food ingestion value g/day
A43: 20 g Bird | B43: =(0.648*20^0.651)/0.9 -> 5.061777181
A44: 15 g Mammal | B44: =((0.621*15^0.564)/(1-0.1)) -> 3.178078065
A45: 100 g Bird | B45: =(0.648*100^0.651)/0.9 -> 14.4321986
A46: 35 g Mammal | B46: =((0.621*35^0.564)/(1-0.1)) -> 5.125113265
A47: 1000 g Bird | B47: =(0.648*1000^0.651)/0.9 -> 64.6148732
A48: 1000 g Mammal | B48: =((0.621*1000^0.564)/(1-0.1)) -> 33.95072796
C52: Maximum | D52: Minimum
B53: Crop | C53: Rate
C54: lb/acre | D54: lb/acre
A55: 1 | B55: corn, all or unspecified | C55: 33.18833333 | D55: 2.904
A56: 2 | B56: corn, field | C56: 27.03894195 | D56: 16.5
A57: 3 | B57: corn, pop | C57: 27.03894195 | D57: 5.042016807
A58: 4 | B58: corn, sweet | C58: 33.18833333 | D58: 2.904
A59: 5 | B59: cotton, all or unspecified | C59: 150 | D59: 6.444444444
A60: 6 | B60: cotton, pima | C60: 13.33333333 | D60: 6.444444444
A61: 7 | B61: rice | C61: 129 | D61: 6.666666667
A62: 8 | B62: soybean | C62: 166.6666667 | D62: 13.9
A63: 9 | B63: soybean for edamame | C63: 104.5 | D63: 1.8
A64: 10 | B64: wheat, all or unspecified | C64: 157.1 | D64: 30
A65: 11 | B65: wheat, winter | C65: 157 | D65: 30
A66: 12 | B66: wheat, spring | C66: 156 | D66: 60
A67: 13 | B67: wheat, hard red winter, dryland | C67: 120 | D67: 30
A68: 14 | B68: wheat, hard red winter, irrigated | C68: 130 | D68: 50
A69: 15 | B69: wheat, hard red winter, unspecified | C69: 130 | D69: 30
A70: 16 | B70: wheat, soft red winter, all | C70: 157.1 | D70: 30
A71: 17 | B71: wheat, hard red spring, dryland | C71: 120 | D71: 84
A72: 18 | B72: wheat, hard red spring, irrigated | C72: 146 | D72: 120
A73: 19 | B73: wheat, hard red spring, unspecified | C73: 146 | D73: 60
A74: 20 | B74: wheat, white | C74: 156 | D74: 120
A75: 21 | B75: wheat, durum | C75: 156 | D75: 60
A76: 22 | B76: hay or pasture, all or unspecified | C76: 116 | D76: 0.034848
A77: 23 | B77: perennial legume hay or pasture | C77: 35 | D77: 0.034848
A78: 24 | B78: alfalfa | C78: 90 | D78: 75
A79: 25 | B79: birdsfoot trefoil | C79: 15 | D79: 15
A80: 26 | B80: lespedeza | C80: 35 | D80: 9
A81: 27 | B81: clover, all or unspecified | C81: 30 | D81: 5
A82: 28 | B82: clover, alsike | C82: 9 | D82: 9
A83: 29 | B83: clover, arrowleaf | C83: 8 | D83: 5
A84: 30 | B84: clover, berseem | C84: 20 | D84: 15
A85: 31 | B85: clover, crimson | C85: 20 | D85: 15
A86: 32 | B86: clover, kura | C86: 30 | D86: 20
A87: 33 | B87: clover, red | C87: 6 | D87: 6
A88: 34 | B88: clover, rose | C88: 11 | D88: 11
A89: 35 | B89: clover, white | C89: 20 | D89: 15
A90: 36 | B90: lupine, all or unspecified | C90: 160 | D90: 40
A91: 37 | B91: lupine, blue | C91: 80 | D91: 58
A92: 38 | B92: lupine, narrow leaf | C92: 150 | D92: 80
A93: 39 | B93: lupine, white | C93: 160 | D93: 50
A94: 40 | B94: lupine, yellow | C94: 71 | D94: 40
A95: 41 | B95: crown vetch | C95: 5 | D95: 5
A96: 42 | B96: perennial grass hay or pasture | C96: 30 | D96: 2
A97: 43 | B97: festulolium | C97: 30 | D97: 20
A98: 44 | B98: Kentucky bluegrass | C98: 25 | D98: 25
A99: 45 | B99: orchard grass | C99: 10 | D99: 10
A100: 46 | B100: perennial ryegrass | C100: 10 | D100: 10
A101: 47 | B101: reed canary grass | C101: 24 | D101: 24
A102: 48 | B102: smooth brome | C102: 10 | D102: 10
A103: 49 | B103: Bermuda grass | C103: 16 | D103: 16
A104: 50 | B104: red fescue | C104: 8 | D104: 2
A105: 51 | B105: tall fescue | C105: 5 | D105: 5
A106: 52 | B106: timothy | C106: 15 | D106: 15
A107: 53 | B107: big bluestem | C107: 8 | D107: 8
A108: 54 | B108: eastern gama grass | C108: 12 | D108: 12
A109: 55 | B109: indian grass | C109: 9 | D109: 9
A110: 56 | B110: switch grass | C110: 12 | D110: 12
A111: 57 | B111: annual grass for forage | C111: 116 | D111: 2
A112: 58 | B112: annual ryegrass | C112: 9 | D112: 9
A113: 59 | B113: pearl millet for forage | C113: 24 | D113: 24
A114: 60 | B114: oats spring, for forage | C114: 20 | D114: 20
A115: 61 | B115: rye, winter for forage | C115: 87 | D115: 87
A116: 62 | B116: sorghum for forage | C116: 109 | D116: 109
A117: 63 | B117: sudan grass for forage | C117: 24 | D117: 24
A118: 64 | B118: triticale for forage | C118: 23 | D118: 23
A119: 65 | B119: winter wheat, for forage | C119: 109 | D119: 109
A120: 66 | B120: teff for forage | C120: 116 | D120: 116
A121: 67 | B121: asparagus | C121: 10 | D121: 8
A122: 68 | B122: barley | C122: 138.2978723 | D122: 8
A123: 69 | B123: beans, common or dry | C123: 140.01375 | D123: 32.01764057
A124: 70 | B124: beans, lima | C124: 163.35 | D124: 32.01764057
A125: 71 | B125: beans, succulent, or green | C125: 213.5291667 | D125: 20
A126: 72 | B126: beets, garden | C126: 435.6 | D126: 8
A127: 73 | B127: broccoli | C127: 25 | D127: 0.05531333333
A128: 74 | B128: brussels sprouts | C128: 0.43559375 | D128: 0.03403125
A129: 75 | B129: buckwheat | C129: 0.1540625 | D129: 0.0378125
A130: 76 | B130: cabbage | C130: 72 | D130: 0.044
A131: 77 | B131: carrot | C131: 11.94788571 | D131: 0.1584
A132: 78 | B132: cauliflower | C132: 5.689468571 | D132: 0.0363
A133: 79 | B133: cilantro | C133: 0.1815 | D133: 0.05808
A134: 80 | B134: collards | C134: 50 | D134: 25
A135: 81 | B135: cucumber | C135: 11.616 | D135: 0.3
A136: 82 | B136: dill weed | C136: 5.808 | D136: 0.6001984127
A137: 83 | B137: ginseng | C137: 8 | D137: 1
A138: 84 | B138: kale for market | C138: 100 | D138: 0.075625
A139: 85 | B139: lettuce, all or unspecifed | C139: 0.9801 | D139: 0.034848
A140: 86 | B140: lettuce, head | C140: 0.78408 | D140: 0.034848
A141: 87 | B141: lettuce, leaf, Bibb, Boston, or Romaine | C141: 0.3925 | D141: 0.034848
A142: 88 | B142: millet for feed, all or unspecified | C142: 71 | D142: 5
A143: 89 | B143: millet for feed, browntop | C143: 71 | D143: 40
A144: 90 | B144: millet for feed, finger | C144: 20 | D144: 10
A145: 91 | B145: millet for feed, foxtail | C145: 10 | D145: 8
A146: 92 | B146: millet for feed, Japanese | C146: 20 | D146: 10
A147: 93 | B147: millet for feed, pearl | C147: 25 | D147: 20
A148: 94 | B148: millet for feed, proso | C148: 15 | D148: 5
A149: 95 | B149: musk melon, all or unspecified | C149: 0.8 | D149: 0.1163461538
A150: 96 | B150: canteloupe | C150: 0.8 | D150: 0.1163461538
A151: 97 | B151: honeydew | C151: 0.8 | D151: 0.1163461538
A152: 98 | B152: casaba | C152: 0.8 | D152: 0.1163461538
A153: 99 | B153: Canary, or Juan Canary | C153: 0.8 | D153: 0.1163461538
A154: 100 | B154: Japanese | C154: 0.8 | D154: 0.1163461538
A155: 101 | B155: Crenshaw | C155: 0.8 | D155: 0.1163461538
A156: 102 | B156: mustard greens | C156: 6 | D156: 0.3141346154
A157: 103 | B157: mustard seed | C157: 4 | D157: 3
A158: 104 | B158: oats | C158: 7 | D158: 5
A159: 105 | B159: onions, all or unspecified | C159: 110 | D159: 0.38
A160: 106 | B160: onions, bulb types except pearl | C160: 75 | D160: 0.38
A161: 107 | B161: onions, pearl | C161: 110 | D161: 80
A162: 108 | B162: onions for seed | C162: 4.59 | D162: 2.62
A163: 109 | B163: onions, bunching (spring or green) | C163: 75 | D163: 0.38
A164: 110 | B164: parsley | C164: 40 | D164: 1.469139966
A165: 111 | B165: pea, field | C165: 217.8 | D165: 4.231123103
A166: 112 | B166: pea, garden | C166: 411 | D166: 31.11428571
A167: 113 | B167: pea, southern | C167: 275 | D167: 6.22275
A168: 114 | B168: peanut | C168: 228.2608696 | D168: 6.22275
A169: 115 | B169: peppers, all | C169: 170 | D169: 0.07541551247
A170: 116 | B170: peppers, bell | C170: 170 | D170: 0.3619944598
A171: 117 | B171: peppers, hot (paprika, chili, etc) | C171: 4.18176 | D171: 0.07541551247
A172: 118 | B172: potatoes | C172: 6969.6 | D172: 0.07541551247
A173: 119 | B173: pumpkin, all | C173: 4.54 | D173: 0.09
A174: 120 | B174: pumpkin, large or large vine | C174: 4.54 | D174: 0.09
A175: 121 | B175: pumpkin, bush or small fruit/vine | C175: 4.54 | D175: 0.15
A176: 122 | B176: squash, all | C176: 8.007291667 | D176: 0.09203125
A177: 123 | B177: squash, summer | C177: 6.1 | D177: 0.4
A178: 124 | B178: squash, winter | C178: 3.8 | D178: 0.7
A179: 125 | B179: squash, spagetti | C179: 3.78125 | D179: 0.680625
A180: 126 | B180: radish | C180: 32.67 | D180: 0.4253125
A181: 127 | B181: rape | C181: 30.628125 | D181: 3.787826087
A182: 128 | B182: canola | C182: 30.628125 | D182: 3.787826087
A183: 129 | B183: rutabaga | C183: 7.744 | D183: 3.787826087
A184: 130 | B184: rye | C184: 2 | D184: 1.5
A185: 131 | B185: safflower | C185: 90 | D185: 15
A186: 132 | B186: sesame | C186: 35 | D186: 30
A187: 133 | B187: sorghum | C187: 12 | D187: 5
A188: 134 | B188: spinach | C188: 60.31384615 | D188: 0.6402116402
A189: 135 | B189: sugar beet for seed production | C189: 25 | D189: 4.4
A190: 136 | B190: sugar beet | C190: 25 | D190: 0.8
A191: 137 | B191: sunflower | C191: 1.818181818 | D191: 0.7142857143
A192: 138 | B192: turnip green | C192: 6.3 | D192: 0.8
A193: 139 | B193: tomatoes | C193: 4 | D193: 0.01910526316
A194: 140 | B194: turnips | C194: 1.56502994 | D194: 0.01273684211
A195: 141 | B195: watermelon | C195: 9.075 | D195: 0.06302083333

Sheet Graphs
AB2: Avian | AE2: Acute Mammalian Non endangered | AH2: Acute Mammalian Non endangered | AK2: Acute Mammalian Endangered | AN2: Acute Mammalian Endangered | AQ2: Mammal Chronic
V3: LOC | Y3: Concentration | AA3: Day | AB3: acute | AC3: endangered | AD3: chronic | AE3: 15 g H/I | AF3: 35g H/I | AG3: 1000g H/I | AH3: 15 g G | AI3: 35g G | AJ3: 1000g G | AK3: 15 g H/I | AL3: 35g H/I | AM3: 1000g H/I | AN3: 15 g G | AO3: 35g G | AP3: 1000g G
V4: Avian | W4: acute | X4: 0.5 | Y4: ='upper bound Kenaga'!D16*Graphs!X4 -> 0 | AA4: 1 | AB4: =Y4 -> 0 | AC4: =Y5 -> 0 | AD4: =Y6 -> 0 | AE4: =Y7 -> 0 | AF4: =Y8 -> 0 | AG4: =Y9 -> 0 | AH4: =+Y10 -> 0 | AI4: =Y11 -> 0 | AJ4: =Y12 -> 0 | AK4: =Y13 -> 0 | AL4: =Y14 -> 0 | AM4: =Y15 -> 0 | AN4: =Y16 -> 0 | AO4: =Y17 -> 0 | AP4: =Y18 -> 0 | AQ4: =Y19 -> 0
W5: endangered | X5: 0.1 | Y5: ='upper bound Kenaga'!D16*X5 -> 0 | AA5: =AA4+1 -> 2 | AB5: =AB4 -> 0 | AC5: =AC4 -> 0 | AD5: =AD4 -> 0 | AE5: =AE4 -> 0 | AF5: =AF4 -> 0 | AG5: =AG4 -> 0 | AH5: =AH4 -> 0 | AI5: =AI4 -> 0 | AJ5: =AJ4 -> 0 | AK5: =AK4 -> 0 | AL5: =AL4 -> 0 | AM5: =AM4 -> 0 | AN5: =AN4 -> 0 | AO5: =AO4 -> 0 | AP5: =AP4 -> 0 | AQ5: 0
W6: chronic | X6: 1 | Y6: ='upper bound Kenaga'!D18 -> 0 | AA6: =AA5+1 -> 3 | AB6: 0 | AC6: 0 | AD6: 0 | AE6: 0 | AF6: 0 | AG6: 0 | AH6: 0 | AI6: 0 | AJ6: 0 | AK6: 0 | AL6: 0 | AM6: 0 | AN6: 0 | AO6: 0 | AP6: 0 | AQ6: 0
V7: Mammalian | W7: acute 15g herbivore/insectivore | X7: 0.5 | Y7: =('upper bound Kenaga'!D105/0.95)*0.5 -> 0 | AA7: 4 | AB7: 0 | AC7: 0 | AD7: 0 | AE7: 0 | AF7: 0 | AG7: 0 | AH7: 0 | AI7: 0 | AJ7: 0 | AK7: 0 | AL7: 0 | AM7: 0 | AN7: 0 | AO7: 0 | AP7: 0 | AQ7: 0
W8: acute 35g herbivore/insectivore | X8: 0.5 | Y8: =('upper bound Kenaga'!D106/0.66)*0.5 -> 0 | AA8: 5 | AB8: 0 | AC8: 0 | AD8: 0 | AE8: 0 | AF8: 0 | AG8: 0 | AH8: 0 | AI8: 0 | AJ8: 0 | AK8: 0 | AL8: 0 | AM8: 0 | AN8: 0 | AO8: 0 | AP8: 0 | AQ8: 0
W9: acute 1000g herbivore/insectivore | X9: 0.5 | Y9: =('upper bound Kenaga'!D107/0.55)*0.5 -> 0 | AA9: 6 | AB9: 0 | AC9: 0 | AD9: 0 | AE9: 0 | AF9: 0 | AG9: 0 | AH9: 0 | AI9: 0 | AJ9: 0 | AK9: 0 | AL9: 0 | AM9: 0 | AN9: 0 | AO9: 0 | AP9: 0 | AQ9: 0
W10: acute 15g granivore | X10: 0.5 | Y10: =('upper bound Kenaga'!D105/0.21)*0.5 -> 0 | AA10: 7 | AB10: 0 | AC10: 0 | AD10: 0 | AE10: 0 | AF10: 0 | AG10: 0 | AH10: 0 | AI10: 0 | AJ10: 0 | AK10: 0 | AL10: 0 | AM10: 0 | AN10: 0 | AO10: 0 | AP10: 0 | AQ10: 0
W11: acute 35g granivore | X11: 0.5 | Y11: =('upper bound Kenaga'!D106/0.15)*0.5 -> 0 | AA11: 8 | AB11: 0 | AC11: 0 | AD11: 0 | AE11: 0 | AF11: 0 | AG11: 0 | AH11: 0 | AI11: 0 | AJ11: 0 | AK11: 0 | AL11: 0 | AM11: 0 | AN11: 0 | AO11: 0 | AP11: 0 | AQ11: 0
W12: acute 1000g granivore | X12: 0.5 | Y12: =('upper bound Kenaga'!D107/0.03)*0.5 -> 0 | AA12: 9 | AB12: 0 | AC12: 0 | AD12: 0 | AE12: 0 | AF12: 0 | AG12: 0 | AH12: 0 | AI12: 0 | AJ12: 0 | AK12: 0 | AL12: 0 | AM12: 0 | AN12: 0 | AO12: 0 | AP12: 0 | AQ12: 0
W13: acute endangered 15g herbivore/insectivore | X13: 0.1 | Y13: =('upper bound Kenaga'!D105/0.95)*0.1 -> 0 | AA13: 10 | AB13: 0 | AC13: 0 | AD13: 0 | AE13: 0 | AF13: 0 | AG13: 0 | AH13: 0 | AI13: 0 | AJ13: 0 | AK13: 0 | AL13: 0 | AM13: 0 | AN13: 0 | AO13: 0 | AP13: 0 | AQ13: 0
W14: acute endangered 35g herbivore/insectivore | X14: 0.1 | Y14: =('upper bound Kenaga'!D106/0.66)*0.1 -> 0 | AA14: 11 | AB14: 0 | AC14: 0 | AD14: 0 | AE14: 0 | AF14: 0 | AG14: 0 | AH14: 0 | AI14: 0 | AJ14: 0 | AK14: 0 | AL14: 0 | AM14: 0 | AN14: 0 | AO14: 0 | AP14: 0 | AQ14: 0
W15: acute endangered 1000g herbivore/insectivore | X15: 0.1 | Y15: =('upper bound Kenaga'!D107/0.55)*0.1 -> 0 | AA15: 12 | AB15: 0 | AC15: 0 | AD15: 0 | AE15: 0 | AF15: 0 | AG15: 0 | AH15: 0 | AI15: 0 | AJ15: 0 | AK15: 0 | AL15: 0 | AM15: 0 | AN15: 0 | AO15: 0 | AP15: 0 | AQ15: 0
W16: acute endangered 15g granivore | X16: 0.1 | Y16: =('upper bound Kenaga'!D105/0.21)*0.1 -> 0 | AA16: 13 | AB16: 0 | AC16: 0 | AD16: 0 | AE16: 0 | AF16: 0 | AG16: 0 | AH16: 0 | AI16: 0 | AJ16: 0 | AK16: 0 | AL16: 0 | AM16: 0 | AN16: 0 | AO16: 0 | AP16: 0 | AQ16: 0
W17: acute endangered 35g granivore | X17: 0.1 | Y17: =('upper bound Kenaga'!D106/0.15)*0.1 -> 0 | AA17: 14 | AB17: 0 | AC17: 0 | AD17: 0 | AE17: 0 | AF17: 0 | AG17: 0 | AH17: 0 | AI17: 0 | AJ17: 0 | AK17: 0 | AL17: 0 | AM17: 0 | AN17: 0 | AO17: 0 | AP17: 0 | AQ17: 0
W18: acute endangered 1000g granivore | X18: 0.1 | Y18: =('upper bound Kenaga'!D107/0.03)*0.1 -> 0 | AA18: 15 | AB18: 0 | AC18: 0 | AD18: 0 | AE18: 0 | AF18: 0 | AG18: 0 | AH18: 0 | AI18: 0 | AJ18: 0 | AK18: 0 | AL18: 0 | AM18: 0 | AN18: 0 | AO18: 0 | AP18: 0 | AQ18: 0
W19: chronic | X19: 1 | Y19: ='upper bound Kenaga'!D23 -> 0 | AA19: 16 | AB19: 0 | AC19: 0 | AD19: 0 | AE19: 0 | AF19: 0 | AG19: 0 | AH19: 0 | AI19: 0 | AJ19: 0 | AK19: 0 | AL19: 0 | AM19: 0 | AN19: 0 | AO19: 0 | AP19: 0 | AQ19: 0
AA20: 17 | AB20: 0 | AC20: 0 | AD20: 0 | AE20: 0 | AF20: 0 | AG20: 0 | AH20: 0 | AI20: 0 | AJ20: 0 | AK20: 0 | AL20: 0 | AM20: 0 | AN20: 0 | AO20: 0 | AP20: 0 | AQ20: 0
AA21: 18 | AB21: 0 | AC21: 0 | AD21: 0 | AE21: 0 | AF21: 0 | AG21: 0 | AH21: 0 | AI21: 0 | AJ21: 0 | AK21: 0 | AL21: 0 | AM21: 0 | AN21: 0 | AO21: 0 | AP21: 0 | AQ21: 0
AA22: 19 | AB22: 0 | AC22: 0 | AD22: 0 | AE22: 0 | AF22: 0 | AG22: 0 | AH22: 0 | AI22: 0 | AJ22: 0 | AK22: 0 | AL22: 0 | AM22: 0 | AN22: 0 | AO22: 0 | AP22: 0 | AQ22: 0
AA23: 20 | AB23: 0 | AC23: 0 | AD23: 0 | AE23: 0 | AF23: 0 | AG23: 0 | AH23: 0 | AI23: 0 | AJ23: 0 | AK23: 0 | AL23: 0 | AM23: 0 | AN23: 0 | AO23: 0 | AP23: 0 | AQ23: 0
AA24: 21 | AB24: 0 | AC24: 0 | AD24: 0 | AE24: 0 | AF24: 0 | AG24: 0 | AH24: 0 | AI24: 0 | AJ24: 0 | AK24: 0 | AL24: 0 | AM24: 0 | AN24: 0 | AO24: 0 | AP24: 0 | AQ24: 0
AA25: 22 | AB25: 0 | AC25: 0 | AD25: 0 | AE25: 0 | AF25: 0 | AG25: 0 | AH25: 0 | AI25: 0 | AJ25: 0 | AK25: 0 | AL25: 0 | AM25: 0 | AN25: 0 | AO25: 0 | AP25: 0 | AQ25: 0
AA26: 23 | AB26: 0 | AC26: 0 | AD26: 0 | AE26: 0 | AF26: 0 | AG26: 0 | AH26: 0 | AI26: 0 | AJ26: 0 | AK26: 0 | AL26: 0 | AM26: 0 | AN26: 0 | AO26: 0 | AP26: 0 | AQ26: 0
AA27: 24 | AB27: 0 | AC27: 0 | AD27: 0 | AE27: 0 | AF27: 0 | AG27: 0 | AH27: 0 | AI27: 0 | AJ27: 0 | AK27: 0 | AL27: 0 | AM27: 0 | AN27: 0 | AO27: 0 | AP27: 0 | AQ27: 0
AA28: 25 | AB28: 0 | AC28: 0 | AD28: 0 | AE28: 0 | AF28: 0 | AG28: 0 | AH28: 0 | AI28: 0 | AJ28: 0 | AK28: 0 | AL28: 0 | AM28: 0 | AN28: 0 | AO28: 0 | AP28: 0 | AQ28: 0
AA29: 26 | AB29: 0 | AC29: 0 | AD29: 0 | AE29: 0 | AF29: 0 | AG29: 0 | AH29: 0 | AI29: 0 | AJ29: 0 | AK29: 0 | AL29: 0 | AM29: 0 | AN29: 0 | AO29: 0 | AP29: 0 | AQ29: 0
AA30: 27 | AB30: 0 | AC30: 0 | AD30: 0 | AE30: 0 | AF30: 0 | AG30: 0 | AH30: 0 | AI30: 0 | AJ30: 0 | AK30: 0 | AL30: 0 | AM30: 0 | AN30: 0 | AO30: 0 | AP30: 0 | AQ30: 0
AA31: 28 | AB31: 0 | AC31: 0 | AD31: 0 | AE31: 0 | AF31: 0 | AG31: 0 | AH31: 0 | AI31: 0 | AJ31: 0 | AK31: 0 | AL31: 0 | AM31: 0 | AN31: 0 | AO31: 0 | AP31: 0 | AQ31: 0
AA32: 29 | AB32: 0 | AC32: 0 | AD32: 0 | AE32: 0 | AF32: 0 | AG32: 0 | AH32: 0 | AI32: 0 | AJ32: 0 | AK32: 0 | AL32: 0 | AM32: 0 | AN32: 0 | AO32: 0 | AP32: 0 | AQ32: 0
AA33: 30 | AB33: 0 | AC33: 0 | AD33: 0 | AE33: 0 | AF33: 0 | AG33: 0 | AH33: 0 | AI33: 0 | AJ33: 0 | AK33: 0 | AL33: 0 | AM33: 0 | AN33: 0 | AO33: 0 | AP33: 0 | AQ33: 0
AA34: 31 | AB34: 0 | AC34: 0 | AD34: 0 | AE34: 0 | AF34: 0 | AG34: 0 | AH34: 0 | AI34: 0 | AJ34: 0 | AK34: 0 | AL34: 0 | AM34: 0 | AN34: 0 | AO34: 0 | AP34: 0 | AQ34: 0
AA35: 32 | AB35: 0 | AC35: 0 | AD35: 0 | AE35: 0 | AF35: 0 | AG35: 0 | AH35: 0 | AI35: 0 | AJ35: 0 | AK35: 0 | AL35: 0 | AM35: 0 | AN35: 0 | AO35: 0 | AP35: 0 | AQ35: 0
AA36: 33 | AB36: 0 | AC36: 0 | AD36: 0 | AE36: 0 | AF36: 0 | AG36: 0 | AH36: 0 | AI36: 0 | AJ36: 0 | AK36: 0 | AL36: 0 | AM36: 0 | AN36: 0 | AO36: 0 | AP36: 0 | AQ36: 0
AA37: 34 | AB37: =AB36 -> 0 | AC37: =AC36 -> 0 | AD37: =AD36 -> 0 | AE37: =AE36 -> 0 | AF37: =AF36 -> 0 | AG37: =AG36 -> 0 | AH37: =AH36 -> 0 | AI37: 0 | AJ37: 0 | AK37: =AK36 -> 0 | AL37: =AL36 -> 0 | AM37: =AM36 -> 0 | AN37: =AN36 -> 0 | AO37: 0 | AP37: 0 | AQ37: 0
AA38: 35 | AB38: 0 | AC38: 0 | AD38: 0 | AE38: 0 | AF38: 0 | AG38: 0 | AH38: 0 | AI38: 0 | AJ38: 0 | AK38: 0 | AL38: 0 | AM38: 0 | AN38: 0 | AO38: 0 | AP38: 0 | AQ38: 0
AA39: 36 | AB39: 0 | AC39: 0 | AD39: 0 | AE39: 0 | AF39: 0 | AG39: 0 | AH39: 0 | AI39: 0 | AJ39: 0 | AK39: 0 | AL39: 0 | AM39: 0 | AN39: 0 | AO39: 0 | AP39: 0 | AQ39: 0
AA40: 37 | AB40: 0 | AC40: 0 | AD40: 0 | AE40: 0 | AF40: 0 | AG40: 0 | AH40: 0 | AI40: 0 | AJ40: 0 | AK40: 0 | AL40: 0 | AM40: 0 | AN40: 0 | AO40: 0 | AP40: 0 | AQ40: 0
AA41: 38 | AB41: 0 | AC41: 0 | AD41: 0 | AE41: 0 | AF41: 0 | AG41: 0 | AH41: 0 | AI41: 0 | AJ41: 0 | AK41: 0 | AL41: 0 | AM41: 0 | AN41: 0 | AO41: 0 | AP41: 0 | AQ41: 0
AA42: 39 | AB42: 0 | AC42: 0 | AD42: 0 | AE42: 0 | AF42: 0 | AG42: 0 | AH42: 0 | AI42: 0 | AJ42: 0 | AK42: 0 | AL42: 0 | AM42: 0 | AN42: 0 | AO42: 0 | AP42: 0 | AQ42: 0
AA43: 40 | AB43: 0 | AC43: 0 | AD43: 0 | AE43: 0 | AF43: 0 | AG43: 0 | AH43: 0 | AI43: 0 | AJ43: 0 | AK43: 0 | AL43: 0 | AM43: 0 | AN43: 0 | AO43: 0 | AP43: 0 | AQ43: 0
AA44: 41 | AB44: 0 | AC44: 0 | AD44: 0 | AE44: 0 | AF44: 0 | AG44: 0 | AH44: 0 | AI44: 0 | AJ44: 0 | AK44: 0 | AL44: 0 | AM44: 0 | AN44: 0 | AO44: 0 | AP44: 0 | AQ44: 0
AA45: 42 | AB45: 0 | AC45: 0 | AD45: 0 | AE45: 0 | AF45: 0 | AG45: 0 | AH45: 0 | AI45: 0 | AJ45: 0 | AK45: 0 | AL45: 0 | AM45: 0 | AN45: 0 | AO45: 0 | AP45: 0 | AQ45: 0
AA46: 43 | AB46: 0 | AC46: 0 | AD46: 0 | AE46: 0 | AF46: 0 | AG46: 0 | AH46: 0 | AI46: 0 | AJ46: 0 | AK46: 0 | AL46: 0 | AM46: 0 | AN46: 0 | AO46: 0 | AP46: 0 | AQ46: 0
AA47: 44 | AB47: 0 | AC47: 0 | AD47: 0 | AE47: 0 | AF47: 0 | AG47: 0 | AH47: 0 | AI47: 0 | AJ47: 0 | AK47: 0 | AL47: 0 | AM47: 0 | AN47: 0 | AO47: 0 | AP47: 0 | AQ47: 0
AA48: 45 | AB48: 0 | AC48: 0 | AD48: 0 | AE48: 0 | AF48: 0 | AG48: 0 | AH48: 0 | AI48: 0 | AJ48: 0 | AK48: 0 | AL48: 0 | AM48: 0 | AN48: 0 | AO48: 0 | AP48: 0 | AQ48: 0
AA49: 46 | AB49: 0 | AC49: 0 | AD49: 0 | AE49: 0 | AF49: 0 | AG49: 0 | AH49: 0 | AI49: 0 | AJ49: 0 | AK49: 0 | AL49: 0 | AM49: 0 | AN49: 0 | AO49: 0 | AP49: 0 | AQ49: 0
AA50: 47 | AB50: 0 | AC50: 0 | AD50: 0 | AE50: 0 | AF50: 0 | AG50: 0 | AH50: 0 | AI50: 0 | AJ50: 0 | AK50: 0 | AL50: 0 | AM50: 0 | AN50: 0 | AO50: 0 | AP50: 0 | AQ50: 0
AA51: 48 | AB51: 0 | AC51: 0 | AD51: 0 | AE51: 0 | AF51: 0 | AG51: 0 | AH51: 0 | AI51: 0 | AJ51: 0 | AK51: 0 | AL51: 0 | AM51: 0 | AN51: 0 | AO51: 0 | AP51: 0 | AQ51: 0
AA52: 49 | AB52: 0 | AC52: 0 | AD52: 0 | AE52: 0 | AF52: 0 | AG52: 0 | AH52: 0 | AI52: 0 | AJ52: 0 | AK52: 0 | AL52: 0 | AM52: 0 | AN52: 0 | AO52: 0 | AP52: 0 | AQ52: 0
AA53: 50 | AB53: 0 | AC53: 0 | AD53: 0 | AE53: 0 | AF53: 0 | AG53: 0 | AH53: 0 | AI53: 0 | AJ53: 0 | AK53: 0 | AL53: 0 | AM53: 0 | AN53: 0 | AO53: 0 | AP53: 0 | AQ53: 0
AA54: 51 | AB54: 0 | AC54: 0 | AD54: 0 | AE54: 0 | AF54: 0 | AG54: 0 | AH54: 0 | AI54: 0 | AJ54: 0 | AK54: 0 | AL54: 0 | AM54: 0 | AN54: 0 | AO54: 0 | AP54: 0 | AQ54: 0
AA55: 52 | AB55: 0 | AC55: 0 | AD55: 0 | AE55: 0 | AF55: 0 | AG55: 0 | AH55: 0 | AI55: 0 | AJ55: 0 | AK55: 0 | AL55: 0 | AM55: 0 | AN55: 0 | AO55: 0 | AP55: 0 | AQ55: 0
AA56: 53 | AB56: 0 | AC56: 0 | AD56: 0 | AE56: 0 | AF56: 0 | AG56: 0 | AH56: 0 | AI56: 0 | AJ56: 0 | AK56: 0 | AL56: 0 | AM56: 0 | AN56: 0 | AO56: 0 | AP56: 0 | AQ56: 0
AA57: 54 | AB57: 0 | AC57: 0 | AD57: 0 | AE57: 0 | AF57: 0 | AG57: 0 | AH57: 0 | AI57: 0 | AJ57: 0 | AK57: 0 | AL57: 0 | AM57: 0 | AN57: 0 | AO57: 0 | AP57: 0 | AQ57: 0
AA58: 55 | AB58: 0 | AC58: 0 | AD58: 0 | AE58: 0 | AF58: 0 | AG58: 0 | AH58: 0 | AI58: 0 | AJ58: 0 | AK58: 0 | AL58: 0 | AM58: 0 | AN58: 0 | AO58: 0 | AP58: 0 | AQ58: 0
AA59: 56 | AB59: 0 | AC59: 0 | AD59: 0 | AE59: 0 | AF59: 0 | AG59: 0 | AH59: 0 | AI59: 0 | AJ59: 0 | AK59: 0 | AL59: 0 | AM59: 0 | AN59: 0 | AO59: 0 | AP59: 0 | AQ59: 0
AA60: 57 | AB60: 0 | AC60: 0 | AD60: 0 | AE60: 0 | AF60: 0 | AG60: 0 | AH60: 0 | AI60: 0 | AJ60: 0 | AK60: 0 | AL60: 0 | AM60: 0 | AN60: 0 | AO60: 0 | AP60: 0 | AQ60: 0
AA61: 58 | AB61: 0 | AC61: 0 | AD61: 0 | AE61: 0 | AF61: 0 | AG61: 0 | AH61: 0 | AI61: 0 | AJ61: 0 | AK61: 0 | AL61: 0 | AM61: 0 | AN61: 0 | AO61: 0 | AP61: 0 | AQ61: 0
AA62: 59 | AB62: 0 | AC62: 0 | AD62: 0 | AE62: 0 | AF62: 0 | AG62: 0 | AH62: 0 | AI62: 0 | AJ62: 0 | AK62: 0 | AL62: 0 | AM62: 0 | AN62: 0 | AO62: 0 | AP62: 0 | AQ62: 0
AA63: 60 | AB63: 0 | AC63: 0 | AD63: 0 | AE63: 0 | AF63: 0 | AG63: 0 | AH63: 0 | AI63: 0 | AJ63: 0 | AK63: 0 | AL63: 0 | AM63: 0 | AN63: 0 | AO63: 0 | AP63: 0 | AQ63: 0
AA64: 61 | AB64: 0 | AC64: 0 | AD64: 0 | AE64: 0 | AF64: 0 | AG64: 0 | AH64: 0 | AI64: 0 | AJ64: 0 | AK64: 0 | AL64: 0 | AM64: 0 | AN64: 0 | AO64: 0 | AP64: 0 | AQ64: 0
AA65: 62 | AB65: 0 | AC65: 0 | AD65: 0 | AE65: 0 | AF65: 0 | AG65: 0 | AH65: 0 | AI65: 0 | AJ65: 0 | AK65: 0 | AL65: 0 | AM65: 0 | AN65: 0 | AO65: 0 | AP65: 0 | AQ65: 0
AA66: 63 | AB66: 0 | AC66: 0 | AD66: 0 | AE66: 0 | AF66: 0 | AG66: 0 | AH66: 0 | AI66: 0 | AJ66: 0 | AK66: 0 | AL66: 0 | AM66: 0 | AN66: 0 | AO66: 0 | AP66: 0 | AQ66: 0
AA67: 64 | AB67: 0 | AC67: 0 | AD67: 0 | AE67: 0 | AF67: 0 | AG67: 0 | AH67: 0 | AI67: 0 | AJ67: 0 | AK67: 0 | AL67: 0 | AM67: 0 | AN67: 0 | AO67: 0 | AP67: 0 | AQ67: 0
AA68: 65 | AB68: 0 | AC68: 0 | AD68: 0 | AE68: 0 | AF68: 0 | AG68: 0 | AH68: 0 | AI68: 0 | AJ68: 0 | AK68: 0 | AL68: 0 | AM68: 0 | AN68: 0 | AO68: 0 | AP68: 0 | AQ68: 0
AA69: 66 | AB69: =AB68 -> 0 | AC69: =AC68 -> 0 | AD69: =AD68 -> 0 | AE69: =AE68 -> 0 | AF69: =AF68 -> 0 | AG69: =AG68 -> 0 | AH69: =AH68 -> 0 | AI69: =AI68 -> 0 | AJ69: =AJ68 -> 0 | AK69: =AK68 -> 0 | AL69: =AL68 -> 0 | AM69: =AM68 -> 0 | AN69: =AN68 -> 0 | AO69: =AO68 -> 0 | AP69: =AP68 -> 0 | AQ69: 0
AA70: =AA69+1 -> 67 | AB70: 0 | AC70: 0 | AD70: 0 | AE70: 0 | AF70: 0 | AG70: 0 | AH70: 0 | AI70: 0 | AJ70: 0 | AK70: 0 | AL70: 0 | AM70: 0 | AN70: 0 | AO70: 0 | AP70: 0 | AQ70: 0
AA71: 68 | AB71: 0 | AC71: 0 | AD71: 0 | AE71: 0 | AF71: 0 | AG71: 0 | AH71: 0 | AI71: 0 | AJ71: 0 | AK71: 0 | AL71: 0 | AM71: 0 | AN71: 0 | AO71: 0 | AP71: 0 | AQ71: 0
AA72: 69 | AB72: 0 | AC72: 0 | AD72: 0 | AE72: 0 | AF72: 0 | AG72: 0 | AH72: 0 | AI72: 0 | AJ72: 0 | AK72: 0 | AL72: 0 | AM72: 0 | AN72: 0 | AO72: 0 | AP72: 0 | AQ72: 0
AA73: 70 | AB73: 0 | AC73: 0 | AD73: 0 | AE73: 0 | AF73: 0 | AG73: 0 | AH73: 0 | AI73: 0 | AJ73: 0 | AK73: 0 | AL73: 0 | AM73: 0 | AN73: 0 | AO73: 0 | AP73: 0 | AQ73: 0
AA74: 71 | AB74: 0 | AC74: 0 | AD74: 0 | AE74: 0 | AF74: 0 | AG74: 0 | AH74: 0 | AI74: 0 | AJ74: 0 | AK74: 0 | AL74: 0 | AM74: 0 | AN74: 0 | AO74: 0 | AP74: 0 | AQ74: 0
AA75: 72 | AB75: 0 | AC75: 0 | AD75: 0 | AE75: 0 | AF75: 0 | AG75: 0 | AH75: 0 | AI75: 0 | AJ75: 0 | AK75: 0 | AL75: 0 | AM75: 0 | AN75: 0 | AO75: 0 | AP75: 0 | AQ75: 0
AA76: 73 | AB76: 0 | AC76: 0 | AD76: 0 | AE76: 0 | AF76: 0 | AG76: 0 | AH76: 0 | AI76: 0 | AJ76: 0 | AK76: 0 | AL76: 0 | AM76: 0 | AN76: 0 | AO76: 0 | AP76: 0 | AQ76: 0
AA77: 74 | AB77: 0 | AC77: 0 | AD77: 0 | AE77: 0 | AF77: 0 | AG77: 0 | AH77: 0 | AI77: 0 | AJ77: 0 | AK77: 0 | AL77: 0 | AM77: 0 | AN77: 0 | AO77: 0 | AP77: 0 | AQ77: 0
AA78: 75 | AB78: 0 | AC78: 0 | AD78: 0 | AE78: 0 | AF78: 0 | AG78: 0 | AH78: 0 | AI78: 0 | AJ78: 0 | AK78: 0 | AL78: 0 | AM78: 0 | AN78: 0 | AO78: 0 | AP78: 0 | AQ78: 0
AA79: 76 | AB79: 0 | AC79: 0 | AD79: 0 | AE79: 0 | AF79: 0 | AG79: 0 | AH79: 0 | AI79: 0 | AJ79: 0 | AK79: 0 | AL79: 0 | AM79: 0 | AN79: 0 | AO79: 0 | AP79: 0 | AQ79: 0
AA80: 77 | AB80: 0 | AC80: 0 | AD80: 0 | AE80: 0 | AF80: 0 | AG80: 0 | AH80: 0 | AI80: 0 | AJ80: 0 | AK80: 0 | AL80: 0 | AM80: 0 | AN80: 0 | AO80: 0 | AP80: 0 | AQ80: 0
AA81: 78 | AB81: 0 | AC81: 0 | AD81: 0 | AE81: 0 | AF81: 0 | AG81: 0 | AH81: 0 | AI81: 0 | AJ81: 0 | AK81: 0 | AL81: 0 | AM81: 0 | AN81: 0 | AO81: 0 | AP81: 0 | AQ81: 0
AA82: 79 | AB82: 0 | AC82: 0 | AD82: 0 | AE82: 0 | AF82: 0 | AG82: 0 | AH82: 0 | AI82: 0 | AJ82: 0 | AK82: 0 | AL82: 0 | AM82: 0 | AN82: 0 | AO82: 0 | AP82: 0 | AQ82: 0
AA83: 80 | AB83: 0 | AC83: 0 | AD83: 0 | AE83: 0 | AF83: 0 | AG83: 0 | AH83: 0 | AI83: 0 | AJ83: 0 | AK83: 0 | AL83: 0 | AM83: 0 | AN83: 0 | AO83: 0 | AP83: 0 | AQ83: 0
AA84: 81 | AB84: 0 | AC84: 0 | AD84: 0 | AE84: 0 | AF84: 0 | AG84: 0 | AH84: 0 | AI84: 0 | AJ84: 0 | AK84: 0 | AL84: 0 | AM84: 0 | AN84: 0 | AO84: 0 | AP84: 0 | AQ84: 0
AA85: 82 | AB85: 0 | AC85: 0 | AD85: 0 | AE85: 0 | AF85: 0 | AG85: 0 | AH85: 0 | AI85: 0 | AJ85: 0 | AK85: 0 | AL85: 0 | AM85: 0 | AN85: 0 | AO85: 0 | AP85: 0 | AQ85: 0
AA86: 83 | AB86: 0 | AC86: 0 | AD86: 0 | AE86: 0 | AF86: 0 | AG86: 0 | AH86: 0 | AI86: 0 | AJ86: 0 | AK86: 0 | AL86: 0 | AM86: 0 | AN86: 0 | AO86: 0 | AP86: 0 | AQ86: 0
AA87: 84 | AB87: 0 | AC87: 0 | AD87: 0 | AE87: 0 | AF87: 0 | AG87: 0 | AH87: 0 | AI87: 0 | AJ87: 0 | AK87: 0 | AL87: 0 | AM87: 0 | AN87: 0 | AO87: 0 | AP87: 0 | AQ87: 0
AA88: 85 | AB88: 0 | AC88: 0 | AD88: 0 | AE88: 0 | AF88: 0 | AG88: 0 | AH88: 0 | AI88: 0 | AJ88: 0 | AK88: 0 | AL88: 0 | AM88: 0 | AN88: 0 | AO88: 0 | AP88: 0 | AQ88: 0
AA89: 86 | AB89: 0 | AC89: 0 | AD89: 0 | AE89: 0 | AF89: 0 | AG89: 0 | AH89: 0 | AI89: 0 | AJ89: 0 | AK89: 0 | AL89: 0 | AM89: 0 | AN89: 0 | AO89: 0 | AP89: 0 | AQ89: 0
AA90: 87 | AB90: 0 | AC90: 0 | AD90: 0 | AE90: 0 | AF90: 0 | AG90: 0 | AH90: 0 | AI90: 0 | AJ90: 0 | AK90: 0 | AL90: 0 | AM90: 0 | AN90: 0 | AO90: 0 | AP90: 0 | AQ90: 0
AA91: 88 | AB91: 0 | AC91: 0 | AD91: 0 | AE91: 0 | AF91: 0 | AG91: 0 | AH91: 0 | AI91: 0 | AJ91: 0 | AK91: 0 | AL91: 0 | AM91: 0 | AN91: 0 | AO91: 0 | AP91: 0 | AQ91: 0
AA92: 89 | AB92: 0 | AC92: 0 | AD92: 0 | AE92: 0 | AF92: 0 | AG92: 0 | AH92: 0 | AI92: 0 | AJ92: 0 | AK92: 0 | AL92: 0 | AM92: 0 | AN92: 0 | AO92: 0 | AP92: 0 | AQ92: 0
AA93: 90 | AB93: 0 | AC93: 0 | AD93: 0 | AE93: 0 | AF93: 0 | AG93: 0 | AH93: 0 | AI93: 0 | AJ93: 0 | AK93: 0 | AL93: 0 | AM93: 0 | AN93: 0 | AO93: 0 | AP93: 0 | AQ93: 0
AA94: 91 | AB94: 0 | AC94: 0 | AD94: 0 | AE94: 0 | AF94: 0 | AG94: 0 | AH94: 0 | AI94: 0 | AJ94: 0 | AK94: 0 | AL94: 0 | AM94: 0 | AN94: 0 | AO94: 0 | AP94: 0 | AQ94: 0
AA95: 92 | AB95: 0 | AC95: 0 | AD95: 0 | AE95: 0 | AF95: 0 | AG95: 0 | AH95: 0 | AI95: 0 | AJ95: 0 | AK95: 0 | AL95: 0 | AM95: 0 | AN95: 0 | AO95: 0 | AP95: 0 | AQ95: 0
AA96: 93 | AB96: 0 | AC96: 0 | AD96: 0 | AE96: 0 | AF96: 0 | AG96: 0 | AH96: 0 | AI96: 0 | AJ96: 0 | AK96: 0 | AL96: 0 | AM96: 0 | AN96: 0 | AO96: 0 | AP96: 0 | AQ96: 0
AA97: 94 | AB97: 0 | AC97: 0 | AD97: 0 | AE97: 0 | AF97: 0 | AG97: 0 | AH97: 0 | AI97: 0 | AJ97: 0 | AK97: 0 | AL97: 0 | AM97: 0 | AN97: 0 | AO97: 0 | AP97: 0 | AQ97: 0
AA98: 95 | AB98: 0 | AC98: 0 | AD98: 0 | AE98: 0 | AF98: 0 | AG98: 0 | AH98: 0 | AI98: 0 | AJ98: 0 | AK98: 0 | AL98: 0 | AM98: 0 | AN98: 0 | AO98: 0 | AP98: 0 | AQ98: 0
AA99: 96 | AB99: 0 | AC99: 0 | AD99: 0 | AE99: 0 | AF99: 0 | AG99: 0 | AH99: 0 | AI99: 0 | AJ99: 0 | AK99: 0 | AL99: 0 | AM99: 0 | AN99: 0 | AO99: 0 | AP99: 0 | AQ99: 0
AA100: 97 | AB100: 0 | AC100: 0 | AD100: 0 | AE100: 0 | AF100: 0 | AG100: 0 | AH100: 0 | AI100: 0 | AJ100: 0 | AK100: 0 | AL100: 0 | AM100: 0 | AN100: 0 | AO100: 0 | AP100: 0 | AQ100: 0
AA101: 98 | AB101: 0 | AC101: 0 | AD101: 0 | AE101: 0 | AF101: 0 | AG101: 0 | AH101: 0 | AI101: 0 | AJ101: 0 | AK101: 0 | AL101: 0 | AM101: 0 | AN101: 0 | AO101: 0 | AP101: 0 | AQ101: 0
AA102: 99 | AB102: 0 | AC102: 0 | AD102: 0 | AE102: 0 | AF102: 0 | AG102: 0 | AH102: 0 | AI102: 0 | AJ102: 0 | AK102: 0 | AL102: 0 | AM102: 0 | AN102: 0 | AO102: 0 | AP102: 0 | AQ102: 0
AA103: 100 | AB103: 0 | AC103: 0 | AD103: 0 | AE103: 0 | AF103: 0 | AG103: 0 | AH103: 0 | AI103: 0 | AJ103: 0 | AK103: 0 | AL103: 0 | AM103: 0 | AN103: 0 | AO103: 0 | AP103: 0 | AQ103: 0
AA104: 101 | AB104: 0 | AC104: 0 | AD104: 0 | AE104: 0 | AF104: 0 | AG104: 0 | AH104: 0 | AI104: 0 | AJ104: 0 | AK104: 0 | AL104: 0 | AM104: 0 | AN104: 0 | AO104: 0 | AP104: 0 | AQ104: 0
AA105: 102 | AB105: 0 | AC105: 0 | AD105: 0 | AE105: 0 | AF105: 0 | AG105: 0 | AH105: 0 | AI105: 0 | AJ105: 0 | AK105: 0 | AL105: 0 | AM105: 0 | AN105: 0 | AO105: 0 | AP105: 0 | AQ105: 0
AA106: 103 | AB106: 0 | AC106: 0 | AD106: 0 | AE106: 0 | AF106: 0 | AG106: 0 | AH106: 0 | AI106: 0 | AJ106: 0 | AK106: 0 | AL106: 0 | AM106: 0 | AN106: 0 | AO106: 0 | AP106: 0 | AQ106: 0
AA107: 104 | AB107: 0 | AC107: 0 | AD107: 0 | AE107: 0 | AF107: 0 | AG107: 0 | AH107: 0 | AI107: 0 | AJ107: 0 | AK107: 0 | AL107: 0 | AM107: 0 | AN107: 0 | AO107: 0 | AP107: 0 | AQ107: 0
AA108: 105 | AB108: 0 | AC108: 0 | AD108: 0 | AE108: 0 | AF108: 0 | AG108: 0 | AH108: 0 | AI108: 0 | AJ108: 0 | AK108: 0 | AL108: 0 | AM108: 0 | AN108: 0 | AO108: 0 | AP108: 0 | AQ108: 0
AA109: 106 | AB109: 0 | AC109: 0 | AD109: 0 | AE109: 0 | AF109: 0 | AG109: 0 | AH109: 0 | AI109: 0 | AJ109: 0 | AK109: 0 | AL109: 0 | AM109: 0 | AN109: 0 | AO109: 0 | AP109: 0 | AQ109: 0
AA110: 107 | AB110: 0 | AC110: 0 | AD110: 0 | AE110: 0 | AF110: 0 | AG110: 0 | AH110: 0 | AI110: 0 | AJ110: 0 | AK110: 0 | AL110: 0 | AM110: 0 | AN110: 0 | AO110: 0 | AP110: 0 | AQ110: 0
AA111: 108 | AB111: 0 | AC111: 0 | AD111: 0 | AE111: 0 | AF111: 0 | AG111: 0 | AH111: 0 | AI111: 0 | AJ111: 0 | AK111: 0 | AL111: 0 | AM111: 0 | AN111: 0 | AO111: 0 | AP111: 0 | AQ111: 0
AA112: 109 | AB112: 0 | AC112: 0 | AD112: 0 | AE112: 0 | AF112: 0 | AG112: 0 | AH112: 0 | AI112: 0 | AJ112: 0 | AK112: 0 | AL112: 0 | AM112: 0 | AN112: 0 | AO112: 0 | AP112: 0 | AQ112: 0
AA113: 110 | AB113: 0 | AC113: 0 | AD113: 0 | AE113: 0 | AF113: 0 | AG113: 0 | AH113: 0 | AI113: 0 | AJ113: 0 | AK113: 0 | AL113: 0 | AM113: 0 | AN113: 0 | AO113: 0 | AP113: 0 | AQ113: 0
AA114: 111 | AB114: 0 | AC114: 0 | AD114: 0 | AE114: 0 | AF114: 0 | AG114: 0 | AH114: 0 | AI114: 0 | AJ114: 0 | AK114: 0 | AL114: 0 | AM114: 0 | AN114: 0 | AO114: 0 | AP114: 0 | AQ114: 0
AA115: 112 | AB115: 0 | AC115: 0 | AD115: 0 | AE115: 0 | AF115: 0 | AG115: 0 | AH115: 0 | AI115: 0 | AJ115: 0 | AK115: 0 | AL115: 0 | AM115: 0 | AN115: 0 | AO115: 0 | AP115: 0 | AQ115: 0
AA116: 113 | AB116: 0 | AC116: 0 | AD116: 0 | AE116: 0 | AF116: 0 | AG116: 0 | AH116: 0 | AI116: 0 | AJ116: 0 | AK116: 0 | AL116: 0 | AM116: 0 | AN116: 0 | AO116: 0 | AP116: 0 | AQ116: 0
AA117: 114 | AB117: 0 | AC117: 0 | AD117: 0 | AE117: 0 | AF117: 0 | AG117: 0 | AH117: 0 | AI117: 0 | AJ117: 0 | AK117: 0 | AL117: 0 | AM117: 0 | AN117: 0 | AO117: 0 | AP117: 0 | AQ117: 0
AA118: 115 | AB118: 0 | AC118: 0 | AD118: 0 | AE118: 0 | AF118: 0 | AG118: 0 | AH118: 0 | AI118: 0 | AJ118: 0 | AK118: 0 | AL118: 0 | AM118: 0 | AN118: 0 | AO118: 0 | AP118: 0 | AQ118: 0
AA119: 116 | AB119: 0 | AC119: 0 | AD119: 0 | AE119: 0 | AF119: 0 | AG119: 0 | AH119: 0 | AI119: 0 | AJ119: 0 | AK119: 0 | AL119: 0 | AM119: 0 | AN119: 0 | AO119: 0 | AP119: 0 | AQ119: 0
AA120: 117 | AB120: 0 | AC120: 0 | AD120: 0 | AE120: 0 | AF120: 0 | AG120: 0 | AH120: 0 | AI120: 0 | AJ120: 0 | AK120: 0 | AL120: 0 | AM120: 0 | AN120: 0 | AO120: 0 | AP120: 0 | AQ120: 0
AA121: 118 | AB121: 0 | AC121: 0 | AD121: 0 | AE121: 0 | AF121: 0 | AG121: 0 | AH121: 0 | AI121: 0 | AJ121: 0 | AK121: 0 | AL121: 0 | AM121: 0 | AN121: 0 | AO121: 0 | AP121: 0 | AQ121: 0
AA122: 119 | AB122: 0 | AC122: 0 | AD122: 0 | AE122: 0 | AF122: 0 | AG122: 0 | AH122: 0 | AI122: 0 | AJ122: 0 | AK122: 0 | AL122: 0 | AM122: 0 | AN122: 0 | AO122: 0 | AP122: 0 | AQ122: 0
AA123: 120 | AB123: 0 | AC123: 0 | AD123: 0 | AE123: 0 | AF123: 0 | AG123: 0 | AH123: 0 | AI123: 0 | AJ123: 0 | AK123: 0 | AL123: 0 | AM123: 0 | AN123: 0 | AO123: 0 | AP123: 0 | AQ123: 0
AA124: 121 | AB124: 0 | AC124: 0 | AD124: 0 | AE124: 0 | AF124: 0 | AG124: 0 | AH124: 0 | AI124: 0 | AJ124: 0 | AK124: 0 | AL124: 0 | AM124: 0 | AN124: 0 | AO124: 0 | AP124: 0 | AQ124: 0
AA125: 122 | AB125: 0 | AC125: 0 | AD125: 0 | AE125: 0 | AF125: 0 | AG125: 0 | AH125: 0 | AI125: 0 | AJ125: 0 | AK125: 0 | AL125: 0 | AM125: 0 | AN125: 0 | AO125: 0 | AP125: 0 | AQ125: 0
AA126: 123 | AB126: 0 | AC126: 0 | AD126: 0 | AE126: 0 | AF126: 0 | AG126: 0 | AH126: 0 | AI126: 0 | AJ126: 0 | AK126: 0 | AL126: 0 | AM126: 0 | AN126: 0 | AO126: 0 | AP126: 0 | AQ126: 0
AA127: 124 | AB127: 0 | AC127: 0 | AD127: 0 | AE127: 0 | AF127: 0 | AG127: 0 | AH127: 0 | AI127: 0 | AJ127: 0 | AK127: 0 | AL127: 0 | AM127: 0 | AN127: 0 | AO127: 0 | AP127: 0 | AQ127: 0
AA128: 125 | AB128: 0 | AC128: 0 | AD128: 0 | AE128: 0 | AF128: 0 | AG128: 0 | AH128: 0 | AI128: 0 | AJ128: 0 | AK128: 0 | AL128: 0 | AM128: 0 | AN128: 0 | AO128: 0 | AP128: 0 | AQ128: 0
AA129: 126 | AB129: 0 | AC129: 0 | AD129: 0 | AE129: 0 | AF129: 0 | AG129: 0 | AH129: 0 | AI129: 0 | AJ129: 0 | AK129: 0 | AL129: 0 | AM129: 0 | AN129: 0 | AO129: 0 | AP129: 0 | AQ129: 0
AA130: 127 | AB130: 0 | AC130: 0 | AD130: 0 | AE130: 0 | AF130: 0 | AG130: 0 | AH130: 0 | AI130: 0 | AJ130: 0 | AK130: 0 | AL130: 0 | AM130: 0 | AN130: 0 | AO130: 0 | AP130: 0 | AQ130: 0
AA131: 128 | AB131: 0 | AC131: 0 | AD131: 0 | AE131: 0 | AF131: 0 | AG131: 0 | AH131: 0 | AI131: 0 | AJ131: 0 | AK131: 0 | AL131: 0 | AM131: 0 | AN131: 0 | AO131: 0 | AP131: 0 | AQ131: 0
AA132: 129 | AB132: 0 | AC132: 0 | AD132: 0 | AE132: 0 | AF132: 0 | AG132: 0 | AH132: 0 | AI132: 0 | AJ132: 0 | AK132: 0 | AL132: 0 | AM132: 0 | AN132: 0 | AO132: 0 | AP132: 0 | AQ132: 0
AA133: 130 | AB133: =AB132 -> 0 | AC133: 0 | AD133: 0 | AE133: 0 | AF133: =AF132 -> 0 | AG133: 0 | AH133: 0 | AI133: 0 | AJ133: =AJ132 -> 0 | AK133: 0 | AL133: 0 | AM133: 0 | AN133: =AN132 -> 0 | AO133: 0 | AP133: 0 | AQ133: 0
AA134: =AA133+1 -> 131 | AB134: 0 | AC134: 0 | AD134: 0 | AE134: 0 | AF134: 0 | AG134: 0 | AH134: 0 | AI134: 0 | AJ134: 0 | AK134: 0 | AL134: 0 | AM134: 0 | AN134: 0 | AO134: 0 | AP134: 0 | AQ134: 0
AA135: 132 | AB135: 0 | AC135: 0 | AD135: 0 | AE135: 0 | AF135: 0 | AG135: 0 | AH135: 0 | AI135: 0 | AJ135: 0 | AK135: 0 | AL135: 0 | AM135: 0 | AN135: 0 | AO135: 0 | AP135: 0 | AQ135: 0
AA136: 133 | AB136: 0 | AC136: 0 | AD136: 0 | AE136: 0 | AF136: 0 | AG136: 0 | AH136: 0 | AI136: 0 | AJ136: 0 | AK136: 0 | AL136: 0 | AM136: 0 | AN136: 0 | AO136: 0 | AP136: 0 | AQ136: 0
AA137: 134 | AB137: 0 | AC137: 0 | AD137: 0 | AE137: 0 | AF137: 0 | AG137: 0 | AH137: 0 | AI137: 0 | AJ137: 0 | AK137: 0 | AL137: 0 | AM137: 0 | AN137: 0 | AO137: 0 | AP137: 0 | AQ137: 0
AA138: 135 | AB138: 0 | AC138: 0 | AD138: 0 | AE138: 0 | AF138: 0 | AG138: 0 | AH138: 0 | AI138: 0 | AJ138: 0 | AK138: 0 | AL138: 0 | AM138: 0 | AN138: 0 | AO138: 0 | AP138: 0 | AQ138: 0
AA139: 136 | AB139: 0 | AC139: 0 | AD139: 0 | AE139: 0 | AF139: 0 | AG139: 0 | AH139: 0 | AI139: 0 | AJ139: 0 | AK139: 0 | AL139: 0 | AM139: 0 | AN139: 0 | AO139: 0 | AP139: 0 | AQ139: 0
AA140: 137 | AB140: 0 | AC140: 0 | AD140: 0 | AE140: 0 | AF140: 0 | AG140: 0 | AH140: 0 | AI140: 0 | AJ140: 0 | AK140: 0 | AL140: 0 | AM140: 0 | AN140: 0 | AO140: 0 | AP140: 0 | AQ140: 0
AA141: 138 | AB141: 0 | AC141: 0 | AD141: 0 | AE141: 0 | AF141: 0 | AG141: 0 | AH141: 0 | AI141: 0 | AJ141: 0 | AK141: 0 | AL141: 0 | AM141: 0 | AN141: 0 | AO141: 0 | AP141: 0 | AQ141: 0
AA142: 139 | AB142: 0 | AC142: 0 | AD142: 0 | AE142: 0 | AF142: 0 | AG142: 0 | AH142: 0 | AI142: 0 | AJ142: 0 | AK142: 0 | AL142: 0 | AM142: 0 | AN142: 0 | AO142: 0 | AP142: 0 | AQ142: 0
AA143: 140 | AB143: 0 | AC143: 0 | AD143: 0 | AE143: 0 | AF143: 0 | AG143: 0 | AH143: 0 | AI143: 0 | AJ143: 0 | AK143: 0 | AL143: 0 | AM143: 0 | AN143: 0 | AO143: 0 | AP143: 0 | AQ143: 0
AA144: 141 | AB144: 0 | AC144: 0 | AD144: 0 | AE144: 0 | AF144: 0 | AG144: 0 | AH144: 0 | AI144: 0 | AJ144: 0 | AK144: 0 | AL144: 0 | AM144: 0 | AN144: 0 | AO144: 0 | AP144: 0 | AQ144: 0
AA145: 142 | AB145: 0 | AC145: 0 | AD145: 0 | AE145: 0 | AF145: 0 | AG145: 0 | AH145: 0 | AI145: 0 | AJ145: 0 | AK145: 0 | AL145: 0 | AM145: 0 | AN145: 0 | AO145: 0 | AP145: 0 | AQ145: 0
